Workbook

Sheet Input & Summary.
B1: Third Sector Advantage
D3: Portfolio 1 | E3: Portfolio 2 | F3: Portfolio 3 | G3: RFR | J3: (1) Pension | K3: 0
C4: Income | D4: 0.05 | E4: 0.06 | F4: 0.035 | G4: 0.03 | J4: (2) Superannuation | K4: 0.15
C5: Growth | D5: 0.03 | E5: 0.025 | F5: 0.06 | G5: 0 | J5: (3) Company | K5: 0.3
C6: Turnover (%pa) | D6: 0.15 | E6: 0.15 | F6: 0.35 | G6: 0 | J6: (4) Individual | K6: =D19 -> 0.2
C7: Tax Structure | D7: (4) Individual | E7: (4) Individual | F7: (4) Individual | G7: (4) Individual
C8: Fees (%) | D8: 0.008 | E8: 0.0099 | F8: 0.0066 | G8: 0
C9: Volatility | D9: 0.07 | E9: 0.07 | F9: 0.14 | G9: 0.01
C10: Raw Sharpe | D10: =(D4+D5-($G$4+$G$5))/D9 -> 0.7142857143 | E10: =(E4+E5-($G$4+$G$5))/E9 -> 0.7857142857 | F10: =(F4+F5-($G$4+$G$5))/F9 -> 0.4642857143 | G10: =(G4+G5-($G$4+$G$5))/G9 -> 0
C11: True Sharpe | D11: =(D15-$G$15+$G$8)/D16 -> 0.6062257625 | E11: =(E15-$G$15+$G$8)/E16 -> 0.643392077 | F11: 0.4229165934 | G11: 0
C12: Relevant tax rate | D12: =VLOOKUP(D7,$J3:$K$6,2) -> 0.2 | E12: =VLOOKUP(E7,$J3:$K$6,2) -> 0.2 | F12: =VLOOKUP(F7,$J3:$K$6,2) -> 0.2 | G12: =VLOOKUP(G7,$J3:$K$6,2) -> 0.2
C13: Assessalbe income (p.a.) | D13: =(D4+(D5*D6)+(((1-D6)*D5)/2))-D8 -> 0.05925 | E13: =(E4+(E5*E6)+(((1-E6)*E5)/2))-E8 -> 0.064475 | F13: 0.0689 | G13: 0.03
C14: Av. Tax Rate earnings | D14: =(D4+D5-D15-D8)/(D4+D5) -> 0.148125 | E14: =(E4+E5-E15-E8)/(E4+E5) -> 0.1517058824 | F14: 0.1450526316 | G14: 0.2
C15: Return | D15: =-(D13*D12)+(D4+D5)-D8 -> 0.06015 | E15: =-(E13*E12)+(E4+E5)-E8 -> 0.062205 | F15: 0.07462 | G15: 0.024
C16: True Volatility | D16: =D9*(1-D14) -> 0.05963125 | E16: =E9*(1-E14) -> 0.05938058824 | F16: 0.1196926316 | G16: 0.008
C18: Inflation | D18: 0.02
C19: Client Marginal Tax Rate: | D19: 0.2
C20: Client Investment & Cash Flows (Summary)
C21: Funds to Invest | D21: 4788800
C22: Phase1: Contributions/(Withdrawals) | D22: 147990
C23: Years in Phase 1 (from today) | D23: 7
C24: Phase1: Contributions/(Withdrawals) | D24: -207000
C25: Years in Phase 2 (starts at end Phase 1) | D25: 13
C27: Portfolio | D27: Return | E27: Volatility | F27: Sharpe
C28: Risk Free Rate | D28: =G15 -> 0.024 | E28: =G16 -> 0.008 | F28: n/a
C29: A | D29: =D15 -> 0.06015 | E29: =D16 -> 0.05963125 | F29: =(D29-D$28)/E29 -> 0.6062257625
C30: B | D30: =E15 -> 0.062205 | E30: =E16 -> 0.05938058824 | F30: =(D30-D$28)/E30 -> 0.643392077
C31: C | D31: =F15 -> 0.07462 | E31: =F16 -> 0.1196926316 | F31: 0.4229165934
C33: Client Objectives | E33: Level of Importance (0-10)
C34: Return Objective (Nom.) | D34: 0.05 | E34: 7
C35: Min Acceptable (Nom) | D35: 0.02 | E35: 7
C36: Importance of outperforming other investments | E36: 7
C37: Importance of avoiding exposure to excess risk/volatility | E37: 7
C38: How much would you pay for a 50% chance of winning $1,000? | E38: 340
C39: You have invested in an asset that returns, on average, 7% per annum. However returns are volatile, fluctuating between 14% and 0% in in around 2/3 of years. In around 1 in every 5 years returns are less than 0%. How much (% p.a.) would you be prepared to remove this risk of the asset delivering a negative return? | E39: 0.0067
C42: How would you best describe the client's personality when it comes to financial matters? | E42: Anxious
C44: Portfolio Drawdown Expected
C45: Investment Horizon (years) | D45: 10
C46: Portfolio 1 | D46: =((NORMSINV(1-(1/($D$45*2)))+1)*$D$9)-D15 -> 0.1249897539
C47: Portfolio 2 | D47: =((NORMSINV(1-(1/($D$45*2)))+1)*$E$9)-D15 -> 0.1249897539
C48: Portfolio 3 | D48: =((NORMSINV(1-(1/($D$45*2)))+1)*$F$9)-F15 -> 0.2956595078
C49: RFR | D49: =((NORMSINV(1-(1/($D$45*2)))+1)*$G$9)-G15 -> 0.00244853627

Sheet RFR
B1: Open | C1: 1
B2: ER | C2: =RiskMap!C5 -> 0.024
B3: SD | C3: =RiskMap!D5 -> 0.008
B4: Min Rtn Obj | C4: =RiskMap!$C$15 -> 0.05 | AI4: =(1+$C$4)^AI23 -> 1.05 | AJ4: =(1+$C$4)^AJ23 -> 1.1025 | AK4: 1.157625 | AL4: 1.21550625 | AM4: 1.276281563 | AN4: 1.340095641 | AO4: 1.407100423 | AP4: 1.477455444 | AQ4: 1.551328216 | AR4: 1.628894627 | AS4: 1.710339358 | AT4: 1.795856326 | AU4: 1.885649142 | AV4: 1.979931599 | AW4: 2.078928179 | AX4: 2.182874588 | AY4: 2.292018318 | AZ4: 2.406619234 | BA4: 2.526950195 | BB4: 2.653297705
AI5: =COUNTIF(AI24:AI1023,">"&AI4)/1000 -> 0.751 | AJ5: =COUNTIF(AJ24:AJ1023,">"&AJ4)/1000 -> 0.823 | AK5: 0.854 | AL5: 0.864 | AM5: 0.849 | AN5: 0.85 | AO5: 0.836 | AP5: 0.022 | AQ5: 0 | AR5: 0 | AS5: 0 | AT5: 0 | AU5: 0 | AV5: 0 | AW5: 0 | AX5: 0 | AY5: 0 | AZ5: 0 | BA5: 0 | BB5: 0
B6: Min Acceptable | C6: =RiskMap!$C$16 -> 0.02 | AI6: =(1+$C$6) -> 1.02 | AJ6: =(1+$C$6)*AI6 -> 1.0404 | AK6: =(1+$C$6)*AJ6 -> 1.061208 | AL6: 1.08243216 | AM6: 1.104080803 | AN6: 1.126162419 | AO6: 1.148685668 | AP6: 1.171659381 | AQ6: 1.195092569 | AR6: 1.21899442 | AS6: 1.243374308 | AT6: 1.268241795 | AU6: 1.29360663 | AV6: 1.319478763 | AW6: 1.345868338 | AX6: 1.372785705 | AY6: 1.400241419 | AZ6: 1.428246248 | BA6: 1.456811173 | BB6: 1.485947396
AI7: =COUNTIF(AI24:AI1023,"<"&AI6)/1000 -> 0 | AJ7: =COUNTIF(AJ24:AJ1023,"<"&AJ6)/1000 -> 0 | AK7: 0 | AL7: 0 | AM7: 0 | AN7: 0 | AO7: 0 | AP7: 0 | AQ7: 0 | AR7: 0 | AS7: 0 | AT7: 0.038 | AU7: 0.334 | AV7: 0.782 | AW7: 0.97 | AX7: 0.998 | AY7: 1 | AZ7: 1 | BA7: 1 | BB7: 1
AI8: =COUNTIF(AI24:AI1023,">"&RiskMap!F22)/1000 -> 0 | AJ8: =COUNTIF(AJ24:AJ1023,">"&RiskMap!G22)/1000 -> 0.001 | AK8: =COUNTIF(AK24:AK1023,">"&RiskMap!H22)/1000 -> 0 | AL8: =COUNTIF(AL24:AL1023,">"&RiskMap!I22)/1000 -> 0 | AM8: =COUNTIF(AM24:AM1023,">"&RiskMap!J22)/1000 -> 0 | AN8: =COUNTIF(AN24:AN1023,">"&RiskMap!K22)/1000 -> 0 | AO8: =COUNTIF(AO24:AO1023,">"&RiskMap!L22)/1000 -> 0 | AP8: =COUNTIF(AP24:AP1023,">"&RiskMap!M22)/1000 -> 0 | AQ8: =COUNTIF(AQ24:AQ1023,">"&RiskMap!N22)/1000 -> 0 | AR8: =COUNTIF(AR24:AR1023,">"&RiskMap!O22)/1000 -> 0 | AS8: =COUNTIF(AS24:AS1023,">"&RiskMap!P22)/1000 -> 0 | AT8: =COUNTIF(AT24:AT1023,">"&RiskMap!Q22)/1000 -> 0 | AU8: =COUNTIF(AU24:AU1023,">"&RiskMap!R22)/1000 -> 0 | AV8: =COUNTIF(AV24:AV1023,">"&RiskMap!S22)/1000 -> 0 | AW8: =COUNTIF(AW24:AW1023,">"&RiskMap!T22)/1000 -> 0 | AX8: =COUNTIF(AX24:AX1023,">"&RiskMap!U22)/1000 -> 0 | AY8: =COUNTIF(AY24:AY1023,">"&RiskMap!V22)/1000 -> 0 | AZ8: =COUNTIF(AZ24:AZ1023,">"&RiskMap!W22)/1000 -> 0 | BA8: =COUNTIF(BA24:BA1023,">"&RiskMap!X22)/1000 -> 0 | BB8: =COUNTIF(BB24:BB1023,">"&RiskMap!Y22)/1000 -> 0
AH11: Mean | AI11: =AVERAGE(AI24:AI10023) -> 1.055711698 | AJ11: 1.113267754 | AK11: 1.172945718 | AL11: 1.234850231 | AM11: 1.298935111 | AN11: 1.365174507 | AO11: 1.433518526 | AP11: 1.417162686 | AQ11: 1.399257653 | AR11: 1.37997189 | AS11: 1.359286317 | AT11: 1.336864118 | AU11: 1.31287237 | AV11: 1.287227793 | AW11: 1.259653962 | AX11: 1.230299959 | AY11: 1.199103883 | AZ11: 1.165911421 | BA11: 1.13052317 | BB11: 1.093171502
E12: SD VAR | AH12: Max | AI12: =MAX(AI$24:AI$10023) -> 1.087517175 | AJ12: =MAX(AJ$24:AJ$10023) -> 1.15799729 | AK12: 1.227030354 | AL12: 1.312637269 | AM12: 1.382216678 | AN12: 1.457818071 | AO12: 1.543232441 | AP12: 1.537348485 | AQ12: 1.528127196 | AR12: 1.518473961 | AS12: 1.51587289 | AT12: 1.501491803 | AU12: 1.488036093 | AV12: 1.474221695 | AW12: 1.465547862 | AX12: 1.448486075 | AY12: 1.4157445 | AZ12: 1.391584971 | BA12: 1.363706 | BB12: 1.332628428
D13: Series | E13: NormsInv(Rand()) | AH13: Min | AI13: =MIN(AI$24:AI$10023) -> 1.026763154 | AJ13: =MIN(AJ$24:AJ$10023) -> 1.067506066 | AK13: 1.116039157 | AL13: 1.172584414 | AM13: 1.222891659 | AN13: 1.280437051 | AO13: 1.333818127 | AP13: 1.307013281 | AQ13: 1.273840761 | AR13: 1.246411392 | AS13: 1.223389401 | AT13: 1.186526456 | AU13: 1.140374912 | AV13: 1.10161651 | AW13: 1.061200038 | AX13: 1.019082699 | AY13: 0.9946282136 | AZ13: 0.955789322 | BA13: 0.9249583065 | BB13: 0.881597286
AH14: 1% low (adj) | AI14: =AVERAGE(AI15:AI17) -> 1.036801537 | AJ14: =AVERAGE(AJ15:AJ17) -> 1.084980366 | AK14: 1.136949499 | AL14: 1.192746168 | AM14: 1.250105987 | AN14: 1.308984266 | AO14: 1.370593202 | AP14: 1.348521232 | AQ14: 1.325553023 | AR14: 1.300629044 | AS14: 1.274113339 | AT14: 1.246293801 | AU14: 1.21611493 | AV14: 1.185717818 | AW14: 1.153314727 | AX14: 1.11913484 | AY14: 1.083984489 | AZ14: 1.045242772 | BA14: 1.005749066 | BB14: 0.9666140267
AH15: 1%low | AI15: =SMALL(AI24:AI10023,(1%*10000)) -> 1.036786607 | AJ15: =SMALL(AJ24:AJ10023,(1%*10000)) -> 1.084974353 | AK15: 1.136963621 | AL15: 1.192755304 | AM15: 1.250115281 | AN15: 1.309017126 | AO15: 1.370570548 | AP15: 1.348566435 | AQ15: 1.325596585 | AR15: 1.300614411 | AS15: 1.274140579 | AT15: 1.246335607 | AU15: 1.216188513 | AV15: 1.185753676 | AW15: 1.153293685 | AX15: 1.119100213 | AY15: 1.083862356 | AZ15: 1.045204155 | BA15: 1.005925022 | BB15: 0.9664271083
AH16: 1%low+1 | AI16: =SMALL(AI24:AI10023,((1%*10000)+1)) -> 1.03686084 | AJ16: =SMALL(AJ24:AJ10023,((1%*10000)+1)) -> 1.085037061 | AK16: 1.136981113 | AL16: 1.192778047 | AM16: 1.25018306 | AN16: 1.309022285 | AO16: 1.370644535 | AP16: 1.348624876 | AQ16: 1.325610431 | AR16: 1.300670623 | AS16: 1.274172096 | AT16: 1.246343502 | AU16: 1.216214207 | AV16: 1.185792193 | AW16: 1.153363999 | AX16: 1.119208839 | AY16: 1.08428502 | AZ16: 1.045445468 | BA16: 1.005998522 | BB16: 0.9671548933
AH17: 1%low-1 | AI17: =SMALL(AI24:AI10023,((1%*10000)-1)) -> 1.036757164 | AJ17: =SMALL(AJ24:AJ10023,((1%*10000)-1)) -> 1.084929683 | AK17: 1.136903764 | AL17: 1.192705152 | AM17: 1.25001962 | AN17: 1.308913388 | AO17: 1.370564524 | AP17: 1.348372384 | AQ17: 1.325452054 | AR17: 1.300602098 | AS17: 1.274027341 | AT17: 1.246202294 | AU17: 1.215942069 | AV17: 1.185607585 | AW17: 1.153286497 | AX17: 1.119095469 | AY17: 1.083806092 | AZ17: 1.045078692 | BA17: 1.005323654 | BB17: 0.9662600786
AH18: 5% low | AI18: =SMALL(AI24:AI10023,(5%*10000)) -> 1.042258031 | AJ18: =SMALL(AJ24:AJ10023,(5%*10000)) -> 1.093485716 | AK18: 1.147699902 | AL18: 1.204508564 | AM18: 1.263816817 | AN18: 1.325004069 | AO18: 1.389044372 | AP18: 1.367234824 | AQ18: 1.345967165 | AR18: 1.321863351 | AS18: 1.297158469 | AT18: 1.270916451 | AU18: 1.244359111 | AV18: 1.215296442 | AW18: 1.183947664 | AX18: 1.151073231 | AY18: 1.117059225 | AZ18: 1.080636313 | BA18: 1.041452207 | BB18: 1.00067693
AH19: 5% max | AI19: =LARGE(AI24:AI10023,(5%*10000)) -> 1.069432939 | AJ19: =LARGE(AJ24:AJ10023,(5%*10000)) -> 1.133140678 | AK19: 1.198009327 | AL19: 1.264927955 | AM19: 1.334833496 | AN19: 1.405937526 | AO19: 1.478910089 | AP19: 1.467373168 | AQ19: 1.454544607 | AR19: 1.438538158 | AS19: 1.422313218 | AT19: 1.403281005 | AU19: 1.382861454 | AV19: 1.361280022 | AW19: 1.337661246 | AX19: 1.311108608 | AY19: 1.283656497 | AZ19: 1.253690106 | BA19: 1.221863727 | BB19: 1.187993174
AH20: MinSD YoY | AI20: =((AI13)-1)/$C$3 -> 3.345394258 | AJ20: =((AJ13/AI13)-1)/$C$3 -> 4.960115691 | AK20: =((AK13/AJ13)-1)/$C$3 -> 5.682999435 | AL20: =((AL13/AK13)-1)/$C$3 -> 6.333251841 | AM20: =((AM13/AL13)-1)/$C$3 -> 5.362859725 | AN20: =((AN13/AM13)-1)/$C$3 -> 5.882102404 | AO20: =((AO13/AN13)-1)/$C$3 -> 5.211216336 | AP20: -2.51204097 | AQ20: -3.172549976 | AR20: -2.691601061 | AS20: -2.308827479 | AT20: -3.766477048 | AU20: -4.862043326 | AV20: -4.248427651 | AW20: -4.586041471 | AX20: -4.961050861 | AY20: -2.999570732 | AZ20: -4.881081573 | BA20: -4.032140612 | BB20: -5.859861494
AI21: =AI18/AI11 -> 0.9872563066 | AJ21: =AJ18/AJ11 -> 0.982230656 | AK21: 0.9784765687 | AL21: 0.9754288682 | AM21: 0.9729637814 | AN21: 0.9705748692 | AO21: 0.968975529 | AP21: 0.9647691388 | AQ21: 0.9619151713 | AR21: 0.9578915055 | AS21: 0.9542937734 | AT21: 0.95066988 | AU21: 0.947814227 | AV21: 0.9441191751 | AW21: 0.9398991306 | AX21: 0.9356037303 | AY21: 0.9315783564 | AZ21: 0.9268597024 | BA21: 0.9212126161 | BB21: 0.9153887821
D22: 410trial | E22: =AVERAGE(E24:E1023) -> -0.004373692575 | F22: =AVERAGE(F24:F1023) -> 0.01138228609 | G22: 0.0185667742 | H22: 0.003124148842 | I22: 0.01336414403 | J22: 0.04496861179 | K22: 0.005644290031 | L22: -0.006639494899 | M22: -0.03782215669 | N22: -0.01106926662 | O22: 0.003333351115 | P22: -0.05778263169 | Q22: 0.03892038373 | R22: 0.009769303865 | S22: 0.02428172307 | T22: -0.05446265265 | U22: -0.02949358185 | V22: 0.0709120151 | W22: -0.01874691477 | X22: 0.005094770441 | Y22: 0.04149198446 | Z22: -0.004118227347 | AA22: 0.01498898992 | AB22: -0.007208719765 | AC22: 0.02578351427 | AD22: -0.01575496305 | AE22: -0.03067311654 | AF22: 0.003246840682
E23: Year | F23: 2 | G23: 3 | H23: 4 | I23: 5 | J23: 6 | K23: 7 | L23: 8 | M23: 9 | N23: 10 | O23: 11 | P23: 12 | Q23: 13 | R23: 14 | S23: 15 | T23: 16 | U23: 17 | V23: 18 | W23: 19 | X23: 20 | Y23: 21 | Z23: 22 | AA23: 23 | AB23: 24 | AC23: 25 | AD23: 26 | AE23: 27 | AF23: 28 | AI23: 1 | AJ23: 2 | AK23: 3 | AL23: 4 | AM23: 5 | AN23: 6 | AO23: 7 | AP23: 8 | AQ23: 9 | AR23: 10 | AS23: 11 | AT23: 12 | AU23: 13 | AV23: 14 | AW23: 15 | AX23: 16 | AY23: 17 | AZ23: 18 | BA23: 19 | BB23: 20
C24: Trial | D24: 1 | E24: =NORMSINV(RAND()) -> 0.8982445212 | F24: =NORMSINV(RAND()) -> -0.04917619795 | G24: 0.5554866468 | H24: -0.7616584637 | I24: 0.338798642 | J24: -0.2568541168 | K24: -1.356465732 | L24: -1.332002372 | M24: 0.4842787199 | N24: -1.940842789 | O24: -0.110424493 | P24: -0.2539789813 | Q24: 0.4124128639 | R24: 0.1267096023 | S24: 0.1956967622 | T24: -0.7298490595 | U24: -0.07155437223 | V24: 2.089040462 | W24: 0.09355408693 | X24: 0.4211440236 | Y24: -1.221113093 | Z24: 0.564599962 | AA24: 0.02065951798 | AB24: -0.2202715907 | AC24: -0.1748960734 | AD24: 1.19087618 | AE24: -0.4913286101 | AF24: -0.002108673882 | AH24: 1 | AI24: =($C$1-CFO!$E$17)*(1+($C$2+($C$3*E24))) -> 1.063053065 | AJ24: =(AI24-CFO!F$17)*(1+($C$2+($C$3*F24))) -> 1.120413661 | AK24: =(AJ24-CFO!G$17)*(1+($C$2+($C$3*G24))) -> 1.185348965 | AL24: =(AK24-CFO!H$17)*(1+($C$2+($C$3*H24))) -> 1.239956832 | AM24: =(AL24-CFO!I$17)*(1+($C$2+($C$3*I24))) -> 1.307420833 | AN24: =(AM24-CFO!J$17)*(1+($C$2+($C$3*J24))) -> 1.370980971 | AO24: =(AN24-CFO!K$17)*(1+($C$2+($C$3*K24))) -> 1.424266794 | AP24: =(AO24-CFO!L$17)*(1+($C$2+($C$3*L24))) -> 1.392956689 | AQ24: =(AP24-CFO!M$17)*(1+($C$2+($C$3*M24))) -> 1.379726581 | AR24: =(AQ24-CFO!N$17)*(1+($C$2+($C$3*N24))) -> 1.339320736 | AS24: =(AR24-CFO!O$17)*(1+($C$2+($C$3*O24))) -> 1.316371139 | AT24: =(AS24-CFO!P$17)*(1+($C$2+($C$3*P24))) -> 1.290362777 | AU24: =(AT24-CFO!Q$17)*(1+($C$2+($C$3*Q24))) -> 1.269271368 | AV24: =(AU24-CFO!R$17)*(1+($C$2+($C$3*R24))) -> 1.243704556 | AW24: =(AV24-CFO!S$17)*(1+($C$2+($C$3*S24))) -> 1.217006825 | AX24: =(AW24-CFO!T$17)*(1+($C$2+($C$3*T24))) -> 1.179876269 | AY24: =(AX24-CFO!U$17)*(1+($C$2+($C$3*U24))) -> 1.146787866 | AZ24: =(AY24-CFO!V$17)*(1+($C$2+($C$3*V24))) -> 1.130485444 | BA24: =(AZ24-CFO!W$17)*(1+($C$2+($C$3*W24))) -> 1.095198116 | BB24: =(BA24-CFO!X$17)*(1+($C$2+($C$3*X24))) -> 1.060477356
D25: 2 | E25: =NORMSINV(RAND()) -> 0.287422674 | F25: -1.456284437 | G25: -0.9102730827 | H25: -0.8170272388 | I25: -2.135610224 | J25: -0.4462187156 | K25: 0.2563025158 | L25: 0.06298042168 | M25: -1.279308598 | N25: -0.7597425654 | O25: 0.1313294189 | P25: 0.6003259837 | Q25: 0.4622044543 | R25: -0.3759234666 | S25: 0.01924047084 | T25: -0.4970506622 | U25: 0.8931212425 | V25: -0.3227233248 | W25: -0.589360496 | X25: -0.08737966477 | Y25: -0.4649395877 | Z25: -1.379386346 | AA25: -0.6064493449 | AB25: 1.225291092 | AC25: -0.3026752558 | AD25: -0.132586884 | AE25: -0.1289233863 | AF25: 0.6868958656 | AH25: 2 | AI25: =($C$1-CFO!$E$17)*(1+($C$2+($C$3*E25))) -> 1.058015478 | AJ25: =(AI25-CFO!F$17)*(1+($C$2+($C$3*F25))) -> 1.102992384 | AK25: =(AJ25-CFO!G$17)*(1+($C$2+($C$3*G25))) -> 1.154121369 | AL25: =(AK25-CFO!H$17)*(1+($C$2+($C$3*H25))) -> 1.207644307 | AM25: =(AL25-CFO!I$17)*(1+($C$2+($C$3*I25))) -> 1.249677414 | AN25: =(AM25-CFO!J$17)*(1+($C$2+($C$3*J25))) -> 1.310025517 | AO25: =(AN25-CFO!K$17)*(1+($C$2+($C$3*K25))) -> 1.379861044 | AP25: =(AO25-CFO!L$17)*(1+($C$2+($C$3*L25))) -> 1.362803329 | AQ25: =(AP25-CFO!M$17)*(1+($C$2+($C$3*M25))) -> 1.330219888 | AR25: =(AQ25-CFO!N$17)*(1+($C$2+($C$3*N25))) -> 1.301475429 | AS25: =(AR25-CFO!O$17)*(1+($C$2+($C$3*O25))) -> 1.280066163 | AT25: =(AS25-CFO!P$17)*(1+($C$2+($C$3*P25))) -> 1.261641459 | AU25: =(AT25-CFO!Q$17)*(1+($C$2+($C$3*Q25))) -> 1.240246694 | AV25: =(AU25-CFO!R$17)*(1+($C$2+($C$3*R25))) -> 1.209191604 | AW25: =(AV25-CFO!S$17)*(1+($C$2+($C$3*S25))) -> 1.179985087 | AX25: =(AW25-CFO!T$17)*(1+($C$2+($C$3*T25))) -> 1.144271414 | AY25: =(AX25-CFO!U$17)*(1+($C$2+($C$3*U25))) -> 1.118721732 | AZ25: =(AY25-CFO!V$17)*(1+($C$2+($C$3*V25))) -> 1.080859741 | BA25: =(AZ25-CFO!W$17)*(1+($C$2+($C$3*W25))) -> 1.038776465 | BB25: =(BA25-CFO!X$17)*(1+($C$2+($C$3*X25))) -> 0.9985417338
D26: 3 | E26: 1.206456479 | F26: 1.58925501 | G26: 0.2245580832 | H26: -2.363638255 | I26: 0.9481690707 | J26: 0.3210810289 | K26: 0.8743587749 | L26: 0.9537688988 | M26: 0.7296501239 | N26: -1.474498908 | O26: 1.456317312 | P26: 0.9950965014 | Q26: -1.108818937 | R26: -1.662642223 | S26: 0.4662348126 | T26: -0.1329016811 | U26: -0.7169095242 | V26: 0.3587375839 | W26: 0.7808077625 | X26: 0.8673075302 | Y26: 0.7334718354 | Z26: 1.534277747 | AA26: -0.8478943614 | AB26: 0.7400040524 | AC26: 1.80712283 | AD26: 0.3546048892 | AE26: -0.6103309401 | AF26: 0.8113106183 | AH26: 3 | AI26: =($C$1-CFO!$E$17)*(1+($C$2+($C$3*E26))) -> 1.065594959 | AJ26: =(AI26-CFO!F$17)*(1+($C$2+($C$3*F26))) -> 1.137395959 | AK26: =(AJ26-CFO!G$17)*(1+($C$2+($C$3*G26))) -> 1.199718011 | AL26: =(AK26-CFO!H$17)*(1+($C$2+($C$3*H26))) -> 1.238787494 | AM26: =(AL26-CFO!I$17)*(1+($C$2+($C$3*I26))) -> 1.312422377 | AN26: =(AM26-CFO!J$17)*(1+($C$2+($C$3*J26))) -> 1.382317987 | AO26: =(AN26-CFO!K$17)*(1+($C$2+($C$3*K26))) -> 1.461043643 | AP26: =(AO26-CFO!L$17)*(1+($C$2+($C$3*L26))) -> 1.456033219 | AQ26: =(AP26-CFO!M$17)*(1+($C$2+($C$3*M26))) -> 1.447320055 | AR26: =(AQ26-CFO!N$17)*(1+($C$2+($C$3*N26))) -> 1.412693812 | AS26: =(AR26-CFO!O$17)*(1+($C$2+($C$3*O26))) -> 1.408486523 | AT26: =(AS26-CFO!P$17)*(1+($C$2+($C$3*P26))) -> 1.398039154 | AU26: =(AT26-CFO!Q$17)*(1+($C$2+($C$3*Q26))) -> 1.363540464 | AV26: =(AU26-CFO!R$17)*(1+($C$2+($C$3*R26))) -> 1.321613285 | AW26: =(AV26-CFO!S$17)*(1+($C$2+($C$3*S26))) -> 1.299644266 | AX26: =(AW26-CFO!T$17)*(1+($C$2+($C$3*T26))) -> 1.269943234 | AY26: =(AX26-CFO!U$17)*(1+($C$2+($C$3*U26))) -> 1.232714727 | AZ26: =(AY26-CFO!V$17)*(1+($C$2+($C$3*V26))) -> 1.203684665 | BA26: =(AZ26-CFO!W$17)*(1+($C$2+($C$3*W26))) -> 1.176487364 | BB26: =(BA26-CFO!X$17)*(1+($C$2+($C$3*X26))) -> 1.147965901
D27: 4 | E27: -0.696181958 | F27: 0.209087104 | G27: -1.237166066 | H27: 1.11223657 | I27: 0.1639205509 | J27: 0.8358196005 | K27: 0.007181380869 | L27: 1.143156891 | M27: -1.059099557 | N27: -1.14872346 | O27: 0.6565471213 | P27: 1.558765932 | Q27: 1.392049978 | R27: 0.06865672815 | S27: 0.5104444084 | T27: 0.1681022587 | U27: -1.290282156 | V27: 1.056606637 | W27: 1.102306181 | X27: 0.4217478949 | Y27: -0.4215428684 | Z27: 0.4270292606 | AA27: -0.5333430753 | AB27: -0.7732378663 | AC27: -0.4728302343 | AD27: -0.04943178461 | AE27: -1.381735858 | AF27: -1.66809944 | AH27: 4 | AI27: =($C$1-CFO!$E$17)*(1+($C$2+($C$3*E27))) -> 1.049903468 | AJ27: =(AI27-CFO!F$17)*(1+($C$2+($C$3*F27))) -> 1.109187986 | AK27: =(AJ27-CFO!G$17)*(1+($C$2+($C$3*G27))) -> 1.157435781 | AL27: =(AK27-CFO!H$17)*(1+($C$2+($C$3*H27))) -> 1.229386752 | AM27: =(AL27-CFO!I$17)*(1+($C$2+($C$3*I27))) -> 1.294801681 | AN27: =(AM27-CFO!J$17)*(1+($C$2+($C$3*J27))) -> 1.36970151 | AO27: =(AN27-CFO!K$17)*(1+($C$2+($C$3*K27))) -> 1.43829249 | AP27: =(AO27-CFO!L$17)*(1+($C$2+($C$3*L27))) -> 1.434666376 | AQ27: =(AP27-CFO!M$17)*(1+($C$2+($C$3*M27))) -> 1.405510358 | AR27: =(AQ27-CFO!N$17)*(1+($C$2+($C$3*N27))) -> 1.373902281 | AS27: =(AR27-CFO!O$17)*(1+($C$2+($C$3*O27))) -> 1.359858737 | AT27: =(AS27-CFO!P$17)*(1+($C$2+($C$3*P27))) -> 1.353746913 | AU27: =(AT27-CFO!Q$17)*(1+($C$2+($C$3*Q27))) -> 1.344565656 | AV27: =(AU27-CFO!R$17)*(1+($C$2+($C$3*R27))) -> 1.320283754 | AW27: =(AV27-CFO!S$17)*(1+($C$2+($C$3*S27))) -> 1.298724648 | AX27: =(AW27-CFO!T$17)*(1+($C$2+($C$3*T27))) -> 1.271989803 | AY27: =(AX27-CFO!U$17)*(1+($C$2+($C$3*U27))) -> 1.229236274 | AZ27: =(AY27-CFO!V$17)*(1+($C$2+($C$3*V27))) -> 1.206637596 | BA27: =(AZ27-CFO!W$17)*(1+($C$2+($C$3*W27))) -> 1.18247428 | BB27: =(BA27-CFO!X$17)*(1+($C$2+($C$3*X27))) -> 1.150147602
D28: 5 | E28: -1.648174434 | F28: -1.406186645 | G28: 0.5880977058 | H28: 0.1924875471 | I28: 0.4620528993 | J28: 1.835941772 | K28: 0.8079773405 | L28: -1.57380223 | M28: 0.5966669206 | N28: 0.05676363237 | O28: 0.2920867933 | P28: -0.9703198258 | Q28: 0.01328009107 | R28: 1.344924265 | S28: -1.598671557 | T28: 2.851039088 | U28: -1.221522979 | V28: -0.9170146497 | W28: -0.2439984631 | X28: 0.06287789099 | Y28: -1.584590735 | Z28: 0.6550393516 | AA28: 1.319109209 | AB28: -0.8429471969 | AC28: 0.6786300944 | AD28: -1.29347595 | AE28: 0.2700796156 | AF28: 1.49569374 | AH28: 5 | AI28: =($C$1-CFO!$E$17)*(1+($C$2+($C$3*E28))) -> 1.04205217 | AJ28: =(AI28-CFO!F$17)*(1+($C$2+($C$3*F28))) -> 1.087262202 | AK28: =(AJ28-CFO!G$17)*(1+($C$2+($C$3*G28))) -> 1.151546592 | AL28: =(AK28-CFO!H$17)*(1+($C$2+($C$3*H28))) -> 1.214589446 | AM28: =(AL28-CFO!I$17)*(1+($C$2+($C$3*I28))) -> 1.282606485 | AN28: =(AM28-CFO!J$17)*(1+($C$2+($C$3*J28))) -> 1.367667182 | AO28: =(AN28-CFO!K$17)*(1+($C$2+($C$3*K28))) -> 1.445193956 | AP28: =(AO28-CFO!L$17)*(1+($C$2+($C$3*L28))) -> 1.411463569 | AQ28: =(AP28-CFO!M$17)*(1+($C$2+($C$3*M28))) -> 1.399972845 | AR28: =(AQ28-CFO!N$17)*(1+($C$2+($C$3*N28))) -> 1.381285757 | AS28: =(AR28-CFO!O$17)*(1+($C$2+($C$3*O28))) -> 1.36358444 | AT28: =(AS28-CFO!P$17)*(1+($C$2+($C$3*P28))) -> 1.331106942 | AU28: =(AT28-CFO!Q$17)*(1+($C$2+($C$3*Q28))) -> 1.307052559 | AV28: =(AU28-CFO!R$17)*(1+($C$2+($C$3*R28))) -> 1.294624005 | AW28: =(AV28-CFO!S$17)*(1+($C$2+($C$3*S28))) -> 1.251462542 | AX28: =(AW28-CFO!T$17)*(1+($C$2+($C$3*T28))) -> 1.24914194 | AY28: =(AX28-CFO!U$17)*(1+($C$2+($C$3*U28))) -> 1.206730383 | AZ28: =(AY28-CFO!V$17)*(1+($C$2+($C$3*V28))) -> 1.165303948 | BA28: =(AZ28-CFO!W$17)*(1+($C$2+($C$3*W28))) -> 1.127898229 | BB28: =(BA28-CFO!X$17)*(1+($C$2+($C$3*X28))) -> 1.091020226
D29: 6 | E29: -0.548498835 | F29: -0.2073662676 | G29: 1.457717188 | H29: 0.3451424615 | I29: -0.4476890402 | J29: 0.3885307813 | K29: -0.2584887269 | L29: -0.7371237564 | M29: -0.4020583896 | N29: -0.1285152947 | O29: -0.1393594711 | P29: 0.4194585683 | Q29: 2.400622241 | R29: 0.3089781797 | S29: -0.09448961572 | T29: -0.5986092101 | U29: -0.6829955403 | V29: -0.512209659 | W29: 0.2951128038 | X29: -0.5670242766 | Y29: -0.6202077168 | Z29: 1.098765601 | AA29: -1.144889684 | AB29: -0.1551989654 | AC29: 1.005485136 | AD29: -0.2587497376 | AE29: -0.9046024424 | AF29: -0.9915057961 | AH29: 6 | AI29: =($C$1-CFO!$E$17)*(1+($C$2+($C$3*E29))) -> 1.051121444 | AJ29: =(AI29-CFO!F$17)*(1+($C$2+($C$3*F29))) -> 1.106830269 | AK29: =(AJ29-CFO!G$17)*(1+($C$2+($C$3*G29))) -> 1.179600204 | AL29: =(AK29-CFO!H$17)*(1+($C$2+($C$3*H29))) -> 1.244840169 | AM29: =(AL29-CFO!I$17)*(1+($C$2+($C$3*I29))) -> 1.304391726 | AN29: =(AM29-CFO!J$17)*(1+($C$2+($C$3*J29))) -> 1.37479623 | AO29: =(AN29-CFO!K$17)*(1+($C$2+($C$3*K29))) -> 1.44051387 | AP29: =(AO29-CFO!L$17)*(1+($C$2+($C$3*L29))) -> 1.416039713 | AQ29: =(AP29-CFO!M$17)*(1+($C$2+($C$3*M29))) -> 1.393771434 | AR29: =(AQ29-CFO!N$17)*(1+($C$2+($C$3*N29))) -> 1.372943374 | AS29: =(AR29-CFO!O$17)*(1+($C$2+($C$3*O29))) -> 1.350465407 | AT29: =(AS29-CFO!P$17)*(1+($C$2+($C$3*P29))) -> 1.332192111 | AU29: =(AT29-CFO!Q$17)*(1+($C$2+($C$3*Q29))) -> 1.332560065 | AV29: =(AU29-CFO!R$17)*(1+($C$2+($C$3*R29))) -> 1.310437871 | AW29: =(AV29-CFO!S$17)*(1+($C$2+($C$3*S29))) -> 1.282536453 | AX29: =(AW29-CFO!T$17)*(1+($C$2+($C$3*T29))) -> 1.247881474 | AY29: =(AX29-CFO!U$17)*(1+($C$2+($C$3*U29))) -> 1.21057248 | AZ29: =(AY29-CFO!V$17)*(1+($C$2+($C$3*V29))) -> 1.172934424 | BA29: =(AZ29-CFO!W$17)*(1+($C$2+($C$3*W29))) -> 1.140489413 | BB29: =(BA29-CFO!X$17)*(1+($C$2+($C$3*X29))) -> 1.098490088
D30: 7 | E30: 0.285417992 | F30: -1.037901443 | G30: 0.3574047163 | H30: -0.2488959275 | I30: -0.006950131782 | J30: -0.09130248888 | K30: 0.07800323331 | L30: -0.1268817502 | M30: 0.2181236292 | N30: -0.06604234511 | O30: -1.249495769 | P30: -0.1150546785 | Q30: -0.5184467601 | R30: -0.6636435811 | S30: 0.5010088569 | T30: -0.1234901142 | U30: 0.4576645593 | V30: -0.4176599919 | W30: -0.3726973717 | X30: 0.5511789868 | Y30: 0.9416959032 | Z30: 0.9556447419 | AA30: 0.5074462679 | AB30: 1.551727731 | AC30: 1.376015239 | AD30: 1.057001032 | AE30: -0.8681807986 | AF30: -0.1947451749 | AH30: 7 | AI30: =($C$1-CFO!$E$17)*(1+($C$2+($C$3*E30))) -> 1.057998945 | AJ30: =(AI30-CFO!F$17)*(1+($C$2+($C$3*F30))) -> 1.106622341 | AK30: =(AJ30-CFO!G$17)*(1+($C$2+($C$3*G30))) -> 1.169360801 | AL30: =(AK30-CFO!H$17)*(1+($C$2+($C$3*H30))) -> 1.228613735 | AM30: =(AL30-CFO!I$17)*(1+($C$2+($C$3*I30))) -> 1.2922839 | AN30: =(AM30-CFO!J$17)*(1+($C$2+($C$3*J30))) -> 1.357268562 | AO30: =(AN30-CFO!K$17)*(1+($C$2+($C$3*K30))) -> 1.426349148 | AP30: =(AO30-CFO!L$17)*(1+($C$2+($C$3*L30))) -> 1.40833951 | AQ30: =(AP30-CFO!M$17)*(1+($C$2+($C$3*M30))) -> 1.39264733 | AR30: =(AQ30-CFO!N$17)*(1+($C$2+($C$3*N30))) -> 1.372463652 | AS30: =(AR30-CFO!O$17)*(1+($C$2+($C$3*O30))) -> 1.338253695 | AT30: =(AS30-CFO!P$17)*(1+($C$2+($C$3*P30))) -> 1.314153648 | AU30: =(AT30-CFO!Q$17)*(1+($C$2+($C$3*Q30))) -> 1.284333617 | AV30: =(AU30-CFO!R$17)*(1+($C$2+($C$3*R30))) -> 1.251376505 | AW30: =(AV30-CFO!S$17)*(1+($C$2+($C$3*S30))) -> 1.227792085 | AX30: =(AW30-CFO!T$17)*(1+($C$2+($C$3*T30))) -> 1.196531059 | AY30: =(AX30-CFO!U$17)*(1+($C$2+($C$3*U30))) -> 1.168647421 | AZ30: =(AY30-CFO!V$17)*(1+($C$2+($C$3*V30))) -> 1.131013138 | BA30: =(AZ30-CFO!W$17)*(1+($C$2+($C$3*W30))) -> 1.091750458 | BB30: =(BA30-CFO!X$17)*(1+($C$2+($C$3*X30))) -> 1.058005556
D31: 8 | E31: 1.484517602 | F31: -0.5695792324 | G31: -0.2822775218 | H31: 0.588487695 | I31: 0.4041646318 | J31: -0.3152574479 | K31: 0.3285310484 | L31: 0.7891098577 | M31: -2.355109471 | N31: 0.5480868654 | O31: -0.3424593241 | P31: -1.550260337 | Q31: -0.5587200079 | R31: -1.481262758 | S31: 0.5514081519 | T31: 1.433119959 | U31: -0.3781964767 | V31: 0.3906366494 | W31: -0.2388055884 | X31: -0.113739352 | Y31: 1.885069323 | Z31: -0.2721045572 | AA31: -0.1859265348 | AB31: -1.162169324 | AC31: -1.762704151 | AD31: -1.503266026 | AE31: -1.054909802 | AF31: -1.065271264 | AH31: 8 | AI31: =($C$1-CFO!$E$17)*(1+($C$2+($C$3*E31))) -> 1.067888192 | AJ31: =(AI31-CFO!F$17)*(1+($C$2+($C$3*F31))) -> 1.120785841 | AK31: =(AJ31-CFO!G$17)*(1+($C$2+($C$3*G31))) -> 1.178004612 | AL31: =(AK31-CFO!H$17)*(1+($C$2+($C$3*H31))) -> 1.245559015 | AM31: =(AL31-CFO!I$17)*(1+($C$2+($C$3*I31))) -> 1.313841483 | AN31: =(AM31-CFO!J$17)*(1+($C$2+($C$3*J31))) -> 1.376912719 | AO31: =(AN31-CFO!K$17)*(1+($C$2+($C$3*K31))) -> 1.449306415 | AP31: =(AO31-CFO!L$17)*(1+($C$2+($C$3*L31))) -> 1.442081015 | AQ31: =(AP31-CFO!M$17)*(1+($C$2+($C$3*M31))) -> 1.398613617 | AR31: =(AQ31-CFO!N$17)*(1+($C$2+($C$3*N31))) -> 1.385187611 | AS31: =(AR31-CFO!O$17)*(1+($C$2+($C$3*O31))) -> 1.360824817 | AT31: =(AS31-CFO!P$17)*(1+($C$2+($C$3*P31))) -> 1.322238286 | AU31: =(AT31-CFO!Q$17)*(1+($C$2+($C$3*Q31))) -> 1.29217041 | AV31: =(AU31-CFO!R$17)*(1+($C$2+($C$3*R31))) -> 1.2512735 | AW31: =(AV31-CFO!S$17)*(1+($C$2+($C$3*S31))) -> 1.228167705 | AX31: =(AW31-CFO!T$17)*(1+($C$2+($C$3*T31))) -> 1.211485085 | AY31: =(AX31-CFO!U$17)*(1+($C$2+($C$3*U31))) -> 1.17631083 | AZ31: =(AY31-CFO!V$17)*(1+($C$2+($C$3*V31))) -> 1.14604994 | BA31: =(AZ31-CFO!W$17)*(1+($C$2+($C$3*W31))) -> 1.108264754 | BB31: =(BA31-CFO!X$17)*(1+($C$2+($C$3*X31))) -> 1.069428738
D32: 9 | E32: -0.1884849922 | F32: -1.603912211 | G32: -0.002459766999 | H32: -0.2762464486 | I32: 0.1979514322 | J32: 0.9422339539 | K32: 0.1692751134 | L32: -0.4404773206 | M32: -1.511202669 | N32: -0.9989428489 | O32: -0.7081583984 | P32: -1.104930389 | Q32: 1.560999329 | R32: 0.5350878314 | S32: -0.05777822991 | T32: -0.5001503805 | U32: 0.07448137847 | V32: 0.8583150885 | W32: -1.228257636 | X32: -0.3254339652 | Y32: 0.09141673905 | Z32: -0.4907883051 | AA32: 0.5333280893 | AB32: -1.517915812 | AC32: -1.170604145 | AD32: 0.6269861551 | AE32: -0.4787024133 | AF32: -0.8951862107 | AH32: 9 | AI32: =($C$1-CFO!$E$17)*(1+($C$2+($C$3*E32))) -> 1.05409056 | AJ32: =(AI32-CFO!F$17)*(1+($C$2+($C$3*F32))) -> 1.097736862 | AK32: =(AJ32-CFO!G$17)*(1+($C$2+($C$3*G32))) -> 1.156983811 | AL32: =(AK32-CFO!H$17)*(1+($C$2+($C$3*H32))) -> 1.215704013 | AM32: =(AL32-CFO!I$17)*(1+($C$2+($C$3*I32))) -> 1.281112692 | AN32: =(AM32-CFO!J$17)*(1+($C$2+($C$3*J32))) -> 1.35671213 | AO32: =(AN32-CFO!K$17)*(1+($C$2+($C$3*K32))) -> 1.426795064 | AP32: =(AO32-CFO!L$17)*(1+($C$2+($C$3*L32))) -> 1.40534075 | AQ32: =(AP32-CFO!M$17)*(1+($C$2+($C$3*M32))) -> 1.370829693 | AR32: =(AQ32-CFO!N$17)*(1+($C$2+($C$3*N32))) -> 1.340288678 | AS32: =(AR32-CFO!O$17)*(1+($C$2+($C$3*O32))) -> 1.311204335 | AT32: =(AS32-CFO!P$17)*(1+($C$2+($C$3*P32))) -> 1.27652218 | AU32: =(AT32-CFO!Q$17)*(1+($C$2+($C$3*Q32))) -> 1.266278769 | AV32: =(AU32-CFO!R$17)*(1+($C$2+($C$3*R32))) -> 1.244591384 | AW32: =(AV32-CFO!S$17)*(1+($C$2+($C$3*S32))) -> 1.215508199 | AX32: =(AW32-CFO!T$17)*(1+($C$2+($C$3*T32))) -> 1.180477127 | AY32: =(AX32-CFO!U$17)*(1+($C$2+($C$3*U32))) -> 1.14871261 | AZ32: =(AY32-CFO!V$17)*(1+($C$2+($C$3*V32))) -> 1.121774485 | BA32: =(AZ32-CFO!W$17)*(1+($C$2+($C$3*W32))) -> 1.075062216 | BB32: =(BA32-CFO!X$17)*(1+($C$2+($C$3*X32))) -> 1.033745518
D33: 10 | E33: -0.9570560545 | F33: -0.8969005836 | G33: 1.121165854 | H33: -0.09630994091 | I33: -0.7489014676 | J33: -0.7891687944 | K33: -1.505347286 | L33: -0.4524723608 | M33: -0.8359036374 | N33: -0.8579685901 | O33: 0.1615746451 | P33: 0.6401901926 | Q33: -1.201891526 | R33: -0.4071085581 | S33: -0.8207103838 | T33: -0.7969717066 | U33: -0.05971429701 | V33: -0.6771605534 | W33: -0.1405666893 | X33: 0.4918768005 | Y33: 2.231961322 | Z33: 0.1294598017 | AA33: 1.572867232 | AB33: -0.8875679043 | AC33: -1.32265831 | AD33: -0.7855362954 | AE33: 0.2829090726 | AF33: 0.9218745861 | AH33: 10 | AI33: =($C$1-CFO!$E$17)*(1+($C$2+($C$3*E33))) -> 1.04775198 | AJ33: =(AI33-CFO!F$17)*(1+($C$2+($C$3*F33))) -> 1.097431959 | AK33: =(AJ33-CFO!G$17)*(1+($C$2+($C$3*G33))) -> 1.166825431 | AL33: =(AK33-CFO!H$17)*(1+($C$2+($C$3*H33))) -> 1.227486926 | AM33: =(AL33-CFO!I$17)*(1+($C$2+($C$3*I33))) -> 1.283645675 | AN33: =(AM33-CFO!J$17)*(1+($C$2+($C$3*J33))) -> 1.341072335 | AO33: =(AN33-CFO!K$17)*(1+($C$2+($C$3*K33))) -> 1.392326172 | AP33: =(AO33-CFO!L$17)*(1+($C$2+($C$3*L33))) -> 1.370037224 | AQ33: =(AP33-CFO!M$17)*(1+($C$2+($C$3*M33))) -> 1.342233557 | AR33: =(AQ33-CFO!N$17)*(1+($C$2+($C$3*N33))) -> 1.312690264 | AS33: =(AR33-CFO!O$17)*(1+($C$2+($C$3*O33))) -> 1.291866808 | AT33: =(AS33-CFO!P$17)*(1+($C$2+($C$3*P33))) -> 1.274176848 | AU33: =(AT33-CFO!Q$17)*(1+($C$2+($C$3*Q33))) -> 1.23689628 | AV33: =(AU33-CFO!R$17)*(1+($C$2+($C$3*R33))) -> 1.205476224 | AW33: =(AV33-CFO!S$17)*(1+($C$2+($C$3*S33))) -> 1.168462897 | AX33: =(AW33-CFO!T$17)*(1+($C$2+($C$3*T33))) -> 1.129854522 | AY33: =(AX33-CFO!U$17)*(1+($C$2+($C$3*U33))) -> 1.095695631 | AZ33: =(AY33-CFO!V$17)*(1+($C$2+($C$3*V33))) -> 1.054405242 | BA33: =(AZ33-CFO!W$17)*(1+($C$2+($C$3*W33))) -> 1.015375814 | BB33: =(BA33-CFO!X$17)*(1+($C$2+($C$3*X33))) -> 0.9790093141
D34: 11 | E34: 0.1355753976 | F34: 0.8631738789 | G34: -0.2920800929 | H34: -3.450768232 | I34: -0.8919864178 | J34: 0.2933228246 | K34: 0.4777173362 | L34: -0.6039426993 | M34: -1.246890151 | N34: 3.346267427 | O34: 0.7927756112 | P34: -0.1826207045 | Q34: 0.4750804993 | R34: -1.368772526 | S34: -0.8863774316 | T34: 0.2378226697 | U34: -0.7315990878 | V34: -0.8029504461 | W34: 0.4548547735 | X34: 0.03805466126 | Y34: 0.757721476 | Z34: 1.342582932 | AA34: -0.06588511379 | AB34: -0.1573818127 | AC34: -0.3035658144 | AD34: 0.3536011619 | AE34: =NORMSINV(RAND()) -> -2.704530059 | AF34: -1.085124128 | AH34: 11 | AI34: =($C$1-CFO!$E$17)*(1+($C$2+($C$3*E34))) -> 1.056763159 | AJ34: =(AI34-CFO!F$17)*(1+($C$2+($C$3*F34))) -> 1.121918445 | AK34: =(AJ34-CFO!G$17)*(1+($C$2+($C$3*G34))) -> 1.179071338 | AL34: =(AK34-CFO!H$17)*(1+($C$2+($C$3*H34))) -> 1.207496062 | AM34: =(AL34-CFO!I$17)*(1+($C$2+($C$3*I34))) -> 1.261874313 | AN34: =(AM34-CFO!J$17)*(1+($C$2+($C$3*J34))) -> 1.330139133 | AO34: =(AN34-CFO!K$17)*(1+($C$2+($C$3*K34))) -> 1.402916375 | AP34: =(AO34-CFO!L$17)*(1+($C$2+($C$3*L34))) -> 1.379203423 | AQ34: =(AP34-CFO!M$17)*(1+($C$2+($C$3*M34))) -> 1.347190295 | AR34: =(AQ34-CFO!N$17)*(1+($C$2+($C$3*N34))) -> 1.3613057 | AS34: =(AR34-CFO!O$17)*(1+($C$2+($C$3*O34))) -> 1.34831984 | AT34: =(AS34-CFO!P$17)*(1+($C$2+($C$3*P34))) -> 1.323752361 | AU34: =(AT34-CFO!Q$17)*(1+($C$2+($C$3*Q34))) -> 1.304208632 | AV34: =(AU34-CFO!R$17)*(1+($C$2+($C$3*R34))) -> 1.26458135 | AW34: =(AV34-CFO!S$17)*(1+($C$2+($C$3*S34))) -> 1.227964113 | AX34: =(AW34-CFO!T$17)*(1+($C$2+($C$3*T34))) -> 1.20008832 | AY34: =(AX34-CFO!U$17)*(1+($C$2+($C$3*U34))) -> 1.161449875 | AZ34: =(AY34-CFO!V$17)*(1+($C$2+($C$3*V34))) -> 1.120273499 | BA34: =(AZ34-CFO!W$17)*(1+($C$2+($C$3*W34))) -> 1.08779304 | BB34: =(BA34-CFO!X$17)*(1+($C$2+($C$3*X34))) -> 1.049728824
D35: 12 | E35: 1.249890002 | F35: 0.6861702681 | G35: -0.399844931 | H35: -1.233683214 | I35: -1.149153845 | J35: 0.1556950746 | K35: -0.1901206532 | L35: -0.8204684039 | M35: -0.009747663782 | N35: -0.3388697544 | O35: -2.613513433 | P35: 1.779563559 | Q35: 1.24252413 | R35: -0.6126260581 | S35: -0.0598316673 | T35: -1.253665655 | U35: -1.383478659 | V35: -0.0786744734 | W35: -1.175566258 | X35: -0.3465963559 | Y35: 0.4484084238 | Z35: -1.635108305 | AA35: -1.075840186 | AB35: -0.8651231265 | AC35: -1.40168432 | AD35: 0.2919181769 | AE35: -2.734345928 | AF35: -2.860000597 | AH35: 12 | AI35: =($C$1-CFO!$E$17)*(1+($C$2+($C$3*E35))) -> 1.065953165 | AJ35: =(AI35-CFO!F$17)*(1+($C$2+($C$3*F35))) -> 1.129838415 | AK35: =(AJ35-CFO!G$17)*(1+($C$2+($C$3*G35))) -> 1.186161108 | AL35: =(AK35-CFO!H$17)*(1+($C$2+($C$3*H35))) -> 1.236180498 | AM35: =(AL35-CFO!I$17)*(1+($C$2+($C$3*I35))) -> 1.288430424 | AN35: =(AM35-CFO!J$17)*(1+($C$2+($C$3*J35))) -> 1.35593875 | AO35: =(AN35-CFO!K$17)*(1+($C$2+($C$3*K35))) -> 1.422003464 | AP35: =(AO35-CFO!L$17)*(1+($C$2+($C$3*L35))) -> 1.396279189 | AQ35: =(AP35-CFO!M$17)*(1+($C$2+($C$3*M35))) -> 1.377823467 | AR35: =(AQ35-CFO!N$17)*(1+($C$2+($C$3*N35))) -> 1.354397336 | AS35: =(AR35-CFO!O$17)*(1+($C$2+($C$3*O35))) -> 1.305729986 | AT35: =(AS35-CFO!P$17)*(1+($C$2+($C$3*P35))) -> 1.299855561 | AU35: =(AT35-CFO!Q$17)*(1+($C$2+($C$3*Q35))) -> 1.287291437 | AV35: =(AU35-CFO!R$17)*(1+($C$2+($C$3*R35))) -> 1.254892182 | AW35: =(AV35-CFO!S$17)*(1+($C$2+($C$3*S35))) -> 1.226031777 | AX35: =(AW35-CFO!T$17)*(1+($C$2+($C$3*T35))) -> 1.184171189 | AY35: =(AX35-CFO!U$17)*(1+($C$2+($C$3*U35))) -> 1.139377857 | AZ35: =(AY35-CFO!V$17)*(1+($C$2+($C$3*V35))) -> 1.104064622 | BA35: =(AZ35-CFO!W$17)*(1+($C$2+($C$3*W35))) -> 1.057540708 | BB35: =(BA35-CFO!X$17)*(1+($C$2+($C$3*X35))) -> 1.015680731
D36: 13 | E36: -0.131076619 | F36: -0.6619251098 | G36: -2.411968374 | H36: -0.77298886 | I36: 0.210620165 | J36: -0.1732751329 | K36: -1.697746424 | L36: -0.06766323818 | M36: 1.44391243 | N36: 1.688239247 | O36: 1.081357945 | P36: -1.201245352 | Q36: 0.4111824427 | R36: -0.1938510158 | S36: 0.2635432619 | T36: -2.110711197 | U36: -0.8609643699 | V36: 0.4900288653 | W36: -0.1935836447 | X36: -1.251327282 | Y36: -1.466235375 | Z36: 0.7333074653 | AA36: -0.4242483854 | AB36: -2.152878055 | AC36: -0.1558279696 | AD36: -0.5217379115 | AE36: -0.9044915151 | AF36: -2.022480321 | AH36: 13 | AI36: =($C$1-CFO!$E$17)*(1+($C$2+($C$3*E36))) -> 1.05456402 | AJ36: =(AI36-CFO!F$17)*(1+($C$2+($C$3*F36))) -> 1.106400238 | AK36: =(AJ36-CFO!G$17)*(1+($C$2+($C$3*G36))) -> 1.143908128 | AL36: =(AK36-CFO!H$17)*(1+($C$2+($C$3*H36))) -> 1.197667265 | AM36: =(AL36-CFO!I$17)*(1+($C$2+($C$3*I36))) -> 1.262739273 | AN36: =(AM36-CFO!J$17)*(1+($C$2+($C$3*J36))) -> 1.326185987 | AO36: =(AN36-CFO!K$17)*(1+($C$2+($C$3*K36))) -> 1.375167001 | AP36: =(AO36-CFO!L$17)*(1+($C$2+($C$3*L36))) -> 1.356608904 | AQ36: =(AP36-CFO!M$17)*(1+($C$2+($C$3*M36))) -> 1.352391598 | AR36: =(AQ36-CFO!N$17)*(1+($C$2+($C$3*N36))) -> 1.349517862 | AS36: =(AR36-CFO!O$17)*(1+($C$2+($C$3*O36))) -> 1.339168261 | AT36: =(AS36-CFO!P$17)*(1+($C$2+($C$3*P36))) -> 1.303919612 | AU36: =(AT36-CFO!Q$17)*(1+($C$2+($C$3*Q36))) -> 1.283186 | AV36: =(AU36-CFO!R$17)*(1+($C$2+($C$3*R36))) -> 1.254819932 | AW36: =(AV36-CFO!S$17)*(1+($C$2+($C$3*S36))) -> 1.229056495 | AX36: =(AW36-CFO!T$17)*(1+($C$2+($C$3*T36))) -> 1.179210183 | AY36: =(AX36-CFO!U$17)*(1+($C$2+($C$3*U36))) -> 1.13903388 | AZ36: =(AY36-CFO!V$17)*(1+($C$2+($C$3*V36))) -> 1.108619412 | BA36: =(AZ36-CFO!W$17)*(1+($C$2+($C$3*W36))) -> 1.070386138 | BB36: =(BA36-CFO!X$17)*(1+($C$2+($C$3*X36))) -> 1.021507324
D37: 14 | E37: 0.07679810358 | F37: -0.5632220128 | G37: 0.3810657792 | H37: 1.057996606 | I37: 1.010995592 | J37: 0.3393477744 | K37: 1.770050853 | L37: 0.008919329553 | M37: 1.4253703 | N37: -1.81081963 | O37: -0.3599183639 | P37: 2.702040113 | Q37: 0.2170953594 | R37: -0.08100502065 | S37: -0.1404412933 | T37: -0.8413898915 | U37: 0.06147079744 | V37: 1.111629228 | W37: -0.8176862356 | X37: 0.2844353168 | Y37: 0.7370335768 | Z37: 0.04953389851 | AA37: 0.4510575197 | AB37: 0.8937641233 | AC37: -0.9978642545 | AD37: 0.8028678942 | AE37: -1.34448385 | AF37: 0.8388369842 | AH37: 14 | AI37: =($C$1-CFO!$E$17)*(1+($C$2+($C$3*E37))) -> 1.05627841 | AJ37: =(AI37-CFO!F$17)*(1+($C$2+($C$3*F37))) -> 1.109005648 | AK37: =(AJ37-CFO!G$17)*(1+($C$2+($C$3*G37))) -> 1.17202413 | AL37: =(AK37-CFO!H$17)*(1+($C$2+($C$3*H37))) -> 1.243932233 | AM37: =(AL37-CFO!I$17)*(1+($C$2+($C$3*I37))) -> 1.318371643 | AN37: =(AM37-CFO!J$17)*(1+($C$2+($C$3*J37))) -> 1.388622961 | AO37: =(AN37-CFO!K$17)*(1+($C$2+($C$3*K37))) -> 1.477743645 | AP37: =(AO37-CFO!L$17)*(1+($C$2+($C$3*L37))) -> 1.462466797 | AQ37: =(AP37-CFO!M$17)*(1+($C$2+($C$3*M37))) -> 1.461803451 | AR37: =(AQ37-CFO!N$17)*(1+($C$2+($C$3*N37))) -> 1.423559876 | AS37: =(AR37-CFO!O$17)*(1+($C$2+($C$3*O37))) -> 1.399821417 | AT37: =(AS37-CFO!P$17)*(1+($C$2+($C$3*P37))) -> 1.407478504 | AU37: =(AT37-CFO!Q$17)*(1+($C$2+($C$3*Q37))) -> 1.387470691 | AV37: =(AU37-CFO!R$17)*(1+($C$2+($C$3*R37))) -> 1.362647814 | AW37: =(AV37-CFO!S$17)*(1+($C$2+($C$3*S37))) -> 1.335480007 | AX37: =(AW37-CFO!T$17)*(1+($C$2+($C$3*T37))) -> 1.299361295 | AY37: =(AX37-CFO!U$17)*(1+($C$2+($C$3*U37))) -> 1.270391768 | AZ37: =(AY37-CFO!V$17)*(1+($C$2+($C$3*V37))) -> 1.249661263 | BA37: =(AZ37-CFO!W$17)*(1+($C$2+($C$3*W37))) -> 1.208663474 | BB37: =(BA37-CFO!X$17)*(1+($C$2+($C$3*X37))) -> 1.175795157
D38: 15 | E38: -1.508764023 | F38: -0.6604183251 | G38: -0.07225504657 | H38: 1.168692917 | I38: -2.317347249 | J38: -0.2062279777 | K38: -0.2004604204 | L38: 0.514417469 | M38: 0.2698776842 | N38: -0.2118605545 | O38: -1.268572076 | P38: 1.901851025 | Q38: 0.718750458 | R38: 0.8147866557 | S38: 0.1447144933 | T38: -0.413307622 | U38: -1.032722513 | V38: -0.7293654551 | W38: -2.622957506 | X38: 1.398409535 | Y38: -0.6771726642 | Z38: -0.8806965062 | AA38: 0.8369077199 | AB38: -1.239225585 | AC38: -1.036366774 | AD38: -0.7966348776 | AE38: -0.9239213897 | AF38: -1.712287476 | AH38: 15 | AI38: =($C$1-CFO!$E$17)*(1+($C$2+($C$3*E38))) -> 1.043201919 | AJ38: =(AI38-CFO!F$17)*(1+($C$2+($C$3*F38))) -> 1.094838569 | AK38: =(AJ38-CFO!G$17)*(1+($C$2+($C$3*G38))) -> 1.153386746 | AL38: =(AK38-CFO!H$17)*(1+($C$2+($C$3*H38))) -> 1.225740253 | AM38: =(AL38-CFO!I$17)*(1+($C$2+($C$3*I38))) -> 1.266067763 | AN38: =(AM38-CFO!J$17)*(1+($C$2+($C$3*J38))) -> 1.329246988 | AO38: =(AN38-CFO!K$17)*(1+($C$2+($C$3*K38))) -> 1.394598866 | AP38: =(AO38-CFO!L$17)*(1+($C$2+($C$3*L38))) -> 1.382759552 | AQ38: =(AP38-CFO!M$17)*(1+($C$2+($C$3*M38))) -> 1.366960354 | AR38: =(AQ38-CFO!N$17)*(1+($C$2+($C$3*N38))) -> 1.344639401 | AS38: =(AR38-CFO!O$17)*(1+($C$2+($C$3*O38))) -> 1.309842628 | AT38: =(AS38-CFO!P$17)*(1+($C$2+($C$3*P38))) -> 1.305354295 | AU38: =(AT38-CFO!Q$17)*(1+($C$2+($C$3*Q38))) -> 1.287736827 | AV38: =(AU38-CFO!R$17)*(1+($C$2+($C$3*R38))) -> 1.269412598 | AW38: =(AV38-CFO!S$17)*(1+($C$2+($C$3*S38))) -> 1.242877629 | AX38: =(AW38-CFO!T$17)*(1+($C$2+($C$3*T38))) -> 1.209216975 | AY38: =(AX38-CFO!U$17)*(1+($C$2+($C$3*U38))) -> 1.167974151 | AZ38: =(AY38-CFO!V$17)*(1+($C$2+($C$3*V38))) -> 1.12756438 | BA38: =(AZ38-CFO!W$17)*(1+($C$2+($C$3*W38))) -> 1.069042104 | BB38: =(BA38-CFO!X$17)*(1+($C$2+($C$3*X38))) -> 1.041471058
D39: 16 | E39: 0.7425707935 | F39: -0.2723728781 | G39: 1.259953185 | H39: 1.678659683 | I39: -1.014104622 | J39: 0.198780023 | K39: -0.8043759771 | L39: -0.6016217087 | M39: 0.9616229227 | N39: -0.7318083354 | O39: 1.405008085 | P39: -0.2753464151 | Q39: 1.759047911 | R39: -0.5921512329 | S39: 0.2581150025 | T39: -1.858796273 | U39: -0.741275276 | V39: 2.775215912 | W39: 0.4651464242 | X39: -0.6041734432 | Y39: 0.5963331533 | Z39: 1.362846826 | AA39: -0.9617710585 | AB39: 1.944144158 | AC39: 0.9341364525 | AD39: -0.2841219044 | AE39: -0.1049256998 | AF39: 1.221756453 | AH39: 16 | AI39: =($C$1-CFO!$E$17)*(1+($C$2+($C$3*E39))) -> 1.061769188 | AJ39: =(AI39-CFO!F$17)*(1+($C$2+($C$3*F39))) -> 1.117147326 | AK39: =(AJ39-CFO!G$17)*(1+($C$2+($C$3*G39))) -> 1.188466865 | AL39: =(AK39-CFO!H$17)*(1+($C$2+($C$3*H39))) -> 1.266972701 | AM39: =(AL39-CFO!I$17)*(1+($C$2+($C$3*I39))) -> 1.321083529 | AN39: =(AM39-CFO!J$17)*(1+($C$2+($C$3*J39))) -> 1.389883312 | AO39: =(AN39-CFO!K$17)*(1+($C$2+($C$3*K39))) -> 1.449710102 | AP39: =(AO39-CFO!L$17)*(1+($C$2+($C$3*L39))) -> 1.42692011 | AQ39: =(AP39-CFO!M$17)*(1+($C$2+($C$3*M39))) -> 1.419892358 | AR39: =(AQ39-CFO!N$17)*(1+($C$2+($C$3*N39))) -> 1.39306078 | AS39: =(AR39-CFO!O$17)*(1+($C$2+($C$3*O39))) -> 1.387603377 | AT39: =(AS39-CFO!P$17)*(1+($C$2+($C$3*P39))) -> 1.362931848 | AU39: =(AT39-CFO!Q$17)*(1+($C$2+($C$3*Q39))) -> 1.357913909 | AV39: =(AU39-CFO!R$17)*(1+($C$2+($C$3*R39))) -> 1.327076738 | AW39: =(AV39-CFO!S$17)*(1+($C$2+($C$3*S39))) -> 1.303144654 | AX39: =(AW39-CFO!T$17)*(1+($C$2+($C$3*T39))) -> 1.256334437 | AY39: =(AX39-CFO!U$17)*(1+($C$2+($C$3*U39))) -> 1.218624044 | AZ39: =(AY39-CFO!V$17)*(1+($C$2+($C$3*V39))) -> 1.211603504 | BA39: =(AZ39-CFO!W$17)*(1+($C$2+($C$3*W39))) -> 1.181741973 | BB39: =(BA39-CFO!X$17)*(1+($C$2+($C$3*X39))) -> 1.140213089
D40: 17 | E40: -0.4721382711 | F40: -1.576224291 | G40: -1.832523863 | H40: 1.469777205 | I40: -0.3540833984 | J40: 0.3811953094 | K40: -0.5090544516 | L40: 0.01624636572 | M40: 1.788404912 | N40: -0.894426937 | O40: -0.2878186506 | P40: -0.08803544574 | Q40: -0.5381917199 | R40: 1.093526308 | S40: -0.1346622221 | T40: 1.376173912 | U40: -0.08289941627 | V40: -1.376136994 | W40: 0.2760311531 | X40: 2.984246065 | Y40: 1.60740495 | Z40: 0.3739989677 | AA40: 1.448335415 | AB40: 1.792036406 | AC40: -0.4436303056 | AD40: 0.2850411627 | AE40: 0.4370628155 | AF40: -0.5509873105 | AH40: 17 | AI40: =($C$1-CFO!$E$17)*(1+($C$2+($C$3*E40))) -> 1.051751207 | AJ40: =(AI40-CFO!F$17)*(1+($C$2+($C$3*F40))) -> 1.09561133 | AK40: =(AJ40-CFO!G$17)*(1+($C$2+($C$3*G40))) -> 1.138296276 | AL40: =(AK40-CFO!H$17)*(1+($C$2+($C$3*H40))) -> 1.2129673 | AM40: =(AL40-CFO!I$17)*(1+($C$2+($C$3*I40))) -> 1.272801435 | AN40: =(AM40-CFO!J$17)*(1+($C$2+($C$3*J40))) -> 1.342272886 | AO40: =(AN40-CFO!K$17)*(1+($C$2+($C$3*K40))) -> 1.404516839 | AP40: =(AO40-CFO!L$17)*(1+($C$2+($C$3*L40))) -> 1.38755674 | AQ40: =(AP40-CFO!M$17)*(1+($C$2+($C$3*M40))) -> 1.388124115 | AR40: =(AQ40-CFO!N$17)*(1+($C$2+($C$3*N40))) -> 1.358977412 | AS40: =(AR40-CFO!O$17)*(1+($C$2+($C$3*O40))) -> 1.334628391 | AT40: =(AS40-CFO!P$17)*(1+($C$2+($C$3*P40))) -> 1.310721542 | AU40: =(AT40-CFO!Q$17)*(1+($C$2+($C$3*Q40))) -> 1.280634993 | AV40: =(AU40-CFO!R$17)*(1+($C$2+($C$3*R40))) -> 1.264825047 | AW40: =(AV40-CFO!S$17)*(1+($C$2+($C$3*S40))) -> 1.23547524 | AX40: =(AW40-CFO!T$17)*(1+($C$2+($C$3*T40))) -> 1.218515442 | AY40: =(AX40-CFO!U$17)*(1+($C$2+($C$3*U40))) -> 1.186227054 | AZ40: =(AY40-CFO!V$17)*(1+($C$2+($C$3*V40))) -> 1.14032428 | BA40: =(AZ40-CFO!W$17)*(1+($C$2+($C$3*W40))) -> 1.106854986 | BB40: =(BA40-CFO!X$17)*(1+($C$2+($C$3*X40))) -> 1.093857895
D41: 18 | E41: =NORMSINV(RAND()) -> 0.3131232785 | F41: -1.514755189 | G41: -0.3081422338 | H41: -0.6659251013 | I41: -1.008245505 | J41: 1.592911519 | K41: 0.07035748315 | L41: -1.564907398 | M41: 1.728827192 | N41: 0.5520200641 | O41: 0.2383157226 | P41: 1.320913297 | Q41: 0.3139757179 | R41: -0.1930597448 | S41: -0.07161681394 | T41: -0.5032683141 | U41: 0.3916064556 | V41: 0.5517350908 | W41: -0.4701085149 | X41: 0.315412345 | Y41: -1.079249631 | Z41: -0.5857382844 | AA41: -1.384258328 | AB41: 0.3071011754 | AC41: 0.9766446703 | AD41: -0.1021785113 | AE41: 1.645388717 | AF41: -0.2081696583 | AH41: 18 | AI41: =($C$1-CFO!$E$17)*(1+($C$2+($C$3*E41))) -> 1.058227437 | AJ41: =(AI41-CFO!F$17)*(1+($C$2+($C$3*F41))) -> 1.102697213 | AK41: =(AJ41-CFO!G$17)*(1+($C$2+($C$3*G41))) -> 1.159287885 | AL41: =(AK41-CFO!H$17)*(1+($C$2+($C$3*H41))) -> 1.214342059 | AM41: =(AL41-CFO!I$17)*(1+($C$2+($C$3*I41))) -> 1.267675223 | AN41: =(AM41-CFO!J$17)*(1+($C$2+($C$3*J41))) -> 1.349627263 | AO41: =(AN41-CFO!K$17)*(1+($C$2+($C$3*K41))) -> 1.41843501 | AP41: =(AO41-CFO!L$17)*(1+($C$2+($C$3*L41))) -> 1.384496716 | AQ41: =(AP41-CFO!M$17)*(1+($C$2+($C$3*M41))) -> 1.384311128 | AR41: =(AQ41-CFO!N$17)*(1+($C$2+($C$3*N41))) -> 1.370521083 | AS41: =(AR41-CFO!O$17)*(1+($C$2+($C$3*O41))) -> 1.351969371 | AT41: =(AS41-CFO!P$17)*(1+($C$2+($C$3*P41))) -> 1.343099535 | AU41: =(AT41-CFO!Q$17)*(1+($C$2+($C$3*Q41))) -> 1.322433286 | AV41: =(AU41-CFO!R$17)*(1+($C$2+($C$3*R41))) -> 1.294956306 | AW41: =(AV41-CFO!S$17)*(1+($C$2+($C$3*S41))) -> 1.26692155 | AX41: =(AW41-CFO!T$17)*(1+($C$2+($C$3*T41))) -> 1.232888533 | AY41: =(AX41-CFO!U$17)*(1+($C$2+($C$3*U41))) -> 1.205390413 | AZ41: =(AY41-CFO!V$17)*(1+($C$2+($C$3*V41))) -> 1.177393795 | BA41: =(AZ41-CFO!W$17)*(1+($C$2+($C$3*W41))) -> 1.138236544 | BB41: =(BA41-CFO!X$17)*(1+($C$2+($C$3*X41))) -> 1.103784193
D42: 19 | E42: 0.8156331445 | F42: 1.175050911 | G42: -0.1368011967 | H42: -0.02932851362 | I42: -0.2989493837 | J42: 1.148781581 | K42: 0.1129106171 | L42: -0.219428299 | M42: -0.5106745819 | N42: 0.2162187664 | O42: -0.9918405567 | P42: 0.3259519042 | Q42: 0.2879488122 | R42: -0.4473192114 | S42: -0.6889399228 | T42: 1.79236694 | U42: -1.037265523 | V42: 1.513541353 | W42: -1.645510061 | X42: -0.2639487056 | Y42: -0.04507252331 | Z42: 1.262069676 | AA42: 0.4394785655 | AB42: -1.118449844 | AC42: -1.785200332 | AD42: -0.1003760544 | AE42: -0.342826589 | AF42: 0.3079281867 | AH42: 19 | AI42: =($C$1-CFO!$E$17)*(1+($C$2+($C$3*E42))) -> 1.06237175 | AJ42: =(AI42-CFO!F$17)*(1+($C$2+($C$3*F42))) -> 1.130429653 | AK42: =(AJ42-CFO!G$17)*(1+($C$2+($C$3*G42))) -> 1.189211122 | AL42: =(AK42-CFO!H$17)*(1+($C$2+($C$3*H42))) -> 1.25104744 | AM42: =(AL42-CFO!I$17)*(1+($C$2+($C$3*I42))) -> 1.312254186 | AN42: =(AM42-CFO!J$17)*(1+($C$2+($C$3*J42))) -> 1.391060483 | AO42: =(AN42-CFO!K$17)*(1+($C$2+($C$3*K42))) -> 1.461371348 | AP42: =(AO42-CFO!L$17)*(1+($C$2+($C$3*L42))) -> 1.443121496 | AQ42: =(AP42-CFO!M$17)*(1+($C$2+($C$3*M42))) -> 1.420206109 | AR42: =(AQ42-CFO!N$17)*(1+($C$2+($C$3*N42))) -> 1.403759582 | AS42: =(AR42-CFO!O$17)*(1+($C$2+($C$3*O42))) -> 1.372772771 | AT42: =(AS42-CFO!P$17)*(1+($C$2+($C$3*P42))) -> 1.354123006 | AU42: =(AT42-CFO!Q$17)*(1+($C$2+($C$3*Q42))) -> 1.333478475 | AV42: =(AU42-CFO!R$17)*(1+($C$2+($C$3*R42))) -> 1.303650863 | AW42: =(AV42-CFO!S$17)*(1+($C$2+($C$3*S42))) -> 1.26966328 | AX42: =(AW42-CFO!T$17)*(1+($C$2+($C$3*T42))) -> 1.257934084 | AY42: =(AX42-CFO!U$17)*(1+($C$2+($C$3*U42))) -> 1.217414419 | AZ42: =(AY42-CFO!V$17)*(1+($C$2+($C$3*V42))) -> 1.198661066 | BA42: =(AZ42-CFO!W$17)*(1+($C$2+($C$3*W42))) -> 1.149243509 | BB42: =(BA42-CFO!X$17)*(1+($C$2+($C$3*X42))) -> 1.110048351
D43: 20 | E43: 1.529463063 | F43: -1.211625596 | G43: 0.2469449543 | H43: -0.3662198271 | I43: 1.556592937 | J43: -2.392931266 | K43: 0.5795745155 | L43: -0.8969691939 | M43: 0.2453676183 | N43: -0.2558858326 | O43: -0.3584213321 | P43: -0.9609272613 | Q43: 0.9546167228 | R43: -1.340612644 | S43: -0.3957758259 | T43: 1.104116021 | U43: -1.04117804 | V43: -0.6856560536 | W43: -0.4187783825 | X43: 1.05128422 | Y43: 0.7506898035 | Z43: 0.9538314521 | AA43: -0.4240984342 | AB43: -0.0775879525 | AC43: 0.4867033851 | AD43: -0.1776511832 | AE43: -0.1523833298 | AF43: -0.03808078487 | AH43: 20 | AI43: =($C$1-CFO!$E$17)*(1+($C$2+($C$3*E43))) -> 1.068258867 | AJ43: =(AI43-CFO!F$17)*(1+($C$2+($C$3*F43))) -> 1.115514844 | AK43: =(AJ43-CFO!G$17)*(1+($C$2+($C$3*G43))) -> 1.177477982 | AL43: =(AK43-CFO!H$17)*(1+($C$2+($C$3*H43))) -> 1.235773614 | AM43: =(AL43-CFO!I$17)*(1+($C$2+($C$3*I43))) -> 1.315491114 | AN43: =(AM43-CFO!J$17)*(1+($C$2+($C$3*J43))) -> 1.356165371 | AO43: =(AN43-CFO!K$17)*(1+($C$2+($C$3*K43))) -> 1.430800148 | AP43: =(AO43-CFO!L$17)*(1+($C$2+($C$3*L43))) -> 1.404383983 | AQ43: =(AP43-CFO!M$17)*(1+($C$2+($C$3*M43))) -> 1.388885018 | AR43: =(AQ43-CFO!N$17)*(1+($C$2+($C$3*N43))) -> 1.366582122 | AS43: =(AR43-CFO!O$17)*(1+($C$2+($C$3*O43))) -> 1.341655991 | AT43: =(AS43-CFO!P$17)*(1+($C$2+($C$3*P43))) -> 1.308919205 | AU43: =(AT43-CFO!Q$17)*(1+($C$2+($C$3*Q43))) -> 1.293774189 | AV43: =(AU43-CFO!R$17)*(1+($C$2+($C$3*R43))) -> 1.254289603 | AW43: =(AV43-CFO!S$17)*(1+($C$2+($C$3*S43))) -> 1.22219734 | AX43: =(AW43-CFO!T$17)*(1+($C$2+($C$3*T43))) -> 1.202239242 | AY43: =(AX43-CFO!U$17)*(1+($C$2+($C$3*U43))) -> 1.160809291 | AZ43: =(AY43-CFO!V$17)*(1+($C$2+($C$3*V43))) -> 1.12065411 | BA43: =(AZ43-CFO!W$17)*(1+($C$2+($C$3*W43))) -> 1.080783332 | BB43: =(BA43-CFO!X$17)*(1+($C$2+($C$3*X43))) -> 1.050798962
D44: 21 | E44: 2.861876801 | F44: -0.5268864761 | G44: -0.7214162314 | H44: 0.3138533843 | I44: 1.579190785 | J44: -0.03088561019 | K44: 1.29250887 | L44: -2.903268336 | M44: -0.8051819062 | N44: 0.2668333592 | O44: -0.1478418982 | P44: 0.4737683634 | Q44: 0.1191545829 | R44: 1.080164173 | S44: 1.63713508 | T44: 0.7490658818 | U44: 0.09869321497 | V44: -0.272026341 | W44: -0.7791509012 | X44: -0.4805001675 | Y44: 0.8831057052 | Z44: -0.2989039079 | AA44: -0.7764675726 | AB44: 0.4293371198 | AC44: 2.627429387 | AD44: 0.709635485 | AE44: 0.6496104389 | AF44: 0.0188192996 | AH44: 21 | AI44: =($C$1-CFO!$E$17)*(1+($C$2+($C$3*E44))) -> 1.079247586 | AJ44: =(AI44-CFO!F$17)*(1+($C$2+($C$3*F44))) -> 1.132745474 | AK44: =(AJ44-CFO!G$17)*(1+($C$2+($C$3*G44))) -> 1.186131856 | AL44: =(AK44-CFO!H$17)*(1+($C$2+($C$3*H44))) -> 1.251241503 | AM44: =(AL44-CFO!I$17)*(1+($C$2+($C$3*I44))) -> 1.3317551 | AN44: =(AM44-CFO!J$17)*(1+($C$2+($C$3*J44))) -> 1.398318415 | AO44: =(AN44-CFO!K$17)*(1+($C$2+($C$3*K44))) -> 1.482334079 | AP44: =(AO44-CFO!L$17)*(1+($C$2+($C$3*L44))) -> 1.433789838 | AQ44: =(AP44-CFO!M$17)*(1+($C$2+($C$3*M44))) -> 1.407429846 | AR44: =(AQ44-CFO!N$17)*(1+($C$2+($C$3*N44))) -> 1.391203563 | AS44: =(AR44-CFO!O$17)*(1+($C$2+($C$3*O44))) -> 1.369052652 | AT44: =(AS44-CFO!P$17)*(1+($C$2+($C$3*P44))) -> 1.351859295 | AU44: =(AT44-CFO!Q$17)*(1+($C$2+($C$3*Q44))) -> 1.32940376 | AV44: =(AU44-CFO!R$17)*(1+($C$2+($C$3*R44))) -> 1.315054772 | AW44: =(AV44-CFO!S$17)*(1+($C$2+($C$3*S44))) -> 1.304688006 | AX44: =(AW44-CFO!T$17)*(1+($C$2+($C$3*T44))) -> 1.283897724 | AY44: =(AX44-CFO!U$17)*(1+($C$2+($C$3*U44))) -> 1.254914115 | AZ44: =(AY44-CFO!V$17)*(1+($C$2+($C$3*V44))) -> 1.220453535 | BA44: =(AZ44-CFO!W$17)*(1+($C$2+($C$3*W44))) -> 1.179303036 | BB44: =(BA44-CFO!X$17)*(1+($C$2+($C$3*X44))) -> 1.138831888
D45: 22 | E45: 0.3088275381 | F45: 0.3437770597 | G45: -0.3735948459 | H45: 1.448972497 | I45: 0.0858746355 | J45: 0.8397561955 | K45: 0.5190870813 | L45: -0.8058534904 | M45: 0.7769981098 | N45: 0.04897536259 | O45: 1.37955213 | P45: -1.145941689 | Q45: -1.139889821 | R45: -0.1014689337 | S45: 0.2752851457 | T45: 0.1021692366 | U45: 0.4956285431 | V45: 0.31408586 | W45: 0.2783981583 | X45: -0.4241416332 | Y45: -0.6190476502 | Z45: 2.029297936 | AA45: -0.3919805595 | AB45: -0.3569270913 | AC45: -1.10777864 | AD45: 1.612540395 | AE45: -0.7938763746 | AF45: 2.085969468 | AH45: 22 | AI45: =($C$1-CFO!$E$17)*(1+($C$2+($C$3*E45))) -> 1.058192009 | AJ45: =(AI45-CFO!F$17)*(1+($C$2+($C$3*F45))) -> 1.118863504 | AK45: =(AJ45-CFO!G$17)*(1+($C$2+($C$3*G45))) -> 1.175199619 | AL45: =(AK45-CFO!H$17)*(1+($C$2+($C$3*H45))) -> 1.250989185 | AM45: =(AL45-CFO!I$17)*(1+($C$2+($C$3*I45))) -> 1.316148939 | AN45: =(AM45-CFO!J$17)*(1+($C$2+($C$3*J45))) -> 1.391746365 | AO45: =(AN45-CFO!K$17)*(1+($C$2+($C$3*K45))) -> 1.466709754 | AP45: =(AO45-CFO!L$17)*(1+($C$2+($C$3*L45))) -> 1.441930671 | AQ45: =(AP45-CFO!M$17)*(1+($C$2+($C$3*M45))) -> 1.433323723 | AR45: =(AQ45-CFO!N$17)*(1+($C$2+($C$3*N45))) -> 1.415366114 | AS45: =(AR45-CFO!O$17)*(1+($C$2+($C$3*O45))) -> 1.410417247 | AT45: =(AS45-CFO!P$17)*(1+($C$2+($C$3*P45))) -> 1.376794105 | AU45: =(AT45-CFO!Q$17)*(1+($C$2+($C$3*Q45))) -> 1.34164539 | AV45: =(AU45-CFO!R$17)*(1+($C$2+($C$3*R45))) -> 1.315541914 | AW45: =(AV45-CFO!S$17)*(1+($C$2+($C$3*S45))) -> 1.291482045 | AX45: =(AW45-CFO!T$17)*(1+($C$2+($C$3*T45))) -> 1.263913113 | AY45: =(AX45-CFO!U$17)*(1+($C$2+($C$3*U45))) -> 1.238259195 | AZ45: =(AY45-CFO!V$17)*(1+($C$2+($C$3*V45))) -> 1.20895741 | BA45: =(AZ45-CFO!W$17)*(1+($C$2+($C$3*W45))) -> 1.177308595 | BB45: =(BA45-CFO!X$17)*(1+($C$2+($C$3*X45))) -> 1.137299666
D46: 23 | E46: -1.401273092 | F46: 1.813207402 | G46: 0.7784238973 | H46: -0.5484387632 | I46: 0.07615550707 | J46: -1.245720579 | K46: -0.3944838929 | L46: 0.3324911376 | M46: -0.1534662249 | N46: -0.8069884453 | O46: 1.099209936 | P46: 0.4561837493 | Q46: 1.231278014 | R46: -1.284721278 | S46: 0.9839993945 | T46: 2.270044199 | U46: 2.013309657 | V46: 0.9281724569 | W46: 0.04213685511 | X46: -0.9705493871 | Y46: 0.2924798585 | Z46: -0.7063205392 | AA46: -1.363161211 | AB46: -0.1621085533 | AC46: 0.5696698229 | AD46: 0.2267215643 | AE46: 1.108182287 | AF46: -1.281611504 | AH46: 23 | AI46: =($C$1-CFO!$E$17)*(1+($C$2+($C$3*E46))) -> 1.044088421 | AJ46: =(AI46-CFO!F$17)*(1+($C$2+($C$3*F46))) -> 1.117026913 | AK46: =(AJ46-CFO!G$17)*(1+($C$2+($C$3*G46))) -> 1.183915442 | AL46: =(AK46-CFO!H$17)*(1+($C$2+($C$3*H46))) -> 1.240573052 | AM46: =(AL46-CFO!I$17)*(1+($C$2+($C$3*I46))) -> 1.305376604 | AN46: =(AM46-CFO!J$17)*(1+($C$2+($C$3*J46))) -> 1.358295216 | AO46: =(AN46-CFO!K$17)*(1+($C$2+($C$3*K46))) -> 1.422135318 | AP46: =(AO46-CFO!L$17)*(1+($C$2+($C$3*L46))) -> 1.409072675 | AQ46: =(AP46-CFO!M$17)*(1+($C$2+($C$3*M46))) -> 1.38936115 | AR46: =(AQ46-CFO!N$17)*(1+($C$2+($C$3*N46))) -> 1.361171017 | AS46: =(AR46-CFO!O$17)*(1+($C$2+($C$3*O46))) -> 1.351388774 | AT46: =(AS46-CFO!P$17)*(1+($C$2+($C$3*P46))) -> 1.333521986 | AU46: =(AT46-CFO!Q$17)*(1+($C$2+($C$3*Q46))) -> 1.321985464 | AV46: =(AU46-CFO!R$17)*(1+($C$2+($C$3*R46))) -> 1.283441483 | AW46: =(AV46-CFO!S$17)*(1+($C$2+($C$3*S46))) -> 1.265493881 | AX46: =(AW46-CFO!T$17)*(1+($C$2+($C$3*T46))) -> 1.258218499 | AY46: =(AX46-CFO!U$17)*(1+($C$2+($C$3*U46))) -> 1.246961456 | AZ46: =(AY46-CFO!V$17)*(1+($C$2+($C$3*V46))) -> 1.22371898 | BA46: =(AZ46-CFO!W$17)*(1+($C$2+($C$3*W46))) -> 1.190261069 | BB46: =(BA46-CFO!X$17)*(1+($C$2+($C$3*X46))) -> 1.145591374
D47: 24 | E47: -0.6266340235 | F47: -0.9237532776 | G47: 0.2781255678 | H47: -0.1873031714 | I47: -0.2191599567 | J47: -0.08437880135 | K47: -0.09114198492 | L47: 0.2152020455 | M47: -0.9327703978 | N47: -1.142673192 | O47: 0.4709476416 | P47: -1.202825052 | Q47: -0.3022649297 | R47: 0.313947486 | S47: 0.3652782589 | T47: -0.1935149321 | U47: -1.314830279 | V47: -1.02971777 | W47: 0.6602349192 | X47: -0.4376428937 | Y47: -0.3340868215 | Z47: -1.653565808 | AA47: 1.269349944 | AB47: -0.4993422961 | AC47: 0.6013058373 | AD47: -0.2778767558 | AE47: -1.724449692 | AF47: -0.9847375121 | AH47: 24 | AI47: =($C$1-CFO!$E$17)*(1+($C$2+($C$3*E47))) -> 1.050477045 | AJ47: =(AI47-CFO!F$17)*(1+($C$2+($C$3*F47))) -> 1.099970437 | AK47: =(AJ47-CFO!G$17)*(1+($C$2+($C$3*G47))) -> 1.161812202 | AL47: =(AK47-CFO!H$17)*(1+($C$2+($C$3*H47))) -> 1.221487634 | AM47: =(AL47-CFO!I$17)*(1+($C$2+($C$3*I47))) -> 1.282856686 | AN47: =(AM47-CFO!J$17)*(1+($C$2+($C$3*J47))) -> 1.347694927 | AO47: =(AN47-CFO!K$17)*(1+($C$2+($C$3*K47))) -> 1.41466903 | AP47: =(AO47-CFO!L$17)*(1+($C$2+($C$3*L47))) -> 1.400126524 | AQ47: =(AP47-CFO!M$17)*(1+($C$2+($C$3*M47))) -> 1.371798028 | AR47: =(AQ47-CFO!N$17)*(1+($C$2+($C$3*N47))) -> 1.339754562 | AS47: =(AR47-CFO!O$17)*(1+($C$2+($C$3*O47))) -> 1.322801091 | AT47: =(AS47-CFO!P$17)*(1+($C$2+($C$3*P47))) -> 1.28730088 | AU47: =(AT47-CFO!Q$17)*(1+($C$2+($C$3*Q47))) -> 1.259079275 | AV47: =(AU47-CFO!R$17)*(1+($C$2+($C$3*R47))) -> 1.235059741 | AW47: =(AV47-CFO!S$17)*(1+($C$2+($C$3*S47))) -> 1.209739168 | AX47: =(AW47-CFO!T$17)*(1+($C$2+($C$3*T47))) -> 1.177417603 | AY47: =(AX47-CFO!U$17)*(1+($C$2+($C$3*U47))) -> 1.133150966 | AZ47: =(AY47-CFO!V$17)*(1+($C$2+($C$3*V47))) -> 1.089531307 | BA47: =(AZ47-CFO!W$17)*(1+($C$2+($C$3*W47))) -> 1.057889878 | BB47: =(BA47-CFO!X$17)*(1+($C$2+($C$3*X47))) -> 1.015312643
D48: 25 | E48: -1.114177236 | F48: -1.260598252 | G48: 0.8369527521 | H48: -0.4670764484 | I48: 0.7397403194 | J48: 0.1889880129 | K48: -0.6307858367 | L48: -1.533330016 | M48: 0.07767687657 | N48: 1.612589573 | O48: 1.355819774 | P48: 0.2803947717 | Q48: -1.199550177 | R48: -1.073571876 | S48: 1.585476947 | T48: -2.295850956 | U48: 0.3631527041 | V48: 0.3971030877 | W48: 0.05341865293 | X48: 3.123809345 | Y48: -1.311950707 | Z48: 0.7235153902 | AA48: -0.2430077855 | AB48: -1.367291984 | AC48: 0.07884872346 | AD48: 1.073248752 | AE48: 1.045513721 | AF48: 1.130689408 | AH48: 25 | AI48: =($C$1-CFO!$E$17)*(1+($C$2+($C$3*E48))) -> 1.046456166 | AJ48: =(AI48-CFO!F$17)*(1+($C$2+($C$3*F48))) -> 1.09297788 | AK48: =(AJ48-CFO!G$17)*(1+($C$2+($C$3*G48))) -> 1.15966629 | AL48: =(AK48-CFO!H$17)*(1+($C$2+($C$3*H48))) -> 1.216624485 | AM48: =(AL48-CFO!I$17)*(1+($C$2+($C$3*I48))) -> 1.287474929 | AN48: =(AM48-CFO!J$17)*(1+($C$2+($C$3*J48))) -> 1.355311131 | AO48: =(AN48-CFO!K$17)*(1+($C$2+($C$3*K48))) -> 1.416461141 | AP48: =(AO48-CFO!L$17)*(1+($C$2+($C$3*L48))) -> 1.382845467 | AQ48: =(AP48-CFO!M$17)*(1+($C$2+($C$3*M48))) -> 1.365000119 | AR48: =(AQ48-CFO!N$17)*(1+($C$2+($C$3*N48))) -> 1.361804446 | AS48: =(AR48-CFO!O$17)*(1+($C$2+($C$3*O48))) -> 1.354730424 | AT48: =(AS48-CFO!P$17)*(1+($C$2+($C$3*P48))) -> 1.335126441 | AU48: =(AT48-CFO!Q$17)*(1+($C$2+($C$3*Q48))) -> 1.298746607 | AV48: =(AU48-CFO!R$17)*(1+($C$2+($C$3*R48))) -> 1.261983118 | AW48: =(AV48-CFO!S$17)*(1+($C$2+($C$3*S48))) -> 1.249149586 | AX48: =(AW48-CFO!T$17)*(1+($C$2+($C$3*T48))) -> 1.197682251 | AY48: =(AX48-CFO!U$17)*(1+($C$2+($C$3*U48))) -> 1.168969762 | AZ48: =(AY48-CFO!V$17)*(1+($C$2+($C$3*V48))) -> 1.138567087 | BA48: =(AZ48-CFO!W$17)*(1+($C$2+($C$3*W48))) -> 1.103134014 | BB48: =(BA48-CFO!X$17)*(1+($C$2+($C$3*X48))) -> 1.091120133
D49: 26 | E49: -2.067426147 | F49: 0.4689899275 | G49: -0.6943885478 | H49: 0.40725351 | I49: -0.4592453743 | J49: -0.1043392577 | K49: 0.5484921458 | L49: 0.6076064146 | M49: -0.4113107867 | N49: -0.7986460239 | O49: 1.034958175 | P49: 1.002882246 | Q49: 1.257083587 | R49: -2.356978182 | S49: 1.010955871 | T49: 1.784491816 | U49: 2.300605011 | V49: 1.125160998 | W49: -2.10636547 | X49: -0.6454625714 | Y49: 0.3652729829 | Z49: -0.6752232098 | AA49: 1.146011086 | AB49: -1.391958018 | AC49: 0.6389801088 | AD49: 0.1951959036 | AE49: 0.5879417794 | AF49: -0.3573965234 | AH49: 26 | AI49: =($C$1-CFO!$E$17)*(1+($C$2+($C$3*E49))) -> 1.038594506 | AJ49: =(AI49-CFO!F$17)*(1+($C$2+($C$3*F49))) -> 1.099813702 | AK49: =(AJ49-CFO!G$17)*(1+($C$2+($C$3*G49))) -> 1.152844538 | AL49: =(AK49-CFO!H$17)*(1+($C$2+($C$3*H49))) -> 1.217957621 | AM49: =(AL49-CFO!I$17)*(1+($C$2+($C$3*I49))) -> 1.276844583 | AN49: =(AM49-CFO!J$17)*(1+($C$2+($C$3*J49))) -> 1.341333252 | AO49: =(AN49-CFO!K$17)*(1+($C$2+($C$3*K49))) -> 1.415201099 | AP49: =(AO49-CFO!L$17)*(1+($C$2+($C$3*L49))) -> 1.404959055 | AQ49: =(AP49-CFO!M$17)*(1+($C$2+($C$3*M49))) -> 1.382360236 | AR49: =(AQ49-CFO!N$17)*(1+($C$2+($C$3*N49))) -> 1.354136089 | AS49: =(AR49-CFO!O$17)*(1+($C$2+($C$3*O49))) -> 1.343454183 | AT49: =(AS49-CFO!P$17)*(1+($C$2+($C$3*P49))) -> 1.331008661 | AU49: =(AT49-CFO!Q$17)*(1+($C$2+($C$3*Q49))) -> 1.319650524 | AV49: =(AU49-CFO!R$17)*(1+($C$2+($C$3*R49))) -> 1.270234129 | AW49: =(AV49-CFO!S$17)*(1+($C$2+($C$3*S49))) -> 1.25212721 | AX49: =(AW49-CFO!T$17)*(1+($C$2+($C$3*T49))) -> 1.23965048 | AY49: =(AX49-CFO!U$17)*(1+($C$2+($C$3*U49))) -> 1.230361521 | AZ49: =(AY49-CFO!V$17)*(1+($C$2+($C$3*V49))) -> 1.208440938 | BA49: =(AZ49-CFO!W$17)*(1+($C$2+($C$3*W49))) -> 1.154901638 | BB49: =(BA49-CFO!X$17)*(1+($C$2+($C$3*X49))) -> 1.112497637
D50: 27 | E50: 0.7793996096 | F50: 1.272929892 | G50: -1.101963293 | H50: 0.2582788325 | I50: -0.4838068669 | J50: 2.443214783 | K50: -0.7688248919 | L50: -0.9579031626 | M50: -1.764681311 | N50: -0.2620759927 | O50: 0.7552406589 | P50: -0.03568294706 | Q50: -0.1425486572 | R50: 0.9461324589 | S50: 1.019230848 | T50: -0.2648669349 | U50: -0.8853660003 | V50: 0.1347183372 | W50: 0.8062608089 | X50: -0.0815730287 | Y50: 0.2905749782 | Z50: 0.0958459749 | AA50: -0.08279289361 | AB50: 0.9197651069 | AC50: -0.6569775444 | AD50: 0.3276147436 | AE50: =NORMSINV(RAND()) -> -0.1091295827 | AF50: 0.2103215968 | AH50: 27 | AI50: =($C$1-CFO!$E$17)*(1+($C$2+($C$3*E50))) -> 1.062072924 | AJ50: =(AI50-CFO!F$17)*(1+($C$2+($C$3*F50))) -> 1.130977165 | AK50: =(AJ50-CFO!G$17)*(1+($C$2+($C$3*G50))) -> 1.180790311 | AL50: =(AK50-CFO!H$17)*(1+($C$2+($C$3*H50))) -> 1.245218793 | AM50: =(AL50-CFO!I$17)*(1+($C$2+($C$3*I50))) -> 1.304408618 | AN50: =(AM50-CFO!J$17)*(1+($C$2+($C$3*J50))) -> 1.396815604 | AO50: =(AN50-CFO!K$17)*(1+($C$2+($C$3*K50))) -> 1.457171324 | AP50: =(AO50-CFO!L$17)*(1+($C$2+($C$3*L50))) -> 1.430512709 | AQ50: =(AP50-CFO!M$17)*(1+($C$2+($C$3*M50))) -> 1.393503326 | AR50: =(AQ50-CFO!N$17)*(1+($C$2+($C$3*N50))) -> 1.371235366 | AS50: =(AR50-CFO!O$17)*(1+($C$2+($C$3*O50))) -> 1.358154862 | AT50: =(AS50-CFO!P$17)*(1+($C$2+($C$3*P50))) -> 1.335342391 | AU50: =(AT50-CFO!Q$17)*(1+($C$2+($C$3*Q50))) -> 1.309793772 | AV50: =(AU50-CFO!R$17)*(1+($C$2+($C$3*R50))) -> 1.293460215 | AW50: =(AV50-CFO!S$17)*(1+($C$2+($C$3*S50))) -> 1.276180418 | AX50: =(AW50-CFO!T$17)*(1+($C$2+($C$3*T50))) -> 1.244655327 | AY50: =(AX50-CFO!U$17)*(1+($C$2+($C$3*U50))) -> 1.205367552 | AZ50: =(AY50-CFO!V$17)*(1+($C$2+($C$3*V50))) -> 1.173550942 | BA50: =(AZ50-CFO!W$17)*(1+($C$2+($C$3*W50))) -> 1.145668595 | BB50: =(BA50-CFO!X$17)*(1+($C$2+($C$3*X50))) -> 1.107974848
D51: 28 | E51: -0.07396993083 | F51: -1.539361775 | G51: -0.007978105401 | H51: -0.8487308721 | I51: -0.7192635796 | J51: 0.6560730566 | K51: 0.1933211104 | L51: -0.2144601606 | M51: -1.966932193 | N51: -1.724774205 | O51: 1.010191894 | P51: 0.6506248688 | Q51: 0.5096544357 | R51: 0.06513239705 | S51: 0.1053187222 | T51: 0.6132993853 | U51: -0.5200392435 | V51: -0.113030476 | W51: -0.05235544568 | X51: -1.228853993 | Y51: 1.828877782 | Z51: -0.3185525424 | AA51: -0.809172506 | AB51: -1.258502378 | AC51: -2.061411013 | AD51: -1.07743051 | AE51: 0.9234345416 | AF51: -0.2821047591 | AH51: 28 | AI51: =($C$1-CFO!$E$17)*(1+($C$2+($C$3*E51))) -> 1.055034992 | AJ51: =(AI51-CFO!F$17)*(1+($C$2+($C$3*F51))) -> 1.099252943 | AK51: =(AJ51-CFO!G$17)*(1+($C$2+($C$3*G51))) -> 1.1584863 | AL51: =(AK51-CFO!H$17)*(1+($C$2+($C$3*H51))) -> 1.211783322 | AM51: =(AL51-CFO!I$17)*(1+($C$2+($C$3*I51))) -> 1.267954517 | AN51: =(AM51-CFO!J$17)*(1+($C$2+($C$3*J51))) -> 1.340158152 | AO51: =(AN51-CFO!K$17)*(1+($C$2+($C$3*K51))) -> 1.410085871 | AP51: =(AO51-CFO!L$17)*(1+($C$2+($C$3*L51))) -> 1.390749267 | AQ51: =(AP51-CFO!M$17)*(1+($C$2+($C$3*M51))) -> 1.351178622 | AR51: =(AQ51-CFO!N$17)*(1+($C$2+($C$3*N51))) -> 1.312777166 | AS51: =(AR51-CFO!O$17)*(1+($C$2+($C$3*O51))) -> 1.300510548 | AT51: =(AS51-CFO!P$17)*(1+($C$2+($C$3*P51))) -> 1.283176383 | AU51: =(AT51-CFO!Q$17)*(1+($C$2+($C$3*Q51))) -> 1.262844368 | AV51: =(AU51-CFO!R$17)*(1+($C$2+($C$3*R51))) -> 1.23652224 | AW51: =(AV51-CFO!S$17)*(1+($C$2+($C$3*S51))) -> 1.20878809 | AX51: =(AW51-CFO!T$17)*(1+($C$2+($C$3*T51))) -> 1.183871812 | AY51: =(AX51-CFO!U$17)*(1+($C$2+($C$3*U51))) -> 1.14684233 | AZ51: =(AY51-CFO!V$17)*(1+($C$2+($C$3*V51))) -> 1.111404972 | BA51: =(AZ51-CFO!W$17)*(1+($C$2+($C$3*W51))) -> 1.07442018 | BB51: =(BA51-CFO!X$17)*(1+($C$2+($C$3*X51))) -> 1.025779644
D52: 29 | E52: 1.598083215 | F52: -2.999149903 | G52: 0.2826671551 | H52: -0.05119743765 | I52: 0.4747651948 | J52: 2.038719645 | K52: -0.2787484371 | L52: 0.2240448968 | M52: -0.8970154291 | N52: 0.0558147586 | O52: -1.202688682 | P52: 0.7737046163 | Q52: 1.221465947 | R52: 0.4274481153 | S52: 0.4090542592 | T52: -0.3183356959 | U52: -1.198290465 | V52: 0.7646456879 | W52: 0.05428359743 | X52: 0.9216503347 | Y52: -1.292756121 | Z52: 0.6673484365 | AA52: 0.5967943379 | AB52: -2.178671053 | AC52: -0.9724604292 | AD52: -0.4615219903 | AE52: -0.1623116805 | AF52: 1.346434408 | AH52: 29 | AI52: =($C$1-CFO!$E$17)*(1+($C$2+($C$3*E52))) -> 1.068824793 | AJ52: =(AI52-CFO!F$17)*(1+($C$2+($C$3*F52))) -> 1.100353701 | AK52: =(AJ52-CFO!G$17)*(1+($C$2+($C$3*G52))) -> 1.162246665 | AL52: =(AK52-CFO!H$17)*(1+($C$2+($C$3*H52))) -> 1.223233089 | AM52: =(AL52-CFO!I$17)*(1+($C$2+($C$3*I52))) -> 1.291617328 | AN52: =(AM52-CFO!J$17)*(1+($C$2+($C$3*J52))) -> 1.379177274 | AO52: =(AN52-CFO!K$17)*(1+($C$2+($C$3*K52))) -> 1.444761825 | AP52: =(AO52-CFO!L$17)*(1+($C$2+($C$3*L52))) -> 1.431092049 | AQ52: =(AP52-CFO!M$17)*(1+($C$2+($C$3*M52))) -> 1.403670518 | AR52: =(AQ52-CFO!N$17)*(1+($C$2+($C$3*N52))) -> 1.38506359 | AS52: =(AR52-CFO!O$17)*(1+($C$2+($C$3*O52))) -> 1.351528999 | AT52: =(AS52-CFO!P$17)*(1+($C$2+($C$3*P52))) -> 1.336962674 | AU52: =(AT52-CFO!Q$17)*(1+($C$2+($C$3*Q52))) -> 1.325441976 | AV52: =(AU52-CFO!R$17)*(1+($C$2+($C$3*R52))) -> 1.304334557 | AW52: =(AV52-CFO!S$17)*(1+($C$2+($C$3*S52))) -> 1.281315831 | AX52: =(AW52-CFO!T$17)*(1+($C$2+($C$3*T52))) -> 1.249379911 | AY52: =(AX52-CFO!U$17)*(1+($C$2+($C$3*U52))) -> 1.20719292 | AZ52: =(AY52-CFO!V$17)*(1+($C$2+($C$3*V52))) -> 1.181200618 | BA52: =(AZ52-CFO!W$17)*(1+($C$2+($C$3*W52))) -> 1.146816716 | BB52: =(BA52-CFO!X$17)*(1+($C$2+($C$3*X52))) -> 1.117848482
D53: 30 | E53: -1.87811701 | F53: 1.105323034 | G53: -0.3637744971 | H53: -1.552307641 | I53: -0.4494494041 | J53: 0.9847918708 | K53: 0.5497785769 | L53: 1.110001237 | M53: -0.1115812885 | N53: 0.4207903668 | O53: 1.071298323 | P53: -1.554318633 | Q53: -0.6230320433 | R53: 0.2146915901 | S53: 2.461387513 | T53: -1.435477458 | U53: -0.9661152352 | V53: 1.627291294 | W53: -1.357707579 | X53: -1.425675775 | Y53: 0.1811945385 | Z53: 0.2607801694 | AA53: 1.847312669 | AB53: -1.364675611 | AC53: 2.00783543 | AD53: -1.979283174 | AE53: -0.2441516099 | AF53: -1.074392398 | AH53: 30 | AI53: =($C$1-CFO!$E$17)*(1+($C$2+($C$3*E53))) -> 1.040155781 | AJ53: =(AI53-CFO!F$17)*(1+($C$2+($C$3*F53))) -> 1.106873855 | AK53: =(AJ53-CFO!G$17)*(1+($C$2+($C$3*G53))) -> 1.163047538 | AL53: =(AK53-CFO!H$17)*(1+($C$2+($C$3*H53))) -> 1.209692124 | AM53: =(AL53-CFO!I$17)*(1+($C$2+($C$3*I53))) -> 1.268508503 | AN53: =(AM53-CFO!J$17)*(1+($C$2+($C$3*J53))) -> 1.344153929 | AO53: =(AN53-CFO!K$17)*(1+($C$2+($C$3*K53))) -> 1.418116041 | AP53: =(AO53-CFO!L$17)*(1+($C$2+($C$3*L53))) -> 1.413458195 | AQ53: =(AP53-CFO!M$17)*(1+($C$2+($C$3*M53))) -> 1.394303189 | AR53: =(AQ53-CFO!N$17)*(1+($C$2+($C$3*N53))) -> 1.379387521 | AS53: =(AR53-CFO!O$17)*(1+($C$2+($C$3*O53))) -> 1.369906422 | AT53: =(AS53-CFO!P$17)*(1+($C$2+($C$3*P53))) -> 1.331382488 | AU53: =(AT53-CFO!Q$17)*(1+($C$2+($C$3*Q53))) -> 1.300836414 | AV53: =(AU53-CFO!R$17)*(1+($C$2+($C$3*R53))) -> 1.276935403 | AW53: =(AV53-CFO!S$17)*(1+($C$2+($C$3*S53))) -> 1.273198563 | AX53: =(AW53-CFO!T$17)*(1+($C$2+($C$3*T53))) -> 1.230229684 | AY53: =(AX53-CFO!U$17)*(1+($C$2+($C$3*U53))) -> 1.189941481 | AZ53: =(AY53-CFO!V$17)*(1+($C$2+($C$3*V53))) -> 1.171223892 | BA53: =(AZ53-CFO!W$17)*(1+($C$2+($C$3*W53))) -> 1.124063532 | BB53: =(BA53-CFO!X$17)*(1+($C$2+($C$3*X53))) -> 1.074455634
D54: 31 | E54: -1.763157458 | F54: 0.5782335638 | G54: 1.169415585 | H54: -0.1346368362 | I54: 0.4777285364 | J54: 0.2733983098 | K54: 0.3272158162 | L54: 0.05913570164 | M54: 1.553374684 | N54: -0.7356145632 | O54: 0.329524403 | P54: 0.3631683609 | Q54: 0.02581817864 | R54: -1.346887192 | S54: -0.7751169596 | T54: -0.5465314247 | U54: -0.4767994565 | V54: 1.221457435 | W54: 1.308912345 | X54: -1.45067031 | Y54: -1.51306813 | Z54: -0.5544975587 | AA54: 0.1847619619 | AB54: 0.5626535274 | AC54: -1.104849341 | AD54: 0.4355913934 | AE54: -0.1882705413 | AF54: 0.9151287591 | AH54: 31 | AI54: =($C$1-CFO!$E$17)*(1+($C$2+($C$3*E54))) -> 1.041103879 | AJ54: =(AI54-CFO!F$17)*(1+($C$2+($C$3*F54))) -> 1.103330135 | AK54: =(AJ54-CFO!G$17)*(1+($C$2+($C$3*G54))) -> 1.173356359 | AL54: =(AK54-CFO!H$17)*(1+($C$2+($C$3*H54))) -> 1.23379974 | AM54: =(AL54-CFO!I$17)*(1+($C$2+($C$3*I54))) -> 1.302507755 | AN54: =(AM54-CFO!J$17)*(1+($C$2+($C$3*J54))) -> 1.371630074 | AO54: =(AN54-CFO!K$17)*(1+($C$2+($C$3*K54))) -> 1.443868304 | AP54: =(AO54-CFO!L$17)*(1+($C$2+($C$3*L54))) -> 1.42833613 | AQ54: =(AP54-CFO!M$17)*(1+($C$2+($C$3*M54))) -> 1.427875261 | AR54: =(AQ54-CFO!N$17)*(1+($C$2+($C$3*N54))) -> 1.401146631 | AS54: =(AR54-CFO!O$17)*(1+($C$2+($C$3*O54))) -> 1.384372247 | AT54: =(AS54-CFO!P$17)*(1+($C$2+($C$3*P54))) -> 1.366427285 | AU54: =(AT54-CFO!Q$17)*(1+($C$2+($C$3*Q54))) -> 1.343355904 | AV54: =(AU54-CFO!R$17)*(1+($C$2+($C$3*R54))) -> 1.304464895 | AW54: =(AV54-CFO!S$17)*(1+($C$2+($C$3*S54))) -> 1.269632364 | AX54: =(AW54-CFO!T$17)*(1+($C$2+($C$3*T54))) -> 1.235234202 | AY54: =(AX54-CFO!U$17)*(1+($C$2+($C$3*U54))) -> 1.199630497 | AZ54: =(AY54-CFO!V$17)*(1+($C$2+($C$3*V54))) -> 1.177573285 | BA54: =(AZ54-CFO!W$17)*(1+($C$2+($C$3*W54))) -> 1.154300432 | BB54: =(BA54-CFO!X$17)*(1+($C$2+($C$3*X54))) -> 1.104855137
D55: 32 | E55: 0.2459670185 | F55: -0.1000147239 | G55: -1.096211024 | H55: -0.7575410104 | I55: -1.177649694 | J55: -0.2426296996 | K55: -1.650744536 | L55: 0.5985385557 | M55: 0.659799925 | N55: 0.4804306462 | O55: 0.115273562 | P55: -0.01386986704 | Q55: 0.6242318108 | R55: -0.3817227685 | S55: 1.479502015 | T55: 0.02433971971 | U55: -0.01621730461 | V55: -0.08516294354 | W55: -0.5006185229 | X55: -1.705430967 | Y55: 0.505018485 | Z55: 0.7267124726 | AA55: -0.865835515 | AB55: -0.7592841578 | AC55: -1.267207852 | AD55: -2.032546961 | AE55: -0.01067972638 | AF55: -0.7016296706 | AH55: 32 | AI55: =($C$1-CFO!$E$17)*(1+($C$2+($C$3*E55))) -> 1.057673584 | AJ55: =(AI55-CFO!F$17)*(1+($C$2+($C$3*F55))) -> 1.114464205 | AK55: =(AJ55-CFO!G$17)*(1+($C$2+($C$3*G55))) -> 1.164079379 | AL55: =(AK55-CFO!H$17)*(1+($C$2+($C$3*H55))) -> 1.218345801 | AM55: =(AL55-CFO!I$17)*(1+($C$2+($C$3*I55))) -> 1.270046285 | AN55: =(AM55-CFO!J$17)*(1+($C$2+($C$3*J55))) -> 1.332934639 | AO55: =(AN55-CFO!K$17)*(1+($C$2+($C$3*K55))) -> 1.382500251 | AP55: =(AO55-CFO!L$17)*(1+($C$2+($C$3*L55))) -> 1.371217745 | AQ55: =(AP55-CFO!M$17)*(1+($C$2+($C$3*M55))) -> 1.359235987 | AR55: =(AQ55-CFO!N$17)*(1+($C$2+($C$3*N55))) -> 1.343984534 | AS55: =(AR55-CFO!O$17)*(1+($C$2+($C$3*O55))) -> 1.323474285 | AT55: =(AS55-CFO!P$17)*(1+($C$2+($C$3*P55))) -> 1.300060954 | AU55: =(AT55-CFO!Q$17)*(1+($C$2+($C$3*Q55))) -> 1.281344421 | AV55: =(AU55-CFO!R$17)*(1+($C$2+($C$3*R55))) -> 1.251095226 | AW55: =(AV55-CFO!S$17)*(1+($C$2+($C$3*S55))) -> 1.236849961 | AX55: =(AW55-CFO!T$17)*(1+($C$2+($C$3*T55))) -> 1.207191321 | AY55: =(AX55-CFO!U$17)*(1+($C$2+($C$3*U55))) -> 1.175250992 | AZ55: =(AY55-CFO!V$17)*(1+($C$2+($C$3*V55))) -> 1.140718271 | BA55: =(AZ55-CFO!W$17)*(1+($C$2+($C$3*W55))) -> 1.100555381 | BB55: =(BA55-CFO!X$17)*(1+($C$2+($C$3*X55))) -> 1.048329252
D56: 33 | E56: 0.1229381832 | F56: -1.030014391 | G56: -0.9937123622 | H56: -0.3141532564 | I56: -0.1019045091 | J56: -1.609664242 | K56: 1.812322024 | L56: 1.151854147 | M56: -1.595628623 | N56: 2.0635292 | O56: -0.04627262789 | P56: 0.9498494841 | Q56: 1.063902629 | R56: 0.08727349373 | S56: -0.9085875021 | T56: 0.6898702302 | U56: 0.2761372902 | V56: 0.2482274902 | W56: 0.2919537498 | X56: 0.4058997731 | Y56: -0.4908573972 | Z56: -0.2891416901 | AA56: -1.670375552 | AB56: -0.7909467235 | AC56: 1.282451972 | AD56: 1.201661473 | AE56: -0.5409198844 | AF56: 0.3823177919 | AH56: 33 | AI56: =($C$1-CFO!$E$17)*(1+($C$2+($C$3*E56))) -> 1.056658938 | AJ56: =(AI56-CFO!F$17)*(1+($C$2+($C$3*F56))) -> 1.10532996 | AK56: =(AJ56-CFO!G$17)*(1+($C$2+($C$3*G56))) -> 1.155738739 | AL56: =(AK56-CFO!H$17)*(1+($C$2+($C$3*H56))) -> 1.214071383 | AM56: =(AL56-CFO!I$17)*(1+($C$2+($C$3*I56))) -> 1.276445678 | AN56: =(AM56-CFO!J$17)*(1+($C$2+($C$3*J56))) -> 1.325142491 | AO56: =(AN56-CFO!K$17)*(1+($C$2+($C$3*K56))) -> 1.412300625 | AP56: =(AO56-CFO!L$17)*(1+($C$2+($C$3*L56))) -> 1.407907815 | AQ56: =(AP56-CFO!M$17)*(1+($C$2+($C$3*M56))) -> 1.372510628 | AR56: =(AQ56-CFO!N$17)*(1+($C$2+($C$3*N56))) -> 1.374357093 | AS56: =(AR56-CFO!O$17)*(1+($C$2+($C$3*O56))) -> 1.352895716 | AT56: =(AS56-CFO!P$17)*(1+($C$2+($C$3*P56))) -> 1.340201361 | AU56: =(AT56-CFO!Q$17)*(1+($C$2+($C$3*Q56))) -> 1.327169808 | AV56: =(AU56-CFO!R$17)*(1+($C$2+($C$3*R56))) -> 1.302650183 | AW56: =(AV56-CFO!S$17)*(1+($C$2+($C$3*S56))) -> 1.266455329 | AX56: =(AW56-CFO!T$17)*(1+($C$2+($C$3*T56))) -> 1.243946155 | AY56: =(AX56-CFO!U$17)*(1+($C$2+($C$3*U56))) -> 1.215653775 | AZ56: =(AY56-CFO!V$17)*(1+($C$2+($C$3*V56))) -> 1.18514406 | BA56: =(AZ56-CFO!W$17)*(1+($C$2+($C$3*W56))) -> 1.152992516 | BB56: =(BA56-CFO!X$17)*(1+($C$2+($C$3*X56))) -> 1.119720607
D57: 34 | E57: =NORMSINV(RAND()) -> 1.559725141 | F57: -0.1804678227 | G57: 0.8629141124 | H57: -0.9254234048 | I57: -1.023130684 | J57: -0.006878754692 | K57: 2.522398726 | L57: 0.7605134084 | M57: -0.6299082126 | N57: -0.08700133065 | O57: -0.04915853444 | P57: -1.725032537 | Q57: 0.3484679631 | R57: 1.282122448 | S57: 1.409694239 | T57: -0.1662939688 | U57: 1.250157384 | V57: 1.716841332 | W57: 1.32659597 | X57: 0.2850135796 | Y57: 0.6223535082 | Z57: 0.2757375553 | AA57: -1.433912365 | AB57: 0.3772729466 | AC57: -0.6592722656 | AD57: -0.6939445897 | AE57: -1.480546053 | AF57: -0.2641342716 | AH57: 34 | AI57: =($C$1-CFO!$E$17)*(1+($C$2+($C$3*E57))) -> 1.068508446 | AJ57: =(AI57-CFO!F$17)*(1+($C$2+($C$3*F57))) -> 1.124842427 | AK57: =(AJ57-CFO!G$17)*(1+($C$2+($C$3*G57))) -> 1.192749237 | AL57: =(AK57-CFO!H$17)*(1+($C$2+($C$3*H57))) -> 1.245884009 | AM57: =(AL57-CFO!I$17)*(1+($C$2+($C$3*I57))) -> 1.299567419 | AN57: =(AM57-CFO!J$17)*(1+($C$2+($C$3*J57))) -> 1.365622324 | AO57: =(AN57-CFO!K$17)*(1+($C$2+($C$3*K57))) -> 1.462294145 | AP57: =(AO57-CFO!L$17)*(1+($C$2+($C$3*L57))) -> 1.455139269 | AQ57: =(AP57-CFO!M$17)*(1+($C$2+($C$3*M57))) -> 1.431123508 | AR57: =(AQ57-CFO!N$17)*(1+($C$2+($C$3*N57))) -> 1.411611632 | AS57: =(AR57-CFO!O$17)*(1+($C$2+($C$3*O57))) -> 1.390999198 | AT57: =(AS57-CFO!P$17)*(1+($C$2+($C$3*P57))) -> 1.350892909 | AU57: =(AT57-CFO!Q$17)*(1+($C$2+($C$3*Q57))) -> 1.330790913 | AV57: =(AU57-CFO!R$17)*(1+($C$2+($C$3*R57))) -> 1.318546974 | AW57: =(AV57-CFO!S$17)*(1+($C$2+($C$3*S57))) -> 1.306014405 | AX57: =(AW57-CFO!T$17)*(1+($C$2+($C$3*T57))) -> 1.276126139 | AY57: =(AX57-CFO!U$17)*(1+($C$2+($C$3*U57))) -> 1.258158562 | AZ57: =(AY57-CFO!V$17)*(1+($C$2+($C$3*V57))) -> 1.242824239 | BA57: =(AZ57-CFO!W$17)*(1+($C$2+($C$3*W57))) -> 1.221967759 | BB57: =(BA57-CFO!X$17)*(1+($C$2+($C$3*X57))) -> 1.189454379
D58: 35 | E58: 1.421883379 | F58: 0.5386838 | G58: 0.01236305796 | H58: 1.106726296 | I58: -0.517586802 | J58: -0.1298723044 | K58: 0.9113939052 | L58: 2.091035259 | M58: 1.502639541 | N58: -1.860568347 | O58: 0.9569934567 | P58: -0.1433108236 | Q58: 0.9879537141 | R58: -0.1609111902 | S58: -0.4641112053 | T58: -0.5506866824 | U58: 0.7193076805 | V58: 0.9103465511 | W58: -2.678988098 | X58: 1.734851271 | Y58: 0.1324339869 | Z58: -0.01414011507 | AA58: 1.153829746 | AB58: 0.7816611861 | AC58: -0.6677815143 | AD58: -0.1676105959 | AE58: 2.254672913 | AF58: 0.8457830441 | AH58: 35 | AI58: =($C$1-CFO!$E$17)*(1+($C$2+($C$3*E58))) -> 1.067371633 | AJ58: =(AI58-CFO!F$17)*(1+($C$2+($C$3*F58))) -> 1.130002139 | AK58: =(AJ58-CFO!G$17)*(1+($C$2+($C$3*G58))) -> 1.19016063 | AL58: =(AK58-CFO!H$17)*(1+($C$2+($C$3*H58))) -> 1.26313427 | AM58: =(AL58-CFO!I$17)*(1+($C$2+($C$3*I58))) -> 1.322334337 | AN58: =(AM58-CFO!J$17)*(1+($C$2+($C$3*J58))) -> 1.387599714 | AO58: =(AN58-CFO!K$17)*(1+($C$2+($C$3*K58))) -> 1.466910507 | AP58: =(AO58-CFO!L$17)*(1+($C$2+($C$3*L58))) -> 1.474980048 | AQ58: =(AP58-CFO!M$17)*(1+($C$2+($C$3*M58))) -> 1.475640166 | AR58: =(AQ58-CFO!N$17)*(1+($C$2+($C$3*N58))) -> 1.436961496 | AS58: =(AR58-CFO!O$17)*(1+($C$2+($C$3*O58))) -> 1.428089774 | AT58: =(AS58-CFO!P$17)*(1+($C$2+($C$3*P58))) -> 1.405752435 | AU58: =(AT58-CFO!Q$17)*(1+($C$2+($C$3*Q58))) -> 1.394031213 | AV58: =(AU58-CFO!R$17)*(1+($C$2+($C$3*R58))) -> 1.368506149 | AW58: =(AV58-CFO!S$17)*(1+($C$2+($C$3*S58))) -> 1.338076492 | AX58: =(AW58-CFO!T$17)*(1+($C$2+($C$3*T58))) -> 1.304979187 | AY58: =(AX58-CFO!U$17)*(1+($C$2+($C$3*U58))) -> 1.282702672 | AZ58: =(AY58-CFO!V$17)*(1+($C$2+($C$3*V58))) -> 1.260409087 | BA58: =(AZ58-CFO!W$17)*(1+($C$2+($C$3*W58))) -> 1.201750217 | BB58: =(BA58-CFO!X$17)*(1+($C$2+($C$3*X58))) -> 1.181913868
D59: 36 | E59: 0.5841618635 | F59: 0.3247652192 | G59: 0.3960740485 | H59: -0.9394433485 | I59: 0.3199942632 | J59: 1.848896935 | K59: 0.5012010206 | L59: -1.070555079 | M59: 0.9325823216 | N59: -1.586507787 | O59: -1.440318897 | P59: 1.913933093 | Q59: -1.17359438 | R59: -1.442304965 | S59: -2.489577742 | T59: 1.50986873 | U59: -1.104008301 | V59: -0.2062639166 | W59: 0.7425419417 | X59: 0.4216863111 | Y59: 0.1687332145 | Z59: -1.309350183 | AA59: -0.9236153511 | AB59: -0.1485885151 | AC59: 1.071875435 | AD59: -0.5787814666 | AE59: -2.032120717 | AF59: -0.6087226666 | AH59: 36 | AI59: =($C$1-CFO!$E$17)*(1+($C$2+($C$3*E59))) -> 1.060462754 | AJ59: =(AI59-CFO!F$17)*(1+($C$2+($C$3*F59))) -> 1.121028907 | AK59: =(AJ59-CFO!G$17)*(1+($C$2+($C$3*G59))) -> 1.184511058 | AL59: =(AK59-CFO!H$17)*(1+($C$2+($C$3*H59))) -> 1.237372572 | AM59: =(AL59-CFO!I$17)*(1+($C$2+($C$3*I59))) -> 1.304576371 | AN59: =(AM59-CFO!J$17)*(1+($C$2+($C$3*J59))) -> 1.390625773 | AO59: =(AN59-CFO!K$17)*(1+($C$2+($C$3*K59))) -> 1.465353652 | AP59: =(AO59-CFO!L$17)*(1+($C$2+($C$3*L59))) -> 1.437552858 | AQ59: =(AP59-CFO!M$17)*(1+($C$2+($C$3*M59))) -> 1.430539877 | AR59: =(AQ59-CFO!N$17)*(1+($C$2+($C$3*N59))) -> 1.394473273 | AS59: =(AR59-CFO!O$17)*(1+($C$2+($C$3*O59))) -> 1.358523197 | AT59: =(AS59-CFO!P$17)*(1+($C$2+($C$3*P59))) -> 1.356069978 | AU59: =(AT59-CFO!Q$17)*(1+($C$2+($C$3*Q59))) -> 1.320262005 | AV59: =(AU59-CFO!R$17)*(1+($C$2+($C$3*R59))) -> 1.280100454 | AW59: =(AV59-CFO!S$17)*(1+($C$2+($C$3*S59))) -> 1.228059085 | AX59: =(AW59-CFO!T$17)*(1+($C$2+($C$3*T59))) -> 1.21209091 | AY59: =(AX59-CFO!U$17)*(1+($C$2+($C$3*U59))) -> 1.170235919 | AZ59: =(AY59-CFO!V$17)*(1+($C$2+($C$3*V59))) -> 1.134511158 | BA59: =(AZ59-CFO!W$17)*(1+($C$2+($C$3*W59))) -> 1.104893198 | BB59: =(BA59-CFO!X$17)*(1+($C$2+($C$3*X59))) -> 1.070442304
D60: 37 | E60: 0.009247294304 | F60: 0.3042096319 | G60: -0.8244141439 | H60: -1.431349716 | I60: 0.0416612243 | J60: 1.201859865 | K60: 1.710784338 | L60: 0.7857804956 | M60: -2.224267454 | N60: 1.222987427 | O60: -0.7946584978 | P60: -1.297331542 | Q60: 1.283716702 | R60: 1.087663925 | S60: 0.8532741052 | T60: -0.1450557084 | U60: 0.6189116732 | V60: 0.01668910245 | W60: 1.008799075 | X60: -0.8814924039 | Y60: -0.6918118626 | Z60: -0.2690217049 | AA60: 0.5575241216 | AB60: 0.1051306556 | AC60: -0.529787623 | AD60: -0.9500546189 | AE60: -1.046469048 | AF60: 0.3812141274 | AH60: 37 | AI60: =($C$1-CFO!$E$17)*(1+($C$2+($C$3*E60))) -> 1.055721303 | AJ60: =(AI60-CFO!F$17)*(1+($C$2+($C$3*F60))) -> 1.115982551 | AK60: =(AJ60-CFO!G$17)*(1+($C$2+($C$3*G60))) -> 1.168117324 | AL60: =(AK60-CFO!H$17)*(1+($C$2+($C$3*H60))) -> 1.215982705 | AM60: =(AL60-CFO!I$17)*(1+($C$2+($C$3*I60))) -> 1.279836321 | AN60: =(AM60-CFO!J$17)*(1+($C$2+($C$3*J60))) -> 1.358124601 | AO60: =(AN60-CFO!K$17)*(1+($C$2+($C$3*K60))) -> 1.445421023 | AP60: =(AO60-CFO!L$17)*(1+($C$2+($C$3*L60))) -> 1.43804067 | AQ60: =(AP60-CFO!M$17)*(1+($C$2+($C$3*M60))) -> 1.396004663 | AR60: =(AQ60-CFO!N$17)*(1+($C$2+($C$3*N60))) -> 1.389763001 | AS60: =(AR60-CFO!O$17)*(1+($C$2+($C$3*O60))) -> 1.360660502 | AT60: =(AS60-CFO!P$17)*(1+($C$2+($C$3*P60))) -> 1.324716516 | AU60: =(AT60-CFO!Q$17)*(1+($C$2+($C$3*Q60))) -> 1.313414659 | AV60: =(AU60-CFO!R$17)*(1+($C$2+($C$3*R60))) -> 1.298619214 | AW60: =(AV60-CFO!S$17)*(1+($C$2+($C$3*S60))) -> 1.279856905 | AX60: =(AW60-CFO!T$17)*(1+($C$2+($C$3*T60))) -> 1.249583228 | AY60: =(AX60-CFO!U$17)*(1+($C$2+($C$3*U60))) -> 1.22470247 | AZ60: =(AY60-CFO!V$17)*(1+($C$2+($C$3*V60))) -> 1.192271483 | BA60: =(AZ60-CFO!W$17)*(1+($C$2+($C$3*W60))) -> 1.166790989 | BB60: =(BA60-CFO!X$17)*(1+($C$2+($C$3*X60))) -> 1.122526665
D61: 38 | E61: -0.4640416406 | F61: -0.1727325113 | G61: 2.36913883 | H61: 0.2960146123 | I61: -0.6830303961 | J61: -0.04077275474 | K61: 1.36275875 | L61: 0.1809290773 | M61: -0.9093138442 | N61: -0.1530030767 | O61: -0.2164853579 | P61: 0.1779799615 | Q61: 0.9916147577 | R61: -0.712836163 | S61: -0.2983556014 | T61: -0.4712285485 | U61: 0.1156740913 | V61: 0.9353601402 | W61: 0.6891687135 | X61: 1.245071135 | Y61: -0.02644706762 | Z61: -1.160851664 | AA61: 0.6536418478 | AB61: -0.5415566434 | AC61: 2.106763729 | AD61: -1.092234242 | AE61: 1.910963509 | AF61: 0.3504693706 | AH61: 38 | AI61: =($C$1-CFO!$E$17)*(1+($C$2+($C$3*E61))) -> 1.051817982 | AJ61: =(AI61-CFO!F$17)*(1+($C$2+($C$3*F61))) -> 1.107842529 | AK61: =(AJ61-CFO!G$17)*(1+($C$2+($C$3*G61))) -> 1.188960687 | AL61: =(AK61-CFO!H$17)*(1+($C$2+($C$3*H61))) -> 1.253970972 | AM61: =(AL61-CFO!I$17)*(1+($C$2+($C$3*I61))) -> 1.311285097 | AN61: =(AM61-CFO!J$17)*(1+($C$2+($C$3*J61))) -> 1.377255772 | AO61: =(AN61-CFO!K$17)*(1+($C$2+($C$3*K61))) -> 1.461341718 | AP61: =(AO61-CFO!L$17)*(1+($C$2+($C$3*L61))) -> 1.447612647 | AQ61: =(AP61-CFO!M$17)*(1+($C$2+($C$3*M61))) -> 1.420331613 | AR61: =(AQ61-CFO!N$17)*(1+($C$2+($C$3*N61))) -> 1.399845565 | AS61: =(AR61-CFO!O$17)*(1+($C$2+($C$3*O61))) -> 1.377152054 | AT61: =(AS61-CFO!P$17)*(1+($C$2+($C$3*P61))) -> 1.357052195 | AU61: =(AT61-CFO!Q$17)*(1+($C$2+($C$3*Q61))) -> 1.343815399 | AV61: =(AU61-CFO!R$17)*(1+($C$2+($C$3*R61))) -> 1.311463212 | AW61: =(AV61-CFO!S$17)*(1+($C$2+($C$3*S61))) -> 1.281539746 | AX61: =(AW61-CFO!T$17)*(1+($C$2+($C$3*T61))) -> 1.248112281 | AY61: =(AX61-CFO!U$17)*(1+($C$2+($C$3*U61))) -> 1.218403058 | AZ61: =(AY61-CFO!V$17)*(1+($C$2+($C$3*V61))) -> 1.194329704 | BA61: =(AZ61-CFO!W$17)*(1+($C$2+($C$3*W61))) -> 1.16601913 | BB61: =(BA61-CFO!X$17)*(1+($C$2+($C$3*X61))) -> 1.140507325
D62: 39 | E62: 0.2066947168 | F62: 0.1740385775 | G62: 1.330815047 | H62: 0.6368370326 | I62: 1.127417513 | J62: 0.4848897922 | K62: -1.486805035 | L62: 0.2502346645 | M62: -0.5669435203 | N62: 0.6189897705 | O62: 1.722305768 | P62: -0.5561717225 | Q62: 0.02886816162 | R62: -0.1766286168 | S62: 0.9742507121 | T62: -1.157193067 | U62: 1.929900892 | V62: -2.143350736 | W62: 0.6997770627 | X62: 1.114360894 | Y62: -0.08535927972 | Z62: 0.4791632189 | AA62: -1.423218061 | AB62: 0.1228863224 | AC62: 0.195172218 | AD62: 0.3999391587 | AE62: 0.07919472789 | AF62: -1.99433489 | AH62: 39 | AI62: =($C$1-CFO!$E$17)*(1+($C$2+($C$3*E62))) -> 1.057349697 | AJ62: =(AI62-CFO!F$17)*(1+($C$2+($C$3*F62))) -> 1.116520073 | AK62: =(AJ62-CFO!G$17)*(1+($C$2+($C$3*G62))) -> 1.188469412 | AL62: =(AK62-CFO!H$17)*(1+($C$2+($C$3*H62))) -> 1.256796617 | AM62: =(AL62-CFO!I$17)*(1+($C$2+($C$3*I62))) -> 1.332850523 | AN62: =(AM62-CFO!J$17)*(1+($C$2+($C$3*J62))) -> 1.405080254 | AO62: =(AN62-CFO!K$17)*(1+($C$2+($C$3*K62))) -> 1.457313038 | AP62: =(AO62-CFO!L$17)*(1+($C$2+($C$3*L62))) -> 1.444261917 | AQ62: =(AP62-CFO!M$17)*(1+($C$2+($C$3*M62))) -> 1.420741902 | AR62: =(AQ62-CFO!N$17)*(1+($C$2+($C$3*N62))) -> 1.408720577 | AS62: =(AR62-CFO!O$17)*(1+($C$2+($C$3*O62))) -> 1.407257144 | AT62: =(AS62-CFO!P$17)*(1+($C$2+($C$3*P62))) -> 1.379973211 | AU62: =(AT62-CFO!Q$17)*(1+($C$2+($C$3*Q62))) -> 1.357262063 | AV62: =(AU62-CFO!R$17)*(1+($C$2+($C$3*R62))) -> 1.330738241 | AW62: =(AV62-CFO!S$17)*(1+($C$2+($C$3*S62))) -> 1.314198745 | AX62: =(AW62-CFO!T$17)*(1+($C$2+($C$3*T62))) -> 1.274539283 | AY62: =(AX62-CFO!U$17)*(1+($C$2+($C$3*U62))) -> 1.263125942 | AZ62: =(AY62-CFO!V$17)*(1+($C$2+($C$3*V62))) -> 1.210840949 | BA62: =(AZ62-CFO!W$17)*(1+($C$2+($C$3*W62))) -> 1.183115198 | BB62: =(BA62-CFO!X$17)*(1+($C$2+($C$3*X62))) -> 1.157012672
D63: 40 | E63: -1.001867016 | F63: -1.238699323 | G63: -0.9949267695 | H63: 0.6869268232 | I63: 0.03097051914 | J63: 0.7911169891 | K63: 0.5409244536 | L63: -1.197613417 | M63: 0.3868087861 | N63: -0.9294768691 | O63: 1.257080306 | P63: 0.3380198071 | Q63: -0.5830778094 | R63: -0.06925401684 | S63: -1.35569868 | T63: 0.4685326045 | U63: -1.599049992 | V63: 1.294209416 | W63: 0.2999554917 | X63: -1.134520113 | Y63: 0.6018904 | Z63: -0.5935866792 | AA63: 0.6185839411 | AB63: 2.868246014 | AC63: -0.5954238023 | AD63: 0.2578089514 | AE63: 0.4134424604 | AF63: 0.6946635366 | AH63: 40 | AI63: =($C$1-CFO!$E$17)*(1+($C$2+($C$3*E63))) -> 1.047382414 | AJ63: =(AI63-CFO!F$17)*(1+($C$2+($C$3*F63))) -> 1.094106031 | AK63: =(AJ63-CFO!G$17)*(1+($C$2+($C$3*G63))) -> 1.144323721 | AL63: =(AK63-CFO!H$17)*(1+($C$2+($C$3*H63))) -> 1.211838213 | AM63: =(AL63-CFO!I$17)*(1+($C$2+($C$3*I63))) -> 1.275484476 | AN63: =(AM63-CFO!J$17)*(1+($C$2+($C$3*J63))) -> 1.349323184 | AO63: =(AN63-CFO!K$17)*(1+($C$2+($C$3*K63))) -> 1.423334052 | AP63: =(AO63-CFO!L$17)*(1+($C$2+($C$3*L63))) -> 1.393488361 | AQ63: =(AP63-CFO!M$17)*(1+($C$2+($C$3*M63))) -> 1.379225979 | AR63: =(AQ63-CFO!N$17)*(1+($C$2+($C$3*N63))) -> 1.349557141 | AS63: =(AR63-CFO!O$17)*(1+($C$2+($C$3*O63))) -> 1.341031928 | AT63: =(AS63-CFO!P$17)*(1+($C$2+($C$3*P63))) -> 1.321661893 | AU63: =(AT63-CFO!Q$17)*(1+($C$2+($C$3*Q63))) -> 1.291335901 | AV63: =(AU63-CFO!R$17)*(1+($C$2+($C$3*R63))) -> 1.264384227 | AW63: =(AV63-CFO!S$17)*(1+($C$2+($C$3*S63))) -> 1.223230582 | AX63: =(AW63-CFO!T$17)*(1+($C$2+($C$3*T63))) -> 1.197382494 | AY63: =(AX63-CFO!U$17)*(1+($C$2+($C$3*U63))) -> 1.150797378 | AZ63: =(AY63-CFO!V$17)*(1+($C$2+($C$3*V63))) -> 1.127725545 | BA63: =(AZ63-CFO!W$17)*(1+($C$2+($C$3*W63))) -> 1.094130086 | BB63: =(BA63-CFO!X$17)*(1+($C$2+($C$3*X63))) -> 1.046547008
D64: 41 | E64: -1.270338076 | F64: -0.8603689332 | G64: 0.1775058887 | H64: 1.203218721 | I64: -0.856018233 | J64: 0.7161514079 | K64: 0.5581577896 | L64: 0.2056197552 | M64: 1.03593907 | N64: -1.004976738 | O64: -0.5655585678 | P64: 0.06319166612 | Q64: -0.5003774983 | R64: 0.5828572838 | S64: -0.2337454361 | T64: 0.2179385701 | U64: -1.865577286 | V64: -1.161375829 | W64: 0.5763281943 | X64: -0.2864332601 | Y64: 0.1340963571 | Z64: -0.4312103682 | AA64: 0.1161425831 | AB64: 0.004094420633 | AC64: 0.5706033899 | AD64: -1.493882452 | AE64: -0.07016628415 | AF64: 0.8746155232 | AH64: 41 | AI64: =($C$1-CFO!$E$17)*(1+($C$2+($C$3*E64))) -> 1.045168272 | AJ64: =(AI64-CFO!F$17)*(1+($C$2+($C$3*F64))) -> 1.095119447 | AK64: =(AJ64-CFO!G$17)*(1+($C$2+($C$3*G64))) -> 1.15592659 | AL64: =(AK64-CFO!H$17)*(1+($C$2+($C$3*H64))) -> 1.228693132 | AM64: =(AL64-CFO!I$17)*(1+($C$2+($C$3*I64))) -> 1.283792028 | AN64: =(AM64-CFO!J$17)*(1+($C$2+($C$3*J64))) -> 1.357092312 | AO64: =(AN64-CFO!K$17)*(1+($C$2+($C$3*K64))) -> 1.431515154 | AP64: =(AO64-CFO!L$17)*(1+($C$2+($C$3*L64))) -> 1.417300027 | AQ64: =(AP64-CFO!M$17)*(1+($C$2+($C$3*M64))) -> 1.410779902 | AR64: =(AQ64-CFO!N$17)*(1+($C$2+($C$3*N64))) -> 1.380812821 | AS64: =(AR64-CFO!O$17)*(1+($C$2+($C$3*O64))) -> 1.353986596 | AT64: =(AS64-CFO!P$17)*(1+($C$2+($C$3*P64))) -> 1.332103763 | AU64: =(AT64-CFO!Q$17)*(1+($C$2+($C$3*Q64))) -> 1.302824721 | AV64: =(AU64-CFO!R$17)*(1+($C$2+($C$3*R64))) -> 1.282647394 | AW64: =(AV64-CFO!S$17)*(1+($C$2+($C$3*S64))) -> 1.252734623 | AX64: =(AW64-CFO!T$17)*(1+($C$2+($C$3*T64))) -> 1.225310428 | AY64: =(AX64-CFO!U$17)*(1+($C$2+($C$3*U64))) -> 1.176552213 | AZ64: =(AY64-CFO!V$17)*(1+($C$2+($C$3*V64))) -> 1.132441185 | BA64: =(AZ64-CFO!W$17)*(1+($C$2+($C$3*W64))) -> 1.101337524 | BB64: =(BA64-CFO!X$17)*(1+($C$2+($C$3*X64))) -> 1.060907003
D65: 42 | E65: -0.4528588698 | F65: -0.1357559915 | G65: 1.179371074 | H65: -0.6525599049 | I65: 0.1152202219 | J65: 0.5336185479 | K65: 0.2835960782 | L65: 0.2919339476 | M65: -0.1376471353 | N65: 0.5137494584 | O65: 1.730428673 | P65: 1.329128647 | Q65: -0.3539604962 | R65: -0.05400906087 | S65: -0.2519211822 | T65: -0.6407767252 | U65: 0.4767147334 | V65: 1.338049336 | W65: 0.8842405296 | X65: 1.075644826 | Y65: -0.6721757969 | Z65: 1.621290915 | AA65: -0.0796099906 | AB65: 0.8979718262 | AC65: -0.5030819023 | AD65: 0.5865885087 | AE65: 0.3189186557 | AF65: 1.270395217 | AH65: 42 | AI65: =($C$1-CFO!$E$17)*(1+($C$2+($C$3*E65))) -> 1.051910209 | AJ65: =(AI65-CFO!F$17)*(1+($C$2+($C$3*F65))) -> 1.108257334 | AK65: =(AJ65-CFO!G$17)*(1+($C$2+($C$3*G65))) -> 1.178538733 | AL65: =(AK65-CFO!H$17)*(1+($C$2+($C$3*H65))) -> 1.234081888 | AM65: =(AL65-CFO!I$17)*(1+($C$2+($C$3*I65))) -> 1.299121824 | AN65: =(AM65-CFO!J$17)*(1+($C$2+($C$3*J65))) -> 1.370930967 | AO65: =(AN65-CFO!K$17)*(1+($C$2+($C$3*K65))) -> 1.442660047 | AP65: =(AO65-CFO!L$17)*(1+($C$2+($C$3*L65))) -> 1.42969262 | AQ65: =(AP65-CFO!M$17)*(1+($C$2+($C$3*M65))) -> 1.41062518 | AR65: =(AQ65-CFO!N$17)*(1+($C$2+($C$3*N65))) -> 1.397166811 | AS65: =(AR65-CFO!O$17)*(1+($C$2+($C$3*O65))) -> 1.395354263 | AT65: =(AS65-CFO!P$17)*(1+($C$2+($C$3*P65))) -> 1.3880723 | AU65: =(AT65-CFO!Q$17)*(1+($C$2+($C$3*Q65))) -> 1.361474145 | AV65: =(AU65-CFO!R$17)*(1+($C$2+($C$3*R65))) -> 1.336326156 | AW65: =(AV65-CFO!S$17)*(1+($C$2+($C$3*S65))) -> 1.307415281 | AX65: =(AW65-CFO!T$17)*(1+($C$2+($C$3*T65))) -> 1.272816834 | AY65: =(AX65-CFO!U$17)*(1+($C$2+($C$3*U65))) -> 1.247228297 | AZ65: =(AY65-CFO!V$17)*(1+($C$2+($C$3*V65))) -> 1.22788542 | BA65: =(AZ65-CFO!W$17)*(1+($C$2+($C$3*W65))) -> 1.202385049 | BB65: =(BA65-CFO!X$17)*(1+($C$2+($C$3*X65))) -> 1.176563879
D66: 43 | E66: 1.644189725 | F66: -0.3390553232 | G66: -1.783522123 | H66: 1.025188202 | I66: 3.071640366 | J66: -0.9694058494 | K66: -0.1756383651 | L66: 0.5181890478 | M66: -0.8650112043 | N66: 0.2813110861 | O66: 0.1810744603 | P66: 1.397813698 | Q66: 2.182646311 | R66: -0.6500377948 | S66: -0.6187187497 | T66: -0.7062814091 | U66: 0.515990433 | V66: -1.051371361 | W66: -1.455016145 | X66: -0.2685087754 | Y66: -1.274948165 | Z66: -0.3369803172 | AA66: -0.518607035 | AB66: -0.7429956986 | AC66: -0.5978531379 | AD66: 0.05344189324 | AE66: -1.717744979 | AF66: 0.5862456241 | AH66: 43 | AI66: =($C$1-CFO!$E$17)*(1+($C$2+($C$3*E66))) -> 1.069205044 | AJ66: =(AI66-CFO!F$17)*(1+($C$2+($C$3*F66))) -> 1.124158247 | AK66: =(AJ66-CFO!G$17)*(1+($C$2+($C$3*G66))) -> 1.167563106 | AL66: =(AK66-CFO!H$17)*(1+($C$2+($C$3*H66))) -> 1.239011331 | AM66: =(AL66-CFO!I$17)*(1+($C$2+($C$3*I66))) -> 1.334269578 | AN66: =(AM66-CFO!J$17)*(1+($C$2+($C$3*J66))) -> 1.39061853 | AO66: =(AN66-CFO!K$17)*(1+($C$2+($C$3*K66))) -> 1.45762796 | AP66: =(AO66-CFO!L$17)*(1+($C$2+($C$3*L66))) -> 1.447603212 | AQ66: =(AP66-CFO!M$17)*(1+($C$2+($C$3*M66))) -> 1.420817131 | AR66: =(AQ66-CFO!N$17)*(1+($C$2+($C$3*N66))) -> 1.4050993 | AS66: =(AR66-CFO!O$17)*(1+($C$2+($C$3*O66))) -> 1.386824081 | AT66: =(AS66-CFO!P$17)*(1+($C$2+($C$3*P66))) -> 1.379979192 | AU66: =(AT66-CFO!Q$17)*(1+($C$2+($C$3*Q66))) -> 1.380100966 | AV66: =(AU66-CFO!R$17)*(1+($C$2+($C$3*R66))) -> 1.34907796 | AW66: =(AV66-CFO!S$17)*(1+($C$2+($C$3*S66))) -> 1.316656085 | AX66: =(AW66-CFO!T$17)*(1+($C$2+($C$3*T66))) -> 1.281572555 | AY66: =(AX66-CFO!U$17)*(1+($C$2+($C$3*U66))) -> 1.25661158 | AZ66: =(AY66-CFO!V$17)*(1+($C$2+($C$3*V66))) -> 1.214730743 | BA66: =(AZ66-CFO!W$17)*(1+($C$2+($C$3*W66))) -> 1.167244422 | BB66: =(BA66-CFO!X$17)*(1+($C$2+($C$3*X66))) -> 1.128402991
D67: 44 | E67: -2.618248992 | F67: -0.3871310318 | G67: -1.167492243 | H67: 1.825642441 | I67: 1.165086968 | J67: -1.193507708 | K67: 0.7856385036 | L67: -1.237393024 | M67: 0.01344260275 | N67: -0.2021942193 | O67: -1.238059743 | P67: -2.631104835 | Q67: -0.3242443621 | R67: -1.706856854 | S67: 0.996841363 | T67: 1.813759247 | U67: 0.4826909811 | V67: 0.9654255237 | W67: -0.5618779302 | X67: -0.136453457 | Y67: 0.7894994236 | Z67: 0.4418193526 | AA67: -0.03078768427 | AB67: -0.9065762955 | AC67: -1.400405841 | AD67: -2.332624717 | AE67: -0.3651775378 | AF67: -0.04398907892 | AH67: 44 | AI67: =($C$1-CFO!$E$17)*(1+($C$2+($C$3*E67))) -> 1.034051745 | AJ67: =(AI67-CFO!F$17)*(1+($C$2+($C$3*F67))) -> 1.087846795 | AK67: =(AJ67-CFO!G$17)*(1+($C$2+($C$3*G67))) -> 1.136417898 | AL67: =(AK67-CFO!H$17)*(1+($C$2+($C$3*H67))) -> 1.214350411 | AM67: =(AL67-CFO!I$17)*(1+($C$2+($C$3*I67))) -> 1.289378804 | AN67: =(AM67-CFO!J$17)*(1+($C$2+($C$3*J67))) -> 1.342625728 | AO67: =(AN67-CFO!K$17)*(1+($C$2+($C$3*K67))) -> 1.419143482 | AP67: =(AO67-CFO!L$17)*(1+($C$2+($C$3*L67))) -> 1.388801544 | AQ67: =(AP67-CFO!M$17)*(1+($C$2+($C$3*M67))) -> 1.370415199 | AR67: =(AQ67-CFO!N$17)*(1+($C$2+($C$3*N67))) -> 1.348273287 | AS67: =(AR67-CFO!O$17)*(1+($C$2+($C$3*O67))) -> 1.313843098 | AT67: =(AS67-CFO!P$17)*(1+($C$2+($C$3*P67))) -> 1.263815924 | AU67: =(AT67-CFO!Q$17)*(1+($C$2+($C$3*Q67))) -> 1.234874884 | AV67: =(AU67-CFO!R$17)*(1+($C$2+($C$3*R67))) -> 1.191154112 | AW67: =(AV67-CFO!S$17)*(1+($C$2+($C$3*S67))) -> 1.170381642 | AX67: =(AW67-CFO!T$17)*(1+($C$2+($C$3*T67))) -> 1.155036434 | AY67: =(AX67-CFO!U$17)*(1+($C$2+($C$3*U67))) -> 1.126224372 | AZ67: =(AY67-CFO!V$17)*(1+($C$2+($C$3*V67))) -> 1.099505292 | BA67: =(AZ67-CFO!W$17)*(1+($C$2+($C$3*W67))) -> 1.058009762 | BB67: =(BA67-CFO!X$17)*(1+($C$2+($C$3*X67))) -> 1.017832543
D68: 45 | E68: -0.9811520317 | F68: 1.774609907 | G68: -1.600923757 | H68: -0.9484343264 | I68: -1.27147397 | J68: 0.9625394487 | K68: 0.4180859061 | L68: -0.9052851284 | M68: -0.2978107886 | N68: -0.07569121249 | O68: 1.437236024 | P68: -0.5826825627 | Q68: 0.2915018276 | R68: -0.5549697336 | S68: -0.9023652298 | T68: -0.8513957768 | U68: 1.962405282 | V68: 0.4349812502 | W68: 0.07540411354 | X68: -0.07136498575 | Y68: 0.4685203164 | Z68: -0.6141302497 | AA68: -0.8111577378 | AB68: -0.08315017771 | AC68: 0.448960984 | AD68: 0.4257905096 | AE68: -0.2343577884 | AF68: -0.6812995745 | AH68: 45 | AI68: =($C$1-CFO!$E$17)*(1+($C$2+($C$3*E68))) -> 1.047553255 | AJ68: =(AI68-CFO!F$17)*(1+($C$2+($C$3*F68))) -> 1.120291965 | AK68: =(AJ68-CFO!G$17)*(1+($C$2+($C$3*G68))) -> 1.165342673 | AL68: =(AK68-CFO!H$17)*(1+($C$2+($C$3*H68))) -> 1.217802027 | AM68: =(AL68-CFO!I$17)*(1+($C$2+($C$3*I68))) -> 1.2685554 | AN68: =(AM68-CFO!J$17)*(1+($C$2+($C$3*J68))) -> 1.343970419 | AO68: =(AN68-CFO!K$17)*(1+($C$2+($C$3*K68))) -> 1.416474725 | AP68: =(AO68-CFO!L$17)*(1+($C$2+($C$3*L68))) -> 1.389726614 | AQ68: =(AP68-CFO!M$17)*(1+($C$2+($C$3*M68))) -> 1.368028223 | AR68: =(AQ68-CFO!N$17)*(1+($C$2+($C$3*N68))) -> 1.347165082 | AS68: =(AR68-CFO!O$17)*(1+($C$2+($C$3*O68))) -> 1.340424057 | AT68: =(AS68-CFO!P$17)*(1+($C$2+($C$3*P68))) -> 1.311560609 | AU68: =(AT68-CFO!Q$17)*(1+($C$2+($C$3*Q68))) -> 1.289832256 | AV68: =(AU68-CFO!R$17)*(1+($C$2+($C$3*R68))) -> 1.258050673 | AW68: =(AV68-CFO!S$17)*(1+($C$2+($C$3*S68))) -> 1.221169396 | AX68: =(AW68-CFO!T$17)*(1+($C$2+($C$3*T68))) -> 1.182983573 | AY68: =(AX68-CFO!U$17)*(1+($C$2+($C$3*U68))) -> 1.168251535 | AZ68: =(AY68-CFO!V$17)*(1+($C$2+($C$3*V68))) -> 1.138165009 | BA68: =(AZ68-CFO!W$17)*(1+($C$2+($C$3*W68))) -> 1.102911441 | BB68: =(BA68-CFO!X$17)*(1+($C$2+($C$3*X68))) -> 1.064304351
D69: 46 | E69: 0.6965004759 | F69: -0.08853954767 | G69: 0.03867590274 | H69: 0.1256893619 | I69: 0.06141612513 | J69: -0.4158863914 | K69: -0.3965561295 | L69: -0.3565407635 | M69: -0.07057922066 | N69: -0.9384270833 | O69: 0.7724859561 | P69: 1.269785582 | Q69: 1.260664337 | R69: -0.7285397271 | S69: -0.06466723497 | T69: -0.4170994108 | U69: 0.3787118942 | V69: 1.153162983 | W69: -1.13877184 | X69: -0.5139614517 | Y69: 1.108600176 | Z69: 0.1385579318 | AA69: -0.6745546305 | AB69: -1.264967383 | AC69: -0.07988845228 | AD69: 0.75240851 | AE69: 0.4703464973 | AF69: 0.3721594414 | AH69: 46 | AI69: =($C$1-CFO!$E$17)*(1+($C$2+($C$3*E69))) -> 1.061389236 | AJ69: =(AI69-CFO!F$17)*(1+($C$2+($C$3*F69))) -> 1.11836639 | AK69: =(AJ69-CFO!G$17)*(1+($C$2+($C$3*G69))) -> 1.17848666 | AL69: =(AK69-CFO!H$17)*(1+($C$2+($C$3*H69))) -> 1.24157027 | AM69: =(AL69-CFO!I$17)*(1+($C$2+($C$3*I69))) -> 1.306248018 | AN69: =(AM69-CFO!J$17)*(1+($C$2+($C$3*J69))) -> 1.368077124 | AO69: =(AN69-CFO!K$17)*(1+($C$2+($C$3*K69))) -> 1.432097865 | AP69: =(AO69-CFO!L$17)*(1+($C$2+($C$3*L69))) -> 1.411680434 | AQ69: =(AP69-CFO!M$17)*(1+($C$2+($C$3*M69))) -> 1.39293079 | AR69: =(AQ69-CFO!N$17)*(1+($C$2+($C$3*N69))) -> 1.363392923 | AS69: =(AR69-CFO!O$17)*(1+($C$2+($C$3*O69))) -> 1.350257645 | AT69: =(AS69-CFO!P$17)*(1+($C$2+($C$3*P69))) -> 1.340798337 | AU69: =(AT69-CFO!Q$17)*(1+($C$2+($C$3*Q69))) -> 1.329810442 | AV69: =(AU69-CFO!R$17)*(1+($C$2+($C$3*R69))) -> 1.297041965 | AW69: =(AV69-CFO!S$17)*(1+($C$2+($C$3*S69))) -> 1.26912501 | AX69: =(AW69-CFO!T$17)*(1+($C$2+($C$3*T69))) -> 1.235970774 | AY69: =(AX69-CFO!U$17)*(1+($C$2+($C$3*U69))) -> 1.208434906 | AZ69: =(AY69-CFO!V$17)*(1+($C$2+($C$3*V69))) -> 1.186047867 | BA69: =(AZ69-CFO!W$17)*(1+($C$2+($C$3*W69))) -> 1.141051484 | BB69: =(BA69-CFO!X$17)*(1+($C$2+($C$3*X69))) -> 1.099520747
D70: 47 | E70: 0.1320094023 | F70: -0.5082324063 | G70: 0.3734379574 | H70: -0.8118573903 | I70: -0.8683149179 | J70: 0.8016116117 | K70: 0.7702263328 | L70: -0.2474773934 | M70: 0.9527578258 | N70: 1.696389631 | O70: 2.100811158 | P70: 1.220123371 | Q70: -0.08928837754 | R70: 0.2752562214 | S70: 1.503724363 | T70: 1.391716602 | U70: 0.09337575328 | V70: -0.4433061369 | W70: -0.1955518432 | X70: 0.1367825792 | Y70: 0.1778481425 | Z70: -1.087838404 | AA70: 1.093405899 | AB70: -0.06652918612 | AC70: -0.05245917172 | AD70: -0.2054127326 | AE70: -0.1664665528 | AF70: -1.241679601 | AH70: 47 | AI70: =($C$1-CFO!$E$17)*(1+($C$2+($C$3*E70))) -> 1.05673375 | AJ70: =(AI70-CFO!F$17)*(1+($C$2+($C$3*F70))) -> 1.109948607 | AK70: =(AJ70-CFO!G$17)*(1+($C$2+($C$3*G70))) -> 1.172922901 | AL70: =(AK70-CFO!H$17)*(1+($C$2+($C$3*H70))) -> 1.226824051 | AM70: =(AL70-CFO!I$17)*(1+($C$2+($C$3*I70))) -> 1.281766912 | AN70: =(AM70-CFO!J$17)*(1+($C$2+($C$3*J70))) -> 1.355906638 | AO70: =(AN70-CFO!K$17)*(1+($C$2+($C$3*K70))) -> 1.432655135 | AP70: =(AO70-CFO!L$17)*(1+($C$2+($C$3*L70))) -> 1.413456167 | AQ70: =(AP70-CFO!M$17)*(1+($C$2+($C$3*M70))) -> 1.405905051 | AR70: =(AQ70-CFO!N$17)*(1+($C$2+($C$3*N70))) -> 1.405126687 | AS70: =(AR70-CFO!O$17)*(1+($C$2+($C$3*O70))) -> 1.407622713 | AT70: =(AS70-CFO!P$17)*(1+($C$2+($C$3*P70))) -> 1.399585005 | AU70: =(AT70-CFO!Q$17)*(1+($C$2+($C$3*Q70))) -> 1.376077928 | AV70: =(AU70-CFO!R$17)*(1+($C$2+($C$3*R70))) -> 1.354751584 | AW70: =(AV70-CFO!S$17)*(1+($C$2+($C$3*S70))) -> 1.34447242 | AX70: =(AW70-CFO!T$17)*(1+($C$2+($C$3*T70))) -> 1.331488487 | AY70: =(AX70-CFO!U$17)*(1+($C$2+($C$3*U70))) -> 1.303630514 | AZ70: =(AY70-CFO!V$17)*(1+($C$2+($C$3*V70))) -> 1.268529762 | BA70: =(AZ70-CFO!W$17)*(1+($C$2+($C$3*W70))) -> 1.233867687 | BB70: =(BA70-CFO!X$17)*(1+($C$2+($C$3*X70))) -> 1.200278535
D71: 48 | E71: 0.4322274049 | F71: 1.056100796 | G71: 0.5841771386 | H71: -0.6258076727 | I71: -0.4070336251 | J71: -0.9264058111 | K71: -0.102642835 | L71: -1.331580116 | M71: -0.1908692235 | N71: -1.658360276 | O71: -1.17675374 | P71: -0.4490492645 | Q71: -0.6317621946 | R71: 0.1257025157 | S71: -0.4943162886 | T71: 0.9882944775 | U71: -0.1432408504 | V71: 0.758564557 | W71: -1.430792089 | X71: -0.109748419 | Y71: 1.789819242 | Z71: 0.9885866418 | AA71: -0.6863067867 | AB71: 0.2484659804 | AC71: 0.2899369793 | AD71: -0.386569463 | AE71: =NORMSINV(RAND()) -> -1.318793431 | AF71: 0.9917099083 | AH71: 48 | AI71: =($C$1-CFO!$E$17)*(1+($C$2+($C$3*E71))) -> 1.059209716 | AJ71: =(AI71-CFO!F$17)*(1+($C$2+($C$3*F71))) -> 1.126124064 | AK71: =(AJ71-CFO!G$17)*(1+($C$2+($C$3*G71))) -> 1.191487646 | AL71: =(AK71-CFO!H$17)*(1+($C$2+($C$3*H71))) -> 1.247535995 | AM71: =(AL71-CFO!I$17)*(1+($C$2+($C$3*I71))) -> 1.307559228 | AN71: =(AM71-CFO!J$17)*(1+($C$2+($C$3*J71))) -> 1.363935815 | AO71: =(AN71-CFO!K$17)*(1+($C$2+($C$3*K71))) -> 1.431159164 | AP71: =(AO71-CFO!L$17)*(1+($C$2+($C$3*L71))) -> 1.399945698 | AQ71: =(AP71-CFO!M$17)*(1+($C$2+($C$3*M71))) -> 1.379622588 | AR71: =(AQ71-CFO!N$17)*(1+($C$2+($C$3*N71))) -> 1.342216874 | AS71: =(AR71-CFO!O$17)*(1+($C$2+($C$3*O71))) -> 1.308333762 | AT71: =(AS71-CFO!P$17)*(1+($C$2+($C$3*P71))) -> 1.280190971 | AU71: =(AT71-CFO!Q$17)*(1+($C$2+($C$3*Q71))) -> 1.248585872 | AV71: =(AU71-CFO!R$17)*(1+($C$2+($C$3*R71))) -> 1.22249203 | AW71: =(AV71-CFO!S$17)*(1+($C$2+($C$3*S71))) -> 1.188818547 | AX71: =(AW71-CFO!T$17)*(1+($C$2+($C$3*T71))) -> 1.166716904 | AY71: =(AX71-CFO!U$17)*(1+($C$2+($C$3*U71))) -> 1.132685137 | AZ71: =(AY71-CFO!V$17)*(1+($C$2+($C$3*V71))) -> 1.104396712 | BA71: =(AZ71-CFO!W$17)*(1+($C$2+($C$3*W71))) -> 1.055748736 | BB71: =(BA71-CFO!X$17)*(1+($C$2+($C$3*X71))) -> 1.015731818
D72: 49 | E72: -0.3805355508 | F72: -0.8952839149 | G72: 1.442652742 | H72: 0.3607025368 | I72: 0.761037446 | J72: -0.9667075894 | K72: 0.7143271273 | L72: -0.8133746162 | M72: -0.7989535013 | N72: -0.146291063 | O72: -1.517456819 | P72: 0.008252098822 | Q72: -1.006526908 | R72: 1.510012386 | S72: -1.196072775 | T72: 0.5827647846 | U72: 0.2904907886 | V72: 1.660393152 | W72: -2.397088857 | X72: -0.5979111303 | Y72: 0.7432906676 | Z72: 1.557371712 | AA72: 0.03013485764 | AB72: 0.0697028854 | AC72: -0.2438217841 | AD72: 0.9748085612 | AE72: 1.539597477 | AF72: -1.194834286 | AH72: 49 | AI72: =($C$1-CFO!$E$17)*(1+($C$2+($C$3*E72))) -> 1.052506675 | AJ72: =(AI72-CFO!F$17)*(1+($C$2+($C$3*F72))) -> 1.102280671 | AK72: =(AJ72-CFO!G$17)*(1+($C$2+($C$3*G72))) -> 1.174751643 | AL72: =(AK72-CFO!H$17)*(1+($C$2+($C$3*H72))) -> 1.240012171 | AM72: =(AL72-CFO!I$17)*(1+($C$2+($C$3*I72))) -> 1.311779295 | AN72: =(AM72-CFO!J$17)*(1+($C$2+($C$3*J72))) -> 1.36779195 | AO72: =(AN72-CFO!K$17)*(1+($C$2+($C$3*K72))) -> 1.444271698 | AP72: =(AO72-CFO!L$17)*(1+($C$2+($C$3*L72))) -> 1.419014843 | AQ72: =(AP72-CFO!M$17)*(1+($C$2+($C$3*M72))) -> 1.392463606 | AR72: =(AQ72-CFO!N$17)*(1+($C$2+($C$3*N72))) -> 1.371414832 | AS72: =(AR72-CFO!O$17)*(1+($C$2+($C$3*O72))) -> 1.334363257 | AT72: =(AS72-CFO!P$17)*(1+($C$2+($C$3*P72))) -> 1.311436691 | AU72: =(AT72-CFO!Q$17)*(1+($C$2+($C$3*Q72))) -> 1.276656087 | AV72: =(AU72-CFO!R$17)*(1+($C$2+($C$3*R72))) -> 1.264783206 | AW72: =(AV72-CFO!S$17)*(1+($C$2+($C$3*S72))) -> 1.225177111 | AX72: =(AW72-CFO!T$17)*(1+($C$2+($C$3*T72))) -> 1.200449509 | AY72: =(AX72-CFO!U$17)*(1+($C$2+($C$3*U72))) -> 1.171148153 | AZ72: =(AY72-CFO!V$17)*(1+($C$2+($C$3*V72))) -> 1.152028976 | BA72: =(AZ72-CFO!W$17)*(1+($C$2+($C$3*W72))) -> 1.095550596 | BB72: =(BA72-CFO!X$17)*(1+($C$2+($C$3*X72))) -> 1.052421445
D73: 50 | E73: =NORMSINV(RAND()) -> 2.487634561 | F73: 0.08722084344 | G73: 0.1622897428 | H73: -0.05640562121 | I73: -0.4831358602 | J73: 0.7013142242 | K73: 0.1675094778 | L73: 0.6418344791 | M73: 0.6465104757 | N73: 0.270002222 | O73: -1.360872021 | P73: 0.3722276465 | Q73: -0.2003459198 | R73: 0.1084594572 | S73: 0.8440041318 | T73: 1.538571315 | U73: -0.7682382401 | V73: -2.096378026 | W73: -0.009559006366 | X73: 2.048567351 | Y73: 0.7732529251 | Z73: 0.6592985591 | AA73: 0.7004327444 | AB73: 1.036877674 | AC73: 0.648953967 | AD73: 0.1749782405 | AE73: 0.6883869732 | AF73: -1.017535988 | AH73: 50 | AI73: =($C$1-CFO!$E$17)*(1+($C$2+($C$3*E73))) -> 1.076161125 | AJ73: =(AI73-CFO!F$17)*(1+($C$2+($C$3*F73))) -> 1.135039835 | AK73: =(AJ73-CFO!G$17)*(1+($C$2+($C$3*G73))) -> 1.196719675 | AL73: =(AK73-CFO!H$17)*(1+($C$2+($C$3*H73))) -> 1.258468103 | AM73: =(AL73-CFO!I$17)*(1+($C$2+($C$3*I73))) -> 1.317931566 | AN73: =(AM73-CFO!J$17)*(1+($C$2+($C$3*J73))) -> 1.392086306 | AO73: =(AN73-CFO!K$17)*(1+($C$2+($C$3*K73))) -> 1.463045969 | AP73: =(AO73-CFO!L$17)*(1+($C$2+($C$3*L73))) -> 1.454571791 | AQ73: =(AP73-CFO!M$17)*(1+($C$2+($C$3*M73))) -> 1.444881247 | AR73: =(AQ73-CFO!N$17)*(1+($C$2+($C$3*N73))) -> 1.429669064 | AS73: =(AR73-CFO!O$17)*(1+($C$2+($C$3*O73))) -> 1.395033314 | AT73: =(AS73-CFO!P$17)*(1+($C$2+($C$3*P73))) -> 1.377472401 | AU73: =(AT73-CFO!Q$17)*(1+($C$2+($C$3*Q73))) -> 1.352275293 | AV73: =(AU73-CFO!R$17)*(1+($C$2+($C$3*R73))) -> 1.328595444 | AW73: =(AV73-CFO!S$17)*(1+($C$2+($C$3*S73))) -> 1.31066289 | AX73: =(AW73-CFO!T$17)*(1+($C$2+($C$3*T73))) -> 1.29796257 | AY73: =(AX73-CFO!U$17)*(1+($C$2+($C$3*U73))) -> 1.260737214 | AZ73: =(AY73-CFO!V$17)*(1+($C$2+($C$3*V73))) -> 1.208886867 | BA73: =(AZ73-CFO!W$17)*(1+($C$2+($C$3*W73))) -> 1.174593562 | BB73: =(BA73-CFO!X$17)*(1+($C$2+($C$3*X73))) -> 1.156518419
D74: 51 | E74: -2.322218022 | F74: 0.2944318245 | G74: -0.1374938842 | H74: 1.826755043 | I74: -1.312168016 | J74: -0.06545237038 | K74: -0.2384542814 | L74: -0.5437896254 | M74: 0.4906504983 | N74: -0.1160087128 | O74: -0.2860884607 | P74: -0.5638083896 | Q74: -0.7494350337 | R74: -0.4823180639 | S74: 0.330474132 | T74: 1.824811256 | U74: 4.301874439 | V74: -0.2712119189 | W74: 0.2644904734 | X74: -1.949338231 | Y74: -1.29098373 | Z74: -0.222533311 | AA74: 0.5022944001 | AB74: -1.788914926 | AC74: -0.8494576954 | AD74: 0.557619574 | AE74: 0.1259888953 | AF74: 0.4736940203 | AH74: 51 | AI74: =($C$1-CFO!$E$17)*(1+($C$2+($C$3*E74))) -> 1.03649318 | AJ74: =(AI74-CFO!F$17)*(1+($C$2+($C$3*F74))) -> 1.096162615 | AK74: =(AJ74-CFO!G$17)*(1+($C$2+($C$3*G74))) -> 1.154152925 | AL74: =(AK74-CFO!H$17)*(1+($C$2+($C$3*H74))) -> 1.232780666 | AM74: =(AL74-CFO!I$17)*(1+($C$2+($C$3*I74))) -> 1.283328942 | AN74: =(AM74-CFO!J$17)*(1+($C$2+($C$3*J74))) -> 1.348377675 | AO74: =(AN74-CFO!K$17)*(1+($C$2+($C$3*K74))) -> 1.413737591 | AP74: =(AO74-CFO!L$17)*(1+($C$2+($C$3*L74))) -> 1.390888496 | AQ74: =(AP74-CFO!M$17)*(1+($C$2+($C$3*M74))) -> 1.377669057 | AR74: =(AQ74-CFO!N$17)*(1+($C$2+($C$3*N74))) -> 1.356603766 | AS74: =(AR74-CFO!O$17)*(1+($C$2+($C$3*O74))) -> 1.332221291 | AT74: =(AS74-CFO!P$17)*(1+($C$2+($C$3*P74))) -> 1.303392255 | AU74: =(AT74-CFO!Q$17)*(1+($C$2+($C$3*Q74))) -> 1.271051341 | AV74: =(AU74-CFO!R$17)*(1+($C$2+($C$3*R74))) -> 1.23960865 | AW74: =(AV74-CFO!S$17)*(1+($C$2+($C$3*S74))) -> 1.214081277 | AX74: =(AW74-CFO!T$17)*(1+($C$2+($C$3*T74))) -> 1.200521146 | AY74: =(AX74-CFO!U$17)*(1+($C$2+($C$3*U74))) -> 1.207843404 | AZ74: =(AY74-CFO!V$17)*(1+($C$2+($C$3*V74))) -> 1.172363038 | BA74: =(AZ74-CFO!W$17)*(1+($C$2+($C$3*W74))) -> 1.139630886 | BB74: =(BA74-CFO!X$17)*(1+($C$2+($C$3*X74))) -> 1.085708605
D75: 52 | E75: 2.354022895 | F75: 1.313532421 | G75: -0.9235260438 | H75: 0.5479011213 | I75: 0.162748302 | J75: 0.6850721096 | K75: -0.2636370391 | L75: 0.8309483122 | M75: 1.154046212 | N75: -0.9875739331 | O75: 1.479872908 | P75: -0.649705044 | Q75: 0.4229669049 | R75: 0.2050010247 | S75: -1.54589366 | T75: -0.5918190822 | U75: 0.6875825125 | V75: 2.548578096 | W75: -0.4241429494 | X75: -0.743878648 | Y75: 1.038795688 | Z75: 0.4695292836 | AA75: -0.4688174717 | AB75: -1.248579558 | AC75: -0.4312508361 | AD75: -0.9392015819 | AE75: 0.2331076825 | AF75: 0.4930409093 | AH75: 52 | AI75: =($C$1-CFO!$E$17)*(1+($C$2+($C$3*E75))) -> 1.075059199 | AJ75: =(AI75-CFO!F$17)*(1+($C$2+($C$3*F75))) -> 1.144766795 | AK75: =(AJ75-CFO!G$17)*(1+($C$2+($C$3*G75))) -> 1.196469376 | AL75: =(AK75-CFO!H$17)*(1+($C$2+($C$3*H75))) -> 1.264154731 | AM75: =(AL75-CFO!I$17)*(1+($C$2+($C$3*I75))) -> 1.330437517 | AN75: =(AM75-CFO!J$17)*(1+($C$2+($C$3*J75))) -> 1.404785258 | AO75: =(AN75-CFO!K$17)*(1+($C$2+($C$3*K75))) -> 1.471101329 | AP75: =(AO75-CFO!L$17)*(1+($C$2+($C$3*L75))) -> 1.465012365 | AQ75: =(AP75-CFO!M$17)*(1+($C$2+($C$3*M75))) -> 1.461369127 | AR75: =(AQ75-CFO!N$17)*(1+($C$2+($C$3*N75))) -> 1.432405723 | AS75: =(AR75-CFO!O$17)*(1+($C$2+($C$3*O75))) -> 1.429161175 | AT75: =(AS75-CFO!P$17)*(1+($C$2+($C$3*P75))) -> 1.401276303 | AU75: =(AT75-CFO!Q$17)*(1+($C$2+($C$3*Q75))) -> 1.38332644 | AV75: =(AU75-CFO!R$17)*(1+($C$2+($C$3*R75))) -> 1.361443963 | AW75: =(AV75-CFO!S$17)*(1+($C$2+($C$3*S75))) -> 1.319582346 | AX75: =(AW75-CFO!T$17)*(1+($C$2+($C$3*T75))) -> 1.28570758 | AY75: =(AX75-CFO!U$17)*(1+($C$2+($C$3*U75))) -> 1.262546395 | AZ75: =(AY75-CFO!V$17)*(1+($C$2+($C$3*V75))) -> 1.255375759 | BA75: =(AZ75-CFO!W$17)*(1+($C$2+($C$3*W75))) -> 1.218235725 | BB75: =(BA75-CFO!X$17)*(1+($C$2+($C$3*X75))) -> 1.176115132
D76: 53 | E76: -0.4462458508 | F76: -0.2837309524 | G76: 0.4722386972 | H76: -0.3424835687 | I76: 0.6853849714 | J76: 1.872580989 | K76: 1.156148448 | L76: -0.5629032698 | M76: 0.7769445086 | N76: 2.540227967 | O76: -1.079988082 | P76: 1.613832806 | Q76: 1.553429681 | R76: -0.2586373291 | S76: 0.2801054801 | T76: 0.6917699408 | U76: 0.6000861011 | V76: -0.5417212043 | W76: -0.02027795238 | X76: -0.4710826044 | Y76: 1.142059864 | Z76: 1.013993694 | AA76: 0.1025810377 | AB76: -1.048801223 | AC76: 0.4306629859 | AD76: 0.5588002031 | AE76: 0.4438057196 | AF76: -0.28655177 | AH76: 53 | AI76: =($C$1-CFO!$E$17)*(1+($C$2+($C$3*E76))) -> 1.051964748 | AJ76: =(AI76-CFO!F$17)*(1+($C$2+($C$3*F76))) -> 1.107030492 | AK76: =(AJ76-CFO!G$17)*(1+($C$2+($C$3*G76))) -> 1.17082645 | AL76: =(AK76-CFO!H$17)*(1+($C$2+($C$3*H76))) -> 1.229210488 | AM76: =(AL76-CFO!I$17)*(1+($C$2+($C$3*I76))) -> 1.29988842 | AN76: =(AM76-CFO!J$17)*(1+($C$2+($C$3*J76))) -> 1.386008729 | AO76: =(AN76-CFO!K$17)*(1+($C$2+($C$3*K76))) -> 1.468051738 | AP76: =(AO76-CFO!L$17)*(1+($C$2+($C$3*L76))) -> 1.446053013 | AQ76: =(AP76-CFO!M$17)*(1+($C$2+($C$3*M76))) -> 1.437570027 | AR76: =(AQ76-CFO!N$17)*(1+($C$2+($C$3*N76))) -> 1.447337232 | AS76: =(AR76-CFO!O$17)*(1+($C$2+($C$3*O76))) -> 1.416067031 | AT76: =(AS76-CFO!P$17)*(1+($C$2+($C$3*P76))) -> 1.412605282 | AU76: =(AT76-CFO!Q$17)*(1+($C$2+($C$3*Q76))) -> 1.407245047 | AV76: =(AU76-CFO!R$17)*(1+($C$2+($C$3*R76))) -> 1.380963624 | AW76: =(AV76-CFO!S$17)*(1+($C$2+($C$3*S76))) -> 1.358669007 | AX76: =(AW76-CFO!T$17)*(1+($C$2+($C$3*T76))) -> 1.338901649 | AY76: =(AX76-CFO!U$17)*(1+($C$2+($C$3*U76))) -> 1.316414067 | AZ76: =(AY76-CFO!V$17)*(1+($C$2+($C$3*V76))) -> 1.280585999 | BA76: =(AZ76-CFO!W$17)*(1+($C$2+($C$3*W76))) -> 1.247903472 | BB76: =(BA76-CFO!X$17)*(1+($C$2+($C$3*X76))) -> 1.208904308
D77: 54 | E77: 0.9354741999 | F77: -3.101917655 | G77: -0.1067005028 | H77: -0.2181526855 | I77: 0.5478582203 | J77: 1.450260724 | K77: 0.1093916484 | L77: 1.24349695 | M77: -1.038891929 | N77: -1.092872889 | O77: -0.5399802875 | P77: 1.307547507 | Q77: 0.4825541125 | R77: -1.356480261 | S77: -1.043393816 | T77: 0.728731784 | U77: -0.9166329252 | V77: 1.742884087 | W77: -1.617027064 | X77: 1.075968524 | Y77: -0.2746340247 | Z77: 0.2075587733 | AA77: 0.03788951431 | AB77: -0.1178507043 | AC77: 0.1634477555 | AD77: -0.4661827004 | AE77: 0.2217547124 | AF77: 1.701642163 | AH77: 54 | AI77: =($C$1-CFO!$E$17)*(1+($C$2+($C$3*E77))) -> 1.063360106 | AJ77: =(AI77-CFO!F$17)*(1+($C$2+($C$3*F77))) -> 1.093988829 | AK77: =(AJ77-CFO!G$17)*(1+($C$2+($C$3*G77))) -> 1.152206781 | AL77: =(AK77-CFO!H$17)*(1+($C$2+($C$3*H77))) -> 1.211373621 | AM77: =(AL77-CFO!I$17)*(1+($C$2+($C$3*I77))) -> 1.280156094 | AN77: =(AM77-CFO!J$17)*(1+($C$2+($C$3*J77))) -> 1.361066861 | AO77: =(AN77-CFO!K$17)*(1+($C$2+($C$3*K77))) -> 1.43059149 | AP77: =(AO77-CFO!L$17)*(1+($C$2+($C$3*L77))) -> 1.427818633 | AQ77: =(AP77-CFO!M$17)*(1+($C$2+($C$3*M77))) -> 1.398778923 | AR77: =(AQ77-CFO!N$17)*(1+($C$2+($C$3*N77))) -> 1.367673051 | AS77: =(AR77-CFO!O$17)*(1+($C$2+($C$3*O77))) -> 1.340860002 | AT77: =(AS77-CFO!P$17)*(1+($C$2+($C$3*P77))) -> 1.331468518 | AU77: =(AT77-CFO!Q$17)*(1+($C$2+($C$3*Q77))) -> 1.312215632 | AV77: =(AU77-CFO!R$17)*(1+($C$2+($C$3*R77))) -> 1.272816382 | AW77: =(AV77-CFO!S$17)*(1+($C$2+($C$3*S77))) -> 1.234811211 | AX77: =(AW77-CFO!T$17)*(1+($C$2+($C$3*T77))) -> 1.211733741 | AY77: =(AX77-CFO!U$17)*(1+($C$2+($C$3*U77))) -> 1.171600774 | AZ77: =(AY77-CFO!V$17)*(1+($C$2+($C$3*V77))) -> 1.153231701 | BA77: =(AZ77-CFO!W$17)*(1+($C$2+($C$3*W77))) -> 1.103570587 | BB77: =(BA77-CFO!X$17)*(1+($C$2+($C$3*X77))) -> 1.07453025
D78: 55 | E78: -1.253923698 | F78: 0.9602245049 | G78: 0.01759722687 | H78: -1.29688768 | I78: 0.9118401016 | J78: -0.119430001 | K78: 1.066411806 | L78: -0.2690907625 | M78: 0.4711187988 | N78: 0.5893101768 | O78: -0.1544751413 | P78: 1.545999131 | Q78: 0.5024764013 | R78: -0.5262341627 | S78: -0.8437952962 | T78: -0.2467892947 | U78: 1.910080245 | V78: -0.6186120359 | W78: 0.3372138421 | X78: 0.6861006465 | Y78: -1.620827762 | Z78: 0.9134672677 | AA78: 0.5555027866 | AB78: -0.07268003465 | AC78: 1.792723271 | AD78: -1.303388927 | AE78: -0.5237162033 | AF78: 0.3830808033 | AH78: 55 | AI78: =($C$1-CFO!$E$17)*(1+($C$2+($C$3*E78))) -> 1.045303645 | AJ78: =(AI78-CFO!F$17)*(1+($C$2+($C$3*F78))) -> 1.110940822 | AK78: =(AJ78-CFO!G$17)*(1+($C$2+($C$3*G78))) -> 1.170687822 | AL78: =(AK78-CFO!H$17)*(1+($C$2+($C$3*H78))) -> 1.219880043 | AM78: =(AL78-CFO!I$17)*(1+($C$2+($C$3*I78))) -> 1.29255347 | AN78: =(AM78-CFO!J$17)*(1+($C$2+($C$3*J78))) -> 1.357245876 | AO78: =(AN78-CFO!K$17)*(1+($C$2+($C$3*K78))) -> 1.437333202 | AP78: =(AO78-CFO!L$17)*(1+($C$2+($C$3*L78))) -> 1.417997306 | AQ78: =(AP78-CFO!M$17)*(1+($C$2+($C$3*M78))) -> 1.405321233 | AR78: =(AQ78-CFO!N$17)*(1+($C$2+($C$3*N78))) -> 1.39253204 | AS78: =(AR78-CFO!O$17)*(1+($C$2+($C$3*O78))) -> 1.370340341 | AT78: =(AS78-CFO!P$17)*(1+($C$2+($C$3*P78))) -> 1.364476313 | AU78: =(AT78-CFO!Q$17)*(1+($C$2+($C$3*Q78))) -> 1.346351769 | AV78: =(AU78-CFO!R$17)*(1+($C$2+($C$3*R78))) -> 1.315972372 | AW78: =(AV78-CFO!S$17)*(1+($C$2+($C$3*S78))) -> 1.280652971 | AX78: =(AW78-CFO!T$17)*(1+($C$2+($C$3*T78))) -> 1.24940254 | AY78: =(AX78-CFO!U$17)*(1+($C$2+($C$3*U78))) -> 1.236809124 | AZ78: =(AY78-CFO!V$17)*(1+($C$2+($C$3*V78))) -> 1.198691963 | BA78: =(AZ78-CFO!W$17)*(1+($C$2+($C$3*W78))) -> 1.167308881 | BB78: =(BA78-CFO!X$17)*(1+($C$2+($C$3*X78))) -> 1.136902542
D79: 56 | E79: 1.830180086 | F79: 0.341369653 | G79: -1.280952738 | H79: 1.669335932 | I79: 0.2701496235 | J79: -0.5803271904 | K79: -1.897809228 | L79: -1.606245475 | M79: -1.109756686 | N79: -0.227756571 | O79: -0.2293281643 | P79: -0.7496500607 | Q79: 0.09860031198 | R79: -0.487120502 | S79: -0.3579348405 | T79: 0.4516665475 | U79: 1.272569707 | V79: 0.213438707 | W79: -0.6385627723 | X79: 0.9859527014 | Y79: -0.623753509 | Z79: -0.5937144065 | AA79: 0.4964087012 | AB79: 0.6910823827 | AC79: -0.3280037126 | AD79: 2.504256117 | AE79: 0.08226065995 | AF79: 0.3321267553 | AH79: 56 | AI79: =($C$1-CFO!$E$17)*(1+($C$2+($C$3*E79))) -> 1.070738949 | AJ79: =(AI79-CFO!F$17)*(1+($C$2+($C$3*F79))) -> 1.131724849 | AK79: =(AJ79-CFO!G$17)*(1+($C$2+($C$3*G79))) -> 1.179882775 | AL79: =(AK79-CFO!H$17)*(1+($C$2+($C$3*H79))) -> 1.25797686 | AM79: =(AL79-CFO!I$17)*(1+($C$2+($C$3*I79))) -> 1.325212942 | AN79: =(AM79-CFO!J$17)*(1+($C$2+($C$3*J79))) -> 1.38564587 | AO79: =(AN79-CFO!K$17)*(1+($C$2+($C$3*K79))) -> 1.432972908 | AP79: =(AO79-CFO!L$17)*(1+($C$2+($C$3*L79))) -> 1.39874405 | AQ79: =(AP79-CFO!M$17)*(1+($C$2+($C$3*M79))) -> 1.368483932 | AR79: =(AQ79-CFO!N$17)*(1+($C$2+($C$3*N79))) -> 1.346029504 | AS79: =(AR79-CFO!O$17)*(1+($C$2+($C$3*O79))) -> 1.32200473 | AT79: =(AS79-CFO!P$17)*(1+($C$2+($C$3*P79))) -> 1.291091014 | AU79: =(AT79-CFO!Q$17)*(1+($C$2+($C$3*Q79))) -> 1.266915829 | AV79: =(AU79-CFO!R$17)*(1+($C$2+($C$3*R79))) -> 1.235343317 | AW79: =(AV79-CFO!S$17)*(1+($C$2+($C$3*S79))) -> 1.203213038 | AX79: =(AW79-CFO!T$17)*(1+($C$2+($C$3*T79))) -> 1.176655001 | AY79: =(AX79-CFO!U$17)*(1+($C$2+($C$3*U79))) -> 1.155505613 | AZ79: =(AY79-CFO!V$17)*(1+($C$2+($C$3*V79))) -> 1.123128156 | BA79: =(AZ79-CFO!W$17)*(1+($C$2+($C$3*W79))) -> 1.081442248 | BB79: =(BA79-CFO!X$17)*(1+($C$2+($C$3*X79))) -> 1.050946929
D80: 57 | E80: -0.3980228726 | F80: 0.4157510484 | G80: -0.5137007261 | H80: -1.871545699 | I80: -1.915093051 | J80: -1.1108348 | K80: 1.465974779 | L80: -0.02086002956 | M80: 0.6116855031 | N80: 0.8156362816 | O80: 0.1686438061 | P80: 0.002132483502 | Q80: -0.4664015415 | R80: -0.009117085446 | S80: 1.282790286 | T80: 0.5069133369 | U80: -0.8601730716 | V80: -2.585844634 | W80: -1.899782929 | X80: 0.5636186664 | Y80: 0.42244576 | Z80: -0.3450187294 | AA80: 0.02214264682 | AB80: -0.3113441718 | AC80: -0.4788757361 | AD80: -1.113505148 | AE80: -0.1751627052 | AF80: -0.819301913 | AH80: 57 | AI80: =($C$1-CFO!$E$17)*(1+($C$2+($C$3*E80))) -> 1.052362453 | AJ80: =(AI80-CFO!F$17)*(1+($C$2+($C$3*F80))) -> 1.113502098 | AK80: =(AJ80-CFO!G$17)*(1+($C$2+($C$3*G80))) -> 1.168441461 | AL80: =(AK80-CFO!H$17)*(1+($C$2+($C$3*H80))) -> 1.212080674 | AM80: =(AL80-CFO!I$17)*(1+($C$2+($C$3*I80))) -> 1.256341748 | AN80: =(AM80-CFO!J$17)*(1+($C$2+($C$3*J80))) -> 1.309964713 | AO80: =(AN80-CFO!K$17)*(1+($C$2+($C$3*K80))) -> 1.392812474 | AP80: =(AO80-CFO!L$17)*(1+($C$2+($C$3*L80))) -> 1.37517123 | AQ80: =(AP80-CFO!M$17)*(1+($C$2+($C$3*M80))) -> 1.362795394 | AR80: =(AQ80-CFO!N$17)*(1+($C$2+($C$3*N80))) -> 1.351159049 | AS80: =(AR80-CFO!O$17)*(1+($C$2+($C$3*O80))) -> 1.331382001 | AT80: =(AS80-CFO!P$17)*(1+($C$2+($C$3*P80))) -> 1.308321139 | AU80: =(AT80-CFO!Q$17)*(1+($C$2+($C$3*Q80))) -> 1.278907228 | AV80: =(AU80-CFO!R$17)*(1+($C$2+($C$3*R80))) -> 1.252252527 | AW80: =(AV80-CFO!S$17)*(1+($C$2+($C$3*S80))) -> 1.236167829 | AX80: =(AW80-CFO!T$17)*(1+($C$2+($C$3*T80))) -> 1.211040426 | AY80: =(AX80-CFO!U$17)*(1+($C$2+($C$3*U80))) -> 1.171416102 | AZ80: =(AY80-CFO!V$17)*(1+($C$2+($C$3*V80))) -> 1.114570109 | BA80: =(AZ80-CFO!W$17)*(1+($C$2+($C$3*W80))) -> 1.062099694 | BB80: =(BA80-CFO!X$17)*(1+($C$2+($C$3*X80))) -> 1.027611861
D81: 58 | E81: -0.8020136055 | F81: 1.112191306 | G81: -0.2696808861 | H81: -1.49311865 | I81: 0.3951112551 | J81: 0.5980470748 | K81: -0.2332465836 | L81: 0.5896370938 | M81: 0.8051752731 | N81: -1.204970879 | O81: 0.3795490451 | P81: 0.0135387641 | Q81: -0.05634096447 | R81: 0.2228489761 | S81: -0.06538466794 | T81: 0.2399707612 | U81: 1.221493855 | V81: -0.220769354 | W81: 1.205461453 | X81: 0.3890435402 | Y81: -1.014078354 | Z81: 1.621481536 | AA81: 0.5697394475 | AB81: 1.040660448 | AC81: -1.090226791 | AD81: -0.05697898201 | AE81: -0.3240728748 | AF81: 1.79115601 | AH81: 58 | AI81: =($C$1-CFO!$E$17)*(1+($C$2+($C$3*E81))) -> 1.04903065 | AJ81: =(AI81-CFO!F$17)*(1+($C$2+($C$3*F81))) -> 1.11609957 | AK81: =(AJ81-CFO!G$17)*(1+($C$2+($C$3*G81))) -> 1.173332166 | AL81: =(AK81-CFO!H$17)*(1+($C$2+($C$3*H81))) -> 1.22066698 | AM81: =(AL81-CFO!I$17)*(1+($C$2+($C$3*I81))) -> 1.288180723 | AN81: =(AM81-CFO!J$17)*(1+($C$2+($C$3*J81))) -> 1.360362123 | AO81: =(AN81-CFO!K$17)*(1+($C$2+($C$3*K81))) -> 1.426044929 | AP81: =(AO81-CFO!L$17)*(1+($C$2+($C$3*L81))) -> 1.415917985 | AQ81: =(AP81-CFO!M$17)*(1+($C$2+($C$3*M81))) -> 1.406832794 | AR81: =(AQ81-CFO!N$17)*(1+($C$2+($C$3*N81))) -> 1.374634502 | AS81: =(AR81-CFO!O$17)*(1+($C$2+($C$3*O81))) -> 1.357682974 | AT81: =(AS81-CFO!P$17)*(1+($C$2+($C$3*P81))) -> 1.335372768 | AU81: =(AT81-CFO!Q$17)*(1+($C$2+($C$3*Q81))) -> 1.310707991 | AV81: =(AU81-CFO!R$17)*(1+($C$2+($C$3*R81))) -> 1.28714274 | AW81: =(AV81-CFO!S$17)*(1+($C$2+($C$3*S81))) -> 1.258986266 | AX81: =(AW81-CFO!T$17)*(1+($C$2+($C$3*T81))) -> 1.231934662 | AY81: =(AX81-CFO!U$17)*(1+($C$2+($C$3*U81))) -> 1.212195633 | AZ81: =(AY81-CFO!V$17)*(1+($C$2+($C$3*V81))) -> 1.177275023 | BA81: =(AZ81-CFO!W$17)*(1+($C$2+($C$3*W81))) -> 1.153068662 | BB81: =(BA81-CFO!X$17)*(1+($C$2+($C$3*X81))) -> 1.119651828
D82: 59 | E82: -0.8562562189 | F82: -0.6152056486 | G82: -0.2729380944 | H82: 0.6904000549 | I82: 1.436710474 | J82: 1.608842593 | K82: -1.325217143 | L82: 0.604489047 | M82: 0.4968759974 | N82: 0.7988934411 | O82: 0.5429066524 | P82: 0.4582564835 | Q82: 0.05060395133 | R82: -0.1020932373 | S82: -0.0006253012935 | T82: -0.4507247083 | U82: -0.2365395768 | V82: -0.8612591367 | W82: 1.040506419 | X82: 0.2586795684 | Y82: 0.3829638389 | Z82: -1.127139965 | AA82: 0.7018917604 | AB82: -0.5713845259 | AC82: -0.2222480336 | AD82: 0.3667181657 | AE82: 1.054022058 | AF82: 0.03007596935 | AH82: 59 | AI82: =($C$1-CFO!$E$17)*(1+($C$2+($C$3*E82))) -> 1.048583299 | AJ82: =(AI82-CFO!F$17)*(1+($C$2+($C$3*F82))) -> 1.100711345 | AK82: =(AJ82-CFO!G$17)*(1+($C$2+($C$3*G82))) -> 1.157578303 | AL82: =(AK82-CFO!H$17)*(1+($C$2+($C$3*H82))) -> 1.22551682 | AM82: =(AL82-CFO!I$17)*(1+($C$2+($C$3*I82))) -> 1.303653007 | AN82: =(AM82-CFO!J$17)*(1+($C$2+($C$3*J82))) -> 1.387097486 | AO82: =(AN82-CFO!K$17)*(1+($C$2+($C$3*K82))) -> 1.440950672 | AP82: =(AO82-CFO!L$17)*(1+($C$2+($C$3*L82))) -> 1.431417085 | AQ82: =(AP82-CFO!M$17)*(1+($C$2+($C$3*M82))) -> 1.419398183 | AR82: =(AQ82-CFO!N$17)*(1+($C$2+($C$3*N82))) -> 1.409306445 | AS82: =(AR82-CFO!O$17)*(1+($C$2+($C$3*O82))) -> 1.395065226 | AT82: =(AS82-CFO!P$17)*(1+($C$2+($C$3*P82))) -> 1.378428312 | AU82: =(AT82-CFO!Q$17)*(1+($C$2+($C$3*Q82))) -> 1.355909886 | AV82: =(AU82-CFO!R$17)*(1+($C$2+($C$3*R82))) -> 1.330130686 | AW82: =(AV82-CFO!S$17)*(1+($C$2+($C$3*S82))) -> 1.303642995 | AX82: =(AW82-CFO!T$17)*(1+($C$2+($C$3*T82))) -> 1.270866977 | AY82: =(AX82-CFO!U$17)*(1+($C$2+($C$3*U82))) -> 1.238311193 | AZ82: =(AY82-CFO!V$17)*(1+($C$2+($C$3*V82))) -> 1.19793636 | BA82: =(AZ82-CFO!W$17)*(1+($C$2+($C$3*W82))) -> 1.172925748 | BB82: =(BA82-CFO!X$17)*(1+($C$2+($C$3*X82))) -> 1.138889703
D83: 60 | E83: -0.3419919762 | F83: 0.5991740113 | G83: 0.4064051744 | H83: 1.693500674 | I83: -1.344207359 | J83: -0.3922375149 | K83: 1.543746494 | L83: -0.5376550273 | M83: 1.432385562 | N83: 0.3044280771 | O83: -0.796985468 | P83: -1.333320427 | Q83: -0.7248296967 | R83: -0.04245249941 | S83: -1.498317867 | T83: 1.04490727 | U83: 1.440924518 | V83: 0.03708265799 | W83: 0.02955149917 | X83: -1.482807956 | Y83: 0.5846992447 | Z83: 0.6166715624 | AA83: -0.9205851032 | AB83: -0.08110874932 | AC83: 0.7330816181 | AD83: 0.1413356339 | AE83: -0.4390388196 | AF83: -1.444916271 | AH83: 60 | AI83: =($C$1-CFO!$E$17)*(1+($C$2+($C$3*E83))) -> 1.052824553 | AJ83: =(AI83-CFO!F$17)*(1+($C$2+($C$3*F83))) -> 1.115567977 | AK83: =(AJ83-CFO!G$17)*(1+($C$2+($C$3*G83))) -> 1.178996621 | AL83: =(AK83-CFO!H$17)*(1+($C$2+($C$3*H83))) -> 1.257291865 | AM83: =(AL83-CFO!I$17)*(1+($C$2+($C$3*I83))) -> 1.307840271 | AN83: =(AM83-CFO!J$17)*(1+($C$2+($C$3*J83))) -> 1.36995618 | AO83: =(AN83-CFO!K$17)*(1+($C$2+($C$3*K83))) -> 1.455821308 | AP83: =(AO83-CFO!L$17)*(1+($C$2+($C$3*L83))) -> 1.433868155 | AQ83: =(AP83-CFO!M$17)*(1+($C$2+($C$3*M83))) -> 1.432269962 | AR83: =(AQ83-CFO!N$17)*(1+($C$2+($C$3*N83))) -> 1.417108097 | AS83: =(AR83-CFO!O$17)*(1+($C$2+($C$3*O83))) -> 1.388462641 | AT83: =(AS83-CFO!P$17)*(1+($C$2+($C$3*P83))) -> 1.352513078 | AU83: =(AT83-CFO!Q$17)*(1+($C$2+($C$3*Q83))) -> 1.321312002 | AV83: =(AU83-CFO!R$17)*(1+($C$2+($C$3*R83))) -> 1.295334463 | AW83: =(AV83-CFO!S$17)*(1+($C$2+($C$3*S83))) -> 1.253175108 | AX83: =(AW83-CFO!T$17)*(1+($C$2+($C$3*T83))) -> 1.233668066 | AY83: =(AX83-CFO!U$17)*(1+($C$2+($C$3*U83))) -> 1.216049047 | AZ83: =(AY83-CFO!V$17)*(1+($C$2+($C$3*V83))) -> 1.183597743 | BA83: =(AZ83-CFO!W$17)*(1+($C$2+($C$3*W83))) -> 1.149050445 | BB83: =(BA83-CFO!X$17)*(1+($C$2+($C$3*X83))) -> 1.099260847
D84: 61 | E84: 1.054294987 | F84: 0.7905219316 | G84: -0.8847489861 | H84: 0.9232568316 | I84: 0.8672465275 | J84: 0.7960856039 | K84: -0.613338083 | L84: 0.7963558813 | M84: 1.753894014 | N84: 1.028173377 | O84: -1.169420054 | P84: -0.121589393 | Q84: 0.02500662122 | R84: 0.9730735063 | S84: -1.38708325 | T84: -0.8491434426 | U84: 0.9846257907 | V84: 0.3020729755 | W84: -1.46915914 | X84: -1.237061859 | Y84: -0.4994995856 | Z84: 1.236944007 | AA84: -0.735037547 | AB84: 1.863756093 | AC84: -2.02356957 | AD84: -0.3988300764 | AE84: -0.9568144413 | AF84: 1.818242711 | AH84: 61 | AI84: =($C$1-CFO!$E$17)*(1+($C$2+($C$3*E84))) -> 1.064340048 | AJ84: =(AI84-CFO!F$17)*(1+($C$2+($C$3*F84))) -> 1.129092569 | AK84: =(AJ84-CFO!G$17)*(1+($C$2+($C$3*G84))) -> 1.18089501 | AL84: =(AK84-CFO!H$17)*(1+($C$2+($C$3*H84))) -> 1.251782838 | AM84: =(AL84-CFO!I$17)*(1+($C$2+($C$3*I84))) -> 1.324996149 | AN84: =(AM84-CFO!J$17)*(1+($C$2+($C$3*J84))) -> 1.400390517 | AO84: =(AN84-CFO!K$17)*(1+($C$2+($C$3*K84))) -> 1.462595275 | AP84: =(AO84-CFO!L$17)*(1+($C$2+($C$3*L84))) -> 1.455854605 | AQ84: =(AP84-CFO!M$17)*(1+($C$2+($C$3*M84))) -> 1.458650323 | AR84: =(AQ84-CFO!N$17)*(1+($C$2+($C$3*N84))) -> 1.452332262 | AS84: =(AR84-CFO!O$17)*(1+($C$2+($C$3*O84))) -> 1.420137405 | AT84: =(AS84-CFO!P$17)*(1+($C$2+($C$3*P84))) -> 1.397855767 | AU84: =(AT84-CFO!Q$17)*(1+($C$2+($C$3*Q84))) -> 1.37553644 | AV84: =(AU84-CFO!R$17)*(1+($C$2+($C$3*R84))) -> 1.361562733 | AW84: =(AV84-CFO!S$17)*(1+($C$2+($C$3*S84))) -> 1.321359877 | AX84: =(AW84-CFO!T$17)*(1+($C$2+($C$3*T84))) -> 1.284918974 | AY84: =(AX84-CFO!U$17)*(1+($C$2+($C$3*U84))) -> 1.264646924 | AZ84: =(AY84-CFO!V$17)*(1+($C$2+($C$3*V84))) -> 1.235929029 | BA84: =(AZ84-CFO!W$17)*(1+($C$2+($C$3*W84))) -> 1.188571863 | BB84: =(BA84-CFO!X$17)*(1+($C$2+($C$3*X84))) -> 1.141474851
D85: 62 | E85: 0.1686056569 | F85: -0.7323465529 | G85: -0.6731745595 | H85: 1.194554752 | I85: -0.9611053855 | J85: -2.315350642 | K85: 2.08322521 | L85: -0.7942389121 | M85: -1.675314876 | N85: -1.093373699 | O85: -0.5771153634 | P85: -0.3984097577 | Q85: 0.5659229207 | R85: -0.4861295112 | S85: 1.308183095 | T85: -0.0500766157 | U85: -1.403307506 | V85: 0.2485646241 | W85: -1.642772497 | X85: 2.793801094 | Y85: -0.4376907762 | Z85: -1.358318823 | AA85: 0.1958980579 | AB85: 0.358376289 | AC85: 2.120669444 | AD85: 0.9513216028 | AE85: 0.03046719134 | AF85: 0.480597634 | AH85: 62 | AI85: =($C$1-CFO!$E$17)*(1+($C$2+($C$3*E85))) -> 1.057035568 | AJ85: =(AI85-CFO!F$17)*(1+($C$2+($C$3*F85))) -> 1.108304753 | AK85: =(AJ85-CFO!G$17)*(1+($C$2+($C$3*G85))) -> 1.161685754 | AL85: =(AK85-CFO!H$17)*(1+($C$2+($C$3*H85))) -> 1.23456316 | AM85: =(AL85-CFO!I$17)*(1+($C$2+($C$3*I85))) -> 1.288696723 | AN85: =(AM85-CFO!J$17)*(1+($C$2+($C$3*J85))) -> 1.330061851 | AO85: =(AN85-CFO!K$17)*(1+($C$2+($C$3*K85))) -> 1.420367342 | AP85: =(AO85-CFO!L$17)*(1+($C$2+($C$3*L85))) -> 1.394902164 | AQ85: =(AP85-CFO!M$17)*(1+($C$2+($C$3*M85))) -> 1.358501908 | AR85: =(AQ85-CFO!N$17)*(1+($C$2+($C$3*N85))) -> 1.326776294 | AS85: =(AR85-CFO!O$17)*(1+($C$2+($C$3*O85))) -> 1.298779884 | AT85: =(AS85-CFO!P$17)*(1+($C$2+($C$3*P85))) -> 1.270946505 | AU85: =(AT85-CFO!Q$17)*(1+($C$2+($C$3*Q85))) -> 1.250818545 | AV85: =(AU85-CFO!R$17)*(1+($C$2+($C$3*R85))) -> 1.218931903 | AW85: =(AV85-CFO!S$17)*(1+($C$2+($C$3*S85))) -> 1.201941594 | AX85: =(AW85-CFO!T$17)*(1+($C$2+($C$3*T85))) -> 1.170757436 | AY85: =(AX85-CFO!U$17)*(1+($C$2+($C$3*U85))) -> 1.12561433 | AZ85: =(AY85-CFO!V$17)*(1+($C$2+($C$3*V85))) -> 1.09276774 | BA85: =(AZ85-CFO!W$17)*(1+($C$2+($C$3*W85))) -> 1.042225311 | BB85: =(BA85-CFO!X$17)*(1+($C$2+($C$3*X85))) -> 1.02464219
D86: 63 | E86: -0.2537965501 | F86: -0.5682403118 | G86: 1.620154913 | H86: -0.6967156236 | I86: -0.5283741135 | J86: -1.616659365 | K86: -0.1586769502 | L86: 1.878871216 | M86: 0.2339340919 | N86: 0.4144079228 | O86: 0.7404208102 | P86: 1.042400544 | Q86: 1.324712759 | R86: -0.3456183662 | S86: -0.9019479614 | T86: -0.4451304838 | U86: 0.3722597768 | V86: -1.496153436 | W86: -0.2316065665 | X86: 0.1775256433 | Y86: 0.6282865287 | Z86: 1.216875022 | AA86: 0.02187365327 | AB86: -0.9063392854 | AC86: -0.1783473159 | AD86: 1.31884449 | AE86: -0.7109295928 | AF86: -0.3064669918 | AH86: 63 | AI86: =($C$1-CFO!$E$17)*(1+($C$2+($C$3*E86))) -> 1.053551921 | AJ86: =(AI86-CFO!F$17)*(1+($C$2+($C$3*F86))) -> 1.106182447 | AK86: =(AJ86-CFO!G$17)*(1+($C$2+($C$3*G86))) -> 1.180408547 | AL86: =(AK86-CFO!H$17)*(1+($C$2+($C$3*H86))) -> 1.235558257 | AM86: =(AL86-CFO!I$17)*(1+($C$2+($C$3*I86))) -> 1.294101171 | AN86: =(AM86-CFO!J$17)*(1+($C$2+($C$3*J86))) -> 1.342920031 | AO86: =(AN86-CFO!K$17)*(1+($C$2+($C$3*K86))) -> 1.409038663 | AP86: =(AO86-CFO!L$17)*(1+($C$2+($C$3*L86))) -> 1.41244388 | AQ86: =(AP86-CFO!M$17)*(1+($C$2+($C$3*M86))) -> 1.397029612 | AR86: =(AQ86-CFO!N$17)*(1+($C$2+($C$3*N86))) -> 1.382119863 | AS86: =(AR86-CFO!O$17)*(1+($C$2+($C$3*O86))) -> 1.369208735 | AT86: =(AS86-CFO!P$17)*(1+($C$2+($C$3*P86))) -> 1.358003832 | AU86: =(AT86-CFO!Q$17)*(1+($C$2+($C$3*Q86))) -> 1.348270126 | AV86: =(AU86-CFO!R$17)*(1+($C$2+($C$3*R86))) -> 1.319796048 | AW86: =(AV86-CFO!S$17)*(1+($C$2+($C$3*S86))) -> 1.28395514 | AX86: =(AW86-CFO!T$17)*(1+($C$2+($C$3*T86))) -> 1.250832463 | AY86: =(AX86-CFO!U$17)*(1+($C$2+($C$3*U86))) -> 1.223636801 | AZ86: =(AY86-CFO!V$17)*(1+($C$2+($C$3*V86))) -> 1.177103275 | BA86: =(AZ86-CFO!W$17)*(1+($C$2+($C$3*W86))) -> 1.140068279 | BB86: =(BA86-CFO!X$17)*(1+($C$2+($C$3*X86))) -> 1.104476374
D87: 64 | E87: -0.3669010725 | F87: 0.4218149154 | G87: 1.841294645 | H87: -0.8610587865 | I87: -0.5360178719 | J87: 0.6964936562 | K87: 0.3770090616 | L87: -2.043669912 | M87: -0.06752104221 | N87: -0.08719796329 | O87: -0.8509991568 | P87: 1.38599657 | Q87: 0.1330911427 | R87: -1.039344097 | S87: 1.351669162 | T87: -0.8525765533 | U87: 1.028271705 | V87: 0.7302636524 | W87: -0.2987947693 | X87: 0.2452471733 | Y87: -0.9383636728 | Z87: -1.778148902 | AA87: 0.4735706199 | AB87: -0.5747571312 | AC87: -0.06039173044 | AD87: -1.731390197 | AE87: 1.106804004 | AF87: 0.1730381665 | AH87: 64 | AI87: =($C$1-CFO!$E$17)*(1+($C$2+($C$3*E87))) -> 1.052619122 | AJ87: =(AI87-CFO!F$17)*(1+($C$2+($C$3*F87))) -> 1.113818373 | AK87: =(AJ87-CFO!G$17)*(1+($C$2+($C$3*G87))) -> 1.190354063 | AL87: =(AK87-CFO!H$17)*(1+($C$2+($C$3*H87))) -> 1.244078903 | AM87: =(AL87-CFO!I$17)*(1+($C$2+($C$3*I87))) -> 1.302712174 | AN87: =(AM87-CFO!J$17)*(1+($C$2+($C$3*J87))) -> 1.376364706 | AO87: =(AN87-CFO!K$17)*(1+($C$2+($C$3*K87))) -> 1.449291093 | AP87: =(AO87-CFO!L$17)*(1+($C$2+($C$3*L87))) -> 1.410346296 | AQ87: =(AP87-CFO!M$17)*(1+($C$2+($C$3*M87))) -> 1.391598652 | AR87: =(AQ87-CFO!N$17)*(1+($C$2+($C$3*N87))) -> 1.371163581 | AS87: =(AR87-CFO!O$17)*(1+($C$2+($C$3*O87))) -> 1.341138669 | AT87: =(AS87-CFO!P$17)*(1+($C$2+($C$3*P87))) -> 1.332564746 | AU87: =(AT87-CFO!Q$17)*(1+($C$2+($C$3*Q87))) -> 1.309770209 | AV87: =(AU87-CFO!R$17)*(1+($C$2+($C$3*R87))) -> 1.273519943 | AW87: =(AV87-CFO!S$17)*(1+($C$2+($C$3*S87))) -> 1.258834237 | AX87: =(AW87-CFO!T$17)*(1+($C$2+($C$3*T87))) -> 1.221284488 | AY87: =(AX87-CFO!U$17)*(1+($C$2+($C$3*U87))) -> 1.199389674 | AZ87: =(AY87-CFO!V$17)*(1+($C$2+($C$3*V87))) -> 1.172849109 | BA87: =(AZ87-CFO!W$17)*(1+($C$2+($C$3*W87))) -> 1.135122668 | BB87: =(BA87-CFO!X$17)*(1+($C$2+($C$3*X87))) -> 1.099985905
D88: 65 | E88: 0.1936218799 | F88: 0.3145497176 | G88: -0.05196543184 | H88: -1.383032927 | I88: 1.005734512 | J88: -0.09835627613 | K88: -0.8682690793 | L88: 0.1599036478 | M88: 0.07640476113 | N88: -0.1234889677 | O88: -0.7914922015 | P88: -0.4670348256 | Q88: 0.6175544834 | R88: 1.775454734 | S88: 0.06138950398 | T88: -0.5472423213 | U88: 0.226956354 | V88: 0.4000059027 | W88: 0.348883825 | X88: -0.8345468773 | Y88: 1.500315648 | Z88: 0.2220965716 | AA88: 0.4745852381 | AB88: 1.301398678 | AC88: 1.059149262 | AD88: 0.05055771326 | AE88: 0.03297270852 | AF88: 0.4309075667 | AH88: 65 | AI88: =($C$1-CFO!$E$17)*(1+($C$2+($C$3*E88))) -> 1.057241882 | AJ88: =(AI88-CFO!F$17)*(1+($C$2+($C$3*F88))) -> 1.117633388 | AK88: =(AJ88-CFO!G$17)*(1+($C$2+($C$3*G88))) -> 1.176902094 | AL88: =(AK88-CFO!H$17)*(1+($C$2+($C$3*H88))) -> 1.225345307 | AM88: =(AL88-CFO!I$17)*(1+($C$2+($C$3*I88))) -> 1.299135319 | AN88: =(AM88-CFO!J$17)*(1+($C$2+($C$3*J88))) -> 1.364204174 | AO88: =(AN88-CFO!K$17)*(1+($C$2+($C$3*K88))) -> 1.422864815 | AP88: =(AO88-CFO!L$17)*(1+($C$2+($C$3*L88))) -> 1.407925627 | AQ88: =(AP88-CFO!M$17)*(1+($C$2+($C$3*M88))) -> 1.390683974 | AR88: =(AQ88-CFO!N$17)*(1+($C$2+($C$3*N88))) -> 1.369838833 | AS88: =(AR88-CFO!O$17)*(1+($C$2+($C$3*O88))) -> 1.340418182 | AT88: =(AS88-CFO!P$17)*(1+($C$2+($C$3*P88))) -> 1.312745025 | AU88: =(AT88-CFO!Q$17)*(1+($C$2+($C$3*Q88))) -> 1.294329057 | AV88: =(AU88-CFO!R$17)*(1+($C$2+($C$3*R88))) -> 1.285723633 | AW88: =(AV88-CFO!S$17)*(1+($C$2+($C$3*S88))) -> 1.25877997 | AX88: =(AW88-CFO!T$17)*(1+($C$2+($C$3*T88))) -> 1.224161971 | AY88: =(AX88-CFO!U$17)*(1+($C$2+($C$3*U88))) -> 1.19489277 | AZ88: =(AY88-CFO!V$17)*(1+($C$2+($C$3*V88))) -> 1.165220942 | BA88: =(AZ88-CFO!W$17)*(1+($C$2+($C$3*W88))) -> 1.133047281 | BB88: =(BA88-CFO!X$17)*(1+($C$2+($C$3*X88))) -> 1.088612949
D89: 66 | E89: =NORMSINV(RAND()) -> 0.6252135889 | F89: -1.133832603 | G89: -0.1221807901 | H89: 0.1761567311 | I89: 0.003799853504 | J89: -0.9272618558 | K89: 0.9565447386 | L89: -2.090144275 | M89: 0.140724053 | N89: 1.529989247 | O89: 1.082513449 | P89: -0.5684784537 | Q89: 0.6493772369 | R89: 0.7461326741 | S89: 0.4661522624 | T89: -1.97649879 | U89: -0.3413564201 | V89: 0.9262626874 | W89: 0.93962536 | X89: -0.6519900882 | Y89: 0.1843897501 | Z89: 0.254149421 | AA89: 1.182660454 | AB89: -0.5892920208 | AC89: 0.9876067149 | AD89: 0.392818539 | AE89: -0.260162645 | AF89: -0.460802866 | AH89: 66 | AI89: =($C$1-CFO!$E$17)*(1+($C$2+($C$3*E89))) -> 1.060801317 | AJ89: =(AI89-CFO!F$17)*(1+($C$2+($C$3*F89))) -> 1.108630398 | AK89: =(AJ89-CFO!G$17)*(1+($C$2+($C$3*G89))) -> 1.167045973 | AL89: =(AK89-CFO!H$17)*(1+($C$2+($C$3*H89))) -> 1.230327924 | AM89: =(AL89-CFO!I$17)*(1+($C$2+($C$3*I89))) -> 1.294147819 | AN89: =(AM89-CFO!J$17)*(1+($C$2+($C$3*J89))) -> 1.350292831 | AO89: =(AN89-CFO!K$17)*(1+($C$2+($C$3*K89))) -> 1.428936555 | AP89: =(AO89-CFO!L$17)*(1+($C$2+($C$3*L89))) -> 1.389323221 | AQ89: =(AP89-CFO!M$17)*(1+($C$2+($C$3*M89))) -> 1.372312563 | AR89: =(AQ89-CFO!N$17)*(1+($C$2+($C$3*N89))) -> 1.368514034 | AS89: =(AR89-CFO!O$17)*(1+($C$2+($C$3*O89))) -> 1.358796837 | AT89: =(AS89-CFO!P$17)*(1+($C$2+($C$3*P89))) -> 1.330436989 | AU89: =(AT89-CFO!Q$17)*(1+($C$2+($C$3*Q89))) -> 1.312857782 | AV89: =(AU89-CFO!R$17)*(1+($C$2+($C$3*R89))) -> 1.29460985 | AW89: =(AV89-CFO!S$17)*(1+($C$2+($C$3*S89))) -> 1.271891212 | AX89: =(AW89-CFO!T$17)*(1+($C$2+($C$3*T89))) -> 1.223652804 | AY89: =(AX89-CFO!U$17)*(1+($C$2+($C$3*U89))) -> 1.189076906 | AZ89: =(AY89-CFO!V$17)*(1+($C$2+($C$3*V89))) -> 1.163998145 | BA89: =(AZ89-CFO!W$17)*(1+($C$2+($C$3*W89))) -> 1.137000934 | BB89: =(BA89-CFO!X$17)*(1+($C$2+($C$3*X89))) -> 1.094203664
D90: 67 | E90: 0.05640167766 | F90: -0.09196808361 | G90: -0.8999518203 | H90: 0.3199394883 | I90: 1.367630983 | J90: 0.8174388816 | K90: -0.7161583312 | L90: 1.205352706 | M90: 1.01663553 | N90: 0.2042805188 | O90: -1.178316122 | P90: -0.5308712765 | Q90: 0.5677647989 | R90: 0.2080815449 | S90: -0.4764778752 | T90: -0.1113799911 | U90: -0.6334148447 | V90: -1.872027033 | W90: -1.082087622 | X90: -1.545259197 | Y90: 0.6374523032 | Z90: 0.7227470889 | AA90: 0.07737580023 | AB90: -1.447062857 | AC90: 1.492999578 | AD90: -1.097239744 | AE90: 0.5348046902 | AF90: -0.467499776 | AH90: 67 | AI90: =($C$1-CFO!$E$17)*(1+($C$2+($C$3*E90))) -> 1.056110196 | AJ90: =(AI90-CFO!F$17)*(1+($C$2+($C$3*F90))) -> 1.112934561 | AK90: =(AJ90-CFO!G$17)*(1+($C$2+($C$3*G90))) -> 1.164324307 | AL90: =(AK90-CFO!H$17)*(1+($C$2+($C$3*H90))) -> 1.228914104 | AM90: =(AL90-CFO!I$17)*(1+($C$2+($C$3*I90))) -> 1.306473245 | AN90: =(AM90-CFO!J$17)*(1+($C$2+($C$3*J90))) -> 1.381534105 | AO90: =(AN90-CFO!K$17)*(1+($C$2+($C$3*K90))) -> 1.442213808 | AP90: =(AO90-CFO!L$17)*(1+($C$2+($C$3*L90))) -> 1.439410559 | AQ90: =(AP90-CFO!M$17)*(1+($C$2+($C$3*M90))) -> 1.433389864 | AR90: =(AQ90-CFO!N$17)*(1+($C$2+($C$3*N90))) -> 1.417150588 | AS90: =(AR90-CFO!O$17)*(1+($C$2+($C$3*O90))) -> 1.384343402 | AT90: =(AS90-CFO!P$17)*(1+($C$2+($C$3*P90))) -> 1.356880809 | AU90: =(AT90-CFO!Q$17)*(1+($C$2+($C$3*Q90))) -> 1.339223516 | AV90: =(AU90-CFO!R$17)*(1+($C$2+($C$3*R90))) -> 1.316241866 | AW90: =(AV90-CFO!S$17)*(1+($C$2+($C$3*S90))) -> 1.28462734 | AX90: =(AW90-CFO!T$17)*(1+($C$2+($C$3*T90))) -> 1.254793031 | AY90: =(AX90-CFO!U$17)*(1+($C$2+($C$3*U90))) -> 1.218086322 | AZ90: =(AY90-CFO!V$17)*(1+($C$2+($C$3*V90))) -> 1.16800525 | BA90: =(AZ90-CFO!W$17)*(1+($C$2+($C$3*W90))) -> 1.123241879 | BB90: =(BA90-CFO!X$17)*(1+($C$2+($C$3*X90))) -> 1.072609306
D91: 68 | E91: -0.07819226747 | F91: -0.316001884 | G91: 2.760730361 | H91: 0.03916328231 | I91: -0.5153472721 | J91: 1.275243741 | K91: -0.658526523 | L91: 1.57408842 | M91: -0.5632707989 | N91: 1.309072776 | O91: -0.9325697144 | P91: 0.1674232246 | Q91: -0.1229454002 | R91: -0.2296952828 | S91: 0.5364284831 | T91: 1.004036642 | U91: -0.4371959394 | V91: -0.3861331003 | W91: -1.225693436 | X91: 0.5086624847 | Y91: -0.2513464658 | Z91: 0.07006700652 | AA91: 1.296422501 | AB91: -0.2901393552 | AC91: -1.003126747 | AD91: -0.9552408829 | AE91: 1.130962174 | AF91: 1.726060681 | AH91: 68 | AI91: =($C$1-CFO!$E$17)*(1+($C$2+($C$3*E91))) -> 1.055000169 | AJ91: =(AI91-CFO!F$17)*(1+($C$2+($C$3*F91))) -> 1.109851369 | AK91: =(AJ91-CFO!G$17)*(1+($C$2+($C$3*G91))) -> 1.194633404 | AL91: =(AK91-CFO!H$17)*(1+($C$2+($C$3*H91))) -> 1.257271135 | AM91: =(AL91-CFO!I$17)*(1+($C$2+($C$3*I91))) -> 1.316377889 | AN91: =(AM91-CFO!J$17)*(1+($C$2+($C$3*J91))) -> 1.396687347 | AO91: =(AN91-CFO!K$17)*(1+($C$2+($C$3*K91))) -> 1.458303906 | AP91: =(AO91-CFO!L$17)*(1+($C$2+($C$3*L91))) -> 1.460197333 | AQ91: =(AP91-CFO!M$17)*(1+($C$2+($C$3*M91))) -> 1.437028908 | AR91: =(AQ91-CFO!N$17)*(1+($C$2+($C$3*N91))) -> 1.433127285 | AS91: =(AR91-CFO!O$17)*(1+($C$2+($C$3*O91))) -> 1.40326683 | AT91: =(AS91-CFO!P$17)*(1+($C$2+($C$3*P91))) -> 1.383716937 | AU91: =(AT91-CFO!Q$17)*(1+($C$2+($C$3*Q91))) -> 1.359482547 | AV91: =(AU91-CFO!R$17)*(1+($C$2+($C$3*R91))) -> 1.332455472 | AW91: =(AV91-CFO!S$17)*(1+($C$2+($C$3*S91))) -> 1.311503317 | AX91: =(AW91-CFO!T$17)*(1+($C$2+($C$3*T91))) -> 1.293473938 | AY91: =(AX91-CFO!U$17)*(1+($C$2+($C$3*U91))) -> 1.259436846 | AZ91: =(AY91-CFO!V$17)*(1+($C$2+($C$3*V91))) -> 1.223980539 | BA91: =(AZ91-CFO!W$17)*(1+($C$2+($C$3*W91))) -> 1.178740775 | BB91: =(BA91-CFO!X$17)*(1+($C$2+($C$3*X91))) -> 1.147087709
D92: 69 | E92: -0.0308068464 | F92: -1.648072546 | G92: 0.7983100809 | H92: 3.324715772 | I92: -0.4047864295 | J92: -0.3585564274 | K92: 1.306387488 | L92: 0.6150705179 | M92: -0.4264212316 | N92: 0.6758678202 | O92: -0.4296505883 | P92: 0.8208655415 | Q92: 1.232164988 | R92: 1.390401987 | S92: -2.154516568 | T92: -0.6312471711 | U92: -0.4298337048 | V92: 0.2617127959 | W92: 0.7549531815 | X92: -0.6083223208 | Y92: -0.06753047105 | Z92: -0.9924077884 | AA92: 0.4398721543 | AB92: 0.148883467 | AC92: -1.437011364 | AD92: -1.044706678 | AE92: =NORMSINV(RAND()) -> -2.094690721 | AF92: 0.149934281 | AH92: 69 | AI92: =($C$1-CFO!$E$17)*(1+($C$2+($C$3*E92))) -> 1.055390967 | AJ92: =(AI92-CFO!F$17)*(1+($C$2+($C$3*F92))) -> 1.098667806 | AK92: =(AJ92-CFO!G$17)*(1+($C$2+($C$3*G92))) -> 1.165181289 | AL92: =(AK92-CFO!H$17)*(1+($C$2+($C$3*H92))) -> 1.25859105 | AM92: =(AL92-CFO!I$17)*(1+($C$2+($C$3*I92))) -> 1.318866835 | AN92: =(AM92-CFO!J$17)*(1+($C$2+($C$3*J92))) -> 1.381577342 | AO92: =(AN92-CFO!K$17)*(1+($C$2+($C$3*K92))) -> 1.465175375 | AP92: =(AO92-CFO!L$17)*(1+($C$2+($C$3*L92))) -> 1.456460157 | AQ92: =(AP92-CFO!M$17)*(1+($C$2+($C$3*M92))) -> 1.43475796 | AR92: =(AQ92-CFO!N$17)*(1+($C$2+($C$3*N92))) -> 1.42377177 | AS92: =(AR92-CFO!O$17)*(1+($C$2+($C$3*O92))) -> 1.399272919 | AT92: =(AS92-CFO!P$17)*(1+($C$2+($C$3*P92))) -> 1.386655616 | AU92: =(AT92-CFO!Q$17)*(1+($C$2+($C$3*Q92))) -> 1.376927129 | AV92: =(AU92-CFO!R$17)*(1+($C$2+($C$3*R92))) -> 1.367407985 | AW92: =(AV92-CFO!S$17)*(1+($C$2+($C$3*S92))) -> 1.319235565 | AX92: =(AW92-CFO!T$17)*(1+($C$2+($C$3*T92))) -> 1.28495635 | AY92: =(AX92-CFO!U$17)*(1+($C$2+($C$3*U92))) -> 1.250816812 | AZ92: =(AY92-CFO!V$17)*(1+($C$2+($C$3*V92))) -> 1.22134925 | BA92: =(AZ92-CFO!W$17)*(1+($C$2+($C$3*W92))) -> 1.194446389 | BB92: =(BA92-CFO!X$17)*(1+($C$2+($C$3*X92))) -> 1.153123451
D93: 70 | E93: -0.1461814445 | F93: -0.7200382716 | G93: -0.06127541194 | H93: -1.627050387 | I93: 2.340441787 | J93: 2.033031389 | K93: 0.9921577811 | L93: 0.5948969977 | M93: 0.3124518137 | N93: 1.205543277 | O93: -0.09912599889 | P93: -1.120271856 | Q93: 1.199035222 | R93: -0.2055216187 | S93: -0.6551975794 | T93: 1.454631046 | U93: -0.6895835285 | V93: -0.8265717786 | W93: -1.113982643 | X93: -0.6465297377 | Y93: 0.6262430142 | Z93: -1.075116472 | AA93: 0.3291331719 | AB93: 1.378057003 | AC93: -0.6304250081 | AD93: -0.1615061982 | AE93: =NORMSINV(RAND()) -> 1.426609029 | AF93: 0.7943076779 | AH93: 70 | AI93: =($C$1-CFO!$E$17)*(1+($C$2+($C$3*E93))) -> 1.054439447 | AJ93: =(AI93-CFO!F$17)*(1+($C$2+($C$3*F93))) -> 1.105768466 | AK93: =(AJ93-CFO!G$17)*(1+($C$2+($C$3*G93))) -> 1.164672595 | AL93: =(AK93-CFO!H$17)*(1+($C$2+($C$3*H93))) -> 1.210619985 | AM93: =(AL93-CFO!I$17)*(1+($C$2+($C$3*I93))) -> 1.297221874 | AN93: =(AM93-CFO!J$17)*(1+($C$2+($C$3*J93))) -> 1.384947154 | AO93: =(AN93-CFO!K$17)*(1+($C$2+($C$3*K93))) -> 1.465092261 | AP93: =(AO93-CFO!L$17)*(1+($C$2+($C$3*L93))) -> 1.456146204 | AQ93: =(AP93-CFO!M$17)*(1+($C$2+($C$3*M93))) -> 1.442745433 | AR93: =(AQ93-CFO!N$17)*(1+($C$2+($C$3*N93))) -> 1.437888726 | AS93: =(AR93-CFO!O$17)*(1+($C$2+($C$3*O93))) -> 1.417342891 | AT93: =(AS93-CFO!P$17)*(1+($C$2+($C$3*P93))) -> 1.384102499 | AU93: =(AT93-CFO!Q$17)*(1+($C$2+($C$3*Q93))) -> 1.37393526 | AV93: =(AU93-CFO!R$17)*(1+($C$2+($C$3*R93))) -> 1.347483383 | AW93: =(AV93-CFO!S$17)*(1+($C$2+($C$3*S93))) -> 1.314654539 | AX93: =(AW93-CFO!T$17)*(1+($C$2+($C$3*T93))) -> 1.301255398 | AY93: =(AX93-CFO!U$17)*(1+($C$2+($C$3*U93))) -> 1.264870292 | AZ93: =(AY93-CFO!V$17)*(1+($C$2+($C$3*V93))) -> 1.225284087 | BA93: =(AZ93-CFO!W$17)*(1+($C$2+($C$3*W93))) -> 1.181102672 | BB93: =(BA93-CFO!X$17)*(1+($C$2+($C$3*X93))) -> 1.139182656
D94: 71 | E94: 0.3634170951 | F94: 0.6469815424 | G94: 0.1150875161 | H94: 0.3898441806 | I94: 1.57374419 | J94: -0.2529160309 | K94: 0.6622886757 | L94: 1.30057527 | M94: -2.05191897 | N94: -0.5880872805 | O94: 0.6237140812 | P94: -0.2895945563 | Q94: 2.170514055 | R94: 1.863833356 | S94: -0.4117449695 | T94: -0.1874195186 | U94: 0.02690779252 | V94: -0.5109143911 | W94: 1.442572634 | X94: 0.3549101771 | Y94: -1.255060074 | Z94: 0.420108812 | AA94: -1.059748077 | AB94: 0.5970672183 | AC94: 1.611276849 | AD94: 2.144110578 | AE94: 0.03436469789 | AF94: -1.47782659 | AH94: 71 | AI94: =($C$1-CFO!$E$17)*(1+($C$2+($C$3*E94))) -> 1.058642222 | AJ94: =(AI94-CFO!F$17)*(1+($C$2+($C$3*F94))) -> 1.1219701 | AK94: =(AJ94-CFO!G$17)*(1+($C$2+($C$3*G94))) -> 1.182883481 | AL94: =(AK94-CFO!H$17)*(1+($C$2+($C$3*H94))) -> 1.248646053 | AM94: =(AL94-CFO!I$17)*(1+($C$2+($C$3*I94))) -> 1.329008706 | AN94: =(AM94-CFO!J$17)*(1+($C$2+($C$3*J94))) -> 1.393085538 | AO94: =(AN94-CFO!K$17)*(1+($C$2+($C$3*K94))) -> 1.469722435 | AP94: =(AO94-CFO!L$17)*(1+($C$2+($C$3*L94))) -> 1.468926435 | AQ94: =(AP94-CFO!M$17)*(1+($C$2+($C$3*M94))) -> 1.429037608 | AR94: =(AQ94-CFO!N$17)*(1+($C$2+($C$3*N94))) -> 1.403955642 | AS94: =(AR94-CFO!O$17)*(1+($C$2+($C$3*O94))) -> 1.390436301 | AT94: =(AS94-CFO!P$17)*(1+($C$2+($C$3*P94))) -> 1.36567416 | AU94: =(AT94-CFO!Q$17)*(1+($C$2+($C$3*Q94))) -> 1.365075601 | AV94: =(AU94-CFO!R$17)*(1+($C$2+($C$3*R94))) -> 1.360098566 | AW94: =(AV94-CFO!S$17)*(1+($C$2+($C$3*S94))) -> 1.330044235 | AX94: =(AW94-CFO!T$17)*(1+($C$2+($C$3*T94))) -> 1.300485766 | AY94: =(AX94-CFO!U$17)*(1+($C$2+($C$3*U94))) -> 1.271200597 | AZ94: =(AY94-CFO!V$17)*(1+($C$2+($C$3*V94))) -> 1.234781726 | BA94: =(AZ94-CFO!W$17)*(1+($C$2+($C$3*W94))) -> 1.214735238 | BB94: =(BA94-CFO!X$17)*(1+($C$2+($C$3*X94))) -> 1.182675821
D95: 72 | E95: -0.4278524486 | F95: -1.039160871 | G95: 0.8221834589 | H95: 0.8995840131 | I95: 0.3277452531 | J95: 0.7248814209 | K95: -0.1285195959 | L95: 0.7931702858 | M95: 0.5632032511 | N95: -0.2498711666 | O95: 0.07064623704 | P95: 0.1893902945 | Q95: -0.3747426327 | R95: 0.2611862774 | S95: 1.049811218 | T95: -1.305512108 | U95: 0.09287197278 | V95: -0.2553475235 | W95: -0.9280237266 | X95: 0.5189424341 | Y95: -0.8511001128 | Z95: -0.9766576068 | AA95: 0.2117197756 | AB95: 0.8993688644 | AC95: -0.255820351 | AD95: -0.720683337 | AE95: -1.070017956 | AF95: 0.7612600755 | AH95: 72 | AI95: =($C$1-CFO!$E$17)*(1+($C$2+($C$3*E95))) -> 1.052116442 | AJ95: =(AI95-CFO!F$17)*(1+($C$2+($C$3*F95))) -> 1.100636583 | AK95: =(AJ95-CFO!G$17)*(1+($C$2+($C$3*G95))) -> 1.167426239 | AL95: =(AK95-CFO!H$17)*(1+($C$2+($C$3*H95))) -> 1.237664034 | AM95: =(AL95-CFO!I$17)*(1+($C$2+($C$3*I95))) -> 1.304954393 | AN95: =(AM95-CFO!J$17)*(1+($C$2+($C$3*J95))) -> 1.378977338 | AO95: =(AN95-CFO!K$17)*(1+($C$2+($C$3*K95))) -> 1.44625666 | AP95: =(AO95-CFO!L$17)*(1+($C$2+($C$3*L95))) -> 1.43898418 | AQ95: =(AP95-CFO!M$17)*(1+($C$2+($C$3*M95))) -> 1.427913645 | AR95: =(AQ95-CFO!N$17)*(1+($C$2+($C$3*N95))) -> 1.406533763 | AS95: =(AR95-CFO!O$17)*(1+($C$2+($C$3*O95))) -> 1.387099032 | AT95: =(AS95-CFO!P$17)*(1+($C$2+($C$3*P95))) -> 1.367373775 | AU95: =(AT95-CFO!Q$17)*(1+($C$2+($C$3*Q95))) -> 1.340119246 | AV95: =(AU95-CFO!R$17)*(1+($C$2+($C$3*R95))) -> 1.317706162 | AW95: =(AV95-CFO!S$17)*(1+($C$2+($C$3*S95))) -> 1.301514379 | AX95: =(AW95-CFO!T$17)*(1+($C$2+($C$3*T95))) -> 1.260192633 | AY95: =(AX95-CFO!U$17)*(1+($C$2+($C$3*U95))) -> 1.230565461 | AZ95: =(AY95-CFO!V$17)*(1+($C$2+($C$3*V95))) -> 1.195729621 | BA95: =(AZ95-CFO!W$17)*(1+($C$2+($C$3*W95))) -> 1.152789292 | BB95: =(BA95-CFO!X$17)*(1+($C$2+($C$3*X95))) -> 1.120497412
D96: 73 | E96: -1.065106461 | F96: -0.567802955 | G96: -0.6728759239 | H96: -0.4515684778 | I96: -0.8140747534 | J96: -0.5183736567 | K96: -1.50517434 | L96: -0.2163130092 | M96: 0.1603814804 | N96: 0.102232176 | O96: -0.1606728617 | P96: 1.798434458 | Q96: 0.02779557449 | R96: -0.9532059479 | S96: -0.1615371059 | T96: -0.02885946192 | U96: -0.8044974796 | V96: -1.307978395 | W96: 0.1687430437 | X96: 0.3544503028 | Y96: 0.02908487036 | Z96: 1.394430925 | AA96: 0.2731714192 | AB96: 0.5943854069 | AC96: -1.663737385 | AD96: 1.36752333 | AE96: -0.1483553211 | AF96: -0.1014765254 | AH96: 73 | AI96: =($C$1-CFO!$E$17)*(1+($C$2+($C$3*E96))) -> 1.046860864 | AJ96: =(AI96-CFO!F$17)*(1+($C$2+($C$3*F96))) -> 1.099364995 | AK96: =(AJ96-CFO!G$17)*(1+($C$2+($C$3*G96))) -> 1.152582289 | AL96: =(AK96-CFO!H$17)*(1+($C$2+($C$3*H96))) -> 1.209544 | AM96: =(AL96-CFO!I$17)*(1+($C$2+($C$3*I96))) -> 1.264731538 | AN96: =(AM96-CFO!J$17)*(1+($C$2+($C$3*J96))) -> 1.324637452 | AO96: =(AN96-CFO!K$17)*(1+($C$2+($C$3*K96))) -> 1.375696654 | AP96: =(AO96-CFO!L$17)*(1+($C$2+($C$3*L96))) -> 1.355574053 | AQ96: =(AP96-CFO!M$17)*(1+($C$2+($C$3*M96))) -> 1.337920632 | AR96: =(AQ96-CFO!N$17)*(1+($C$2+($C$3*N96))) -> 1.318183988 | AS96: =(AR96-CFO!O$17)*(1+($C$2+($C$3*O96))) -> 1.29423707 | AT96: =(AS96-CFO!P$17)*(1+($C$2+($C$3*P96))) -> 1.288110469 | AU96: =(AT96-CFO!Q$17)*(1+($C$2+($C$3*Q96))) -> 1.263162817 | AV96: =(AU96-CFO!R$17)*(1+($C$2+($C$3*R96))) -> 1.227013422 | AW96: =(AV96-CFO!S$17)*(1+($C$2+($C$3*S96))) -> 1.196545326 | AX96: =(AW96-CFO!T$17)*(1+($C$2+($C$3*T96))) -> 1.165427044 | AY96: =(AX96-CFO!U$17)*(1+($C$2+($C$3*U96))) -> 1.125514539 | AZ96: =(AY96-CFO!V$17)*(1+($C$2+($C$3*V96))) -> 1.079403759 | BA96: =(AZ96-CFO!W$17)*(1+($C$2+($C$3*W96))) -> 1.043464377 | BB96: =(BA96-CFO!X$17)*(1+($C$2+($C$3*X96))) -> 1.006804567
D97: 74 | E97: -0.3492803947 | F97: -1.057767258 | G97: -0.2800640427 | H97: 0.7838970296 | I97: 2.550753562 | J97: 0.5822867786 | K97: 1.461510414 | L97: -0.2540314998 | M97: -0.8704604081 | N97: 0.6080283299 | O97: -1.27704346 | P97: 0.2832569108 | Q97: -1.067890561 | R97: -1.306996521 | S97: 0.76907597 | T97: 1.091250923 | U97: 0.2768334439 | V97: 1.990302514 | W97: -0.168763214 | X97: -0.2002390787 | Y97: 1.713537897 | Z97: -0.8680724812 | AA97: 0.8838187876 | AB97: 0.5128612878 | AC97: -0.73881709 | AD97: 0.2679027574 | AE97: 0.002616458151 | AF97: 0.3891232838 | AH97: 74 | AI97: =($C$1-CFO!$E$17)*(1+($C$2+($C$3*E97))) -> 1.052764444 | AJ97: =(AI97-CFO!F$17)*(1+($C$2+($C$3*F97))) -> 1.101133353 | AK97: =(AJ97-CFO!G$17)*(1+($C$2+($C$3*G97))) -> 1.157944912 | AL97: =(AK97-CFO!H$17)*(1+($C$2+($C$3*H97))) -> 1.226784897 | AM97: =(AL97-CFO!I$17)*(1+($C$2+($C$3*I97))) -> 1.316197747 | AN97: =(AM97-CFO!J$17)*(1+($C$2+($C$3*J97))) -> 1.389015349 | AO97: =(AN97-CFO!K$17)*(1+($C$2+($C$3*K97))) -> 1.474636564 | AP97: =(AO97-CFO!L$17)*(1+($C$2+($C$3*L97))) -> 1.456287319 | AQ97: =(AP97-CFO!M$17)*(1+($C$2+($C$3*M97))) -> 1.429588285 | AR97: =(AQ97-CFO!N$17)*(1+($C$2+($C$3*N97))) -> 1.417702246 | AS97: =(AR97-CFO!O$17)*(1+($C$2+($C$3*O97))) -> 1.383824989 | AT97: =(AS97-CFO!P$17)*(1+($C$2+($C$3*P97))) -> 1.365014995 | AU97: =(AT97-CFO!Q$17)*(1+($C$2+($C$3*Q97))) -> 1.330445661 | AV97: =(AU97-CFO!R$17)*(1+($C$2+($C$3*R97))) -> 1.291790649 | AW97: =(AV97-CFO!S$17)*(1+($C$2+($C$3*S97))) -> 1.271986129 | AX97: =(AW97-CFO!T$17)*(1+($C$2+($C$3*T97))) -> 1.253537816 | AY97: =(AX97-CFO!U$17)*(1+($C$2+($C$3*U97))) -> 1.225503476 | AZ97: =(AY97-CFO!V$17)*(1+($C$2+($C$3*V97))) -> 1.211485531 | BA97: =(AZ97-CFO!W$17)*(1+($C$2+($C$3*W97))) -> 1.175790037 | BB97: =(BA97-CFO!X$17)*(1+($C$2+($C$3*X97))) -> 1.137743118
D98: 75 | E98: -1.515312086 | F98: -0.6384033704 | G98: -1.906905062 | H98: 0.6619587763 | I98: 0.3103683511 | J98: 0.4470527316 | K98: -0.5106913725 | L98: 1.267731502 | M98: 0.4345858769 | N98: -0.4362312686 | O98: -0.37492263 | P98: -0.6058115395 | Q98: -0.7044053572 | R98: -0.7149629663 | S98: -0.4106949675 | T98: 0.120744486 | U98: 0.9886887152 | V98: -1.161708121 | W98: -1.843903128 | X98: 0.6174846103 | Y98: -1.220515728 | Z98: -0.0787253206 | AA98: -1.154314723 | AB98: -1.558803202 | AC98: -0.7002635414 | AD98: -0.2310156082 | AE98: -0.5096225104 | AF98: -0.7004126991 | AH98: 75 | AI98: =($C$1-CFO!$E$17)*(1+($C$2+($C$3*E98))) -> 1.043147916 | AJ98: =(AI98-CFO!F$17)*(1+($C$2+($C$3*F98))) -> 1.094972825 | AK98: =(AJ98-CFO!G$17)*(1+($C$2+($C$3*G98))) -> 1.136981113 | AL98: =(AK98-CFO!H$17)*(1+($C$2+($C$3*H98))) -> 1.204045375 | AM98: =(AL98-CFO!I$17)*(1+($C$2+($C$3*I98))) -> 1.270268709 | AN98: =(AM98-CFO!J$17)*(1+($C$2+($C$3*J98))) -> 1.340358881 | AO98: =(AN98-CFO!K$17)*(1+($C$2+($C$3*K98))) -> 1.402546684 | AP98: =(AO98-CFO!L$17)*(1+($C$2+($C$3*L98))) -> 1.399084056 | AQ98: =(AP98-CFO!M$17)*(1+($C$2+($C$3*M98))) -> 1.385488682 | AR98: =(AQ98-CFO!N$17)*(1+($C$2+($C$3*N98))) -> 1.361186826 | AS98: =(AR98-CFO!O$17)*(1+($C$2+($C$3*O98))) -> 1.335973943 | AT98: =(AS98-CFO!P$17)*(1+($C$2+($C$3*P98))) -> 1.306787183 | AU98: =(AT98-CFO!Q$17)*(1+($C$2+($C$3*Q98))) -> 1.274958398 | AV98: =(AU98-CFO!R$17)*(1+($C$2+($C$3*R98))) -> 1.241325572 | AW98: =(AV98-CFO!S$17)*(1+($C$2+($C$3*S98))) -> 1.208821871 | AX98: =(AW98-CFO!T$17)*(1+($C$2+($C$3*T98))) -> 1.17937252 | AY98: =(AX98-CFO!U$17)*(1+($C$2+($C$3*U98))) -> 1.15577237 | AZ98: =(AY98-CFO!V$17)*(1+($C$2+($C$3*V98))) -> 1.111352781 | BA98: =(AZ98-CFO!W$17)*(1+($C$2+($C$3*W98))) -> 1.059323267 | BB98: =(BA98-CFO!X$17)*(1+($C$2+($C$3*X98))) -> 1.025185636
D99: 76 | E99: -0.9745067176 | F99: -0.4452526499 | G99: 0.3320515097 | H99: -0.317980637 | I99: 1.342103709 | J99: 2.345315004 | K99: 0.7602362256 | L99: -0.1807864687 | M99: 1.199837095 | N99: -1.961547748 | O99: -1.323561717 | P99: -0.6529413878 | Q99: -1.456634949 | R99: -0.4405208279 | S99: 0.1727195218 | T99: -0.3015220949 | U99: -1.087716643 | V99: 0.007260708137 | W99: -0.3847607308 | X99: 1.184110698 | Y99: -1.312469171 | Z99: -0.4354403294 | AA99: -1.410655784 | AB99: -0.6448911537 | AC99: 0.2488226551 | AD99: -0.8652998225 | AE99: -0.05907757563 | AF99: -0.4081436557 | AH99: 76 | AI99: =($C$1-CFO!$E$17)*(1+($C$2+($C$3*E99))) -> 1.04760806 | AJ99: =(AI99-CFO!F$17)*(1+($C$2+($C$3*F99))) -> 1.101184711 | AK99: =(AJ99-CFO!G$17)*(1+($C$2+($C$3*G99))) -> 1.163547251 | AL99: =(AK99-CFO!H$17)*(1+($C$2+($C$3*H99))) -> 1.222011044 | AM99: =(AL99-CFO!I$17)*(1+($C$2+($C$3*I99))) -> 1.299072596 | AN99: =(AM99-CFO!J$17)*(1+($C$2+($C$3*J99))) -> 1.390203067 | AO99: =(AN99-CFO!K$17)*(1+($C$2+($C$3*K99))) -> 1.467872119 | AP99: =(AO99-CFO!L$17)*(1+($C$2+($C$3*L99))) -> 1.450205294 | AQ99: =(AP99-CFO!M$17)*(1+($C$2+($C$3*M99))) -> 1.446582678 | AR99: =(AQ99-CFO!N$17)*(1+($C$2+($C$3*N99))) -> 1.406512268 | AS99: =(AR99-CFO!O$17)*(1+($C$2+($C$3*O99))) -> 1.371976953 | AT99: =(AS99-CFO!P$17)*(1+($C$2+($C$3*P99))) -> 1.342982753 | AU99: =(AT99-CFO!Q$17)*(1+($C$2+($C$3*Q99))) -> 1.304066743 | AV99: =(AU99-CFO!R$17)*(1+($C$2+($C$3*R99))) -> 1.273706384 | AW99: =(AV99-CFO!S$17)*(1+($C$2+($C$3*S99))) -> 1.24755202 | AX99: =(AW99-CFO!T$17)*(1+($C$2+($C$3*T99))) -> 1.215051736 | AY99: =(AX99-CFO!U$17)*(1+($C$2+($C$3*U99))) -> 1.173392282 | AZ99: =(AY99-CFO!V$17)*(1+($C$2+($C$3*V99))) -> 1.139639058 | BA99: =(AZ99-CFO!W$17)*(1+($C$2+($C$3*W99))) -> 1.100453656 | BB99: =(BA99-CFO!X$17)*(1+($C$2+($C$3*X99))) -> 1.072209248
D100: 77 | E100: 0.4474792467 | F100: -1.337196071 | G100: -1.143076006 | H100: -1.412294245 | I100: 1.288322158 | J100: -0.9332953718 | K100: 0.8795836473 | L100: 0.8278919262 | M100: -1.344139728 | N100: -1.952635292 | O100: -0.1971589806 | P100: 0.5184304952 | Q100: 2.949102577 | R100: 0.4422837872 | S100: 0.2835963932 | T100: -0.1572501491 | U100: 1.442433738 | V100: 1.021726774 | W100: 0.5676623446 | X100: -2.183619855 | Y100: 0.5638546042 | Z100: 1.358246355 | AA100: -0.4211515883 | AB100: 0.1768287247 | AC100: -1.473793892 | AD100: -1.011351174 | AE100: -0.2772778245 | AF100: -0.1637283471 | AH100: 77 | AI100: =($C$1-CFO!$E$17)*(1+($C$2+($C$3*E100))) -> 1.059335501 | AJ100: =(AI100-CFO!F$17)*(1+($C$2+($C$3*F100))) -> 1.105367976 | AK100: =(AJ100-CFO!G$17)*(1+($C$2+($C$3*G100))) -> 1.154418132 | AL100: =(AK100-CFO!H$17)*(1+($C$2+($C$3*H100))) -> 1.202292582 | AM100: =(AL100-CFO!I$17)*(1+($C$2+($C$3*I100))) -> 1.278137496 | AN100: =(AM100-CFO!J$17)*(1+($C$2+($C$3*J100))) -> 1.333953686 | AO100: =(AN100-CFO!K$17)*(1+($C$2+($C$3*K100))) -> 1.41123751 | AP100: =(AO100-CFO!L$17)*(1+($C$2+($C$3*L100))) -> 1.403280573 | AQ100: =(AP100-CFO!M$17)*(1+($C$2+($C$3*M100))) -> 1.370552779 | AR100: =(AQ100-CFO!N$17)*(1+($C$2+($C$3*N100))) -> 1.329944778 | AS100: =(AR100-CFO!O$17)*(1+($C$2+($C$3*O100))) -> 1.305892185 | AT100: =(AS100-CFO!P$17)*(1+($C$2+($C$3*P100))) -> 1.287390978 | AU100: =(AT100-CFO!Q$17)*(1+($C$2+($C$3*Q100))) -> 1.291231624 | AV100: =(AU100-CFO!R$17)*(1+($C$2+($C$3*R100))) -> 1.269332786 | AW100: =(AV100-CFO!S$17)*(1+($C$2+($C$3*S100))) -> 1.244142738 | AX100: =(AW100-CFO!T$17)*(1+($C$2+($C$3*T100))) -> 1.212937668 | AY100: =(AX100-CFO!U$17)*(1+($C$2+($C$3*U100))) -> 1.19459608 | AZ100: =(AY100-CFO!V$17)*(1+($C$2+($C$3*V100))) -> 1.17055678 | BA100: =(AZ100-CFO!W$17)*(1+($C$2+($C$3*W100))) -> 1.140466759 | BB100: =(BA100-CFO!X$17)*(1+($C$2+($C$3*X100))) -> 1.084532005
D101: 78 | E101: 0.3190509725 | F101: -1.330894521 | G101: 1.452498502 | H101: -0.4649985219 | I101: 1.80162884 | J101: -1.172095721 | K101: -0.6156352611 | L101: -0.008378192459 | M101: 0.007068867729 | N101: -0.9663026878 | O101: -1.116837871 | P101: 0.6982083096 | Q101: -0.2471645082 | R101: -0.8345604958 | S101: -0.7478805591 | T101: 0.5757886116 | U101: 0.0515563591 | V101: -1.539735495 | W101: 0.2642285216 | X101: -1.47446968 | Y101: -0.659943544 | Z101: 0.2508838424 | AA101: 0.2853781494 | AB101: -0.3999438134 | AC101: 1.019942565 | AD101: -0.4256801153 | AE101: 0.8259530713 | AF101: -0.3188249618 | AH101: 78 | AI101: =($C$1-CFO!$E$17)*(1+($C$2+($C$3*E101))) -> 1.058276324 | AJ101: =(AI101-CFO!F$17)*(1+($C$2+($C$3*F101))) -> 1.104349648 | AK101: =(AJ101-CFO!G$17)*(1+($C$2+($C$3*G101))) -> 1.176983672 | AL101: =(AK101-CFO!H$17)*(1+($C$2+($C$3*H101))) -> 1.234312886 | AM101: =(AL101-CFO!I$17)*(1+($C$2+($C$3*I101))) -> 1.316462319 | AN101: =(AM101-CFO!J$17)*(1+($C$2+($C$3*J101))) -> 1.370332002 | AO101: =(AN101-CFO!K$17)*(1+($C$2+($C$3*K101))) -> 1.431937022 | AP101: =(AO101-CFO!L$17)*(1+($C$2+($C$3*L101))) -> 1.415366265 | AQ101: =(AP101-CFO!M$17)*(1+($C$2+($C$3*M101))) -> 1.397550744 | AR101: =(AQ101-CFO!N$17)*(1+($C$2+($C$3*N101))) -> 1.367788932 | AS101: =(AR101-CFO!O$17)*(1+($C$2+($C$3*O101))) -> 1.334909174 | AT101: =(AS101-CFO!P$17)*(1+($C$2+($C$3*P101))) -> 1.319067319 | AU101: =(AT101-CFO!Q$17)*(1+($C$2+($C$3*Q101))) -> 1.292088577 | AV101: =(AU101-CFO!R$17)*(1+($C$2+($C$3*R101))) -> 1.257586151 | AW101: =(AV101-CFO!S$17)*(1+($C$2+($C$3*S101))) -> 1.222180812 | AX101: =(AW101-CFO!T$17)*(1+($C$2+($C$3*T101))) -> 1.197302367 | AY101: =(AX101-CFO!U$17)*(1+($C$2+($C$3*U101))) -> 1.165742978 | AZ101: =(AY101-CFO!V$17)*(1+($C$2+($C$3*V101))) -> 1.118127604 | BA101: =(AZ101-CFO!W$17)*(1+($C$2+($C$3*W101))) -> 1.083976829 | BB101: =(BA101-CFO!X$17)*(1+($C$2+($C$3*X101))) -> 1.033465504
D102: 79 | E102: 0.7929109723 | F102: -0.3471112018 | G102: -0.5491055653 | H102: 1.953798585 | I102: 0.4003774692 | J102: 0.02668958882 | K102: 1.014727799 | L102: 0.3365378319 | M102: -0.3330117758 | N102: -0.6275900119 | O102: 0.1636295858 | P102: 0.8250379415 | Q102: -0.3598516153 | R102: 0.9578666879 | S102: 0.008903437068 | T102: -0.6845426175 | U102: -1.127821289 | V102: 2.03201207 | W102: -0.5074713564 | X102: -0.6304559737 | Y102: 1.847932641 | Z102: 0.1717506425 | AA102: 1.436490705 | AB102: 0.2133305903 | AC102: -0.3151416559 | AD102: -0.75860053 | AE102: 0.2815410557 | AF102: -0.2493779956 | AH102: 79 | AI102: =($C$1-CFO!$E$17)*(1+($C$2+($C$3*E102))) -> 1.062184355 | AJ102: =(AI102-CFO!F$17)*(1+($C$2+($C$3*F102))) -> 1.116917619 | AK102: =(AJ102-CFO!G$17)*(1+($C$2+($C$3*G102))) -> 1.171599456 | AL102: =(AK102-CFO!H$17)*(1+($C$2+($C$3*H102))) -> 1.252124963 | AM102: =(AL102-CFO!I$17)*(1+($C$2+($C$3*I102))) -> 1.320547293 | AN102: =(AM102-CFO!J$17)*(1+($C$2+($C$3*J102))) -> 1.387468352 | AO102: =(AN102-CFO!K$17)*(1+($C$2+($C$3*K102))) -> 1.467950785 | AP102: =(AO102-CFO!L$17)*(1+($C$2+($C$3*L102))) -> 1.456155495 | AQ102: =(AP102-CFO!M$17)*(1+($C$2+($C$3*M102))) -> 1.435497328 | AR102: =(AQ102-CFO!N$17)*(1+($C$2+($C$3*N102))) -> 1.410102681 | AS102: =(AR102-CFO!O$17)*(1+($C$2+($C$3*O102))) -> 1.391765353 | AT102: =(AS102-CFO!P$17)*(1+($C$2+($C$3*P102))) -> 1.378963229 | AU102: =(AT102-CFO!Q$17)*(1+($C$2+($C$3*Q102))) -> 1.352109846 | AV102: =(AU102-CFO!R$17)*(1+($C$2+($C$3*R102))) -> 1.337233846 | AW102: =(AV102-CFO!S$17)*(1+($C$2+($C$3*S102))) -> 1.311014184 | AX102: =(AW102-CFO!T$17)*(1+($C$2+($C$3*T102))) -> 1.276045009 | AY102: =(AX102-CFO!U$17)*(1+($C$2+($C$3*U102))) -> 1.234928282 | AZ102: =(AY102-CFO!V$17)*(1+($C$2+($C$3*V102))) -> 1.221678467 | BA102: =(AZ102-CFO!W$17)*(1+($C$2+($C$3*W102))) -> 1.18307079 | BB102: =(BA102-CFO!X$17)*(1+($C$2+($C$3*X102))) -> 1.141331862
D103: 80 | E103: -0.3785690906 | F103: 0.03143885466 | G103: -0.7946261677 | H103: 0.03442787502 | I103: -0.02788071821 | J103: 1.222357411 | K103: -0.635289229 | L103: 1.7229542 | M103: -0.8793337803 | N103: 1.165811038 | O103: 1.070917206 | P103: -0.3336574243 | Q103: 0.89788865 | R103: -1.603861159 | S103: -0.5487836432 | T103: -0.4853552861 | U103: 1.039727499 | V103: 0.2718296697 | W103: -0.8036275543 | X103: 0.208901732 | Y103: -0.07155943338 | Z103: -1.205534602 | AA103: -0.5094108532 | AB103: -0.1835905402 | AC103: -1.467200123 | AD103: -0.4524843259 | AE103: -0.4945332726 | AF103: -1.221208026 | AH103: 80 | AI103: =($C$1-CFO!$E$17)*(1+($C$2+($C$3*E103))) -> 1.052522893 | AJ103: =(AI103-CFO!F$17)*(1+($C$2+($C$3*F103))) -> 1.110334031 | AK103: =(AJ103-CFO!G$17)*(1+($C$2+($C$3*G103))) -> 1.162642752 | AL103: =(AK103-CFO!H$17)*(1+($C$2+($C$3*H103))) -> 1.224457397 | AM103: =(AL103-CFO!I$17)*(1+($C$2+($C$3*I103))) -> 1.287817411 | AN103: =(AM103-CFO!J$17)*(1+($C$2+($C$3*J103))) -> 1.366590746 | AO103: =(AN103-CFO!K$17)*(1+($C$2+($C$3*K103))) -> 1.427904058 | AP103: =(AO103-CFO!L$17)*(1+($C$2+($C$3*L103))) -> 1.430326468 | AQ103: =(AP103-CFO!M$17)*(1+($C$2+($C$3*M103))) -> 1.403087217 | AR103: =(AQ103-CFO!N$17)*(1+($C$2+($C$3*N103))) -> 1.396466673 | AS103: =(AR103-CFO!O$17)*(1+($C$2+($C$3*O103))) -> 1.387537751 | AT103: =(AS103-CFO!P$17)*(1+($C$2+($C$3*P103))) -> 1.362242594 | AU103: =(AT103-CFO!Q$17)*(1+($C$2+($C$3*Q103))) -> 1.348191227 | AV103: =(AU103-CFO!R$17)*(1+($C$2+($C$3*R103))) -> 1.306707518 | AW103: =(AV103-CFO!S$17)*(1+($C$2+($C$3*S103))) -> 1.274177644 | AX103: =(AW103-CFO!T$17)*(1+($C$2+($C$3*T103))) -> 1.240463817 | AY103: =(AX103-CFO!U$17)*(1+($C$2+($C$3*U103))) -> 1.219295326 | AZ103: =(AY103-CFO!V$17)*(1+($C$2+($C$3*V103))) -> 1.189099036 | BA103: =(AZ103-CFO!W$17)*(1+($C$2+($C$3*W103))) -> 1.147170716 | BB103: =(BA103-CFO!X$17)*(1+($C$2+($C$3*X103))) -> 1.112031498
D104: 81 | E104: -0.4128104285 | F104: 0.2650891777 | G104: 0.5960622591 | H104: 0.512970943 | I104: -0.1780812043 | J104: 0.8997786609 | K104: 0.1462753135 | L104: 1.127146286 | M104: 0.553293506 | N104: 0.2672489399 | O104: -1.146620125 | P104: -0.0219114095 | Q104: 2.62760911 | R104: -0.1442979433 | S104: 0.06939068938 | T104: -0.3419907157 | U104: -1.090880697 | V104: 1.193760393 | W104: -0.2352529786 | X104: 0.3752326653 | Y104: -0.3103915282 | Z104: -0.1013088092 | AA104: -0.2151230316 | AB104: -0.6065973111 | AC104: 1.47129821 | AD104: -0.110194496 | AE104: 0.4068885927 | AF104: -0.406287159 | AH104: 81 | AI104: =($C$1-CFO!$E$17)*(1+($C$2+($C$3*E104))) -> 1.052240497 | AJ104: =(AI104-CFO!F$17)*(1+($C$2+($C$3*F104))) -> 1.112070557 | AK104: =(AJ104-CFO!G$17)*(1+($C$2+($C$3*G104))) -> 1.17713997 | AL104: =(AK104-CFO!H$17)*(1+($C$2+($C$3*H104))) -> 1.243938589 | AM104: =(AL104-CFO!I$17)*(1+($C$2+($C$3*I104))) -> 1.30622689 | AN104: =(AM104-CFO!J$17)*(1+($C$2+($C$3*J104))) -> 1.382163138 | AO104: =(AN104-CFO!K$17)*(1+($C$2+($C$3*K104))) -> 1.452630643 | AP104: =(AO104-CFO!L$17)*(1+($C$2+($C$3*L104))) -> 1.44930007 | AQ104: =(AP104-CFO!M$17)*(1+($C$2+($C$3*M104))) -> 1.438412714 | AR104: =(AQ104-CFO!N$17)*(1+($C$2+($C$3*N104))) -> 1.423000768 | AS104: =(AR104-CFO!O$17)*(1+($C$2+($C$3*O104))) -> 1.390626306 | AT104: =(AS104-CFO!P$17)*(1+($C$2+($C$3*P104))) -> 1.368731168 | AU104: =(AT104-CFO!Q$17)*(1+($C$2+($C$3*Q104))) -> 1.373063715 | AV104: =(AU104-CFO!R$17)*(1+($C$2+($C$3*R104))) -> 1.347237478 | AW104: =(AV104-CFO!S$17)*(1+($C$2+($C$3*S104))) -> 1.321882942 | AX104: =(AW104-CFO!T$17)*(1+($C$2+($C$3*T104))) -> 1.290578177 | AY104: =(AX104-CFO!U$17)*(1+($C$2+($C$3*U104))) -> 1.250042981 | AZ104: =(AY104-CFO!V$17)*(1+($C$2+($C$3*V104))) -> 1.229424713 | BA104: =(AZ104-CFO!W$17)*(1+($C$2+($C$3*W104))) -> 1.193514425 | BB104: =(BA104-CFO!X$17)*(1+($C$2+($C$3*X104))) -> 1.161069261
D105: 82 | E105: =NORMSINV(RAND()) -> -0.1929404036 | F105: 0.5054763921 | G105: 1.73555932 | H105: -1.201821833 | I105: -0.3733197564 | J105: 0.999992361 | K105: -2.222407909 | L105: 1.361435624 | M105: -0.1814844934 | N105: -0.3426772921 | O105: 0.879321745 | P105: 0.8529530608 | Q105: 0.3767514171 | R105: 0.5384159786 | S105: 0.4962196558 | T105: -0.003259631306 | U105: 0.3357046906 | V105: -0.8479955456 | W105: -1.371106471 | X105: -0.6409708075 | Y105: -1.468334698 | Z105: -0.6110073212 | AA105: -0.4278470468 | AB105: -1.682329957 | AC105: 0.08207714062 | AD105: -0.7619572469 | AE105: 0.3173010715 | AF105: 0.74867529 | AH105: 82 | AI105: =($C$1-CFO!$E$17)*(1+($C$2+($C$3*E105))) -> 1.054053815 | AJ105: =(AI105-CFO!F$17)*(1+($C$2+($C$3*F105))) -> 1.116018907 | AK105: =(AJ105-CFO!G$17)*(1+($C$2+($C$3*G105))) -> 1.191668607 | AL105: =(AK105-CFO!H$17)*(1+($C$2+($C$3*H105))) -> 1.242077925 | AM105: =(AL105-CFO!I$17)*(1+($C$2+($C$3*I105))) -> 1.302331962 | AN105: =(AM105-CFO!J$17)*(1+($C$2+($C$3*J105))) -> 1.379218141 | AO105: =(AN105-CFO!K$17)*(1+($C$2+($C$3*K105))) -> 1.42281659 | AP105: =(AO105-CFO!L$17)*(1+($C$2+($C$3*L105))) -> 1.421075383 | AQ105: =(AP105-CFO!M$17)*(1+($C$2+($C$3*M105))) -> 1.40133001 | AR105: =(AQ105-CFO!N$17)*(1+($C$2+($C$3*N105))) -> 1.378363199 | AS105: =(AR105-CFO!O$17)*(1+($C$2+($C$3*O105))) -> 1.366812755 | AT105: =(AS105-CFO!P$17)*(1+($C$2+($C$3*P105))) -> 1.35354031 | AU105: =(AT105-CFO!Q$17)*(1+($C$2+($C$3*Q105))) -> 1.333803089 | AV105: =(AU105-CFO!R$17)*(1+($C$2+($C$3*R105))) -> 1.314059363 | AW105: =(AV105-CFO!S$17)*(1+($C$2+($C$3*S105))) -> 1.292182408 | AX105: =(AW105-CFO!T$17)*(1+($C$2+($C$3*T105))) -> 1.263590058 | AY105: =(AX105-CFO!U$17)*(1+($C$2+($C$3*U105))) -> 1.236386399 | AZ105: =(AY105-CFO!V$17)*(1+($C$2+($C$3*V105))) -> 1.196103403 | BA105: =(AZ105-CFO!W$17)*(1+($C$2+($C$3*W105))) -> 1.149148324 | BB105: =(BA105-CFO!X$17)*(1+($C$2+($C$3*X105))) -> 1.106674983
D106: 83 | E106: 1.321750957 | F106: -0.6551157899 | G106: 0.08004596917 | H106: 2.168915271 | I106: 2.26202033 | J106: 2.422718178 | K106: 1.165077867 | L106: 0.9750857249 | M106: -1.890084876 | N106: -1.000390242 | O106: 0.1728532225 | P106: 0.0205326899 | Q106: 0.05691499857 | R106: -0.819304903 | S106: 0.7778576948 | T106: 0.04661626628 | U106: 0.8534756611 | V106: -1.301528483 | W106: -0.2204602741 | X106: -0.5801674285 | Y106: -0.2081157676 | Z106: -0.1749196949 | AA106: -0.6252272817 | AB106: 1.997038605 | AC106: 1.218859158 | AD106: 0.007362542174 | AE106: 0.1984295517 | AF106: 0.4531606495 | AH106: 83 | AI106: =($C$1-CFO!$E$17)*(1+($C$2+($C$3*E106))) -> 1.066545818 | AJ106: =(AI106-CFO!F$17)*(1+($C$2+($C$3*F106))) -> 1.118665968 | AK106: =(AJ106-CFO!G$17)*(1+($C$2+($C$3*G106))) -> 1.179174396 | AL106: =(AK106-CFO!H$17)*(1+($C$2+($C$3*H106))) -> 1.262085819 | AM106: =(AL106-CFO!I$17)*(1+($C$2+($C$3*I106))) -> 1.350073727 | AN106: =(AM106-CFO!J$17)*(1+($C$2+($C$3*J106))) -> 1.444242262 | AO106: =(AN106-CFO!K$17)*(1+($C$2+($C$3*K106))) -> 1.528327145 | AP106: =(AO106-CFO!L$17)*(1+($C$2+($C$3*L106))) -> 1.525697073 | AQ106: =(AP106-CFO!M$17)*(1+($C$2+($C$3*M106))) -> 1.48814854 | AR106: =(AQ106-CFO!N$17)*(1+($C$2+($C$3*N106))) -> 1.459468986 | AS106: =(AR106-CFO!O$17)*(1+($C$2+($C$3*O106))) -> 1.442484876 | AT106: =(AS106-CFO!P$17)*(1+($C$2+($C$3*P106))) -> 1.422296803 | AU106: =(AT106-CFO!Q$17)*(1+($C$2+($C$3*Q106))) -> 1.400918023 | AV106: =(AU106-CFO!R$17)*(1+($C$2+($C$3*R106))) -> 1.368465056 | AW106: =(AV106-CFO!S$17)*(1+($C$2+($C$3*S106))) -> 1.351064602 | AX106: =(AW106-CFO!T$17)*(1+($C$2+($C$3*T106))) -> 1.324399761 | AY106: =(AX106-CFO!U$17)*(1+($C$2+($C$3*U106))) -> 1.304058938 | AZ106: =(AY106-CFO!V$17)*(1+($C$2+($C$3*V106))) -> 1.260429132 | BA106: =(AZ106-CFO!W$17)*(1+($C$2+($C$3*W106))) -> 1.225346454 | BB106: =(BA106-CFO!X$17)*(1+($C$2+($C$3*X106))) -> 1.184876552
D107: 84 | E107: -0.9827149218 | F107: 0.6394890289 | G107: 1.082409613 | H107: 0.2887854228 | I107: 0.4952118409 | J107: 0.39568966 | K107: 0.3068067105 | L107: 0.9102447238 | M107: -0.1619259873 | N107: 0.1551662118 | O107: -0.5003199087 | P107: 2.123072663 | Q107: -1.190891935 | R107: -0.3627880429 | S107: 1.906413056 | T107: 1.429989276 | U107: 0.5245220594 | V107: 0.4320378907 | W107: -1.518243003 | X107: 1.133530755 | Y107: 0.3817706777 | Z107: 2.202033379 | AA107: 0.5052996606 | AB107: -0.2620197891 | AC107: 0.8188537062 | AD107: -0.6140659054 | AE107: -0.2036660817 | AF107: 0.4705308893 | AH107: 84 | AI107: =($C$1-CFO!$E$17)*(1+($C$2+($C$3*E107))) -> 1.047540366 | AJ107: =(AI107-CFO!F$17)*(1+($C$2+($C$3*F107))) -> 1.110479659 | AK107: =(AJ107-CFO!G$17)*(1+($C$2+($C$3*G107))) -> 1.179949031 | AL107: =(AK107-CFO!H$17)*(1+($C$2+($C$3*H107))) -> 1.244651558 | AM107: =(AL107-CFO!I$17)*(1+($C$2+($C$3*I107))) -> 1.313840254 | AN107: =(AM107-CFO!J$17)*(1+($C$2+($C$3*J107))) -> 1.384578091 | AO107: =(AN107-CFO!K$17)*(1+($C$2+($C$3*K107))) -> 1.456929221 | AP107: =(AO107-CFO!L$17)*(1+($C$2+($C$3*L107))) -> 1.451298652 | AQ107: =(AP107-CFO!M$17)*(1+($C$2+($C$3*M107))) -> 1.432453915 | AR107: =(AQ107-CFO!N$17)*(1+($C$2+($C$3*N107))) -> 1.415648113 | AS107: =(AR107-CFO!O$17)*(1+($C$2+($C$3*O107))) -> 1.390211663 | AT107: =(AS107-CFO!P$17)*(1+($C$2+($C$3*P107))) -> 1.391240227 | AU107: =(AT107-CFO!Q$17)*(1+($C$2+($C$3*Q107))) -> 1.355761201 | AV107: =(AU107-CFO!R$17)*(1+($C$2+($C$3*R107))) -> 1.327267653 | AW107: =(AV107-CFO!S$17)*(1+($C$2+($C$3*S107))) -> 1.320090314 | AX107: =(AW107-CFO!T$17)*(1+($C$2+($C$3*T107))) -> 1.306636121 | AY107: =(AX107-CFO!U$17)*(1+($C$2+($C$3*U107))) -> 1.282465263 | AZ107: =(AY107-CFO!V$17)*(1+($C$2+($C$3*V107))) -> 1.255488541 | BA107: =(AZ107-CFO!W$17)*(1+($C$2+($C$3*W107))) -> 1.207902163 | BB107: =(BA107-CFO!X$17)*(1+($C$2+($C$3*X107))) -> 1.182791082
D108: 85 | E108: 0.6913608106 | F108: -2.134753168 | G108: -1.023709202 | H108: -0.04959531503 | I108: -0.1874698347 | J108: -0.6873905252 | K108: 1.278441185 | L108: 0.4731799806 | M108: -0.7440888451 | N108: -0.5600317281 | O108: 0.9590049918 | P108: -0.5140645679 | Q108: 1.659644171 | R108: -0.1454574251 | S108: -0.1579143881 | T108: -0.04162226819 | U108: -0.4086694357 | V108: 2.473999293 | W108: 0.5066723283 | X108: -1.35488392 | Y108: 0.9576210001 | Z108: 2.006675675 | AA108: 0.1552517974 | AB108: -1.828612239 | AC108: 1.300129594 | AD108: -0.2267683016 | AE108: -1.791688682 | AF108: -1.634563995 | AH108: 85 | AI108: =($C$1-CFO!$E$17)*(1+($C$2+($C$3*E108))) -> 1.061346848 | AJ108: =(AI108-CFO!F$17)*(1+($C$2+($C$3*F108))) -> 1.100433079 | AK108: =(AJ108-CFO!G$17)*(1+($C$2+($C$3*G108))) -> 1.15049147 | AL108: =(AK108-CFO!H$17)*(1+($C$2+($C$3*H108))) -> 1.21121575 | AM108: =(AL108-CFO!I$17)*(1+($C$2+($C$3*I108))) -> 1.272671836 | AN108: =(AM108-CFO!J$17)*(1+($C$2+($C$3*J108))) -> 1.33096843 | AO108: =(AN108-CFO!K$17)*(1+($C$2+($C$3*K108))) -> 1.412517584 | AP108: =(AO108-CFO!L$17)*(1+($C$2+($C$3*L108))) -> 1.400732452 | AQ108: =(AP108-CFO!M$17)*(1+($C$2+($C$3*M108))) -> 1.374451868 | AR108: =(AQ108-CFO!N$17)*(1+($C$2+($C$3*N108))) -> 1.348613547 | AS108: =(AR108-CFO!O$17)*(1+($C$2+($C$3*O108))) -> 1.336965941 | AT108: =(AS108-CFO!P$17)*(1+($C$2+($C$3*P108))) -> 1.308740033 | AU108: =(AT108-CFO!Q$17)*(1+($C$2+($C$3*Q108))) -> 1.300661728 | AV108: =(AU108-CFO!R$17)*(1+($C$2+($C$3*R108))) -> 1.273169878 | AW108: =(AV108-CFO!S$17)*(1+($C$2+($C$3*S108))) -> 1.243785135 | AX108: =(AW108-CFO!T$17)*(1+($C$2+($C$3*T108))) -> 1.213668648 | AY108: =(AX108-CFO!U$17)*(1+($C$2+($C$3*U108))) -> 1.178258784 | AZ108: =(AY108-CFO!V$17)*(1+($C$2+($C$3*V108))) -> 1.166679864 | BA108: =(AZ108-CFO!W$17)*(1+($C$2+($C$3*W108))) -> 1.135940067 | BB108: =(BA108-CFO!X$17)*(1+($C$2+($C$3*X108))) -> 1.087089408
D109: 86 | E109: -0.7672243077 | F109: 0.8294702609 | G109: -0.5313554774 | H109: 1.973963898 | I109: -1.355404811 | J109: -0.07642351646 | K109: -0.2361026531 | L109: -0.2041502824 | M109: 0.2204659998 | N109: -0.464144465 | O109: -0.9535448289 | P109: 1.225467927 | Q109: -0.3139035852 | R109: -0.8922926599 | S109: 0.5186592395 | T109: -0.8442371863 | U109: 0.6487561217 | V109: -0.5575214306 | W109: 0.1797608187 | X109: 0.9623480983 | Y109: 1.640989325 | Z109: 0.6985144197 | AA109: -0.104479284 | AB109: 0.3592139745 | AC109: -0.7683891568 | AD109: 2.644946236 | AE109: =NORMSINV(RAND()) -> 1.711060518 | AF109: -0.426035813 | AH109: 86 | AI109: =($C$1-CFO!$E$17)*(1+($C$2+($C$3*E109))) -> 1.049317566 | AJ109: =(AI109-CFO!F$17)*(1+($C$2+($C$3*F109))) -> 1.113951317 | AK109: =(AJ109-CFO!G$17)*(1+($C$2+($C$3*G109))) -> 1.168737741 | AL109: =(AK109-CFO!H$17)*(1+($C$2+($C$3*H109))) -> 1.249343671 | AM109: =(AL109-CFO!I$17)*(1+($C$2+($C$3*I109))) -> 1.29967188 | AN109: =(AM109-CFO!J$17)*(1+($C$2+($C$3*J109))) -> 1.36498722 | AO109: =(AN109-CFO!K$17)*(1+($C$2+($C$3*K109))) -> 1.430740414 | AP109: =(AO109-CFO!L$17)*(1+($C$2+($C$3*L109))) -> 1.411977993 | AQ109: =(AP109-CFO!M$17)*(1+($C$2+($C$3*M109))) -> 1.396404995 | AR109: =(AQ109-CFO!N$17)*(1+($C$2+($C$3*N109))) -> 1.372026745 | AS109: =(AR109-CFO!O$17)*(1+($C$2+($C$3*O109))) -> 1.340934337 | AT109: =(AS109-CFO!P$17)*(1+($C$2+($C$3*P109))) -> 1.330700199 | AU109: =(AT109-CFO!Q$17)*(1+($C$2+($C$3*Q109))) -> 1.303296436 | AV109: =(AU109-CFO!R$17)*(1+($C$2+($C$3*R109))) -> 1.268412059 | AW109: =(AV109-CFO!S$17)*(1+($C$2+($C$3*S109))) -> 1.245475822 | AX109: =(AW109-CFO!T$17)*(1+($C$2+($C$3*T109))) -> 1.207775794 | AY109: =(AX109-CFO!U$17)*(1+($C$2+($C$3*U109))) -> 1.181958852 | AZ109: =(AY109-CFO!V$17)*(1+($C$2+($C$3*V109))) -> 1.143344806 | BA109: =(AZ109-CFO!W$17)*(1+($C$2+($C$3*W109))) -> 1.109121661 | BB109: =(BA109-CFO!X$17)*(1+($C$2+($C$3*X109))) -> 1.079311421
D110: 87 | E110: 0.7138883416 | F110: -1.165463571 | G110: 1.061088876 | H110: 0.03642920334 | I110: -0.8933920473 | J110: 1.015954666 | K110: -1.615671174 | L110: 0.06503099846 | M110: 1.050971825 | N110: 1.015467067 | O110: 0.4044516891 | P110: 0.2482473882 | Q110: 0.03593529205 | R110: 1.173380135 | S110: 0.4932387846 | T110: -0.3605149224 | U110: -1.091484818 | V110: -0.3389366236 | W110: -0.7103782022 | X110: 1.388389396 | Y110: 1.302235106 | Z110: -1.154243426 | AA110: -1.435397217 | AB110: 2.195902515 | AC110: -0.1643850752 | AD110: -0.9531785661 | AE110: 1.423284221 | AF110: -1.297823717 | AH110: 87 | AI110: =($C$1-CFO!$E$17)*(1+($C$2+($C$3*E110))) -> 1.061532638 | AJ110: =(AI110-CFO!F$17)*(1+($C$2+($C$3*F110))) -> 1.109096042 | AK110: =(AJ110-CFO!G$17)*(1+($C$2+($C$3*G110))) -> 1.178325569 | AL110: =(AK110-CFO!H$17)*(1+($C$2+($C$3*H110))) -> 1.240540312 | AM110: =(AL110-CFO!I$17)*(1+($C$2+($C$3*I110))) -> 1.295461499 | AN110: =(AM110-CFO!J$17)*(1+($C$2+($C$3*J110))) -> 1.372297609 | AO110: =(AN110-CFO!K$17)*(1+($C$2+($C$3*K110))) -> 1.422682919 | AP110: =(AO110-CFO!L$17)*(1+($C$2+($C$3*L110))) -> 1.406697029 | AQ110: =(AP110-CFO!M$17)*(1+($C$2+($C$3*M110))) -> 1.399997641 | AR110: =(AQ110-CFO!N$17)*(1+($C$2+($C$3*N110))) -> 1.391652415 | AS110: =(AR110-CFO!O$17)*(1+($C$2+($C$3*O110))) -> 1.375427738 | AT110: =(AS110-CFO!P$17)*(1+($C$2+($C$3*P110))) -> 1.35602701 | AU110: =(AT110-CFO!Q$17)*(1+($C$2+($C$3*Q110))) -> 1.332809189 | AV110: =(AU110-CFO!R$17)*(1+($C$2+($C$3*R110))) -> 1.319523573 | AW110: =(AV110-CFO!S$17)*(1+($C$2+($C$3*S110))) -> 1.297769344 | AX110: =(AW110-CFO!T$17)*(1+($C$2+($C$3*T110))) -> 1.265768125 | AY110: =(AX110-CFO!U$17)*(1+($C$2+($C$3*U110))) -> 1.224848176 | AZ110: =(AY110-CFO!V$17)*(1+($C$2+($C$3*V110))) -> 1.189108203 | BA110: =(AZ110-CFO!W$17)*(1+($C$2+($C$3*W110))) -> 1.148021056 | BB110: =(BA110-CFO!X$17)*(1+($C$2+($C$3*X110))) -> 1.123142085
D111: 88 | E111: 0.9503989339 | F111: 1.279810679 | G111: 0.8287323471 | H111: -0.1088872446 | I111: 0.3087107633 | J111: 0.6687104566 | K111: 0.1292715657 | L111: 0.8433356264 | M111: -0.6972286775 | N111: 0.4089496156 | O111: 0.7276931136 | P111: -2.735283431 | Q111: -0.6973179468 | R111: -0.549287757 | S111: -1.037328756 | T111: -0.3280251919 | U111: 1.258324751 | V111: -1.053647564 | W111: 0.7897356869 | X111: 2.109909832 | Y111: 0.9346853386 | Z111: 0.2795401347 | AA111: 0.854599513 | AB111: -0.2074078009 | AC111: 0.5113904911 | AD111: -0.328652612 | AE111: -0.6774597066 | AF111: -0.9698305493 | AH111: 88 | AI111: =($C$1-CFO!$E$17)*(1+($C$2+($C$3*E111))) -> 1.063483194 | AJ111: =(AI111-CFO!F$17)*(1+($C$2+($C$3*F111))) -> 1.132495919 | AK111: =(AJ111-CFO!G$17)*(1+($C$2+($C$3*G111))) -> 1.200320769 | AL111: =(AK111-CFO!H$17)*(1+($C$2+($C$3*H111))) -> 1.261636271 | AM111: =(AL111-CFO!I$17)*(1+($C$2+($C$3*I111))) -> 1.329367607 | AN111: =(AM111-CFO!J$17)*(1+($C$2+($C$3*J111))) -> 1.403505336 | AO111: =(AN111-CFO!K$17)*(1+($C$2+($C$3*K111))) -> 1.474314375 | AP111: =(AO111-CFO!L$17)*(1+($C$2+($C$3*L111))) -> 1.468465065 | AQ111: =(AP111-CFO!M$17)*(1+($C$2+($C$3*M111))) -> 1.443938385 | AR111: =(AQ111-CFO!N$17)*(1+($C$2+($C$3*N111))) -> 1.430249166 | AS111: =(AR111-CFO!O$17)*(1+($C$2+($C$3*O111))) -> 1.418637964 | AT111: =(AS111-CFO!P$17)*(1+($C$2+($C$3*P111))) -> 1.367782516 | AU111: =(AT111-CFO!Q$17)*(1+($C$2+($C$3*Q111))) -> 1.337148339 | AV111: =(AU111-CFO!R$17)*(1+($C$2+($C$3*R111))) -> 1.306350509 | AW111: =(AV111-CFO!S$17)*(1+($C$2+($C$3*S111))) -> 1.26893086 | AX111: =(AW111-CFO!T$17)*(1+($C$2+($C$3*T111))) -> 1.236635388 | AY111: =(AX111-CFO!U$17)*(1+($C$2+($C$3*U111))) -> 1.217401999 | AZ111: =(AY111-CFO!V$17)*(1+($C$2+($C$3*V111))) -> 1.174888857 | BA111: =(AZ111-CFO!W$17)*(1+($C$2+($C$3*W111))) -> 1.146900089 | BB111: =(BA111-CFO!X$17)*(1+($C$2+($C$3*X111))) -> 1.128238375
D112: 89 | E112: 0.1041715329 | F112: -0.5149829763 | G112: 1.489286762 | H112: 0.4784548942 | I112: 0.457688977 | J112: 0.9152226757 | K112: 0.8886601095 | L112: 1.079964216 | M112: -0.3332245542 | N112: 0.1425982699 | O112: -0.4195620378 | P112: 0.1426630054 | Q112: 0.314848528 | R112: -0.0757888451 | S112: 0.1221554346 | T112: -0.1343978354 | U112: 0.01712217415 | V112: -0.9947962264 | W112: 0.4332622015 | X112: 0.02217048225 | Y112: -0.04494612661 | Z112: -0.7662508074 | AA112: 0.01800795936 | AB112: 0.4005100318 | AC112: -0.08769709416 | AD112: 0.1974061781 | AE112: -1.058855113 | AF112: -1.057517687 | AH112: 89 | AI112: =($C$1-CFO!$E$17)*(1+($C$2+($C$3*E112))) -> 1.056504165 | AJ112: =(AI112-CFO!F$17)*(1+($C$2+($C$3*F112))) -> 1.109655687 | AK112: =(AJ112-CFO!G$17)*(1+($C$2+($C$3*G112))) -> 1.182814752 | AL112: =(AK112-CFO!H$17)*(1+($C$2+($C$3*H112))) -> 1.249437189 | AM112: =(AL112-CFO!I$17)*(1+($C$2+($C$3*I112))) -> 1.318374598 | AN112: =(AM112-CFO!J$17)*(1+($C$2+($C$3*J112))) -> 1.394856936 | AO112: =(AN112-CFO!K$17)*(1+($C$2+($C$3*K112))) -> 1.474134804 | AP112: =(AO112-CFO!L$17)*(1+($C$2+($C$3*L112))) -> 1.470976559 | AQ112: =(AP112-CFO!M$17)*(1+($C$2+($C$3*M112))) -> 1.450632196 | AR112: =(AQ112-CFO!N$17)*(1+($C$2+($C$3*N112))) -> 1.434144579 | AS112: =(AR112-CFO!O$17)*(1+($C$2+($C$3*O112))) -> 1.409970517 | AT112: =(AS112-CFO!P$17)*(1+($C$2+($C$3*P112))) -> 1.390321847 | AU112: =(AT112-CFO!Q$17)*(1+($C$2+($C$3*Q112))) -> 1.370916873 | AV112: =(AU112-CFO!R$17)*(1+($C$2+($C$3*R112))) -> 1.345762306 | AW112: =(AV112-CFO!S$17)*(1+($C$2+($C$3*S112))) -> 1.320915541 | AX112: =(AW112-CFO!T$17)*(1+($C$2+($C$3*T112))) -> 1.291687291 | AY112: =(AX112-CFO!U$17)*(1+($C$2+($C$3*U112))) -> 1.26209259 | AZ112: =(AY112-CFO!V$17)*(1+($C$2+($C$3*V112))) -> 1.220841027 | BA112: =(AZ112-CFO!W$17)*(1+($C$2+($C$3*W112))) -> 1.190939913 | BB112: =(BA112-CFO!X$17)*(1+($C$2+($C$3*X112))) -> 1.15523929
D113: 90 | E113: 0.4171550414 | F113: -0.2142900721 | G113: 0.9747920762 | H113: 0.2256086289 | I113: -0.873091304 | J113: 0.3621464955 | K113: -0.6158473592 | L113: 0.5434108898 | M113: 0.07053821632 | N113: -1.656722572 | O113: 0.5055601476 | P113: 0.02740737425 | Q113: 1.393426324 | R113: 0.6743505262 | S113: -0.6340774182 | T113: 0.01003580227 | U113: -1.010648641 | V113: -1.80203179 | W113: -0.7992860809 | X113: -0.7474227856 | Y113: -1.257827802 | Z113: -0.4357762753 | AA113: 0.6039433622 | AB113: 0.07180799748 | AC113: 0.7568084784 | AD113: 0.4621198927 | AE113: 0.2540092121 | AF113: 0.2973533534 | AH113: 90 | AI113: =($C$1-CFO!$E$17)*(1+($C$2+($C$3*E113))) -> 1.059085411 | AJ113: =(AI113-CFO!F$17)*(1+($C$2+($C$3*F113))) -> 1.11491175 | AK113: =(AJ113-CFO!G$17)*(1+($C$2+($C$3*G113))) -> 1.183538318 | AL113: =(AK113-CFO!H$17)*(1+($C$2+($C$3*H113))) -> 1.247720528 | AM113: =(AL113-CFO!I$17)*(1+($C$2+($C$3*I113))) -> 1.302970791 | AN113: =(AM113-CFO!J$17)*(1+($C$2+($C$3*J113))) -> 1.373054551 | AO113: =(AN113-CFO!K$17)*(1+($C$2+($C$3*K113))) -> 1.434709115 | AP113: =(AO113-CFO!L$17)*(1+($C$2+($C$3*L113))) -> 1.424318774 | AQ113: =(AP113-CFO!M$17)*(1+($C$2+($C$3*M113))) -> 1.407416107 | AR113: =(AQ113-CFO!N$17)*(1+($C$2+($C$3*N113))) -> 1.370326467 | AS113: =(AR113-CFO!O$17)*(1+($C$2+($C$3*O113))) -> 1.354586758 | AT113: =(AS113-CFO!P$17)*(1+($C$2+($C$3*P113))) -> 1.332346234 | AU113: =(AT113-CFO!Q$17)*(1+($C$2+($C$3*Q113))) -> 1.322427101 | AV113: =(AU113-CFO!R$17)*(1+($C$2+($C$3*R113))) -> 1.30373865 | AW113: =(AV113-CFO!S$17)*(1+($C$2+($C$3*S113))) -> 1.270299869 | AX113: =(AW113-CFO!T$17)*(1+($C$2+($C$3*T113))) -> 1.241311834 | AY113: =(AX113-CFO!U$17)*(1+($C$2+($C$3*U113))) -> 1.200782852 | AZ113: =(AY113-CFO!V$17)*(1+($C$2+($C$3*V113))) -> 1.151184137 | BA113: =(AZ113-CFO!W$17)*(1+($C$2+($C$3*W113))) -> 1.108627453 | BB113: =(BA113-CFO!X$17)*(1+($C$2+($C$3*X113))) -> 1.064498896
D114: 91 | E114: -0.225745107 | F114: 0.1526078649 | G114: -0.1267560025 | H114: 0.6148095529 | I114: 0.369847866 | J114: 1.345480884 | K114: -0.6168895239 | L114: -0.8030189779 | M114: -1.93518368 | N114: -0.456426028 | O114: 0.007543425621 | P114: -0.7761251354 | Q114: 2.753881948 | R114: -0.1420163577 | S114: -0.1961352474 | T114: -0.1870509514 | U114: 0.09092227098 | V114: 0.6946948535 | W114: -1.087462254 | X114: 0.133333871 | Y114: -2.105827596 | Z114: 0.9969990207 | AA114: 0.596975756 | AB114: -1.168568183 | AC114: -1.547405454 | AD114: 1.312852298 | AE114: 0.4314434461 | AF114: 1.933261582 | AH114: 91 | AI114: =($C$1-CFO!$E$17)*(1+($C$2+($C$3*E114))) -> 1.053783267 | AJ114: =(AI114-CFO!F$17)*(1+($C$2+($C$3*F114))) -> 1.112677013 | AK114: =(AJ114-CFO!G$17)*(1+($C$2+($C$3*G114))) -> 1.171143848 | AL114: =(AK114-CFO!H$17)*(1+($C$2+($C$3*H114))) -> 1.238754813 | AM114: =(AL114-CFO!I$17)*(1+($C$2+($C$3*I114))) -> 1.306502716 | AN114: =(AM114-CFO!J$17)*(1+($C$2+($C$3*J114))) -> 1.387227716 | AO114: =(AN114-CFO!K$17)*(1+($C$2+($C$3*K114))) -> 1.449140751 | AP114: =(AO114-CFO!L$17)*(1+($C$2+($C$3*L114))) -> 1.424085011 | AQ114: =(AP114-CFO!M$17)*(1+($C$2+($C$3*M114))) -> 1.385138708 | AR114: =(AQ114-CFO!N$17)*(1+($C$2+($C$3*N114))) -> 1.36061424 | AS114: =(AR114-CFO!O$17)*(1+($C$2+($C$3*O114))) -> 1.339391219 | AT114: =(AS114-CFO!P$17)*(1+($C$2+($C$3*P114))) -> 1.308518209 | AU114: =(AT114-CFO!Q$17)*(1+($C$2+($C$3*Q114))) -> 1.311406379 | AV114: =(AU114-CFO!R$17)*(1+($C$2+($C$3*R114))) -> 1.284194459 | AW114: =(AV114-CFO!S$17)*(1+($C$2+($C$3*S114))) -> 1.254685153 | AX114: =(AW114-CFO!T$17)*(1+($C$2+($C$3*T114))) -> 1.223434584 | AY114: =(AX114-CFO!U$17)*(1+($C$2+($C$3*U114))) -> 1.192879751 | AZ114: =(AY114-CFO!V$17)*(1+($C$2+($C$3*V114))) -> 1.165822705 | BA114: =(AZ114-CFO!W$17)*(1+($C$2+($C$3*W114))) -> 1.120978374 | BB114: =(BA114-CFO!X$17)*(1+($C$2+($C$3*X114))) -> 1.084527158
D115: 92 | E115: -1.239467812 | F115: 0.2496159974 | G115: -1.100051455 | H115: -2.019705454 | I115: 0.01223708683 | J115: 0.01092983938 | K115: -1.652330124 | L115: 1.065577812 | M115: 0.7720160749 | N115: 0.8719620375 | O115: -3.00123096 | P115: -0.151803385 | Q115: 0.0567728678 | R115: 0.7777257816 | S115: -0.5302536762 | T115: -2.262807003 | U115: -0.5917624011 | V115: 0.6972205065 | W115: -0.3694863576 | X115: 0.2406820408 | Y115: -0.3409313179 | Z115: 0.5797017225 | AA115: 0.5770354945 | AB115: 0.1294631846 | AC115: 0.6997943447 | AD115: -1.110169116 | AE115: -1.206909961 | AF115: -1.994080003 | AH115: 92 | AI115: =($C$1-CFO!$E$17)*(1+($C$2+($C$3*E115))) -> 1.045422866 | AJ115: =(AI115-CFO!F$17)*(1+($C$2+($C$3*F115))) -> 1.104941534 | AK115: =(AJ115-CFO!G$17)*(1+($C$2+($C$3*G115))) -> 1.154376739 | AL115: =(AK115-CFO!H$17)*(1+($C$2+($C$3*H115))) -> 1.196481853 | AM115: =(AL115-CFO!I$17)*(1+($C$2+($C$3*I115))) -> 1.259571431 | AN115: =(AM115-CFO!J$17)*(1+($C$2+($C$3*J115))) -> 1.324852943 | AO115: =(AN115-CFO!K$17)*(1+($C$2+($C$3*K115))) -> 1.374314074 | AP115: =(AO115-CFO!L$17)*(1+($C$2+($C$3*L115))) -> 1.367745251 | AQ115: =(AP115-CFO!M$17)*(1+($C$2+($C$3*M115))) -> 1.356844223 | AR115: =(AQ115-CFO!N$17)*(1+($C$2+($C$3*N115))) -> 1.345614343 | AS115: =(AR115-CFO!O$17)*(1+($C$2+($C$3*O115))) -> 1.292909528 | AT115: =(AS115-CFO!P$17)*(1+($C$2+($C$3*P115))) -> 1.267398657 | AU115: =(AT115-CFO!Q$17)*(1+($C$2+($C$3*Q115))) -> 1.242230414 | AV115: =(AU115-CFO!R$17)*(1+($C$2+($C$3*R115))) -> 1.22216568 | AW115: =(AV115-CFO!S$17)*(1+($C$2+($C$3*S115))) -> 1.188150681 | AX115: =(AW115-CFO!T$17)*(1+($C$2+($C$3*T115))) -> 1.136638438 | AY115: =(AX115-CFO!U$17)*(1+($C$2+($C$3*U115))) -> 1.098053723 | AZ115: =(AY115-CFO!V$17)*(1+($C$2+($C$3*V115))) -> 1.068214814 | BA115: =(AZ115-CFO!W$17)*(1+($C$2+($C$3*W115))) -> 1.027658067 | BB115: =(BA115-CFO!X$17)*(1+($C$2+($C$3*X115))) -> 0.9896960789
D116: 93 | E116: 1.271747661 | F116: -0.4860643364 | G116: 0.5569596983 | H116: 0.04407069451 | I116: 0.3966706621 | J116: -0.7264134864 | K116: 1.047605665 | L116: -0.9941802511 | M116: 0.2862900181 | N116: -0.1762291312 | O116: 0.8141685841 | P116: 0.01832835719 | Q116: -1.727953933 | R116: 1.571480343 | S116: -0.3583255059 | T116: -0.3852710882 | U116: -1.434268624 | V116: -0.7968796836 | W116: 2.051160509 | X116: -0.191454083 | Y116: -0.78338882 | Z116: -2.176989223 | AA116: -0.3430839459 | AB116: 0.1665364156 | AC116: -1.532574361 | AD116: 0.4027590694 | AE116: -1.112501745 | AF116: -1.14457391 | AH116: 93 | AI116: =($C$1-CFO!$E$17)*(1+($C$2+($C$3*E116))) -> 1.06613343 | AJ116: =(AI116-CFO!F$17)*(1+($C$2+($C$3*F116))) -> 1.119730324 | AK116: =(AJ116-CFO!G$17)*(1+($C$2+($C$3*G116))) -> 1.184659766 | AL116: =(AK116-CFO!H$17)*(1+($C$2+($C$3*H116))) -> 1.247102801 | AM116: =(AL116-CFO!I$17)*(1+($C$2+($C$3*I116))) -> 1.315350539 | AN116: =(AM116-CFO!J$17)*(1+($C$2+($C$3*J116))) -> 1.374015444 | AO116: =(AN116-CFO!K$17)*(1+($C$2+($C$3*K116))) -> 1.454436351 | AP116: =(AO116-CFO!L$17)*(1+($C$2+($C$3*L116))) -> 1.427325363 | AQ116: =(AP116-CFO!M$17)*(1+($C$2+($C$3*M116))) -> 1.41287272 | AR116: =(AQ116-CFO!N$17)*(1+($C$2+($C$3*N116))) -> 1.391963863 | AS116: =(AR116-CFO!O$17)*(1+($C$2+($C$3*O116))) -> 1.380137447 | AT116: =(AS116-CFO!P$17)*(1+($C$2+($C$3*P116))) -> 1.358419404 | AU116: =(AT116-CFO!Q$17)*(1+($C$2+($C$3*Q116))) -> 1.316864461 | AV116: =(AU116-CFO!R$17)*(1+($C$2+($C$3*R116))) -> 1.307062364 | AW116: =(AV116-CFO!S$17)*(1+($C$2+($C$3*S116))) -> 1.27644407 | AX116: =(AW116-CFO!T$17)*(1+($C$2+($C$3*T116))) -> 1.243751272 | AY116: =(AX116-CFO!U$17)*(1+($C$2+($C$3*U116))) -> 1.19924719 | AZ116: =(AY116-CFO!V$17)*(1+($C$2+($C$3*V116))) -> 1.158790457 | BA116: =(AZ116-CFO!W$17)*(1+($C$2+($C$3*W116))) -> 1.141384422 | BB116: =(BA116-CFO!X$17)*(1+($C$2+($C$3*X116))) -> 1.102642674
D117: 94 | E117: -0.6887983155 | F117: 1.061332889 | G117: 0.1995980754 | H117: 0.1649675829 | I117: 1.226360105 | J117: 2.120929894 | K117: -0.5861363064 | L117: -0.3719876917 | M117: 0.4635171929 | N117: -1.901102345 | O117: -0.198458766 | P117: 0.5590057977 | Q117: -0.2138139222 | R117: 1.928191175 | S117: -0.1040648806 | T117: -0.2821167887 | U117: 0.01141624106 | V117: 0.4180461393 | W117: 0.4386684546 | X117: 0.1370717613 | Y117: 0.4268106386 | Z117: -2.401920877 | AA117: 1.119076781 | AB117: -0.2041709909 | AC117: 1.020913096 | AD117: -1.003383131 | AE117: -0.3505334642 | AF117: -0.1709318111 | AH117: 94 | AI117: =($C$1-CFO!$E$17)*(1+($C$2+($C$3*E117))) -> 1.049964362 | AJ117: =(AI117-CFO!F$17)*(1+($C$2+($C$3*F117))) -> 1.116623978 | AK117: =(AJ117-CFO!G$17)*(1+($C$2+($C$3*G117))) -> 1.178180799 | AL117: =(AK117-CFO!H$17)*(1+($C$2+($C$3*H117))) -> 1.24163728 | AM117: =(AL117-CFO!I$17)*(1+($C$2+($C$3*I117))) -> 1.318199919 | AN117: =(AM117-CFO!J$17)*(1+($C$2+($C$3*J117))) -> 1.407720799 | AO117: =(AN117-CFO!K$17)*(1+($C$2+($C$3*K117))) -> 1.47037943 | AP117: =(AO117-CFO!L$17)*(1+($C$2+($C$3*L117))) -> 1.450595998 | AQ117: =(AP117-CFO!M$17)*(1+($C$2+($C$3*M117))) -> 1.438740021 | AR117: =(AQ117-CFO!N$17)*(1+($C$2+($C$3*N117))) -> 1.399275198 | AS117: =(AR117-CFO!O$17)*(1+($C$2+($C$3*O117))) -> 1.37676318 | AT117: =(AS117-CFO!P$17)*(1+($C$2+($C$3*P117))) -> 1.360686265 | AU117: =(AT117-CFO!Q$17)*(1+($C$2+($C$3*Q117))) -> 1.334972495 | AV117: =(AU117-CFO!R$17)*(1+($C$2+($C$3*R117))) -> 1.329482665 | AW117: =(AV117-CFO!S$17)*(1+($C$2+($C$3*S117))) -> 1.301926453 | AX117: =(AW117-CFO!T$17)*(1+($C$2+($C$3*T117))) -> 1.270793077 | AY117: =(AX117-CFO!U$17)*(1+($C$2+($C$3*U117))) -> 1.240638753 | AZ117: =(AY117-CFO!V$17)*(1+($C$2+($C$3*V117))) -> 1.212381535 | BA117: =(AZ117-CFO!W$17)*(1+($C$2+($C$3*W117))) -> 1.182297838 | BB117: =(BA117-CFO!X$17)*(1+($C$2+($C$3*X117))) -> 1.147417167
D118: 95 | E118: -0.7386116626 | F118: 0.04569395365 | G118: -0.7200495282 | H118: 1.522422263 | I118: 0.2307532688 | J118: 0.3678530594 | K118: 0.05687325351 | L118: 0.4730904784 | M118: -0.2990232928 | N118: 0.0605104004 | O118: -0.9991729676 | P118: -0.02848880189 | Q118: 0.2831029798 | R118: 0.6335014525 | S118: 0.03727881296 | T118: -0.06110712107 | U118: -0.5447467668 | V118: -0.6154925342 | W118: -0.8036266352 | X118: 0.9697481644 | Y118: -0.5321665668 | Z118: 0.2236942122 | AA118: 0.4324493767 | AB118: 0.9685908436 | AC118: -0.5316942451 | AD118: -1.190560127 | AE118: 0.7848090132 | AF118: -0.3385558448 | AH118: 95 | AI118: =($C$1-CFO!$E$17)*(1+($C$2+($C$3*E118))) -> 1.04955354 | AJ118: =(AI118-CFO!F$17)*(1+($C$2+($C$3*F118))) -> 1.107415953 | AK118: =(AJ118-CFO!G$17)*(1+($C$2+($C$3*G118))) -> 1.160353072 | AL118: =(AK118-CFO!H$17)*(1+($C$2+($C$3*H118))) -> 1.236315314 | AM118: =(AL118-CFO!I$17)*(1+($C$2+($C$3*I118))) -> 1.30258451 | AN118: =(AM118-CFO!J$17)*(1+($C$2+($C$3*J118))) -> 1.372718904 | AO118: =(AN118-CFO!K$17)*(1+($C$2+($C$3*K118))) -> 1.441942013 | AP118: =(AO118-CFO!L$17)*(1+($C$2+($C$3*L118))) -> 1.430973455 | AQ118: =(AP118-CFO!M$17)*(1+($C$2+($C$3*M118))) -> 1.410153329 | AR118: =(AQ118-CFO!N$17)*(1+($C$2+($C$3*N118))) -> 1.391755915 | AS118: =(AR118-CFO!O$17)*(1+($C$2+($C$3*O118))) -> 1.360497713 | AT118: =(AS118-CFO!P$17)*(1+($C$2+($C$3*P118))) -> 1.33781601 | AU118: =(AT118-CFO!Q$17)*(1+($C$2+($C$3*Q118))) -> 1.316692809 | AV118: =(AU118-CFO!R$17)*(1+($C$2+($C$3*R118))) -> 1.297423788 | AW118: =(AV118-CFO!S$17)*(1+($C$2+($C$3*S118))) -> 1.270527421 | AX118: =(AW118-CFO!T$17)*(1+($C$2+($C$3*T118))) -> 1.240854864 | AY118: =(AX118-CFO!U$17)*(1+($C$2+($C$3*U118))) -> 1.20472237 | AZ118: =(AY118-CFO!V$17)*(1+($C$2+($C$3*V118))) -> 1.166022476 | BA118: =(AZ118-CFO!W$17)*(1+($C$2+($C$3*W118))) -> 1.123688686 | BB118: =(BA118-CFO!X$17)*(1+($C$2+($C$3*X118))) -> 1.094402997
D119: 96 | E119: -0.1459861854 | F119: 0.3029332801 | G119: -0.5044419759 | H119: 0.5433980315 | I119: -0.3015473781 | J119: 0.02630688954 | K119: -1.474946949 | L119: -0.6434508531 | M119: -0.05026456352 | N119: 0.7015293719 | O119: 1.441988183 | P119: 0.8483045858 | Q119: 0.5937701575 | R119: -1.792791186 | S119: -0.4886942271 | T119: -0.9681750677 | U119: -1.594705034 | V119: 0.5860093466 | W119: -0.8549125225 | X119: -0.3120580184 | Y119: -1.118752386 | Z119: -2.37798152 | AA119: 0.5482825891 | AB119: -1.289465929 | AC119: -1.248154208 | AD119: 2.390168712 | AE119: -1.272295052 | AF119: 0.6604321719 | AH119: 96 | AI119: =($C$1-CFO!$E$17)*(1+($C$2+($C$3*E119))) -> 1.054441057 | AJ119: =(AI119-CFO!F$17)*(1+($C$2+($C$3*F119))) -> 1.114657375 | AK119: =(AJ119-CFO!G$17)*(1+($C$2+($C$3*G119))) -> 1.16970466 | AL119: =(AK119-CFO!H$17)*(1+($C$2+($C$3*H119))) -> 1.236587027 | AM119: =(AL119-CFO!I$17)*(1+($C$2+($C$3*I119))) -> 1.297454911 | AN119: =(AM119-CFO!J$17)*(1+($C$2+($C$3*J119))) -> 1.363812745 | AO119: =(AN119-CFO!K$17)*(1+($C$2+($C$3*K119))) -> 1.415678641 | AP119: =(AO119-CFO!L$17)*(1+($C$2+($C$3*L119))) -> 1.391778569 | AQ119: =(AP119-CFO!M$17)*(1+($C$2+($C$3*M119))) -> 1.372780474 | AR119: =(AQ119-CFO!N$17)*(1+($C$2+($C$3*N119))) -> 1.360242932 | AS119: =(AR119-CFO!O$17)*(1+($C$2+($C$3*O119))) -> 1.354015853 | AT119: =(AS119-CFO!P$17)*(1+($C$2+($C$3*P119))) -> 1.340300607 | AU119: =(AT119-CFO!Q$17)*(1+($C$2+($C$3*Q119))) -> 1.322437514 | AV119: =(AU119-CFO!R$17)*(1+($C$2+($C$3*R119))) -> 1.27875189 | AW119: =(AV119-CFO!S$17)*(1+($C$2+($C$3*S119))) -> 1.246261111 | AX119: =(AW119-CFO!T$17)*(1+($C$2+($C$3*T119))) -> 1.207396636 | AY119: =(AX119-CFO!U$17)*(1+($C$2+($C$3*U119))) -> 1.160963661 | AZ119: =(AY119-CFO!V$17)*(1+($C$2+($C$3*V119))) -> 1.13200644 | BA119: =(AZ119-CFO!W$17)*(1+($C$2+($C$3*W119))) -> 1.088635837 | BB119: =(BA119-CFO!X$17)*(1+($C$2+($C$3*X119))) -> 1.047719321
D120: 97 | E120: -0.1057682828 | F120: 0.6530106601 | G120: 0.4670735644 | H120: -2.444327572 | I120: 0.7901872027 | J120: -0.1466452042 | K120: 0.375820588 | L120: 0.8817165335 | M120: -2.331504904 | N120: -1.173488314 | O120: -0.09928218199 | P120: 0.2975142129 | Q120: 0.2445609246 | R120: -0.2218571661 | S120: 0.006001743418 | T120: -1.17137883 | U120: 0.2754082361 | V120: 1.624529961 | W120: -1.094537029 | X120: -0.8312033177 | Y120: -0.8432495841 | Z120: 0.6950937212 | AA120: -1.868132006 | AB120: 0.8645818906 | AC120: -0.3875286146 | AD120: 0.4186305803 | AE120: -1.281375561 | AF120: 0.7818488269 | AH120: 97 | AI120: =($C$1-CFO!$E$17)*(1+($C$2+($C$3*E120))) -> 1.054772743 | AJ120: =(AI120-CFO!F$17)*(1+($C$2+($C$3*F120))) -> 1.118040122 | AK120: =(AJ120-CFO!G$17)*(1+($C$2+($C$3*G120))) -> 1.182094377 | AL120: =(AK120-CFO!H$17)*(1+($C$2+($C$3*H120))) -> 1.220289911 | AM120: =(AL120-CFO!I$17)*(1+($C$2+($C$3*I120))) -> 1.291755995 | AN120: =(AM120-CFO!J$17)*(1+($C$2+($C$3*J120))) -> 1.356141352 | AO120: =(AN120-CFO!K$17)*(1+($C$2+($C$3*K120))) -> 1.428508159 | AP120: =(AO120-CFO!L$17)*(1+($C$2+($C$3*L120))) -> 1.421673834 | AQ120: =(AP120-CFO!M$17)*(1+($C$2+($C$3*M120))) -> 1.378360052 | AR120: =(AQ120-CFO!N$17)*(1+($C$2+($C$3*N120))) -> 1.346087029 | AS120: =(AR120-CFO!O$17)*(1+($C$2+($C$3*O120))) -> 1.323409137 | AT120: =(AS120-CFO!P$17)*(1+($C$2+($C$3*P120))) -> 1.303157073 | AU120: =(AT120-CFO!Q$17)*(1+($C$2+($C$3*Q120))) -> 1.280738653 | AV120: =(AU120-CFO!R$17)*(1+($C$2+($C$3*R120))) -> 1.252043224 | AW120: =(AV120-CFO!S$17)*(1+($C$2+($C$3*S120))) -> 1.223745179 | AX120: =(AW120-CFO!T$17)*(1+($C$2+($C$3*T120))) -> 1.182619934 | AY120: =(AX120-CFO!U$17)*(1+($C$2+($C$3*U120))) -> 1.152713697 | AZ120: =(AY120-CFO!V$17)*(1+($C$2+($C$3*V120))) -> 1.132593871 | BA120: =(AZ120-CFO!W$17)*(1+($C$2+($C$3*W120))) -> 1.087180521 | BB120: =(BA120-CFO!X$17)*(1+($C$2+($C$3*X120))) -> 1.041979006
D121: 98 | E121: =NORMSINV(RAND()) -> 0.2514499027 | F121: 1.158669585 | G121: 0.8742024285 | H121: -1.324308252 | I121: 0.9858336083 | J121: 0.2448638341 | K121: -0.8096975164 | L121: -1.399320809 | M121: 0.8880566979 | N121: 1.808173461 | O121: -0.7273474565 | P121: -1.819284833 | Q121: -1.999207313 | R121: 0.004070548077 | S121: 1.725235344 | T121: 0.4143910065 | U121: -1.705523781 | V121: 0.3915343879 | W121: 1.212053372 | X121: -0.02598162026 | Y121: -1.689823041 | Z121: 1.153917501 | AA121: -0.5936420902 | AB121: -1.11557838 | AC121: 0.1642458241 | AD121: -0.1846312355 | AE121: -1.679193595 | AF121: -1.592117827 | AH121: 98 | AI121: =($C$1-CFO!$E$17)*(1+($C$2+($C$3*E121))) -> 1.057718803 | AJ121: =(AI121-CFO!F$17)*(1+($C$2+($C$3*F121))) -> 1.125478549 | AK121: =(AJ121-CFO!G$17)*(1+($C$2+($C$3*G121))) -> 1.193509559 | AL121: =(AK121-CFO!H$17)*(1+($C$2+($C$3*H121))) -> 1.242743716 | AM121: =(AL121-CFO!I$17)*(1+($C$2+($C$3*I121))) -> 1.316888096 | AN121: =(AM121-CFO!J$17)*(1+($C$2+($C$3*J121))) -> 1.386078593 | AO121: =(AN121-CFO!K$17)*(1+($C$2+($C$3*K121))) -> 1.445778063 | AP121: =(AO121-CFO!L$17)*(1+($C$2+($C$3*L121))) -> 1.414003125 | AQ121: =(AP121-CFO!M$17)*(1+($C$2+($C$3*M121))) -> 1.405763619 | AR121: =(AQ121-CFO!N$17)*(1+($C$2+($C$3*N121))) -> 1.406190877 | AS121: =(AR121-CFO!O$17)*(1+($C$2+($C$3*O121))) -> 1.378107054 | AT121: =(AS121-CFO!P$17)*(1+($C$2+($C$3*P121))) -> 1.336870676 | AU121: =(AT121-CFO!Q$17)*(1+($C$2+($C$3*Q121))) -> 1.292314362 | AV121: =(AU121-CFO!R$17)*(1+($C$2+($C$3*R121))) -> 1.266110896 | AW121: =(AV121-CFO!S$17)*(1+($C$2+($C$3*S121))) -> 1.254780613 | AX121: =(AW121-CFO!T$17)*(1+($C$2+($C$3*T121))) -> 1.229289696 | AY121: =(AX121-CFO!U$17)*(1+($C$2+($C$3*U121))) -> 1.182065631 | AZ121: =(AY121-CFO!V$17)*(1+($C$2+($C$3*V121))) -> 1.151968896 | BA121: =(AZ121-CFO!W$17)*(1+($C$2+($C$3*W121))) -> 1.126968636 | BB121: =(BA121-CFO!X$17)*(1+($C$2+($C$3*X121))) -> 1.089311486
D122: 99 | E122: -0.796751506 | F122: 1.200618712 | G122: -0.2276602881 | H122: -0.3957899123 | I122: -1.339853876 | J122: 1.571533956 | K122: -0.4209525026 | L122: -1.231606559 | M122: 0.001527414762 | N122: -0.885176713 | O122: 0.2127629953 | P122: -0.5341480526 | Q122: 1.626570021 | R122: -0.6630409039 | S122: 0.06994805548 | T122: -0.08030224442 | U122: -0.2023606384 | V122: 1.14261147 | W122: -0.2454643712 | X122: -1.289869609 | Y122: 0.6580840834 | Z122: -0.5761685151 | AA122: -0.7585160568 | AB122: -1.363014858 | AC122: -0.006372385094 | AD122: -0.322260845 | AE122: -0.05839799751 | AF122: 1.211294566 | AH122: 99 | AI122: =($C$1-CFO!$E$17)*(1+($C$2+($C$3*E122))) -> 1.049074048 | AJ122: =(AI122-CFO!F$17)*(1+($C$2+($C$3*F122))) -> 1.11690883 | AK122: =(AJ122-CFO!G$17)*(1+($C$2+($C$3*G122))) -> 1.174545375 | AL122: =(AK122-CFO!H$17)*(1+($C$2+($C$3*H122))) -> 1.232493608 | AM122: =(AL122-CFO!I$17)*(1+($C$2+($C$3*I122))) -> 1.282757617 | AN122: =(AM122-CFO!J$17)*(1+($C$2+($C$3*J122))) -> 1.36503862 | AO122: =(AN122-CFO!K$17)*(1+($C$2+($C$3*K122))) -> 1.428722868 | AP122: =(AO122-CFO!L$17)*(1+($C$2+($C$3*L122))) -> 1.398579848 | AQ122: =(AP122-CFO!M$17)*(1+($C$2+($C$3*M122))) -> 1.380300747 | AR122: =(AQ122-CFO!N$17)*(1+($C$2+($C$3*N122))) -> 1.351120584 | AS122: =(AR122-CFO!O$17)*(1+($C$2+($C$3*O122))) -> 1.331800846 | AT122: =(AS122-CFO!P$17)*(1+($C$2+($C$3*P122))) -> 1.303266875 | AU122: =(AT122-CFO!Q$17)*(1+($C$2+($C$3*Q122))) -> 1.294654217 | AV122: =(AU122-CFO!R$17)*(1+($C$2+($C$3*R122))) -> 1.261895978 | AW122: =(AV122-CFO!S$17)*(1+($C$2+($C$3*S122))) -> 1.234451243 | AX122: =(AW122-CFO!T$17)*(1+($C$2+($C$3*T122))) -> 1.203749864 | AY122: =(AX122-CFO!U$17)*(1+($C$2+($C$3*U122))) -> 1.170023193 | AZ122: =(AY122-CFO!V$17)*(1+($C$2+($C$3*V122))) -> 1.146266259 | BA122: =(AZ122-CFO!W$17)*(1+($C$2+($C$3*W122))) -> 1.108428078 | BB122: =(BA122-CFO!X$17)*(1+($C$2+($C$3*X122))) -> 1.059759092
D123: 100 | E123: 0.7080745375 | F123: -0.4606898885 | G123: -1.989247759 | H123: -0.04216501909 | I123: -0.657276116 | J123: 1.13193226 | K123: -0.1033829697 | L123: 0.9634217004 | M123: -0.3530458407 | N123: -0.6696129 | O123: 0.4529047785 | P123: 0.1997355749 | Q123: -0.08037184304 | R123: -0.7480409262 | S123: -0.4019325849 | T123: 1.055233075 | U123: -0.741837676 | V123: -0.8851397293 | W123: 1.011899607 | X123: -1.267287543 | Y123: 1.208120509 | Z123: 2.345973687 | AA123: -0.7920540653 | AB123: -0.08299577178 | AC123: -0.5094334573 | AD123: 2.180096168 | AE123: 2.755875137 | AF123: 0.7058368746 | AH123: 100 | AI123: =($C$1-CFO!$E$17)*(1+($C$2+($C$3*E123))) -> 1.06148469 | AJ123: =(AI123-CFO!F$17)*(1+($C$2+($C$3*F123))) -> 1.115209967 | AK123: =(AJ123-CFO!G$17)*(1+($C$2+($C$3*G123))) -> 1.156639408 | AL123: =(AK123-CFO!H$17)*(1+($C$2+($C$3*H123))) -> 1.217579502 | AM123: =(AL123-CFO!I$17)*(1+($C$2+($C$3*I123))) -> 1.274476839 | AN123: =(AM123-CFO!J$17)*(1+($C$2+($C$3*J123))) -> 1.351852904 | AO123: =(AN123-CFO!K$17)*(1+($C$2+($C$3*K123))) -> 1.418787975 | AP123: =(AO123-CFO!L$17)*(1+($C$2+($C$3*L123))) -> 1.412546725 | AQ123: =(AP123-CFO!M$17)*(1+($C$2+($C$3*M123))) -> 1.390739851 | AR123: =(AQ123-CFO!N$17)*(1+($C$2+($C$3*N123))) -> 1.364045562 | AS123: =(AR123-CFO!O$17)*(1+($C$2+($C$3*O123))) -> 1.347577309 | AT123: =(AS123-CFO!P$17)*(1+($C$2+($C$3*P123))) -> 1.326950731 | AU123: =(AT123-CFO!Q$17)*(1+($C$2+($C$3*Q123))) -> 1.301843059 | AV123: =(AU123-CFO!R$17)*(1+($C$2+($C$3*R123))) -> 1.26837199 | AW123: =(AV123-CFO!S$17)*(1+($C$2+($C$3*S123))) -> 1.236513454 | AX123: =(AW123-CFO!T$17)*(1+($C$2+($C$3*T123))) -> 1.216564591 | AY123: =(AX123-CFO!U$17)*(1+($C$2+($C$3*U123))) -> 1.178130359 | AZ123: =(AY123-CFO!V$17)*(1+($C$2+($C$3*V123))) -> 1.136512324 | BA123: =(AZ123-CFO!W$17)*(1+($C$2+($C$3*W123))) -> 1.109270272 | BB123: =(BA123-CFO!X$17)*(1+($C$2+($C$3*X123))) -> 1.060801829
D124: 101 | E124: -1.388899517 | F124: -0.6927081477 | G124: 0.1211029034 | H124: -0.102686728 | I124: -0.04295106606 | J124: 1.17927815 | K124: -0.2802639283 | L124: 0.1856517172 | M124: -0.7821117942 | N124: -0.2759862121 | O124: 0.099721886 | P124: 0.01616826922 | Q124: -0.0558829427 | R124: -0.7679586403 | S124: -1.62244716 | T124: -2.30932525 | U124: 0.6140472228 | V124: -2.238217433 | W124: 1.58721079 | X124: -0.3278961151 | Y124: -0.1957647499 | Z124: -0.1115792176 | AA124: 0.171828382 | AB124: 1.234955842 | AC124: -0.305171462 | AD124: -1.189638512 | AE124: -0.8115655913 | AF124: -1.188413129 | AH124: 101 | AI124: =($C$1-CFO!$E$17)*(1+($C$2+($C$3*E124))) -> 1.044190469 | AJ124: =(AI124-CFO!F$17)*(1+($C$2+($C$3*F124))) -> 1.095567744 | AK124: =(AJ124-CFO!G$17)*(1+($C$2+($C$3*G124))) -> 1.155877429 | AL124: =(AK124-CFO!H$17)*(1+($C$2+($C$3*H124))) -> 1.216223968 | AM124: =(AL124-CFO!I$17)*(1+($C$2+($C$3*I124))) -> 1.279237552 | AN124: =(AM124-CFO!J$17)*(1+($C$2+($C$3*J124))) -> 1.357268442 | AO124: =(AN124-CFO!K$17)*(1+($C$2+($C$3*K124))) -> 1.42235916 | AP124: =(AO124-CFO!L$17)*(1+($C$2+($C$3*L124))) -> 1.407689945 | AQ124: =(AP124-CFO!M$17)*(1+($C$2+($C$3*M124))) -> 1.381122135 | AR124: =(AQ124-CFO!N$17)*(1+($C$2+($C$3*N124))) -> 1.35843504 | AS124: =(AR124-CFO!O$17)*(1+($C$2+($C$3*O124))) -> 1.338122478 | AT124: =(AS124-CFO!P$17)*(1+($C$2+($C$3*P124))) -> 1.31536772 | AU124: =(AT124-CFO!Q$17)*(1+($C$2+($C$3*Q124))) -> 1.290236458 | AV124: =(AU124-CFO!R$17)*(1+($C$2+($C$3*R124))) -> 1.25635961 | AW124: =(AV124-CFO!S$17)*(1+($C$2+($C$3*S124))) -> 1.212541063 | AX124: =(AW124-CFO!T$17)*(1+($C$2+($C$3*T124))) -> 1.160743071 | AY124: =(AX124-CFO!U$17)*(1+($C$2+($C$3*U124))) -> 1.133247414 | AZ124: =(AY124-CFO!V$17)*(1+($C$2+($C$3*V124))) -> 1.079258214 | BA124: =(AZ124-CFO!W$17)*(1+($C$2+($C$3*W124))) -> 1.054861709 | BB124: =(BA124-CFO!X$17)*(1+($C$2+($C$3*X124))) -> 1.013093253
D125: 102 | E125: 1.29714429 | F125: -0.8607439242 | G125: -0.8207762023 | H125: -1.405249875 | I125: -0.3082916545 | J125: -0.4255535022 | K125: 0.002023193893 | L125: -1.911037312 | M125: -0.7731218005 | N125: 0.2616311128 | O125: 1.155425605 | P125: 0.3777138472 | Q125: 0.1922894064 | R125: -1.049361702 | S125: -0.6751963376 | T125: -0.5441410328 | U125: 0.6057583569 | V125: 1.550480498 | W125: 1.799712659 | X125: -1.497236729 | Y125: -0.9969959974 | Z125: -1.204092116 | AA125: 1.187918675 | AB125: 1.733224006 | AC125: 0.7056395574 | AD125: -1.050945063 | AE125: 0.2339860416 | AF125: 0.6192986903 | AH125: 102 | AI125: =($C$1-CFO!$E$17)*(1+($C$2+($C$3*E125))) -> 1.066342882 | AJ125: =(AI125-CFO!F$17)*(1+($C$2+($C$3*F125))) -> 1.11665321 | AK125: =(AJ125-CFO!G$17)*(1+($C$2+($C$3*G125))) -> 1.16883309 | AL125: =(AK125-CFO!H$17)*(1+($C$2+($C$3*H125))) -> 1.216958351 | AM125: =(AL125-CFO!I$17)*(1+($C$2+($C$3*I125))) -> 1.277335034 | AN125: =(AM125-CFO!J$17)*(1+($C$2+($C$3*J125))) -> 1.338465 | AO125: =(AN125-CFO!K$17)*(1+($C$2+($C$3*K125))) -> 1.40624784 | AP125: =(AO125-CFO!L$17)*(1+($C$2+($C$3*L125))) -> 1.368413164 | AQ125: =(AP125-CFO!M$17)*(1+($C$2+($C$3*M125))) -> 1.341243235 | AR125: =(AQ125-CFO!N$17)*(1+($C$2+($C$3*N125))) -> 1.323233518 | AS125: =(AR125-CFO!O$17)*(1+($C$2+($C$3*O125))) -> 1.312778559 | AT125: =(AS125-CFO!P$17)*(1+($C$2+($C$3*P125))) -> 1.29305385 | AU125: =(AT125-CFO!Q$17)*(1+($C$2+($C$3*Q125))) -> 1.269855392 | AV125: =(AU125-CFO!R$17)*(1+($C$2+($C$3*R125))) -> 1.232881766 | AW125: =(AV125-CFO!S$17)*(1+($C$2+($C$3*S125))) -> 1.197715053 | AX125: =(AW125-CFO!T$17)*(1+($C$2+($C$3*T125))) -> 1.161927108 | AY125: =(AX125-CFO!U$17)*(1+($C$2+($C$3*U125))) -> 1.134392571 | AZ125: =(AY125-CFO!V$17)*(1+($C$2+($C$3*V125))) -> 1.112958779 | BA125: =(AZ125-CFO!W$17)*(1+($C$2+($C$3*W125))) -> 1.091586099 | BB125: =(BA125-CFO!X$17)*(1+($C$2+($C$3*X125))) -> 1.040980292
D126: 103 | E126: -0.6045978481 | F126: -0.5422755092 | G126: -0.7657435491 | H126: 1.483889098 | I126: 0.9815906146 | J126: -0.3455645946 | K126: 0.927139003 | L126: -1.448306641 | M126: 0.8939119987 | N126: 0.7605717365 | O126: -0.4408328391 | P126: -0.2999857378 | Q126: 0.2858907833 | R126: -0.1093589722 | S126: -0.4744105337 | T126: 1.516783488 | U126: 0.09563273246 | V126: -1.055642877 | W126: -0.9465958287 | X126: -0.1133375497 | Y126: 0.2637720736 | Z126: 1.861525848 | AA126: -1.386165085 | AB126: 0.8624153228 | AC126: 0.6766289272 | AD126: -0.02643349424 | AE126: 1.501356362 | AF126: -0.1352344252 | AH126: 103 | AI126: =($C$1-CFO!$E$17)*(1+($C$2+($C$3*E126))) -> 1.050658783 | AJ126: =(AI126-CFO!F$17)*(1+($C$2+($C$3*F126))) -> 1.103457814 | AK126: =(AJ126-CFO!G$17)*(1+($C$2+($C$3*G126))) -> 1.155907613 | AL126: =(AK126-CFO!H$17)*(1+($C$2+($C$3*H126))) -> 1.231342586 | AM126: =(AL126-CFO!I$17)*(1+($C$2+($C$3*I126))) -> 1.305080489 | AN126: =(AM126-CFO!J$17)*(1+($C$2+($C$3*J126))) -> 1.367638859 | AO126: =(AN126-CFO!K$17)*(1+($C$2+($C$3*K126))) -> 1.446501707 | AP126: =(AO126-CFO!L$17)*(1+($C$2+($C$3*L126))) -> 1.414188629 | AQ126: =(AP126-CFO!M$17)*(1+($C$2+($C$3*M126))) -> 1.406018764 | AR126: =(AQ126-CFO!N$17)*(1+($C$2+($C$3*N126))) -> 1.395105199 | AS126: =(AR126-CFO!O$17)*(1+($C$2+($C$3*O126))) -> 1.369896793 | AT126: =(AS126-CFO!P$17)*(1+($C$2+($C$3*P126))) -> 1.344579878 | AU126: =(AT126-CFO!Q$17)*(1+($C$2+($C$3*Q126))) -> 1.323663094 | AV126: =(AU126-CFO!R$17)*(1+($C$2+($C$3*R126))) -> 1.297062619 | AW126: =(AV126-CFO!S$17)*(1+($C$2+($C$3*S126))) -> 1.265081408 | AX126: =(AW126-CFO!T$17)*(1+($C$2+($C$3*T126))) -> 1.250515723 | AY126: =(AX126-CFO!U$17)*(1+($C$2+($C$3*U126))) -> 1.220675424 | AZ126: =(AY126-CFO!V$17)*(1+($C$2+($C$3*V126))) -> 1.178194732 | BA126: =(AZ126-CFO!W$17)*(1+($C$2+($C$3*W126))) -> 1.134797868 | BB126: =(BA126-CFO!X$17)*(1+($C$2+($C$3*X126))) -> 1.09657795
D127: 104 | E127: -2.060611293 | F127: -1.292707116 | G127: 0.2385632417 | H127: 1.230540858 | I127: 0.7709906734 | J127: 1.469719618 | K127: 0.4677574367 | L127: -0.09016071485 | M127: 1.111605667 | N127: 1.037698944 | O127: -0.8417454782 | P127: -0.5716353609 | Q127: -0.8090191322 | R127: -0.6748837766 | S127: -0.4017673623 | T127: -0.3268205416 | U127: -0.5671756355 | V127: 1.98875548 | W127: 0.8031752198 | X127: 1.383893844 | Y127: -1.647979033 | Z127: 0.9727787296 | AA127: 0.9464610296 | AB127: 0.3253256154 | AC127: 0.5157300897 | AD127: -0.4118669281 | AE127: 1.298169895 | AF127: -1.384632364 | AH127: 104 | AI127: =($C$1-CFO!$E$17)*(1+($C$2+($C$3*E127))) -> 1.03865071 | AJ127: =(AI127-CFO!F$17)*(1+($C$2+($C$3*F127))) -> 1.084788913 | AK127: =(AJ127-CFO!G$17)*(1+($C$2+($C$3*G127))) -> 1.145879033 | AL127: =(AK127-CFO!H$17)*(1+($C$2+($C$3*H127))) -> 1.218565349 | AM127: =(AL127-CFO!I$17)*(1+($C$2+($C$3*I127))) -> 1.289786867 | AN127: =(AM127-CFO!J$17)*(1+($C$2+($C$3*J127))) -> 1.371246604 | AO127: =(AN127-CFO!K$17)*(1+($C$2+($C$3*K127))) -> 1.445055493 | AP127: =(AO127-CFO!L$17)*(1+($C$2+($C$3*L127))) -> 1.427885745 | AQ127: =(AP127-CFO!M$17)*(1+($C$2+($C$3*M127))) -> 1.422541095 | AR127: =(AQ127-CFO!N$17)*(1+($C$2+($C$3*N127))) -> 1.415163867 | AS127: =(AR127-CFO!O$17)*(1+($C$2+($C$3*O127))) -> 1.385996271 | AT127: =(AS127-CFO!P$17)*(1+($C$2+($C$3*P127))) -> 1.358131864 | AU127: =(AT127-CFO!Q$17)*(1+($C$2+($C$3*Q127))) -> 1.326155257 | AV127: =(AU127-CFO!R$17)*(1+($C$2+($C$3*R127))) -> 1.293865606 | AW127: =(AV127-CFO!S$17)*(1+($C$2+($C$3*S127))) -> 1.262538578 | AX127: =(AW127-CFO!T$17)*(1+($C$2+($C$3*T127))) -> 1.230118072 | AY127: =(AX127-CFO!U$17)*(1+($C$2+($C$3*U127))) -> 1.193564612 | AZ127: =(AY127-CFO!V$17)*(1+($C$2+($C$3*V127))) -> 1.178257567 | BA127: =(AZ127-CFO!W$17)*(1+($C$2+($C$3*W127))) -> 1.150490976 | BB127: =(BA127-CFO!X$17)*(1+($C$2+($C$3*X127))) -> 1.125659604
D128: 105 | E128: 0.2924140361 | F128: 1.262389385 | G128: -0.2353060922 | H128: 2.535083415 | I128: 1.020239038 | J128: 0.1648187287 | K128: 1.679737026 | L128: 0.5835534513 | M128: 0.5440096142 | N128: 0.1211869966 | O128: 0.06343944497 | P128: 1.084747228 | Q128: -2.006427216 | R128: 3.188581973 | S128: -0.01894467013 | T128: 1.228228227 | U128: -2.045578564 | V128: -0.02064963895 | W128: 0.7887892187 | X128: 2.461927042 | Y128: -0.6680742789 | Z128: -0.4888350224 | AA128: 0.7420315569 | AB128: -0.5279056592 | AC128: 0.1000982954 | AD128: -0.334576731 | AE128: -0.2146227204 | AF128: 0.1227917893 | AH128: 105 | AI128: =($C$1-CFO!$E$17)*(1+($C$2+($C$3*E128))) -> 1.058056643 | AJ128: =(AI128-CFO!F$17)*(1+($C$2+($C$3*F128))) -> 1.126731716 | AK128: =(AJ128-CFO!G$17)*(1+($C$2+($C$3*G128))) -> 1.184515236 | AL128: =(AK128-CFO!H$17)*(1+($C$2+($C$3*H128))) -> 1.271213432 | AM128: =(AL128-CFO!I$17)*(1+($C$2+($C$3*I128))) -> 1.346624716 | AN128: =(AM128-CFO!J$17)*(1+($C$2+($C$3*J128))) -> 1.41570297 | AO128: =(AN128-CFO!K$17)*(1+($C$2+($C$3*K128))) -> 1.504809032 | AP128: =(AO128-CFO!L$17)*(1+($C$2+($C$3*L128))) -> 1.496873143 | AQ128: =(AP128-CFO!M$17)*(1+($C$2+($C$3*M128))) -> 1.487230702 | AR128: =(AQ128-CFO!N$17)*(1+($C$2+($C$3*N128))) -> 1.471417302 | AS128: =(AR128-CFO!O$17)*(1+($C$2+($C$3*O128))) -> 1.453494649 | AT128: =(AS128-CFO!P$17)*(1+($C$2+($C$3*P128))) -> 1.445489683 | AU128: =(AT128-CFO!Q$17)*(1+($C$2+($C$3*Q128))) -> 1.401722686 | AV128: =(AU128-CFO!R$17)*(1+($C$2+($C$3*R128))) -> 1.412434444 | AW128: =(AV128-CFO!S$17)*(1+($C$2+($C$3*S128))) -> 1.387722991 | AX128: =(AW128-CFO!T$17)*(1+($C$2+($C$3*T128))) -> 1.374519688 | AY128: =(AX128-CFO!U$17)*(1+($C$2+($C$3*U128))) -> 1.325221732 | AZ128: =(AY128-CFO!V$17)*(1+($C$2+($C$3*V128))) -> 1.29483885 | BA128: =(AZ128-CFO!W$17)*(1+($C$2+($C$3*W128))) -> 1.270477376 | BB128: =(BA128-CFO!X$17)*(1+($C$2+($C$3*X128))) -> 1.260267913
D129: 106 | E129: -0.3281777043 | F129: 0.7924629092 | G129: 0.3827752303 | H129: 0.6552134888 | I129: -0.6808558256 | J129: -0.9966621636 | K129: -1.057568102 | L129: 0.06971815044 | M129: 1.076897653 | N129: -2.028601089 | O129: -2.04005759 | P129: 0.1151051192 | Q129: -0.9173173035 | R129: 0.8773749769 | S129: 0.5622731507 | T129: 1.20752288 | U129: 0.5281772108 | V129: 0.5680984727 | W129: 0.9122999323 | X129: 0.5723515941 | Y129: 1.633489643 | Z129: -1.913168559 | AA129: -1.414291788 | AB129: -0.4096927056 | AC129: -0.7344576346 | AD129: 0.6081207658 | AE129: -0.02364919198 | AF129: -1.120102525 | AH129: 106 | AI129: =($C$1-CFO!$E$17)*(1+($C$2+($C$3*E129))) -> 1.052938482 | AJ129: =(AI129-CFO!F$17)*(1+($C$2+($C$3*F129))) -> 1.117362099 | AK129: =(AJ129-CFO!G$17)*(1+($C$2+($C$3*G129))) -> 1.180622331 | AL129: =(AK129-CFO!H$17)*(1+($C$2+($C$3*H129))) -> 1.248899614 | AM129: =(AL129-CFO!I$17)*(1+($C$2+($C$3*I129))) -> 1.306142046 | AN129: =(AM129-CFO!J$17)*(1+($C$2+($C$3*J129))) -> 1.361741828 | AO129: =(AN129-CFO!K$17)*(1+($C$2+($C$3*K129))) -> 1.418245562 | AP129: =(AO129-CFO!L$17)*(1+($C$2+($C$3*L129))) -> 1.402202185 | AQ129: =(AP129-CFO!M$17)*(1+($C$2+($C$3*M129))) -> 1.39563745 | AR129: =(AQ129-CFO!N$17)*(1+($C$2+($C$3*N129))) -> 1.35442286 | AS129: =(AR129-CFO!O$17)*(1+($C$2+($C$3*O129))) -> 1.31172747 | AT129: =(AS129-CFO!P$17)*(1+($C$2+($C$3*P129))) -> 1.289331504 | AU129: =(AT129-CFO!Q$17)*(1+($C$2+($C$3*Q129))) -> 1.255079414 | AV129: =(AU129-CFO!R$17)*(1+($C$2+($C$3*R129))) -> 1.236358965 | AW129: =(AV129-CFO!S$17)*(1+($C$2+($C$3*S129))) -> 1.212931935 | AX129: =(AW129-CFO!T$17)*(1+($C$2+($C$3*T129))) -> 1.193624904 | AY129: =(AX129-CFO!U$17)*(1+($C$2+($C$3*U129))) -> 1.166300731 | AZ129: =(AY129-CFO!V$17)*(1+($C$2+($C$3*V129))) -> 1.137338177 | BA129: =(AZ129-CFO!W$17)*(1+($C$2+($C$3*W129))) -> 1.109265594 | BB129: =(BA129-CFO!X$17)*(1+($C$2+($C$3*X129))) -> 1.076195509
D130: 107 | E130: -0.4397553278 | F130: 0.3979002822 | G130: 0.8474689048 | H130: -0.1803900649 | I130: 0.1639601307 | J130: -1.196995003 | K130: 0.2098583104 | L130: -0.7795811035 | M130: 1.582302885 | N130: 0.2503848721 | O130: 0.07532320436 | P130: 0.6061802229 | Q130: -0.6530279814 | R130: -0.2020071201 | S130: -0.2735050622 | T130: 1.141447419 | U130: -0.2002754719 | V130: 0.5387849525 | W130: 1.033843558 | X130: -0.8637010371 | Y130: 1.101945488 | Z130: -0.6208798197 | AA130: 1.755007456 | AB130: 0.6889946234 | AC130: 0.3601902768 | AD130: 1.649376975 | AE130: =NORMSINV(RAND()) -> -1.084799442 | AF130: 1.284928231 | AH130: 107 | AI130: =($C$1-CFO!$E$17)*(1+($C$2+($C$3*E130))) -> 1.052018276 | AJ130: =(AI130-CFO!F$17)*(1+($C$2+($C$3*F130))) -> 1.11299378 | AK130: =(AJ130-CFO!G$17)*(1+($C$2+($C$3*G130))) -> 1.180392932 | AL130: =(AK130-CFO!H$17)*(1+($C$2+($C$3*H130))) -> 1.240553554 | AM130: =(AL130-CFO!I$17)*(1+($C$2+($C$3*I130))) -> 1.306251534 | AN130: =(AM130-CFO!J$17)*(1+($C$2+($C$3*J130))) -> 1.359704907 | AO130: =(AN130-CFO!K$17)*(1+($C$2+($C$3*K130))) -> 1.430316469 | AP130: =(AO130-CFO!L$17)*(1+($C$2+($C$3*L130))) -> 1.405188755 | AQ130: =(AP130-CFO!M$17)*(1+($C$2+($C$3*M130))) -> 1.404198172 | AR130: =(AQ130-CFO!N$17)*(1+($C$2+($C$3*N130))) -> 1.387709453 | AS130: =(AR130-CFO!O$17)*(1+($C$2+($C$3*O130))) -> 1.367862249 | AT130: =(AS130-CFO!P$17)*(1+($C$2+($C$3*P130))) -> 1.352027848 | AU130: =(AT130-CFO!Q$17)*(1+($C$2+($C$3*Q130))) -> 1.321563073 | AV130: =(AU130-CFO!R$17)*(1+($C$2+($C$3*R130))) -> 1.293975957 | AW130: =(AV130-CFO!S$17)*(1+($C$2+($C$3*S130))) -> 1.263920446 | AX130: =(AW130-CFO!T$17)*(1+($C$2+($C$3*T130))) -> 1.245692336 | AY130: =(AX130-CFO!U$17)*(1+($C$2+($C$3*U130))) -> 1.212924174 | AZ130: =(AY130-CFO!V$17)*(1+($C$2+($C$3*V130))) -> 1.185022231 | BA130: =(AZ130-CFO!W$17)*(1+($C$2+($C$3*W130))) -> 1.159534307 | BB130: =(BA130-CFO!X$17)*(1+($C$2+($C$3*X130))) -> 1.115303072
D131: 108 | E131: -1.210392175 | F131: -0.5257650165 | G131: -2.15357499 | H131: 1.60965299 | I131: 0.4585657753 | J131: 1.101701785 | K131: 1.488172649 | L131: -1.583874138 | M131: -1.243338029 | N131: 0.6830803527 | O131: -0.3700273779 | P131: -0.512950481 | Q131: 0.8341648743 | R131: 1.177455178 | S131: -2.071575342 | T131: -0.468963927 | U131: -1.109535974 | V131: -0.0543986049 | W131: 0.1018921393 | X131: -0.3288679623 | Y131: -1.152487938 | Z131: 0.8838739553 | AA131: -1.10607595 | AB131: -2.107697347 | AC131: -0.2601453384 | AD131: 0.4451099277 | AE131: 1.334057822 | AF131: 1.222653573 | AH131: 108 | AI131: =($C$1-CFO!$E$17)*(1+($C$2+($C$3*E131))) -> 1.04566266 | AJ131: =(AI131-CFO!F$17)*(1+($C$2+($C$3*F131))) -> 1.098505737 | AK131: =(AJ131-CFO!G$17)*(1+($C$2+($C$3*G131))) -> 1.138313725 | AL131: =(AK131-CFO!H$17)*(1+($C$2+($C$3*H131))) -> 1.214295851 | AM131: =(AL131-CFO!I$17)*(1+($C$2+($C$3*I131))) -> 1.282269949 | AN131: =(AM131-CFO!J$17)*(1+($C$2+($C$3*J131))) -> 1.359585259 | AO131: =(AN131-CFO!K$17)*(1+($C$2+($C$3*K131))) -> 1.444453473 | AP131: =(AO131-CFO!L$17)*(1+($C$2+($C$3*L131))) -> 1.410602251 | AQ131: =(AP131-CFO!M$17)*(1+($C$2+($C$3*M131))) -> 1.379068134 | AR131: =(AQ131-CFO!N$17)*(1+($C$2+($C$3*N131))) -> 1.366520869 | AS131: =(AR131-CFO!O$17)*(1+($C$2+($C$3*O131))) -> 1.341471456 | AT131: =(AS131-CFO!P$17)*(1+($C$2+($C$3*P131))) -> 1.313346629 | AU131: =(AT131-CFO!Q$17)*(1+($C$2+($C$3*Q131))) -> 1.297128949 | AV131: =(AU131-CFO!R$17)*(1+($C$2+($C$3*R131))) -> 1.282692539 | AW131: =(AV131-CFO!S$17)*(1+($C$2+($C$3*S131))) -> 1.234760376 | AX131: =(AW131-CFO!T$17)*(1+($C$2+($C$3*T131))) -> 1.200407872 | AY131: =(AX131-CFO!U$17)*(1+($C$2+($C$3*U131))) -> 1.158325214 | AZ131: =(AY131-CFO!V$17)*(1+($C$2+($C$3*V131))) -> 1.12366799 | BA131: =(AZ131-CFO!W$17)*(1+($C$2+($C$3*W131))) -> 1.088282776 | BB131: =(BA131-CFO!X$17)*(1+($C$2+($C$3*X131))) -> 1.047220785
D132: 109 | E132: 0.6207048204 | F132: -1.372024459 | G132: 0.6579977835 | H132: -0.2037943906 | I132: -1.104797034 | J132: -1.868478812 | K132: 0.4905650252 | L132: -0.06731109915 | M132: -0.5534552646 | N132: -0.8837430794 | O132: 1.578840385 | P132: 1.420601691 | Q132: 1.228021412 | R132: 0.7877791579 | S132: 0.1927272294 | T132: -0.1381082609 | U132: 0.6546661821 | V132: -2.293451184 | W132: -0.9568642451 | X132: 0.1312981533 | Y132: 0.02559930358 | Z132: 0.2503376031 | AA132: -0.1800480167 | AB132: 1.251018676 | AC132: 0.8729353325 | AD132: 1.732351371 | AE132: -1.513243093 | AF132: -1.744710883 | AH132: 109 | AI132: =($C$1-CFO!$E$17)*(1+($C$2+($C$3*E132))) -> 1.060764132 | AJ132: =(AI132-CFO!F$17)*(1+($C$2+($C$3*F132))) -> 1.10651127 | AK132: =(AJ132-CFO!G$17)*(1+($C$2+($C$3*G132))) -> 1.171984941 | AL132: =(AK132-CFO!H$17)*(1+($C$2+($C$3*H132))) -> 1.231730329 | AM132: =(AL132-CFO!I$17)*(1+($C$2+($C$3*I132))) -> 1.284363317 | AN132: =(AM132-CFO!J$17)*(1+($C$2+($C$3*J132))) -> 1.330418254 | AO132: =(AN132-CFO!K$17)*(1+($C$2+($C$3*K132))) -> 1.40334358 | AP132: =(AO132-CFO!L$17)*(1+($C$2+($C$3*L132))) -> 1.385450283 | AQ132: =(AP132-CFO!M$17)*(1+($C$2+($C$3*M132))) -> 1.360929565 | AR132: =(AQ132-CFO!N$17)*(1+($C$2+($C$3*N132))) -> 1.331436686 | AS132: =(AR132-CFO!O$17)*(1+($C$2+($C$3*O132))) -> 1.325585942 | AT132: =(AS132-CFO!P$17)*(1+($C$2+($C$3*P132))) -> 1.316818403 | AU132: =(AT132-CFO!Q$17)*(1+($C$2+($C$3*Q132))) -> 1.304683582 | AV132: =(AU132-CFO!R$17)*(1+($C$2+($C$3*R132))) -> 1.286606731 | AW132: =(AV132-CFO!S$17)*(1+($C$2+($C$3*S132))) -> 1.260976608 | AX132: =(AW132-CFO!T$17)*(1+($C$2+($C$3*T132))) -> 1.230338565 | AY132: =(AX132-CFO!U$17)*(1+($C$2+($C$3*U132))) -> 1.205235597 | AZ132: =(AY132-CFO!V$17)*(1+($C$2+($C$3*V132))) -> 1.151179299 | BA132: =(AZ132-CFO!W$17)*(1+($C$2+($C$3*W132))) -> 1.107249152 | BB132: =(BA132-CFO!X$17)*(1+($C$2+($C$3*X132))) -> 1.070436783
D133: 110 | E133: 0.1644646954 | F133: -1.377814596 | G133: -0.1685617078 | H133: -0.1334030061 | I133: 2.041152209 | J133: -0.8755432947 | K133: -0.7763419689 | L133: -0.2602290189 | M133: -0.8475962177 | N133: 1.736243045 | O133: -0.3535263521 | P133: -0.8295755831 | Q133: -0.1289779862 | R133: 0.3779877882 | S133: -1.039231261 | T133: -0.6949717253 | U133: -0.4997819916 | V133: -0.4969233153 | W133: -0.6739728001 | X133: -0.7936962639 | Y133: 0.3346050517 | Z133: -0.1036356374 | AA133: -1.106670899 | AB133: -0.7371252492 | AC133: 0.4173769932 | AD133: -0.555981135 | AE133: 0.4492099495 | AF133: -0.811664932 | AH133: 110 | AI133: =($C$1-CFO!$E$17)*(1+($C$2+($C$3*E133))) -> 1.057001416 | AJ133: =(AI133-CFO!F$17)*(1+($C$2+($C$3*F133))) -> 1.102649128 | AK133: =(AJ133-CFO!G$17)*(1+($C$2+($C$3*G133))) -> 1.160505933 | AL133: =(AK133-CFO!H$17)*(1+($C$2+($C$3*H133))) -> 1.220666524 | AM133: =(AL133-CFO!I$17)*(1+($C$2+($C$3*I133))) -> 1.304694883 | AN133: =(AM133-CFO!J$17)*(1+($C$2+($C$3*J133))) -> 1.361568717 | AO133: =(AN133-CFO!K$17)*(1+($C$2+($C$3*K133))) -> 1.421211329 | AP133: =(AO133-CFO!L$17)*(1+($C$2+($C$3*L133))) -> 1.40162045 | AQ133: =(AP133-CFO!M$17)*(1+($C$2+($C$3*M133))) -> 1.374237206 | AR133: =(AQ133-CFO!N$17)*(1+($C$2+($C$3*N133))) -> 1.372690719 | AS133: =(AR133-CFO!O$17)*(1+($C$2+($C$3*O133))) -> 1.34794537 | AT133: =(AS133-CFO!P$17)*(1+($C$2+($C$3*P133))) -> 1.316671142 | AU133: =(AT133-CFO!Q$17)*(1+($C$2+($C$3*Q133))) -> 1.290832699 | AV133: =(AU133-CFO!R$17)*(1+($C$2+($C$3*R133))) -> 1.268287674 | AW133: =(AV133-CFO!S$17)*(1+($C$2+($C$3*S133))) -> 1.230251951 | AX133: =(AW133-CFO!T$17)*(1+($C$2+($C$3*T133))) -> 1.193688974 | AY133: =(AX133-CFO!U$17)*(1+($C$2+($C$3*U133))) -> 1.157038091 | AZ133: =(AY133-CFO!V$17)*(1+($C$2+($C$3*V133))) -> 1.118468669 | BA133: =(AZ133-CFO!W$17)*(1+($C$2+($C$3*W133))) -> 1.076395386 | BB133: =(BA133-CFO!X$17)*(1+($C$2+($C$3*X133))) -> 1.03131083
D134: 111 | E134: 0.3319932851 | F134: 0.8788005394 | G134: -0.3225359894 | H134: -0.3080659367 | I134: -0.6341812797 | J134: -0.4722391615 | K134: 1.160367024 | L134: -1.009534732 | M134: 1.444716008 | N134: -0.04930175987 | O134: 0.818223677 | P134: -2.098326214 | Q134: 0.2177866365 | R134: -1.89221031 | S134: -0.5901806432 | T134: -0.2401689137 | U134: 0.3405141729 | V134: -0.4061627851 | W134: -0.4496585389 | X134: -1.150724468 | Y134: 0.02993919232 | Z134: 0.02107321834 | AA134: 0.09525200011 | AB134: -1.14644185 | AC134: -0.8882434115 | AD134: 0.3588919384 | AE134: -1.027401664 | AF134: -0.1312878929 | AH134: 111 | AI134: =($C$1-CFO!$E$17)*(1+($C$2+($C$3*E134))) -> 1.058383062 | AJ134: =(AI134-CFO!F$17)*(1+($C$2+($C$3*F134))) -> 1.123724664 | AK134: =(AJ134-CFO!G$17)*(1+($C$2+($C$3*G134))) -> 1.18063506 | AL134: =(AK134-CFO!H$17)*(1+($C$2+($C$3*H134))) -> 1.239561738 | AM134: =(AL134-CFO!I$17)*(1+($C$2+($C$3*I134))) -> 1.297106261 | AN134: =(AM134-CFO!J$17)*(1+($C$2+($C$3*J134))) -> 1.358146234 | AO134: =(AN134-CFO!K$17)*(1+($C$2+($C$3*K134))) -> 1.439309848 | AP134: =(AO134-CFO!L$17)*(1+($C$2+($C$3*L134))) -> 1.411785433 | AQ134: =(AP134-CFO!M$17)*(1+($C$2+($C$3*M134))) -> 1.409538474 | AR134: =(AQ134-CFO!N$17)*(1+($C$2+($C$3*N134))) -> 1.389933113 | AS134: =(AR134-CFO!O$17)*(1+($C$2+($C$3*O134))) -> 1.378088113 | AT134: =(AS134-CFO!P$17)*(1+($C$2+($C$3*P134))) -> 1.333895186 | AU134: =(AT134-CFO!Q$17)*(1+($C$2+($C$3*Q134))) -> 1.31200065 | AV134: =(AU134-CFO!R$17)*(1+($C$2+($C$3*R134))) -> 1.2672152 | AW134: =(AV134-CFO!S$17)*(1+($C$2+($C$3*S134))) -> 1.233510109 | AX134: =(AW134-CFO!T$17)*(1+($C$2+($C$3*T134))) -> 1.201283574 | AY134: =(AX134-CFO!U$17)*(1+($C$2+($C$3*U134))) -> 1.172461165 | AZ134: =(AY134-CFO!V$17)*(1+($C$2+($C$3*V134))) -> 1.135007942 | BA134: =(AZ134-CFO!W$17)*(1+($C$2+($C$3*W134))) -> 1.095168425 | BB134: =(BA134-CFO!X$17)*(1+($C$2+($C$3*X134))) -> 1.047467034
D135: 112 | E135: 0.8544971978 | F135: -0.3530234643 | G135: 0.1380580213 | H135: 0.4509208967 | I135: -0.6179496614 | J135: 0.1902959314 | K135: 1.825063775 | L135: -0.5217263403 | M135: 0.8383709752 | N135: -1.609575014 | O135: 0.6156612454 | P135: -1.825243989 | Q135: -1.211846588 | R135: 0.1011910028 | S135: -1.109492396 | T135: 0.7759598775 | U135: 0.4717110897 | V135: -0.4935222935 | W135: 0.8460464926 | X135: 1.284578824 | Y135: -0.1066119533 | Z135: 0.8655811708 | AA135: 0.9377545158 | AB135: -0.4016499905 | AC135: -0.0850193694 | AD135: 2.040911847 | AE135: -1.173034807 | AF135: -0.3961312509 | AH135: 112 | AI135: =($C$1-CFO!$E$17)*(1+($C$2+($C$3*E135))) -> 1.062692271 | AJ135: =(AI135-CFO!F$17)*(1+($C$2+($C$3*F135))) -> 1.117384559 | AK135: =(AJ135-CFO!G$17)*(1+($C$2+($C$3*G135))) -> 1.178394909 | AL135: =(AK135-CFO!H$17)*(1+($C$2+($C$3*H135))) -> 1.244627561 | AM135: =(AL135-CFO!I$17)*(1+($C$2+($C$3*I135))) -> 1.302433925 | AN135: =(AM135-CFO!J$17)*(1+($C$2+($C$3*J135))) -> 1.370665744 | AO135: =(AN135-CFO!K$17)*(1+($C$2+($C$3*K135))) -> 1.459719724 | AP135: =(AO135-CFO!L$17)*(1+($C$2+($C$3*L135))) -> 1.438023049 | AQ135: =(AP135-CFO!M$17)*(1+($C$2+($C$3*M135))) -> 1.429979207 | AR135: =(AQ135-CFO!N$17)*(1+($C$2+($C$3*N135))) -> 1.393651911 | AS135: =(AR135-CFO!O$17)*(1+($C$2+($C$3*O135))) -> 1.37974748 | AT135: =(AS135-CFO!P$17)*(1+($C$2+($C$3*P135))) -> 1.338463382 | AU135: =(AT135-CFO!Q$17)*(1+($C$2+($C$3*Q135))) -> 1.302005338 | AV135: =(AU135-CFO!R$17)*(1+($C$2+($C$3*R135))) -> 1.277002935 | AW135: =(AV135-CFO!S$17)*(1+($C$2+($C$3*S135))) -> 1.238418191 | AX135: =(AW135-CFO!T$17)*(1+($C$2+($C$3*T135))) -> 1.215894242 | AY135: =(AX135-CFO!U$17)*(1+($C$2+($C$3*U135))) -> 1.18867618 | AZ135: =(AY135-CFO!V$17)*(1+($C$2+($C$3*V135))) -> 1.150770994 | BA135: =(AZ135-CFO!W$17)*(1+($C$2+($C$3*W135))) -> 1.122541619 | BB135: =(BA135-CFO!X$17)*(1+($C$2+($C$3*X135))) -> 1.095888182
D136: 113 | E136: 0.6634674045 | F136: -0.1334823758 | G136: -0.4819361775 | H136: -0.8435382732 | I136: -0.1183059599 | J136: -0.5667297255 | K136: 1.966680477 | L136: 1.081964967 | M136: -1.502091077 | N136: 0.3871850004 | O136: -0.1515964234 | P136: -0.2242529957 | Q136: 2.438326607 | R136: 0.6308834804 | S136: -0.4938912542 | T136: -0.8269843077 | U136: 0.1493716925 | V136: 2.050592616 | W136: -0.1258910651 | X136: -0.9630784391 | Y136: 0.1520661399 | Z136: -0.2340434969 | AA136: -0.4338974874 | AB136: -0.5922629979 | AC136: -1.089492104 | AD136: -1.451715377 | AE136: -0.6924208292 | AF136: -0.2161172123 | AH136: 113 | AI136: =($C$1-CFO!$E$17)*(1+($C$2+($C$3*E136))) -> 1.061116805 | AJ136: =(AI136-CFO!F$17)*(1+($C$2+($C$3*F136))) -> 1.117694764 | AK136: =(AJ136-CFO!G$17)*(1+($C$2+($C$3*G136))) -> 1.173009714 | AL136: =(AK136-CFO!H$17)*(1+($C$2+($C$3*H136))) -> 1.226606777 | AM136: =(AL136-CFO!I$17)*(1+($C$2+($C$3*I136))) -> 1.289106368 | AN136: =(AM136-CFO!J$17)*(1+($C$2+($C$3*J136))) -> 1.348984308 | AO136: =(AN136-CFO!K$17)*(1+($C$2+($C$3*K136))) -> 1.438769111 | AP136: =(AO136-CFO!L$17)*(1+($C$2+($C$3*L136))) -> 1.434478774 | AQ136: =(AP136-CFO!M$17)*(1+($C$2+($C$3*M136))) -> 1.400415633 | AR136: =(AQ136-CFO!N$17)*(1+($C$2+($C$3*N136))) -> 1.385304637 | AS136: =(AR136-CFO!O$17)*(1+($C$2+($C$3*O136))) -> 1.362979101 | AT136: =(AS136-CFO!P$17)*(1+($C$2+($C$3*P136))) -> 1.338305978 | AU136: =(AT136-CFO!Q$17)*(1+($C$2+($C$3*Q136))) -> 1.339325226 | AV136: =(AU136-CFO!R$17)*(1+($C$2+($C$3*R136))) -> 1.320687205 | AW136: =(AV136-CFO!S$17)*(1+($C$2+($C$3*S136))) -> 1.288986386 | AX136: =(AW136-CFO!T$17)*(1+($C$2+($C$3*T136))) -> 1.252206626 | AY136: =(AX136-CFO!U$17)*(1+($C$2+($C$3*U136))) -> 1.22292103 | AZ136: =(AY136-CFO!V$17)*(1+($C$2+($C$3*V136))) -> 1.209360634 | BA136: =(AZ136-CFO!W$17)*(1+($C$2+($C$3*W136))) -> 1.17401062 | BB136: =(BA136-CFO!X$17)*(1+($C$2+($C$3*X136))) -> 1.129143494
D137: 114 | E137: =NORMSINV(RAND()) -> -1.144184414 | F137: 0.2485748684 | G137: -0.6803245056 | H137: -1.106453263 | I137: 0.3134559814 | J137: -0.8421865314 | K137: 0.1247944708 | L137: -0.6252130846 | M137: -0.4811253728 | N137: -0.5828105493 | O137: 1.089857833 | P137: -0.6633995371 | Q137: -0.003101761859 | R137: 1.141287375 | S137: 0.2670591311 | T137: -0.2473801624 | U137: -0.3231920565 | V137: -0.1265012648 | W137: 0.3497321649 | X137: -2.10356449 | Y137: 0.8660725836 | Z137: 1.023264605 | AA137: -1.04277726 | AB137: 1.372692509 | AC137: 0.8214047917 | AD137: 0.95058374 | AE137: 1.406895527 | AF137: 1.391550571 | AH137: 114 | AI137: =($C$1-CFO!$E$17)*(1+($C$2+($C$3*E137))) -> 1.04620869 | AJ137: =(AI137-CFO!F$17)*(1+($C$2+($C$3*F137))) -> 1.105738811 | AK137: =(AJ137-CFO!G$17)*(1+($C$2+($C$3*G137))) -> 1.159006961 | AL137: =(AK137-CFO!H$17)*(1+($C$2+($C$3*H137))) -> 1.209855712 | AM137: =(AL137-CFO!I$17)*(1+($C$2+($C$3*I137))) -> 1.276263631 | AN137: =(AM137-CFO!J$17)*(1+($C$2+($C$3*J137))) -> 1.333003939 | AO137: =(AN137-CFO!K$17)*(1+($C$2+($C$3*K137))) -> 1.401999044 | AP137: =(AO137-CFO!L$17)*(1+($C$2+($C$3*L137))) -> 1.378038389 | AQ137: =(AP137-CFO!M$17)*(1+($C$2+($C$3*M137))) -> 1.354140684 | AR137: =(AQ137-CFO!N$17)*(1+($C$2+($C$3*N137))) -> 1.327668541 | AS137: =(AR137-CFO!O$17)*(1+($C$2+($C$3*O137))) -> 1.316692238 | AT137: =(AS137-CFO!P$17)*(1+($C$2+($C$3*P137))) -> 1.286554322 | AU137: =(AT137-CFO!Q$17)*(1+($C$2+($C$3*Q137))) -> 1.261264518 | AV137: =(AU137-CFO!R$17)*(1+($C$2+($C$3*R137))) -> 1.245280774 | AW137: =(AV137-CFO!S$17)*(1+($C$2+($C$3*S137))) -> 1.219301707 | AX137: =(AW137-CFO!T$17)*(1+($C$2+($C$3*T137))) -> 1.186694484 | AY137: =(AX137-CFO!U$17)*(1+($C$2+($C$3*U137))) -> 1.151496336 | AZ137: =(AY137-CFO!V$17)*(1+($C$2+($C$3*V137))) -> 1.116048896 | BA137: =(AZ137-CFO!W$17)*(1+($C$2+($C$3*W137))) -> 1.082565019 | BB137: =(BA137-CFO!X$17)*(1+($C$2+($C$3*X137))) -> 1.026905098
D138: 115 | E138: 1.937478746 | F138: 0.2470970034 | G138: -0.5207450994 | H138: -2.01832362 | I138: -0.4824251633 | J138: 1.487561207 | K138: -0.8964660916 | L138: -0.3632932343 | M138: 1.330807116 | N138: 1.319619837 | O138: -1.424545031 | P138: 0.5011225246 | Q138: -0.5009668541 | R138: -1.008185795 | S138: 0.1983338757 | T138: -0.01211942346 | U138: -4.128221199 | V138: 0.6384029636 | W138: 0.006357257487 | X138: -0.01203070753 | Y138: -0.4708486679 | Z138: -0.4238298758 | AA138: 0.7063315842 | AB138: -0.8597211489 | AC138: 0.1609249844 | AD138: -0.2079076911 | AE138: -0.38583315 | AF138: 1.113659118 | AH138: 115 | AI138: =($C$1-CFO!$E$17)*(1+($C$2+($C$3*E138))) -> 1.071623865 | AJ138: =(AI138-CFO!F$17)*(1+($C$2+($C$3*F138))) -> 1.131801448 | AK138: =(AJ138-CFO!G$17)*(1+($C$2+($C$3*G138))) -> 1.187039197 | AL138: =(AK138-CFO!H$17)*(1+($C$2+($C$3*H138))) -> 1.229413946 | AM138: =(AL138-CFO!I$17)*(1+($C$2+($C$3*I138))) -> 1.288299586 | AN138: =(AM138-CFO!J$17)*(1+($C$2+($C$3*J138))) -> 1.369894894 | AO138: =(AN138-CFO!K$17)*(1+($C$2+($C$3*K138))) -> 1.428335718 | AP138: =(AO138-CFO!L$17)*(1+($C$2+($C$3*L138))) -> 1.40776425 | AQ138: =(AP138-CFO!M$17)*(1+($C$2+($C$3*M138))) -> 1.404137605 | AR138: =(AQ138-CFO!N$17)*(1+($C$2+($C$3*N138))) -> 1.399216251 | AS138: =(AR138-CFO!O$17)*(1+($C$2+($C$3*O138))) -> 1.363495274 | AT138: =(AS138-CFO!P$17)*(1+($C$2+($C$3*P138))) -> 1.346434093 | AU138: =(AT138-CFO!Q$17)*(1+($C$2+($C$3*Q138))) -> 1.317435525 | AV138: =(AU138-CFO!R$17)*(1+($C$2+($C$3*R138))) -> 1.281619946 | AW138: =(AV138-CFO!S$17)*(1+($C$2+($C$3*S138))) -> 1.255917377 | AX138: =(AW138-CFO!T$17)*(1+($C$2+($C$3*T138))) -> 1.226370719 | AY138: =(AX138-CFO!U$17)*(1+($C$2+($C$3*U138))) -> 1.156497524 | AZ138: =(AY138-CFO!V$17)*(1+($C$2+($C$3*V138))) -> 1.127871553 | BA138: =(AZ138-CFO!W$17)*(1+($C$2+($C$3*W138))) -> 1.091775827 | BB138: =(BA138-CFO!X$17)*(1+($C$2+($C$3*X138))) -> 1.053396187
D139: 116 | E139: -0.3611928483 | F139: 2.27190653 | G139: 1.516865604 | H139: -1.272657794 | I139: -0.05350787989 | J139: -0.3539157208 | K139: 0.4792710232 | L139: 1.956020286 | M139: 0.87182257 | N139: 0.2195217611 | O139: 0.5294117185 | P139: 1.235556405 | Q139: 0.03271080093 | R139: 0.7280770573 | S139: -0.6251185365 | T139: 1.434529793 | U139: -1.794879397 | V139: 1.185923203 | W139: 0.4357740429 | X139: -1.076607806 | Y139: 0.5495776507 | Z139: -0.5143848933 | AA139: -0.3653123285 | AB139: 0.9875260633 | AC139: -0.2070051825 | AD139: -2.115535017 | AE139: 0.220024593 | AF139: 0.361522507 | AH139: 116 | AI139: =($C$1-CFO!$E$17)*(1+($C$2+($C$3*E139))) -> 1.052666199 | AJ139: =(AI139-CFO!F$17)*(1+($C$2+($C$3*F139))) -> 1.129913511 | AK139: =(AJ139-CFO!G$17)*(1+($C$2+($C$3*G139))) -> 1.204056509 | AL139: =(AK139-CFO!H$17)*(1+($C$2+($C$3*H139))) -> 1.253943124 | AM139: =(AL139-CFO!I$17)*(1+($C$2+($C$3*I139))) -> 1.317740281 | AN139: =(AM139-CFO!J$17)*(1+($C$2+($C$3*J139))) -> 1.380477171 | AO139: =(AN139-CFO!K$17)*(1+($C$2+($C$3*K139))) -> 1.454672495 | AP139: =(AO139-CFO!L$17)*(1+($C$2+($C$3*L139))) -> 1.460726012 | AQ139: =(AP139-CFO!M$17)*(1+($C$2+($C$3*M139))) -> 1.453756665 | AR139: =(AQ139-CFO!N$17)*(1+($C$2+($C$3*N139))) -> 1.438210435 | AS139: =(AR139-CFO!O$17)*(1+($C$2+($C$3*O139))) -> 1.42463887 | AT139: =(AS139-CFO!P$17)*(1+($C$2+($C$3*P139))) -> 1.417344901 | AU139: =(AT139-CFO!Q$17)*(1+($C$2+($C$3*Q139))) -> 1.395581189 | AV139: =(AU139-CFO!R$17)*(1+($C$2+($C$3*R139))) -> 1.379618893 | AW139: =(AV139-CFO!S$17)*(1+($C$2+($C$3*S139))) -> 1.347711116 | AX139: =(AW139-CFO!T$17)*(1+($C$2+($C$3*T139))) -> 1.335282643 | AY139: =(AX139-CFO!U$17)*(1+($C$2+($C$3*U139))) -> 1.28824412 | AZ139: =(AY139-CFO!V$17)*(1+($C$2+($C$3*V139))) -> 1.268830529 | BA139: =(AZ139-CFO!W$17)*(1+($C$2+($C$3*W139))) -> 1.240271756 | BB139: =(BA139-CFO!X$17)*(1+($C$2+($C$3*X139))) -> 1.195415114
D140: 117 | E140: -0.2714439813 | F140: -0.2052379845 | G140: -0.2102645677 | H140: -0.4348212779 | I140: -1.091354146 | J140: 0.8984366172 | K140: -1.355593541 | L140: -0.2532088587 | M140: -1.239736089 | N140: 0.5482890361 | O140: -0.4490460607 | P140: 0.9206772056 | Q140: 1.568030544 | R140: -1.717292093 | S140: 1.689589078 | T140: -2.021825751 | U140: 0.03651960943 | V140: 0.6815999915 | W140: 0.9045078682 | X140: 1.094194102 | Y140: 1.964849064 | Z140: -0.9247078866 | AA140: -0.2367167841 | AB140: 0.01456977589 | AC140: -0.9970609374 | AD140: 1.609244613 | AE140: -1.270167053 | AF140: 0.8216393393 | AH140: 117 | AI140: =($C$1-CFO!$E$17)*(1+($C$2+($C$3*E140))) -> 1.053406378 | AJ140: =(AI140-CFO!F$17)*(1+($C$2+($C$3*F140))) -> 1.109184723 | AK140: =(AJ140-CFO!G$17)*(1+($C$2+($C$3*G140))) -> 1.166808794 | AL140: =(AK140-CFO!H$17)*(1+($C$2+($C$3*H140))) -> 1.224221267 | AM140: =(AL140-CFO!I$17)*(1+($C$2+($C$3*I140))) -> 1.27687566 | AN140: =(AM140-CFO!J$17)*(1+($C$2+($C$3*J140))) -> 1.351882126 | AO140: =(AN140-CFO!K$17)*(1+($C$2+($C$3*K140))) -> 1.404926507 | AP140: =(AO140-CFO!L$17)*(1+($C$2+($C$3*L140))) -> 1.385054809 | AQ140: =(AP140-CFO!M$17)*(1+($C$2+($C$3*M140))) -> 1.353200117 | AR140: =(AQ140-CFO!N$17)*(1+($C$2+($C$3*N140))) -> 1.338487168 | AS140: =(AR140-CFO!O$17)*(1+($C$2+($C$3*O140))) -> 1.312035118 | AT140: =(AS140-CFO!P$17)*(1+($C$2+($C$3*P140))) -> 1.29775596 | AU140: =(AT140-CFO!Q$17)*(1+($C$2+($C$3*Q140))) -> 1.288357242 | AV140: =(AU140-CFO!R$17)*(1+($C$2+($C$3*R140))) -> 1.245086866 | AW140: =(AV140-CFO!S$17)*(1+($C$2+($C$3*S140))) -> 1.232623039 | AX140: =(AW140-CFO!T$17)*(1+($C$2+($C$3*T140))) -> 1.183637231 | AY140: =(AX140-CFO!U$17)*(1+($C$2+($C$3*U140))) -> 1.151608996 | AZ140: =(AY140-CFO!V$17)*(1+($C$2+($C$3*V140))) -> 1.123217787 | BA140: =(AZ140-CFO!W$17)*(1+($C$2+($C$3*W140))) -> 1.094637089 | BB140: =(BA140-CFO!X$17)*(1+($C$2+($C$3*X140))) -> 1.065455873
D141: 118 | E141: -0.5043977002 | F141: 1.499448122 | G141: -0.9836592923 | H141: 0.6662623448 | I141: -1.769088156 | J141: -1.344325989 | K141: 0.4161538398 | L141: 0.4073537556 | M141: 0.699537198 | N141: -0.07142133823 | O141: 0.8769318051 | P141: 0.154708191 | Q141: 1.004278369 | R141: -0.02210492548 | S141: -0.6771822522 | T141: 0.5106327811 | U141: 0.9065825085 | V141: 0.2020020414 | W141: 0.6640362962 | X141: -0.9544344965 | Y141: -0.1556751453 | Z141: 2.457435126 | AA141: 0.5096030967 | AB141: -0.3762749098 | AC141: -1.311410969 | AD141: 2.215104242 | AE141: -0.8005257899 | AF141: 0.01259448354 | AH141: 118 | AI141: =($C$1-CFO!$E$17)*(1+($C$2+($C$3*E141))) -> 1.051485156 | AJ141: =(AI141-CFO!F$17)*(1+($C$2+($C$3*F141))) -> 1.121990037 | AK141: =(AJ141-CFO!G$17)*(1+($C$2+($C$3*G141))) -> 1.172759036 | AL141: =(AK141-CFO!H$17)*(1+($C$2+($C$3*H141))) -> 1.240912943 | AM141: =(AL141-CFO!I$17)*(1+($C$2+($C$3*I141))) -> 1.286912766 | AN141: =(AM141-CFO!J$17)*(1+($C$2+($C$3*J141))) -> 1.338530165 | AO141: =(AN141-CFO!K$17)*(1+($C$2+($C$3*K141))) -> 1.410864482 | AP141: =(AO141-CFO!L$17)*(1+($C$2+($C$3*L141))) -> 1.39831659 | AQ141: =(AP141-CFO!M$17)*(1+($C$2+($C$3*M141))) -> 1.387556666 | AR141: =(AQ141-CFO!N$17)*(1+($C$2+($C$3*N141))) -> 1.367196015 | AS141: =(AR141-CFO!O$17)*(1+($C$2+($C$3*O141))) -> 1.355273869 | AT141: =(AS141-CFO!P$17)*(1+($C$2+($C$3*P141))) -> 1.334375472 | AU141: =(AT141-CFO!Q$17)*(1+($C$2+($C$3*Q141))) -> 1.320544172 | AV141: =(AU141-CFO!R$17)*(1+($C$2+($C$3*R141))) -> 1.294754323 | AW141: =(AV141-CFO!S$17)*(1+($C$2+($C$3*S141))) -> 1.260718678 | AX141: =(AW141-CFO!T$17)*(1+($C$2+($C$3*T141))) -> 1.236315838 | AY141: =(AX141-CFO!U$17)*(1+($C$2+($C$3*U141))) -> 1.213759626 | AZ141: =(AY141-CFO!V$17)*(1+($C$2+($C$3*V141))) -> 1.182774221 | BA141: =(AZ141-CFO!W$17)*(1+($C$2+($C$3*W141))) -> 1.153897212 | BB141: =(BA141-CFO!X$17)*(1+($C$2+($C$3*X141))) -> 1.108777768
D142: 119 | E142: 1.315780236 | F142: 0.1060506937 | G142: 0.09182604373 | H142: -1.13199556 | I142: 1.409511904 | J142: 0.9673522453 | K142: -0.6390004254 | L142: 0.2637273921 | M142: -1.398807937 | N142: -0.4487093891 | O142: 1.556125567 | P142: 0.4508990601 | Q142: 1.85079507 | R142: -0.5898098497 | S142: -2.202428512 | T142: -2.0854107 | U142: 1.908274779 | V142: -0.9001527134 | W142: 1.912807632 | X142: 0.1887211211 | Y142: -0.470569351 | Z142: 1.028912579 | AA142: -0.6380195236 | AB142: -0.1421179019 | AC142: 0.9452687805 | AD142: 0.5109349131 | AE142: -0.9135844786 | AF142: 0.2597764341 | AH142: 119 | AI142: =($C$1-CFO!$E$17)*(1+($C$2+($C$3*E142))) -> 1.066496577 | AJ142: =(AI142-CFO!F$17)*(1+($C$2+($C$3*F142))) -> 1.125301998 | AK142: =(AJ142-CFO!G$17)*(1+($C$2+($C$3*G142))) -> 1.186083019 | AL142: =(AK142-CFO!H$17)*(1+($C$2+($C$3*H142))) -> 1.237092865 | AM142: =(AL142-CFO!I$17)*(1+($C$2+($C$3*I142))) -> 1.315363472 | AN142: =(AM142-CFO!J$17)*(1+($C$2+($C$3*J142))) -> 1.39231428 | AO142: =(AN142-CFO!K$17)*(1+($C$2+($C$3*K142))) -> 1.454071852 | AP142: =(AO142-CFO!L$17)*(1+($C$2+($C$3*L142))) -> 1.441088049 | AQ142: =(AP142-CFO!M$17)*(1+($C$2+($C$3*M142))) -> 1.408252983 | AR142: =(AQ142-CFO!N$17)*(1+($C$2+($C$3*N142))) -> 1.384282604 | AS142: =(AR142-CFO!O$17)*(1+($C$2+($C$3*O142))) -> 1.380125671 | AT142: =(AS142-CFO!P$17)*(1+($C$2+($C$3*P142))) -> 1.362997368 | AU142: =(AT142-CFO!Q$17)*(1+($C$2+($C$3*Q142))) -> 1.358942095 | AV142: =(AU142-CFO!R$17)*(1+($C$2+($C$3*R142))) -> 1.328149136 | AW142: =(AV142-CFO!S$17)*(1+($C$2+($C$3*S142))) -> 1.279223963 | AX142: =(AW142-CFO!T$17)*(1+($C$2+($C$3*T142))) -> 1.229981703 | AY142: =(AX142-CFO!U$17)*(1+($C$2+($C$3*U142))) -> 1.216608515 | AZ142: =(AY142-CFO!V$17)*(1+($C$2+($C$3*V142))) -> 1.175502638 | BA142: =(AZ142-CFO!W$17)*(1+($C$2+($C$3*W142))) -> 1.157539189 | BB142: =(BA142-CFO!X$17)*(1+($C$2+($C$3*X142))) -> 1.122489431
D143: 120 | E143: -0.511623848 | F143: 0.6757877929 | G143: 1.38690534 | H143: -0.4040118819 | I143: -0.9618692188 | J143: -0.1086363801 | K143: 0.04547017884 | L143: 0.4052146777 | M143: -0.7943095795 | N143: -1.476835638 | O143: -0.2006076785 | P143: -0.9057419119 | Q143: -0.01607080378 | R143: 0.03102184977 | S143: 2.422129693 | T143: 1.669220502 | U143: -0.6090153813 | V143: 1.25828777 | W143: -0.4822080641 | X143: -1.220332498 | Y143: 1.60522846 | Z143: -0.2197033544 | AA143: 0.02872883173 | AB143: -1.107546686 | AC143: -0.6534657839 | AD143: 1.000163831 | AE143: 1.770983757 | AF143: -0.2702263234 | AH143: 120 | AI143: =($C$1-CFO!$E$17)*(1+($C$2+($C$3*E143))) -> 1.05142556 | AJ143: =(AI143-CFO!F$17)*(1+($C$2+($C$3*F143))) -> 1.114792452 | AK143: =(AJ143-CFO!G$17)*(1+($C$2+($C$3*G143))) -> 1.187196594 | AL143: =(AK143-CFO!H$17)*(1+($C$2+($C$3*H143))) -> 1.245328152 | AM143: =(AL143-CFO!I$17)*(1+($C$2+($C$3*I143))) -> 1.29962949 | AN143: =(AM143-CFO!J$17)*(1+($C$2+($C$3*J143))) -> 1.364600128 | AO143: =(AN143-CFO!K$17)*(1+($C$2+($C$3*K143))) -> 1.433497032 | AP143: =(AO143-CFO!L$17)*(1+($C$2+($C$3*L143))) -> 1.421542396 | AQ143: =(AP143-CFO!M$17)*(1+($C$2+($C$3*M143))) -> 1.395086596 | AR143: =(AQ143-CFO!N$17)*(1+($C$2+($C$3*N143))) -> 1.359797781 | AS143: =(AR143-CFO!O$17)*(1+($C$2+($C$3*O143))) -> 1.336378512 | AT143: =(AS143-CFO!P$17)*(1+($C$2+($C$3*P143))) -> 1.304121897 | AU143: =(AT143-CFO!Q$17)*(1+($C$2+($C$3*Q143))) -> 1.279123661 | AV143: =(AU143-CFO!R$17)*(1+($C$2+($C$3*R143))) -> 1.252866925 | AW143: =(AV143-CFO!S$17)*(1+($C$2+($C$3*S143))) -> 1.24770294 | AX143: =(AW143-CFO!T$17)*(1+($C$2+($C$3*T143))) -> 1.23395992 | AY143: =(AX143-CFO!U$17)*(1+($C$2+($C$3*U143))) -> 1.197088065 | AZ143: =(AY143-CFO!V$17)*(1+($C$2+($C$3*V143))) -> 1.17527987 | BA143: =(AZ143-CFO!W$17)*(1+($C$2+($C$3*W143))) -> 1.135972048 | BB143: =(BA143-CFO!X$17)*(1+($C$2+($C$3*X143))) -> 1.088276799
D144: 121 | E144: -1.306667662 | F144: -1.612025283 | G144: 0.4248113066 | H144: -2.430162081 | I144: -0.2046420347 | J144: 0.7042566694 | K144: 1.001653831 | L144: -1.157606988 | M144: 0.2211886029 | N144: -0.470373206 | O144: -2.385286249 | P144: -0.6435980998 | Q144: 0.1357645272 | R144: -0.1184263775 | S144: 1.351187766 | T144: -1.625443306 | U144: 1.465025662 | V144: 0.7854887335 | W144: -0.211028481 | X144: -1.249289885 | Y144: -1.600185289 | Z144: -1.674874071 | AA144: -0.6616435887 | AB144: 1.331889824 | AC144: 1.288009949 | AD144: -0.5156178696 | AE144: 0.3920274121 | AF144: -0.2041778922 | AH144: 121 | AI144: =($C$1-CFO!$E$17)*(1+($C$2+($C$3*E144))) -> 1.044868654 | AJ144: =(AI144-CFO!F$17)*(1+($C$2+($C$3*F144))) -> 1.088342096 | AK144: =(AJ144-CFO!G$17)*(1+($C$2+($C$3*G144))) -> 1.151193793 | AL144: =(AK144-CFO!H$17)*(1+($C$2+($C$3*H144))) -> 1.189386137 | AM144: =(AL144-CFO!I$17)*(1+($C$2+($C$3*I144))) -> 1.25018306 | AN144: =(AM144-CFO!J$17)*(1+($C$2+($C$3*J144))) -> 1.322361964 | AO144: =(AN144-CFO!K$17)*(1+($C$2+($C$3*K144))) -> 1.400611374 | AP144: =(AO144-CFO!L$17)*(1+($C$2+($C$3*L144))) -> 1.370870419 | AQ144: =(AP144-CFO!M$17)*(1+($C$2+($C$3*M144))) -> 1.354245969 | AR144: =(AQ144-CFO!N$17)*(1+($C$2+($C$3*N144))) -> 1.328947538 | AS144: =(AR144-CFO!O$17)*(1+($C$2+($C$3*O144))) -> 1.28253171 | AT144: =(AS144-CFO!P$17)*(1+($C$2+($C$3*P144))) -> 1.251949891 | AU144: =(AT144-CFO!Q$17)*(1+($C$2+($C$3*Q144))) -> 1.227160366 | AV144: =(AU144-CFO!R$17)*(1+($C$2+($C$3*R144))) -> 1.198243293 | AW144: =(AV144-CFO!S$17)*(1+($C$2+($C$3*S144))) -> 1.180932559 | AX144: =(AW144-CFO!T$17)*(1+($C$2+($C$3*T144))) -> 1.135102579 | AY144: =(AX144-CFO!U$17)*(1+($C$2+($C$3*U144))) -> 1.114189202 | AZ144: =(AY144-CFO!V$17)*(1+($C$2+($C$3*V144))) -> 1.085571584 | BA144: =(AZ144-CFO!W$17)*(1+($C$2+($C$3*W144))) -> 1.046677971 | BB144: =(BA144-CFO!X$17)*(1+($C$2+($C$3*X144))) -> 0.9974835282
D145: 122 | E145: -0.04867280794 | F145: -1.546165817 | G145: 0.4374324181 | H145: 2.465064123 | I145: 0.6582469967 | J145: 0.02644073671 | K145: 0.09953855533 | L145: 0.6790638172 | M145: 0.3466861694 | N145: -0.6236699405 | O145: -0.8058223959 | P145: -0.00659511981 | Q145: -0.4982739569 | R145: 0.2119900709 | S145: 0.1809852514 | T145: 0.6300908811 | U145: -0.6138430061 | V145: -1.654230944 | W145: -2.135170426 | X145: 1.527804694 | Y145: -0.4789422701 | Z145: -2.220940504 | AA145: -1.301684948 | AB145: 0.955243366 | AC145: 0.4313339549 | AD145: 0.0415894964 | AE145: -0.1531350874 | AF145: -0.5842147447 | AH145: 122 | AI145: =($C$1-CFO!$E$17)*(1+($C$2+($C$3*E145))) -> 1.055243623 | AJ145: =(AI145-CFO!F$17)*(1+($C$2+($C$3*F145))) -> 1.099404857 | AK145: =(AJ145-CFO!G$17)*(1+($C$2+($C$3*G145))) -> 1.162673908 | AL145: =(AK145-CFO!H$17)*(1+($C$2+($C$3*H145))) -> 1.247735308 | AM145: =(AL145-CFO!I$17)*(1+($C$2+($C$3*I145))) -> 1.318681258 | AN145: =(AM145-CFO!J$17)*(1+($C$2+($C$3*J145))) -> 1.38555444 | AO145: =(AN145-CFO!K$17)*(1+($C$2+($C$3*K145))) -> 1.455576242 | AP145: =(AO145-CFO!L$17)*(1+($C$2+($C$3*L145))) -> 1.447303168 | AQ145: =(AP145-CFO!M$17)*(1+($C$2+($C$3*M145))) -> 1.43405057 | AR145: =(AQ145-CFO!N$17)*(1+($C$2+($C$3*N145))) -> 1.408671816 | AS145: =(AR145-CFO!O$17)*(1+($C$2+($C$3*O145))) -> 1.379781816 | AT145: =(AS145-CFO!P$17)*(1+($C$2+($C$3*P145))) -> 1.357790791 | AU145: =(AT145-CFO!Q$17)*(1+($C$2+($C$3*Q145))) -> 1.329047339 | AV145: =(AU145-CFO!R$17)*(1+($C$2+($C$3*R145))) -> 1.305844329 | AW145: =(AV145-CFO!S$17)*(1+($C$2+($C$3*S145))) -> 1.280588261 | AX145: =(AW145-CFO!T$17)*(1+($C$2+($C$3*T145))) -> 1.257911676 | AY145: =(AX145-CFO!U$17)*(1+($C$2+($C$3*U145))) -> 1.221451677 | AZ145: =(AY145-CFO!V$17)*(1+($C$2+($C$3*V145))) -> 1.173423733 | BA145: =(AZ145-CFO!W$17)*(1+($C$2+($C$3*W145))) -> 1.119377916 | BB145: =(BA145-CFO!X$17)*(1+($C$2+($C$3*X145))) -> 1.0946716
D146: 123 | E146: -0.2454544449 | F146: -0.7176159486 | G146: 0.1338965543 | H146: -0.9724971505 | I146: -1.685487692 | J146: -1.46796812 | K146: -1.63708763 | L146: -0.3900012188 | M146: 0.7840098343 | N146: -0.1203790359 | O146: -1.128231877 | P146: 1.002707837 | Q146: -0.293726541 | R146: 0.1870463778 | S146: -1.913215975 | T146: 0.3930278974 | U146: 1.812222081 | V146: -1.27238415 | W146: -0.7825915789 | X146: 0.6018149745 | Y146: 0.2475950687 | Z146: -0.01451921864 | AA146: 0.109387784 | AB146: 1.862718939 | AC146: -1.411420145 | AD146: -1.091966009 | AE146: 0.5583423692 | AF146: -0.0960029765 | AH146: 123 | AI146: =($C$1-CFO!$E$17)*(1+($C$2+($C$3*E146))) -> 1.05362072 | AJ146: =(AI146-CFO!F$17)*(1+($C$2+($C$3*F146))) -> 1.104955834 | AK146: =(AJ146-CFO!G$17)*(1+($C$2+($C$3*G146))) -> 1.16561631 | AL146: =(AK146-CFO!H$17)*(1+($C$2+($C$3*H146))) -> 1.217849458 | AM146: =(AL146-CFO!I$17)*(1+($C$2+($C$3*I146))) -> 1.264459043 | AN146: =(AM146-CFO!J$17)*(1+($C$2+($C$3*J146))) -> 1.314494561 | AO146: =(AN146-CFO!K$17)*(1+($C$2+($C$3*K146))) -> 1.364008547 | AP146: =(AO146-CFO!L$17)*(1+($C$2+($C$3*L146))) -> 1.341799353 | AQ146: =(AP146-CFO!M$17)*(1+($C$2+($C$3*M146))) -> 1.330239265 | AR146: =(AQ146-CFO!N$17)*(1+($C$2+($C$3*N146))) -> 1.308034975 | AS146: =(AR146-CFO!O$17)*(1+($C$2+($C$3*O146))) -> 1.274140579 | AT146: =(AS146-CFO!P$17)*(1+($C$2+($C$3*P146))) -> 1.25947372 | AU146: =(AT146-CFO!Q$17)*(1+($C$2+($C$3*Q146))) -> 1.230733838 | AV146: =(AU146-CFO!R$17)*(1+($C$2+($C$3*R146))) -> 1.204770138 | AW146: =(AV146-CFO!S$17)*(1+($C$2+($C$3*S146))) -> 1.15771325 | AX146: =(AW146-CFO!T$17)*(1+($C$2+($C$3*T146))) -> 1.129383009 | AY146: =(AX146-CFO!U$17)*(1+($C$2+($C$3*U146))) -> 1.111237449 | AZ146: =(AY146-CFO!V$17)*(1+($C$2+($C$3*V146))) -> 1.065232606 | BA146: =(AZ146-CFO!W$17)*(1+($C$2+($C$3*W146))) -> 1.021296707 | BB146: =(BA146-CFO!X$17)*(1+($C$2+($C$3*X146))) -> 0.9859384592
D147: 124 | E147: 0.2754932589 | F147: 0.4610255842 | G147: -0.5010898332 | H147: 0.9504579438 | I147: 0.02669357505 | J147: -1.313527688 | K147: 0.565228114 | L147: 1.087051038 | M147: 0.6314056992 | N147: 0.4999350563 | O147: 0.5716542776 | P147: 0.1099290215 | Q147: -1.122787943 | R147: -0.9546657887 | S147: -0.5287360004 | T147: -1.519398179 | U147: -1.173828322 | V147: -0.04154892905 | W147: -1.478687048 | X147: 0.0344093587 | Y147: 0.2963389351 | Z147: -0.06912096116 | AA147: -0.8153508013 | AB147: -0.3816750273 | AC147: -0.6964509866 | AD147: -0.8376613661 | AE147: 0.4339712484 | AF147: 0.5463069997 | AH147: 124 | AI147: =($C$1-CFO!$E$17)*(1+($C$2+($C$3*E147))) -> 1.057917094 | AJ147: =(AI147-CFO!F$17)*(1+($C$2+($C$3*F147))) -> 1.119603116 | AK147: =(AJ147-CFO!G$17)*(1+($C$2+($C$3*G147))) -> 1.174780027 | AL147: =(AK147-CFO!H$17)*(1+($C$2+($C$3*H147))) -> 1.245738709 | AM147: =(AL147-CFO!I$17)*(1+($C$2+($C$3*I147))) -> 1.310163214 | AN147: =(AM147-CFO!J$17)*(1+($C$2+($C$3*J147))) -> 1.362419787 | AO147: =(AN147-CFO!K$17)*(1+($C$2+($C$3*K147))) -> 1.437073308 | AP147: =(AO147-CFO!L$17)*(1+($C$2+($C$3*L147))) -> 1.432784045 | AQ147: =(AP147-CFO!M$17)*(1+($C$2+($C$3*M147))) -> 1.422290892 | AR147: =(AQ147-CFO!N$17)*(1+($C$2+($C$3*N147))) -> 1.409008972 | AS147: =(AR147-CFO!O$17)*(1+($C$2+($C$3*O147))) -> 1.395071249 | AT147: =(AS147-CFO!P$17)*(1+($C$2+($C$3*P147))) -> 1.374696737 | AU147: =(AT147-CFO!Q$17)*(1+($C$2+($C$3*Q147))) -> 1.33969739 | AV147: =(AU147-CFO!R$17)*(1+($C$2+($C$3*R147))) -> 1.304786206 | AW147: =(AV147-CFO!S$17)*(1+($C$2+($C$3*S147))) -> 1.27241877 | AX147: =(AW147-CFO!T$17)*(1+($C$2+($C$3*T147))) -> 1.22862493 | AY147: =(AX147-CFO!U$17)*(1+($C$2+($C$3*U147))) -> 1.18636761 | AZ147: =(AY147-CFO!V$17)*(1+($C$2+($C$3*V147))) -> 1.152486933 | BA147: =(AZ147-CFO!W$17)*(1+($C$2+($C$3*W147))) -> 1.104024734 | BB147: =(BA147-CFO!X$17)*(1+($C$2+($C$3*X147))) -> 1.066324661
D148: 125 | E148: -0.5411076004 | F148: -0.85953418 | G148: 1.514296376 | H148: -0.8373133203 | I148: -0.985124333 | J148: 0.1409166586 | K148: 0.8541844112 | L148: -1.408998026 | M148: 0.2103137262 | N148: -0.3324776215 | O148: 0.7629588578 | P148: 0.5315787675 | Q148: -1.173356944 | R148: 0.4719915536 | S148: 0.7633968677 | T148: -0.4557375203 | U148: 0.9753046026 | V148: 1.25683764 | W148: 0.3798147496 | X148: -0.003830568005 | Y148: -1.055517302 | Z148: -0.08930057271 | AA148: -1.096099106 | AB148: 0.8826258971 | AC148: -0.3014153115 | AD148: 0.3846423694 | AE148: -0.1006163419 | AF148: 0.1306522301 | AH148: 125 | AI148: =($C$1-CFO!$E$17)*(1+($C$2+($C$3*E148))) -> 1.051182401 | AJ148: =(AI148-CFO!F$17)*(1+($C$2+($C$3*F148))) -> 1.101243751 | AK148: =(AJ148-CFO!G$17)*(1+($C$2+($C$3*G148))) -> 1.174327473 | AL148: =(AK148-CFO!H$17)*(1+($C$2+($C$3*H148))) -> 1.228007384 | AM148: =(AL148-CFO!I$17)*(1+($C$2+($C$3*I148))) -> 1.281791623 | AN148: =(AM148-CFO!J$17)*(1+($C$2+($C$3*J148))) -> 1.348976772 | AO148: =(AN148-CFO!K$17)*(1+($C$2+($C$3*K148))) -> 1.426445687 | AP148: =(AO148-CFO!L$17)*(1+($C$2+($C$3*L148))) -> 1.394316601 | AQ148: =(AP148-CFO!M$17)*(1+($C$2+($C$3*M148))) -> 1.37817945 | AR148: =(AQ148-CFO!N$17)*(1+($C$2+($C$3*N148))) -> 1.354828731 | AS148: =(AR148-CFO!O$17)*(1+($C$2+($C$3*O148))) -> 1.341335742 | AT148: =(AS148-CFO!P$17)*(1+($C$2+($C$3*P148))) -> 1.323967617 | AU148: =(AT148-CFO!Q$17)*(1+($C$2+($C$3*Q148))) -> 1.287692999 | AV148: =(AU148-CFO!R$17)*(1+($C$2+($C$3*R148))) -> 1.265989459 | AW148: =(AV148-CFO!S$17)*(1+($C$2+($C$3*S148))) -> 1.24535204 | AX148: =(AW148-CFO!T$17)*(1+($C$2+($C$3*T148))) -> 1.211339616 | AY148: =(AX148-CFO!U$17)*(1+($C$2+($C$3*U148))) -> 1.188636173 | AZ148: =(AY148-CFO!V$17)*(1+($C$2+($C$3*V148))) -> 1.166526966 | BA148: =(AZ148-CFO!W$17)*(1+($C$2+($C$3*W148))) -> 1.134661672 | BB148: =(BA148-CFO!X$17)*(1+($C$2+($C$3*X148))) -> 1.097377468
D149: 126 | E149: -0.111515787 | F149: 0.255247059 | G149: -0.2389233188 | H149: -0.4077480375 | I149: 0.9101908916 | J149: -0.2049600831 | K149: -0.1336811444 | L149: 0.1663382162 | M149: -0.3686918245 | N149: -1.087920231 | O149: 1.246493707 | P149: 0.1911412545 | Q149: -0.7374686672 | R149: 0.5778482331 | S149: -0.1623645666 | T149: -0.3884483291 | U149: 1.430870137 | V149: 1.611382571 | W149: 1.588226557 | X149: 0.567480308 | Y149: -0.5806931153 | Z149: 0.5891382828 | AA149: -1.961719376 | AB149: -0.5451384793 | AC149: 0.2919174758 | AD149: -0.7476072985 | AE149: -0.8611779326 | AF149: 0.2294402203 | AH149: 126 | AI149: =($C$1-CFO!$E$17)*(1+($C$2+($C$3*E149))) -> 1.054725342 | AJ149: =(AI149-CFO!F$17)*(1+($C$2+($C$3*F149))) -> 1.11453478 | AK149: =(AJ149-CFO!G$17)*(1+($C$2+($C$3*G149))) -> 1.172015351 | AL149: =(AK149-CFO!H$17)*(1+($C$2+($C$3*H149))) -> 1.229795616 | AM149: =(AL149-CFO!I$17)*(1+($C$2+($C$3*I149))) -> 1.302762681 | AN149: =(AM149-CFO!J$17)*(1+($C$2+($C$3*J149))) -> 1.366775604 | AO149: =(AN149-CFO!K$17)*(1+($C$2+($C$3*K149))) -> 1.433716756 | AP149: =(AO149-CFO!L$17)*(1+($C$2+($C$3*L149))) -> 1.419123143 | AQ149: =(AP149-CFO!M$17)*(1+($C$2+($C$3*M149))) -> 1.397284239 | AR149: =(AQ149-CFO!N$17)*(1+($C$2+($C$3*N149))) -> 1.366208879 | AS149: =(AR149-CFO!O$17)*(1+($C$2+($C$3*O149))) -> 1.358139522 | AT149: =(AS149-CFO!P$17)*(1+($C$2+($C$3*P149))) -> 1.337693632 | AU149: =(AT149-CFO!Q$17)*(1+($C$2+($C$3*Q149))) -> 1.306093108 | AV149: =(AU149-CFO!R$17)*(1+($C$2+($C$3*R149))) -> 1.285959364 | AW149: =(AV149-CFO!S$17)*(1+($C$2+($C$3*S149))) -> 1.256821661 | AX149: =(AW149-CFO!T$17)*(1+($C$2+($C$3*T149))) -> 1.223687938 | AY149: =(AX149-CFO!U$17)*(1+($C$2+($C$3*U149))) -> 1.205620696 | AZ149: =(AY149-CFO!V$17)*(1+($C$2+($C$3*V149))) -> 1.18733779 | BA149: =(AZ149-CFO!W$17)*(1+($C$2+($C$3*W149))) -> 1.166916703 | BB149: =(BA149-CFO!X$17)*(1+($C$2+($C$3*X149))) -> 1.135451197
D150: 127 | E150: 0.08375302563 | F150: 0.5611848987 | G150: -1.04232611 | H150: 1.015914207 | I150: -0.1437392118 | J150: -0.1184251025 | K150: -1.071675358 | L150: -0.8266754711 | M150: -0.7938263724 | N150: -0.2902502586 | O150: 0.1501700667 | P150: -0.06552755616 | Q150: -0.9968158069 | R150: -1.544908404 | S150: 1.427053591 | T150: -1.269077664 | U150: 1.651344735 | V150: -0.2356500802 | W150: -1.072496095 | X150: -1.451706487 | Y150: 1.383775841 | Z150: 0.3151819011 | AA150: 0.8486908462 | AB150: -0.2989002195 | AC150: 0.4047899249 | AD150: -0.1684264582 | AE150: -0.6777945296 | AF150: -1.756512974 | AH150: 127 | AI150: =($C$1-CFO!$E$17)*(1+($C$2+($C$3*E150))) -> 1.056335769 | AJ150: =(AI150-CFO!F$17)*(1+($C$2+($C$3*F150))) -> 1.118849678 | AK150: =(AJ150-CFO!G$17)*(1+($C$2+($C$3*G150))) -> 1.169027817 | AL150: =(AK150-CFO!H$17)*(1+($C$2+($C$3*H150))) -> 1.240434043 | AM150: =(AL150-CFO!I$17)*(1+($C$2+($C$3*I150))) -> 1.30299321 | AN150: =(AM150-CFO!J$17)*(1+($C$2+($C$3*J150))) -> 1.367936944 | AO150: =(AN150-CFO!K$17)*(1+($C$2+($C$3*K150))) -> 1.424378636 | AP150: =(AO150-CFO!L$17)*(1+($C$2+($C$3*L150))) -> 1.398627511 | AQ150: =(AP150-CFO!M$17)*(1+($C$2+($C$3*M150))) -> 1.371772576 | AR150: =(AQ150-CFO!N$17)*(1+($C$2+($C$3*N150))) -> 1.348731093 | AS150: =(AR150-CFO!O$17)*(1+($C$2+($C$3*O150))) -> 1.328700957 | AT150: =(AS150-CFO!P$17)*(1+($C$2+($C$3*P150))) -> 1.304885596 | AU150: =(AT150-CFO!Q$17)*(1+($C$2+($C$3*Q150))) -> 1.270097633 | AV150: =(AU150-CFO!R$17)*(1+($C$2+($C$3*R150))) -> 1.228314323 | AW150: =(AV150-CFO!S$17)*(1+($C$2+($C$3*S150))) -> 1.212761227 | AX150: =(AW150-CFO!T$17)*(1+($C$2+($C$3*T150))) -> 1.170572885 | AY150: =(AX150-CFO!U$17)*(1+($C$2+($C$3*U150))) -> 1.152582865 | AZ150: =(AY150-CFO!V$17)*(1+($C$2+($C$3*V150))) -> 1.11620683 | BA150: =(AZ150-CFO!W$17)*(1+($C$2+($C$3*W150))) -> 1.070729612 | BB150: =(BA150-CFO!X$17)*(1+($C$2+($C$3*X150))) -> 1.020240133
D151: 128 | E151: 1.522412096 | F151: 0.006822656682 | G151: 1.784165588 | H151: -0.1707490598 | I151: 1.051774623 | J151: -0.06384008801 | K151: -0.1727750603 | L151: 0.4467279358 | M151: 0.09494745215 | N151: 0.1092944474 | O151: -0.7453197674 | P151: -1.836246286 | Q151: 1.031130249 | R151: -0.7652413418 | S151: 0.357142963 | T151: 0.462021083 | U151: -1.23857776 | V151: 0.5279220376 | W151: -0.7381571621 | X151: -1.595386133 | Y151: 0.08333908532 | Z151: 0.253859359 | AA151: -0.3709738019 | AB151: 0.6807413332 | AC151: -0.2091810759 | AD151: 1.630717087 | AE151: =NORMSINV(RAND()) -> -0.7891937026 | AF151: 1.95564255 | AH151: 128 | AI151: =($C$1-CFO!$E$17)*(1+($C$2+($C$3*E151))) -> 1.068200716 | AJ151: =(AI151-CFO!F$17)*(1+($C$2+($C$3*F151))) -> 1.126175497 | AK151: =(AJ151-CFO!G$17)*(1+($C$2+($C$3*G151))) -> 1.202660389 | AL151: =(AK151-CFO!H$17)*(1+($C$2+($C$3*H151))) -> 1.263418584 | AM151: =(AL151-CFO!I$17)*(1+($C$2+($C$3*I151))) -> 1.338906352 | AN151: =(AM151-CFO!J$17)*(1+($C$2+($C$3*J151))) -> 1.405277551 | AO151: =(AN151-CFO!K$17)*(1+($C$2+($C$3*K151))) -> 1.472651186 | AP151: =(AO151-CFO!L$17)*(1+($C$2+($C$3*L151))) -> 1.462235762 | AQ151: =(AP151-CFO!M$17)*(1+($C$2+($C$3*M151))) -> 1.446540147 | AR151: =(AQ151-CFO!N$17)*(1+($C$2+($C$3*N151))) -> 1.429578015 | AS151: =(AR151-CFO!O$17)*(1+($C$2+($C$3*O151))) -> 1.401721432 | AT151: =(AS151-CFO!P$17)*(1+($C$2+($C$3*P151))) -> 1.3605252 | AU151: =(AT151-CFO!Q$17)*(1+($C$2+($C$3*Q151))) -> 1.347812072 | AV151: =(AU151-CFO!R$17)*(1+($C$2+($C$3*R151))) -> 1.314991397 | AW151: =(AV151-CFO!S$17)*(1+($C$2+($C$3*S151))) -> 1.291740892 | AX151: =(AW151-CFO!T$17)*(1+($C$2+($C$3*T151))) -> 1.267729588 | AY151: =(AX151-CFO!U$17)*(1+($C$2+($C$3*U151))) -> 1.225417621 | AZ151: =(AY151-CFO!V$17)*(1+($C$2+($C$3*V151))) -> 1.197768138 | BA151: =(AZ151-CFO!W$17)*(1+($C$2+($C$3*W151))) -> 1.156587153 | BB151: =(BA151-CFO!X$17)*(1+($C$2+($C$3*X151))) -> 1.105904094
D152: 129 | E152: 1.813025826 | F152: -0.7289141176 | G152: -0.5362968522 | H152: -0.01112223438 | I152: -1.047262574 | J152: 1.289184012 | K152: -0.4977136567 | L152: 1.216086754 | M152: 1.818625735 | N152: 0.2246996205 | O152: -0.1689586566 | P152: 0.8210685552 | Q152: -0.03659970794 | R152: -1.539945304 | S152: -0.6457450744 | T152: -1.512889156 | U152: 0.2280127934 | V152: -0.2293284725 | W152: 0.02421575005 | X152: 0.8623145908 | Y152: 0.9908757354 | Z152: 0.1341842587 | AA152: 0.1343786404 | AB152: -0.6548820746 | AC152: 1.561352935 | AD152: -0.8726633594 | AE152: =NORMSINV(RAND()) -> -1.664629368 | AF152: -0.178853418 | AH152: 129 | AI152: =($C$1-CFO!$E$17)*(1+($C$2+($C$3*E152))) -> 1.070597474 | AJ152: =(AI152-CFO!F$17)*(1+($C$2+($C$3*F152))) -> 1.122142952 | AK152: =(AJ152-CFO!G$17)*(1+($C$2+($C$3*G152))) -> 1.177045524 | AL152: =(AK152-CFO!H$17)*(1+($C$2+($C$3*H152))) -> 1.238768935 | AM152: =(AL152-CFO!I$17)*(1+($C$2+($C$3*I152))) -> 1.292094212 | AN152: =(AM152-CFO!J$17)*(1+($C$2+($C$3*J152))) -> 1.371721024 | AO152: =(AN152-CFO!K$17)*(1+($C$2+($C$3*K152))) -> 1.434679415 | AP152: =(AO152-CFO!L$17)*(1+($C$2+($C$3*L152))) -> 1.431741623 | AQ152: =(AP152-CFO!M$17)*(1+($C$2+($C$3*M152))) -> 1.434335502 | AR152: =(AQ152-CFO!N$17)*(1+($C$2+($C$3*N152))) -> 1.418346331 | AS152: =(AR152-CFO!O$17)*(1+($C$2+($C$3*O152))) -> 1.396584038 | AT152: =(AS152-CFO!P$17)*(1+($C$2+($C$3*P152))) -> 1.383886726 | AU152: =(AT152-CFO!Q$17)*(1+($C$2+($C$3*Q152))) -> 1.360574317 | AV152: =(AU152-CFO!R$17)*(1+($C$2+($C$3*R152))) -> 1.319896023 | AW152: =(AV152-CFO!S$17)*(1+($C$2+($C$3*S152))) -> 1.286645181 | AX152: =(AW152-CFO!T$17)*(1+($C$2+($C$3*T152))) -> 1.243083819 | AY152: =(AX152-CFO!U$17)*(1+($C$2+($C$3*U152))) -> 1.214313101 | AZ152: =(AY152-CFO!V$17)*(1+($C$2+($C$3*V152))) -> 1.179360568 | BA152: =(AZ152-CFO!W$17)*(1+($C$2+($C$3*W152))) -> 1.144662869 | BB152: =(BA152-CFO!X$17)*(1+($C$2+($C$3*X152))) -> 1.115113599
D153: 130 | E153: =NORMSINV(RAND()) -> -0.2307677978 | F153: 0.07976501539 | G153: 0.1161344238 | H153: -1.251043157 | I153: -0.2588307717 | J153: -0.7598587942 | K153: 0.1022151865 | L153: 0.8364338224 | M153: -0.1801051275 | N153: 0.2086012097 | O153: -1.096083086 | P153: 2.192626796 | Q153: 0.7276922437 | R153: -0.5130456172 | S153: -0.02461680264 | T153: -1.245847605 | U153: -0.7521518746 | V153: -0.06343028334 | W153: 0.04972235545 | X153: -0.134467273 | Y153: 0.1821948896 | Z153: -0.8081066477 | AA153: 0.08362167087 | AB153: -1.547475705 | AC153: 2.677368037 | AD153: -0.3112925393 | AE153: -0.4283684358 | AF153: -1.141465284 | AH153: 130 | AI153: =($C$1-CFO!$E$17)*(1+($C$2+($C$3*E153))) -> 1.053741844 | AJ153: =(AI153-CFO!F$17)*(1+($C$2+($C$3*F153))) -> 1.112002116 | AK153: =(AJ153-CFO!G$17)*(1+($C$2+($C$3*G153))) -> 1.17267667 | AL153: =(AK153-CFO!H$17)*(1+($C$2+($C$3*H153))) -> 1.222338102 | AM153: =(AL153-CFO!I$17)*(1+($C$2+($C$3*I153))) -> 1.28332753 | AN153: =(AM153-CFO!J$17)*(1+($C$2+($C$3*J153))) -> 1.341057478 | AO153: =(AN153-CFO!K$17)*(1+($C$2+($C$3*K153))) -> 1.410005381 | AP153: =(AO153-CFO!L$17)*(1+($C$2+($C$3*L153))) -> 1.402103672 | AQ153: =(AP153-CFO!M$17)*(1+($C$2+($C$3*M153))) -> 1.381945436 | AR153: =(AQ153-CFO!N$17)*(1+($C$2+($C$3*N153))) -> 1.364433403 | AS153: =(AR153-CFO!O$17)*(1+($C$2+($C$3*O153))) -> 1.331720893 | AT153: =(AS153-CFO!P$17)*(1+($C$2+($C$3*P153))) -> 1.331063345 | AU153: =(AT153-CFO!Q$17)*(1+($C$2+($C$3*Q153))) -> 1.314302016 | AV153: =(AU153-CFO!R$17)*(1+($C$2+($C$3*R153))) -> 1.283421121 | AW153: =(AV153-CFO!S$17)*(1+($C$2+($C$3*S153))) -> 1.255577251 | AX153: =(AW153-CFO!T$17)*(1+($C$2+($C$3*T153))) -> 1.214204324 | AY153: =(AX153-CFO!U$17)*(1+($C$2+($C$3*U153))) -> 1.17563216 | AZ153: =(AY153-CFO!V$17)*(1+($C$2+($C$3*V153))) -> 1.141302201 | BA153: =(AZ153-CFO!W$17)*(1+($C$2+($C$3*W153))) -> 1.105904017 | BB153: =(BA153-CFO!X$17)*(1+($C$2+($C$3*X153))) -> 1.066840549
D154: 131 | E154: 1.517271452 | F154: -0.3442480915 | G154: -0.4211884722 | H154: 0.1024071227 | I154: -0.5028886752 | J154: 0.1312327742 | K154: -1.392254889 | L154: -0.3811672658 | M154: -0.511321937 | N154: 0.05731587334 | O154: 0.7869791525 | P154: -0.009519419418 | Q154: 0.9592007971 | R154: 0.6416622286 | S154: -0.1040953332 | T154: 0.3959759757 | U154: 1.585139503 | V154: 1.511172927 | W154: 1.079952934 | X154: -0.8745051403 | Y154: 2.070784542 | Z154: 0.4116393227 | AA154: 0.1551460253 | AB154: 1.85119888 | AC154: 0.7724166718 | AD154: -0.6163594259 | AE154: -0.6827928628 | AF154: 0.558081202 | AH154: 131 | AI154: =($C$1-CFO!$E$17)*(1+($C$2+($C$3*E154))) -> 1.06815832 | AJ154: =(AI154-CFO!F$17)*(1+($C$2+($C$3*F154))) -> 1.123043558 | AK154: =(AJ154-CFO!G$17)*(1+($C$2+($C$3*G154))) -> 1.179027661 | AL154: =(AK154-CFO!H$17)*(1+($C$2+($C$3*H154))) -> 1.241899087 | AM154: =(AL154-CFO!I$17)*(1+($C$2+($C$3*I154))) -> 1.300827401 | AN154: =(AM154-CFO!J$17)*(1+($C$2+($C$3*J154))) -> 1.368387448 | AO154: =(AN154-CFO!K$17)*(1+($C$2+($C$3*K154))) -> 1.421237419 | AP154: =(AO154-CFO!L$17)*(1+($C$2+($C$3*L154))) -> 1.400320096 | AQ154: =(AP154-CFO!M$17)*(1+($C$2+($C$3*M154))) -> 1.376545346 | AR154: =(AQ154-CFO!N$17)*(1+($C$2+($C$3*N154))) -> 1.357291212 | AS154: =(AR154-CFO!O$17)*(1+($C$2+($C$3*O154))) -> 1.344123047 | AT154: =(AS154-CFO!P$17)*(1+($C$2+($C$3*P154))) -> 1.321247905 | AU154: =(AT154-CFO!Q$17)*(1+($C$2+($C$3*Q154))) -> 1.306539374 | AV154: =(AU154-CFO!R$17)*(1+($C$2+($C$3*R154))) -> 1.287056861 | AW154: =(AV154-CFO!S$17)*(1+($C$2+($C$3*S154))) -> 1.258517451 | AX154: =(AW154-CFO!T$17)*(1+($C$2+($C$3*T154))) -> 1.232951771 | AY154: =(AX154-CFO!U$17)*(1+($C$2+($C$3*U154))) -> 1.216661323 | AZ154: =(AY154-CFO!V$17)*(1+($C$2+($C$3*V154))) -> 1.197858871 | BA154: =(AZ154-CFO!W$17)*(1+($C$2+($C$3*W154))) -> 1.173204283 | BB154: =(BA154-CFO!X$17)*(1+($C$2+($C$3*X154))) -> 1.129110712
D155: 132 | E155: 0.3391651046 | F155: 0.7067927326 | G155: -0.3784624996 | H155: -0.5544328368 | I155: 1.021504467 | J155: 1.398933613 | K155: 0.3533797034 | L155: -0.3254836785 | M155: 0.1136795338 | N155: -1.418840835 | O155: 1.39013599 | P155: -1.218135088 | Q155: -1.52764653 | R155: -1.270608567 | S155: -0.9737055627 | T155: -0.8912722781 | U155: 0.2670844426 | V155: -0.7934078207 | W155: 1.334178005 | X155: -0.4968955837 | Y155: 0.7723389126 | Z155: -0.2739509803 | AA155: -0.5543469701 | AB155: 0.2539985414 | AC155: 0.5125534258 | AD155: 1.212040556 | AE155: 0.5714269523 | AF155: -0.2686244044 | AH155: 132 | AI155: =($C$1-CFO!$E$17)*(1+($C$2+($C$3*E155))) -> 1.05844221 | AJ155: =(AI155-CFO!F$17)*(1+($C$2+($C$3*F155))) -> 1.122285789 | AK155: =(AJ155-CFO!G$17)*(1+($C$2+($C$3*G155))) -> 1.178648855 | AL155: =(AK155-CFO!H$17)*(1+($C$2+($C$3*H155))) -> 1.235145082 | AM155: =(AL155-CFO!I$17)*(1+($C$2+($C$3*I155))) -> 1.309409182 | AN155: =(AM155-CFO!J$17)*(1+($C$2+($C$3*J155))) -> 1.390809745 | AO155: =(AN155-CFO!K$17)*(1+($C$2+($C$3*K155))) -> 1.46385689 | AP155: =(AO155-CFO!L$17)*(1+($C$2+($C$3*L155))) -> 1.444462457 | AQ155: =(AP155-CFO!M$17)*(1+($C$2+($C$3*M155))) -> 1.428535655 | AR155: =(AQ155-CFO!N$17)*(1+($C$2+($C$3*N155))) -> 1.394293241 | AS155: =(AR155-CFO!O$17)*(1+($C$2+($C$3*O155))) -> 1.38871965 | AT155: =(AS155-CFO!P$17)*(1+($C$2+($C$3*P155))) -> 1.354003669 | AU155: =(AT155-CFO!Q$17)*(1+($C$2+($C$3*Q155))) -> 1.314485677 | AV155: =(AU155-CFO!R$17)*(1+($C$2+($C$3*R155))) -> 1.275980877 | AW155: =(AV155-CFO!S$17)*(1+($C$2+($C$3*S155))) -> 1.238704808 | AX155: =(AW155-CFO!T$17)*(1+($C$2+($C$3*T155))) -> 1.200443797 | AY155: =(AX155-CFO!U$17)*(1+($C$2+($C$3*U155))) -> 1.170928617 | AZ155: =(AY155-CFO!V$17)*(1+($C$2+($C$3*V155))) -> 1.130003612 | BA155: =(AZ155-CFO!W$17)*(1+($C$2+($C$3*W155))) -> 1.105306894 | BB155: =(BA155-CFO!X$17)*(1+($C$2+($C$3*X155))) -> 1.063207564
D156: 133 | E156: 1.501205813 | F156: -0.1424761853 | G156: 0.9581446691 | H156: 0.008196327019 | I156: -0.2704127195 | J156: -0.6471456179 | K156: -0.7614939794 | L156: 1.120787534 | M156: 1.011427328 | N156: -0.8470255318 | O156: -0.7971224108 | P156: -0.6746717163 | Q156: -1.233863565 | R156: -1.538171223 | S156: -0.8056236574 | T156: -1.023083944 | U156: 0.1071969168 | V156: 0.1787618479 | W156: -1.535951796 | X156: 1.550935971 | Y156: -0.5585010275 | Z156: -0.5220157948 | AA156: 0.7575377371 | AB156: 1.442233939 | AC156: 1.267230718 | AD156: 0.7954652385 | AE156: 2.306471334 | AF156: 0.9132156734 | AH156: 133 | AI156: =($C$1-CFO!$E$17)*(1+($C$2+($C$3*E156))) -> 1.068025823 | AJ156: =(AI156-CFO!F$17)*(1+($C$2+($C$3*F156))) -> 1.124683108 | AK156: =(AJ156-CFO!G$17)*(1+($C$2+($C$3*G156))) -> 1.193466322 | AL156: =(AK156-CFO!H$17)*(1+($C$2+($C$3*H156))) -> 1.255771889 | AM156: =(AL156-CFO!I$17)*(1+($C$2+($C$3*I156))) -> 1.317375044 | AN156: =(AM156-CFO!J$17)*(1+($C$2+($C$3*J156))) -> 1.376933813 | AO156: =(AN156-CFO!K$17)*(1+($C$2+($C$3*K156))) -> 1.437017449 | AP156: =(AO156-CFO!L$17)*(1+($C$2+($C$3*L156))) -> 1.433100798 | AQ156: =(AP156-CFO!M$17)*(1+($C$2+($C$3*M156))) -> 1.42681975 | AR156: =(AQ156-CFO!N$17)*(1+($C$2+($C$3*N156))) -> 1.398846335 | AS156: =(AR156-CFO!O$17)*(1+($C$2+($C$3*O156))) -> 1.369877557 | AT156: =(AS156-CFO!P$17)*(1+($C$2+($C$3*P156))) -> 1.340615137 | AU156: =(AT156-CFO!Q$17)*(1+($C$2+($C$3*Q156))) -> 1.3039614 | AV156: =(AU156-CFO!R$17)*(1+($C$2+($C$3*R156))) -> 1.262639555 | AW156: =(AV156-CFO!S$17)*(1+($C$2+($C$3*S156))) -> 1.226768341 | AX156: =(AW156-CFO!T$17)*(1+($C$2+($C$3*T156))) -> 1.18707369 | AY156: =(AX156-CFO!U$17)*(1+($C$2+($C$3*U156))) -> 1.155766576 | AZ156: =(AY156-CFO!V$17)*(1+($C$2+($C$3*V156))) -> 1.123091992 | BA156: =(AZ156-CFO!W$17)*(1+($C$2+($C$3*W156))) -> 1.073785816 | BB156: =(BA156-CFO!X$17)*(1+($C$2+($C$3*X156))) -> 1.047615094
D157: 134 | E157: 1.064069552 | F157: 0.647295248 | G157: -0.7221742917 | H157: -0.8556281383 | I157: -0.5987347812 | J157: 1.065490817 | K157: -1.241879068 | L157: -1.340615734 | M157: 0.654754502 | N157: -1.159170659 | O157: 1.056160101 | P157: -0.1736109943 | Q157: -0.0789595224 | R157: 0.1373000579 | S157: 1.601375548 | T157: -0.4847229175 | U157: -0.2148699462 | V157: -0.2256294878 | W157: 0.5110515548 | X157: 0.335705398 | Y157: 0.8385307812 | Z157: -0.1656660489 | AA157: 0.2776295528 | AB157: -1.155035614 | AC157: -0.7032353751 | AD157: -0.4351961223 | AE157: -1.199874966 | AF157: -1.599466334 | AH157: 134 | AI157: =($C$1-CFO!$E$17)*(1+($C$2+($C$3*E157))) -> 1.064420661 | AJ157: =(AI157-CFO!F$17)*(1+($C$2+($C$3*F157))) -> 1.127919881 | AK157: =(AJ157-CFO!G$17)*(1+($C$2+($C$3*G157))) -> 1.181211265 | AL157: =(AK157-CFO!H$17)*(1+($C$2+($C$3*H157))) -> 1.2348324 | AM157: =(AL157-CFO!I$17)*(1+($C$2+($C$3*I157))) -> 1.292647063 | AN157: =(AM157-CFO!J$17)*(1+($C$2+($C$3*J157))) -> 1.369918535 | AO157: =(AN157-CFO!K$17)*(1+($C$2+($C$3*K157))) -> 1.424478087 | AP157: =(AO157-CFO!L$17)*(1+($C$2+($C$3*L157))) -> 1.393076067 | AQ157: =(AP157-CFO!M$17)*(1+($C$2+($C$3*M157))) -> 1.381680101 | AR157: =(AQ157-CFO!N$17)*(1+($C$2+($C$3*N157))) -> 1.349607933 | AS157: =(AR157-CFO!O$17)*(1+($C$2+($C$3*O157))) -> 1.338999837 | AT157: =(AS157-CFO!P$17)*(1+($C$2+($C$3*P157))) -> 1.314314933 | AU157: =(AT157-CFO!Q$17)*(1+($C$2+($C$3*Q157))) -> 1.288926356 | AV157: =(AU157-CFO!R$17)*(1+($C$2+($C$3*R157))) -> 1.263955653 | AW157: =(AV157-CFO!S$17)*(1+($C$2+($C$3*S157))) -> 1.251347987 | AX157: =(AW157-CFO!T$17)*(1+($C$2+($C$3*T157))) -> 1.217180929 | AY157: =(AX157-CFO!U$17)*(1+($C$2+($C$3*U157))) -> 1.18363899 | AZ157: =(AY157-CFO!V$17)*(1+($C$2+($C$3*V157))) -> 1.148039788 | BA157: =(AZ157-CFO!W$17)*(1+($C$2+($C$3*W157))) -> 1.116815131 | BB157: =(BA157-CFO!X$17)*(1+($C$2+($C$3*X157))) -> 1.081965699
D158: 135 | E158: 1.372735235 | F158: -0.128035813 | G158: 2.009795176 | H158: -0.1331488494 | I158: -0.6218947039 | J158: -0.03997338044 | K158: 1.489682025 | L158: -0.00690560829 | M158: 0.3734833159 | N158: 0.2307896184 | O158: 0.3111902011 | P158: 0.9688226736 | Q158: -0.3890524691 | R158: -0.6250809127 | S158: -0.7352641005 | T158: -0.2423447709 | U158: -0.7747372766 | V158: -0.7608883301 | W158: -0.2419303623 | X158: -1.659042786 | Y158: 1.255664081 | Z158: 1.556093409 | AA158: -0.297377804 | AB158: 0.553545117 | AC158: 0.4459298728 | AD158: -0.2988018113 | AE158: -1.177211677 | AF158: 0.2300614763 | AH158: 135 | AI158: =($C$1-CFO!$E$17)*(1+($C$2+($C$3*E158))) -> 1.066966297 | AJ158: =(AI158-CFO!F$17)*(1+($C$2+($C$3*F158))) -> 1.123726262 | AK158: =(AJ158-CFO!G$17)*(1+($C$2+($C$3*G158))) -> 1.202203816 | AL158: =(AK158-CFO!H$17)*(1+($C$2+($C$3*H158))) -> 1.263323166 | AM158: =(AL158-CFO!I$17)*(1+($C$2+($C$3*I158))) -> 1.321444875 | AN158: =(AM158-CFO!J$17)*(1+($C$2+($C$3*J158))) -> 1.387664739 | AO158: =(AN158-CFO!K$17)*(1+($C$2+($C$3*K158))) -> 1.473558333 | AP158: =(AO158-CFO!L$17)*(1+($C$2+($C$3*L158))) -> 1.458000473 | AQ158: =(AP158-CFO!M$17)*(1+($C$2+($C$3*M158))) -> 1.445335984 | AR158: =(AQ158-CFO!N$17)*(1+($C$2+($C$3*N158))) -> 1.429698499 | AS158: =(AR158-CFO!O$17)*(1+($C$2+($C$3*O158))) -> 1.413482657 | AT158: =(AS158-CFO!P$17)*(1+($C$2+($C$3*P158))) -> 1.402909165 | AU158: =(AT158-CFO!Q$17)*(1+($C$2+($C$3*Q158))) -> 1.376246625 | AV158: =(AU158-CFO!R$17)*(1+($C$2+($C$3*R158))) -> 1.345414769 | AW158: =(AV158-CFO!S$17)*(1+($C$2+($C$3*S158))) -> 1.311721873 | AX158: =(AW158-CFO!T$17)*(1+($C$2+($C$3*T158))) -> 1.281200327 | AY158: =(AX158-CFO!U$17)*(1+($C$2+($C$3*U158))) -> 1.243612169 | AZ158: =(AY158-CFO!V$17)*(1+($C$2+($C$3*V158))) -> 1.204278014 | BA158: =(AZ158-CFO!W$17)*(1+($C$2+($C$3*W158))) -> 1.167750499 | BB158: =(BA158-CFO!X$17)*(1+($C$2+($C$3*X158))) -> 1.116630269
D159: 136 | E159: 2.687710806 | F159: -1.062320262 | G159: -2.170385551 | H159: 0.9594568736 | I159: -0.822887392 | J159: 1.333109117 | K159: -0.5448032967 | L159: -0.1661481988 | M159: -0.08573632563 | N159: -0.1818536613 | O159: -0.189001738 | P159: 2.213066276 | Q159: 2.046769713 | R159: -0.6013516975 | S159: 0.102009069 | T159: -0.6258131173 | U159: -0.1331901731 | V159: -1.846942665 | W159: -0.4612367812 | X159: 0.2915039987 | Y159: -0.3982898486 | Z159: -0.4690277874 | AA159: 0.009859435624 | AB159: 0.1688302179 | AC159: -0.2958446691 | AD159: -0.5162951188 | AE159: 0.3615664136 | AF159: 1.16435034 | AH159: 136 | AI159: =($C$1-CFO!$E$17)*(1+($C$2+($C$3*E159))) -> 1.077811199 | AJ159: =(AI159-CFO!F$17)*(1+($C$2+($C$3*F159))) -> 1.126528875 | AK159: =(AJ159-CFO!G$17)*(1+($C$2+($C$3*G159))) -> 1.166370795 | AL159: =(AK159-CFO!H$17)*(1+($C$2+($C$3*H159))) -> 1.237150044 | AM159: =(AL159-CFO!I$17)*(1+($C$2+($C$3*I159))) -> 1.292730761 | AN159: =(AM159-CFO!J$17)*(1+($C$2+($C$3*J159))) -> 1.372845671 | AO159: =(AN159-CFO!K$17)*(1+($C$2+($C$3*K159))) -> 1.435296291 | AP159: =(AO159-CFO!L$17)*(1+($C$2+($C$3*L159))) -> 1.417057028 | AQ159: =(AP159-CFO!M$17)*(1+($C$2+($C$3*M159))) -> 1.3982677 | AR159: =(AQ159-CFO!N$17)*(1+($C$2+($C$3*N159))) -> 1.376968321 | AS159: =(AR159-CFO!O$17)*(1+($C$2+($C$3*O159))) -> 1.354056544 | AT159: =(AS159-CFO!P$17)*(1+($C$2+($C$3*P159))) -> 1.354539463 | AU159: =(AT159-CFO!Q$17)*(1+($C$2+($C$3*Q159))) -> 1.352193665 | AV159: =(AU159-CFO!R$17)*(1+($C$2+($C$3*R159))) -> 1.321150895 | AW159: =(AV159-CFO!S$17)*(1+($C$2+($C$3*S159))) -> 1.295485667 | AX159: =(AW159-CFO!T$17)*(1+($C$2+($C$3*T159))) -> 1.260810179 | AY159: =(AX159-CFO!U$17)*(1+($C$2+($C$3*U159))) -> 1.229025432 | AZ159: =(AY159-CFO!V$17)*(1+($C$2+($C$3*V159))) -> 1.17927756 | BA159: =(AZ159-CFO!W$17)*(1+($C$2+($C$3*W159))) -> 1.140237751 | BB159: =(BA159-CFO!X$17)*(1+($C$2+($C$3*X159))) -> 1.105632433
D160: 137 | E160: -0.3382387766 | F160: -0.635669156 | G160: 1.588042881 | H160: -0.14074288 | I160: 2.328899141 | J160: 0.4622625461 | K160: 1.292458318 | L160: 0.7497781426 | M160: 0.1140009117 | N160: -0.2528196367 | O160: 0.7841271246 | P160: -0.6189636164 | Q160: -0.1712966012 | R160: 0.4053722149 | S160: 0.06865216609 | T160: 0.1031903859 | U160: -0.4239510218 | V160: -0.6539359415 | W160: 0.401019927 | X160: 0.3752161108 | Y160: 0.4348192067 | Z160: -0.67622674 | AA160: -0.06892552474 | AB160: -0.226787967 | AC160: -1.049415882 | AD160: -0.8000134292 | AE160: 0.2227852664 | AF160: -0.4505358468 | AH160: 137 | AI160: =($C$1-CFO!$E$17)*(1+($C$2+($C$3*E160))) -> 1.052855506 | AJ160: =(AI160-CFO!F$17)*(1+($C$2+($C$3*F160))) -> 1.104887538 | AK160: =(AJ160-CFO!G$17)*(1+($C$2+($C$3*G160))) -> 1.178773675 | AL160: =(AK160-CFO!H$17)*(1+($C$2+($C$3*H160))) -> 1.239282054 | AM160: =(AL160-CFO!I$17)*(1+($C$2+($C$3*I160))) -> 1.326990962 | AN160: =(AM160-CFO!J$17)*(1+($C$2+($C$3*J160))) -> 1.398810949 | AO160: =(AN160-CFO!K$17)*(1+($C$2+($C$3*K160))) -> 1.482842947 | AP160: =(AO160-CFO!L$17)*(1+($C$2+($C$3*L160))) -> 1.476183178 | AQ160: =(AP160-CFO!M$17)*(1+($C$2+($C$3*M160))) -> 1.461050186 | AR160: =(AQ160-CFO!N$17)*(1+($C$2+($C$3*N160))) -> 1.440366098 | AS160: =(AR160-CFO!O$17)*(1+($C$2+($C$3*O160))) -> 1.429683094 | AT160: =(AS160-CFO!P$17)*(1+($C$2+($C$3*P160))) -> 1.402146422 | AU160: =(AT160-CFO!Q$17)*(1+($C$2+($C$3*Q160))) -> 1.377815055 | AV160: =(AU160-CFO!R$17)*(1+($C$2+($C$3*R160))) -> 1.357910227 | AW160: =(AV160-CFO!S$17)*(1+($C$2+($C$3*S160))) -> 1.332810076 | AX160: =(AW160-CFO!T$17)*(1+($C$2+($C$3*T160))) -> 1.306277209 | AY160: =(AX160-CFO!U$17)*(1+($C$2+($C$3*U160))) -> 1.27263474 | AZ160: =(AY160-CFO!V$17)*(1+($C$2+($C$3*V160))) -> 1.234857566 | BA160: =(AZ160-CFO!W$17)*(1+($C$2+($C$3*W160))) -> 1.20503884 | BB160: =(BA160-CFO!X$17)*(1+($C$2+($C$3*X160))) -> 1.172904705
D161: 138 | E161: -0.4275667821 | F161: -1.303086777 | G161: 0.8889764348 | H161: 0.08664287664 | I161: -1.099809332 | J161: 0.4900207462 | K161: 0.1655504096 | L161: 1.574393344 | M161: -0.2238989154 | N161: 1.448903768 | O161: 2.140896349 | P161: 0.8613907121 | Q161: 1.590889689 | R161: 0.09341451782 | S161: 0.550027493 | T161: -0.3113424951 | U161: -0.1651035348 | V161: -0.01506694737 | W161: 0.6366607606 | X161: -0.3060190848 | Y161: -0.3627576145 | Z161: -1.058146787 | AA161: -0.1807283907 | AB161: -1.365142985 | AC161: 2.264066908 | AD161: -1.96865947 | AE161: 0.06627207078 | AF161: 0.1313693911 | AH161: 138 | AI161: =($C$1-CFO!$E$17)*(1+($C$2+($C$3*E161))) -> 1.052118798 | AJ161: =(AI161-CFO!F$17)*(1+($C$2+($C$3*F161))) -> 1.098350971 | AK161: =(AJ161-CFO!G$17)*(1+($C$2+($C$3*G161))) -> 1.165674815 | AL161: =(AK161-CFO!H$17)*(1+($C$2+($C$3*H161))) -> 1.228063689 | AM161: =(AL161-CFO!I$17)*(1+($C$2+($C$3*I161))) -> 1.280691422 | AN161: =(AM161-CFO!J$17)*(1+($C$2+($C$3*J161))) -> 1.351520974 | AO161: =(AN161-CFO!K$17)*(1+($C$2+($C$3*K161))) -> 1.421430981 | AP161: =(AO161-CFO!L$17)*(1+($C$2+($C$3*L161))) -> 1.421978474 | AQ161: =(AP161-CFO!M$17)*(1+($C$2+($C$3*M161))) -> 1.40178815 | AR161: =(AQ161-CFO!N$17)*(1+($C$2+($C$3*N161))) -> 1.398182006 | AS161: =(AR161-CFO!O$17)*(1+($C$2+($C$3*O161))) -> 1.400826118 | AT161: =(AS161-CFO!P$17)*(1+($C$2+($C$3*P161))) -> 1.388693017 | AU161: =(AT161-CFO!Q$17)*(1+($C$2+($C$3*Q161))) -> 1.382861454 | AV161: =(AU161-CFO!R$17)*(1+($C$2+($C$3*R161))) -> 1.359782502 | AW161: =(AV161-CFO!S$17)*(1+($C$2+($C$3*S161))) -> 1.339745196 | AX161: =(AW161-CFO!T$17)*(1+($C$2+($C$3*T161))) -> 1.309134478 | AY161: =(AX161-CFO!U$17)*(1+($C$2+($C$3*U161))) -> 1.278138941 | AZ161: =(AY161-CFO!V$17)*(1+($C$2+($C$3*V161))) -> 1.246688231 | BA161: =(AZ161-CFO!W$17)*(1+($C$2+($C$3*W161))) -> 1.219425178 | BB161: =(BA161-CFO!X$17)*(1+($C$2+($C$3*X161))) -> 1.181376966
D162: 139 | E162: 1.813660071 | F162: 0.7313623922 | G162: -0.9834125977 | H162: 0.1373548841 | I162: -0.5068245483 | J162: 0.6447971407 | K162: -1.703981218 | L162: 0.8600399975 | M162: -1.992507763 | N162: -0.249526483 | O162: -1.12607931 | P162: 1.163874462 | Q162: 0.4315232937 | R162: 0.5191868216 | S162: 0.08299899931 | T162: 0.3342324582 | U162: -0.5658090279 | V162: -1.426587724 | W162: 0.3997086733 | X162: 0.5525791754 | Y162: 0.2710526678 | Z162: 0.8709852852 | AA162: 0.8591250577 | AB162: -0.06835786164 | AC162: 1.41149815 | AD162: -1.037674583 | AE162: -2.131232089 | AF162: -0.7141901117 | AH162: 139 | AI162: =($C$1-CFO!$E$17)*(1+($C$2+($C$3*E162))) -> 1.070602704 | AJ162: =(AI162-CFO!F$17)*(1+($C$2+($C$3*F162))) -> 1.135023526 | AK162: =(AJ162-CFO!G$17)*(1+($C$2+($C$3*G162))) -> 1.186005069 | AL162: =(AK162-CFO!H$17)*(1+($C$2+($C$3*H162))) -> 1.249390423 | AM162: =(AL162-CFO!I$17)*(1+($C$2+($C$3*I162))) -> 1.308427997 | AN162: =(AM162-CFO!J$17)*(1+($C$2+($C$3*J162))) -> 1.381694316 | AO162: =(AN162-CFO!K$17)*(1+($C$2+($C$3*K162))) -> 1.431182965 | AP162: =(AO162-CFO!L$17)*(1+($C$2+($C$3*L162))) -> 1.424192129 | AQ162: =(AP162-CFO!M$17)*(1+($C$2+($C$3*M162))) -> 1.384616841 | AR162: =(AQ162-CFO!N$17)*(1+($C$2+($C$3*N162))) -> 1.36228806 | AS162: =(AR162-CFO!O$17)*(1+($C$2+($C$3*O162))) -> 1.32922861 | AT162: =(AS162-CFO!P$17)*(1+($C$2+($C$3*P162))) -> 1.317970284 | AU162: =(AT162-CFO!Q$17)*(1+($C$2+($C$3*Q162))) -> 1.297825655 | AV162: =(AU162-CFO!R$17)*(1+($C$2+($C$3*R162))) -> 1.276872457 | AW162: =(AV162-CFO!S$17)*(1+($C$2+($C$3*S162))) -> 1.249922898 | AX162: =(AW162-CFO!T$17)*(1+($C$2+($C$3*T162))) -> 1.223535062 | AY162: =(AX162-CFO!U$17)*(1+($C$2+($C$3*U162))) -> 1.186866207 | AZ162: =(AY162-CFO!V$17)*(1+($C$2+($C$3*V162))) -> 1.140517139 | BA162: =(AZ162-CFO!W$17)*(1+($C$2+($C$3*W162))) -> 1.108120267 | BB162: =(BA162-CFO!X$17)*(1+($C$2+($C$3*X162))) -> 1.074852129
D163: 140 | E163: 0.7805532236 | F163: -0.2767657532 | G163: -1.578910438 | H163: 0.7099258834 | I163: 0.3734776924 | J163: -0.6205235757 | K163: -0.407853727 | L163: 0.5001478093 | M163: 0.5289212901 | N163: -0.3643740332 | O163: 0.6628501647 | P163: 0.09848559121 | Q163: 0.04114986385 | R163: -3.189354953 | S163: 1.462427857 | T163: 1.071105753 | U163: 0.7160697897 | V163: 1.306307452 | W163: -0.3637158246 | X163: 0.4386217446 | Y163: -0.2539173254 | Z163: 1.026680265 | AA163: -0.4334865021 | AB163: -1.591661026 | AC163: -0.627362561 | AD163: 0.5297696099 | AE163: -0.9120661612 | AF163: -0.7387360212 | AH163: 140 | AI163: =($C$1-CFO!$E$17)*(1+($C$2+($C$3*E163))) -> 1.062082438 | AJ163: =(AI163-CFO!F$17)*(1+($C$2+($C$3*F163))) -> 1.117428979 | AK163: =(AJ163-CFO!G$17)*(1+($C$2+($C$3*G163))) -> 1.162650091 | AL163: =(AK163-CFO!H$17)*(1+($C$2+($C$3*H163))) -> 1.23092508 | AM163: =(AL163-CFO!I$17)*(1+($C$2+($C$3*I163))) -> 1.298498618 | AN163: =(AM163-CFO!J$17)*(1+($C$2+($C$3*J163))) -> 1.357985895 | AO163: =(AN163-CFO!K$17)*(1+($C$2+($C$3*K163))) -> 1.421670579 | AP163: =(AO163-CFO!L$17)*(1+($C$2+($C$3*L163))) -> 1.41043577 | AQ163: =(AP163-CFO!M$17)*(1+($C$2+($C$3*M163))) -> 1.398178514 | AR163: =(AQ163-CFO!N$17)*(1+($C$2+($C$3*N163))) -> 1.374910986 | AS163: =(AR163-CFO!O$17)*(1+($C$2+($C$3*O163))) -> 1.360963621 | AT163: =(AS163-CFO!P$17)*(1+($C$2+($C$3*P163))) -> 1.339620859 | AU163: =(AT163-CFO!Q$17)*(1+($C$2+($C$3*Q163))) -> 1.316058171 | AV163: =(AU163-CFO!R$17)*(1+($C$2+($C$3*R163))) -> 1.258232 | AW163: =(AV163-CFO!S$17)*(1+($C$2+($C$3*S163))) -> 1.244078414 | AX163: =(AW163-CFO!T$17)*(1+($C$2+($C$3*T163))) -> 1.224525559 | AY163: =(AX163-CFO!U$17)*(1+($C$2+($C$3*U163))) -> 1.199825008 | AZ163: =(AY163-CFO!V$17)*(1+($C$2+($C$3*V163))) -> 1.17854772 | BA163: =(AZ163-CFO!W$17)*(1+($C$2+($C$3*W163))) -> 1.140364387 | BB163: =(BA163-CFO!X$17)*(1+($C$2+($C$3*X163))) -> 1.107030432
D164: 141 | E164: 0.2174659697 | F164: 1.111780403 | G164: -0.1453013914 | H164: 0.790570551 | I164: -0.2794955536 | J164: -0.05399544061 | K164: 0.593788222 | L164: -1.653133161 | M164: 0.5241070675 | N164: -0.580970662 | O164: 0.4769625034 | P164: -2.083467993 | Q164: -0.5097010506 | R164: -0.7741800616 | S164: -0.03661754334 | T164: -0.1624547742 | U164: -1.22099789 | V164: 0.8220732468 | W164: -0.6170475383 | X164: -1.135637474 | Y164: 0.211424197 | Z164: -0.6546320243 | AA164: -2.007638903 | AB164: -0.6439231192 | AC164: -0.1316021136 | AD164: -1.115318786 | AE164: -0.7646559631 | AF164: -0.2110727018 | AH164: 141 | AI164: =($C$1-CFO!$E$17)*(1+($C$2+($C$3*E164))) -> 1.05743853 | AJ164: =(AI164-CFO!F$17)*(1+($C$2+($C$3*F164))) -> 1.124780468 | AK164: =(AJ164-CFO!G$17)*(1+($C$2+($C$3*G164))) -> 1.183353866 | AL164: =(AK164-CFO!H$17)*(1+($C$2+($C$3*H164))) -> 1.253027938 | AM164: =(AL164-CFO!I$17)*(1+($C$2+($C$3*I164))) -> 1.314477695 | AN164: =(AM164-CFO!J$17)*(1+($C$2+($C$3*J164))) -> 1.380381295 | AO164: =(AN164-CFO!K$17)*(1+($C$2+($C$3*K164))) -> 1.455870453 | AP164: =(AO164-CFO!L$17)*(1+($C$2+($C$3*L164))) -> 1.421369429 | AQ164: =(AP164-CFO!M$17)*(1+($C$2+($C$3*M164))) -> 1.409368053 | AR164: =(AQ164-CFO!N$17)*(1+($C$2+($C$3*N164))) -> 1.383983855 | AS164: =(AR164-CFO!O$17)*(1+($C$2+($C$3*O164))) -> 1.368322585 | AT164: =(AS164-CFO!P$17)*(1+($C$2+($C$3*P164))) -> 1.324215474 | AU164: =(AT164-CFO!Q$17)*(1+($C$2+($C$3*Q164))) -> 1.294684008 | AV164: =(AU164-CFO!R$17)*(1+($C$2+($C$3*R164))) -> 1.260824922 | AW164: =(AV164-CFO!S$17)*(1+($C$2+($C$3*S164))) -> 1.232327623 | AX164: =(AW164-CFO!T$17)*(1+($C$2+($C$3*T164))) -> 1.200804965 | AY164: =(AX164-CFO!U$17)*(1+($C$2+($C$3*U164))) -> 1.157710473 | AZ164: =(AY164-CFO!V$17)*(1+($C$2+($C$3*V164))) -> 1.130731969 | BA164: =(AZ164-CFO!W$17)*(1+($C$2+($C$3*W164))) -> 1.089373706 | BB164: =(BA164-CFO!X$17)*(1+($C$2+($C$3*X164))) -> 1.04171047
D165: 142 | E165: -1.030693545 | F165: -1.937402297 | G165: 0.4075169294 | H165: 1.294533281 | I165: -0.006206215337 | J165: 0.9112813018 | K165: -0.790515801 | L165: 0.2887549798 | M165: -2.005975789 | N165: -1.754925046 | O165: -0.3607780942 | P165: -1.481714835 | Q165: -0.1391298033 | R165: -0.2940337832 | S165: -0.5940049781 | T165: 0.5197288373 | U165: -0.03906391975 | V165: 2.082612677 | W165: 0.5665389868 | X165: 0.2558823675 | Y165: 0.2309821204 | Z165: -1.392443282 | AA165: -0.8742732561 | AB165: -1.461915732 | AC165: 0.9222002006 | AD165: 1.300746365 | AE165: 0.2267598066 | AF165: -0.534530789 | AH165: 142 | AI165: =($C$1-CFO!$E$17)*(1+($C$2+($C$3*E165))) -> 1.047144675 | AJ165: =(AI165-CFO!F$17)*(1+($C$2+($C$3*F165))) -> 1.087835605 | AK165: =(AJ165-CFO!G$17)*(1+($C$2+($C$3*G165))) -> 1.150518468 | AL165: =(AK165-CFO!H$17)*(1+($C$2+($C$3*H165))) -> 1.223967588 | AM165: =(AL165-CFO!I$17)*(1+($C$2+($C$3*I165))) -> 1.287533986 | AN165: =(AM165-CFO!J$17)*(1+($C$2+($C$3*J165))) -> 1.363008669 | AO165: =(AN165-CFO!K$17)*(1+($C$2+($C$3*K165))) -> 1.422518397 | AP165: =(AO165-CFO!L$17)*(1+($C$2+($C$3*L165))) -> 1.408985616 | AQ165: =(AP165-CFO!M$17)*(1+($C$2+($C$3*M165))) -> 1.369141411 | AR165: =(AQ165-CFO!N$17)*(1+($C$2+($C$3*N165))) -> 1.330605422 | AS165: =(AR165-CFO!O$17)*(1+($C$2+($C$3*O165))) -> 1.304894915 | AT165: =(AS165-CFO!P$17)*(1+($C$2+($C$3*P165))) -> 1.266345798 | AU165: =(AT165-CFO!Q$17)*(1+($C$2+($C$3*Q165))) -> 1.239253081 | AV165: =(AU165-CFO!R$17)*(1+($C$2+($C$3*R165))) -> 1.208952355 | AW165: =(AV165-CFO!S$17)*(1+($C$2+($C$3*S165))) -> 1.174088798 | AX165: =(AW165-CFO!T$17)*(1+($C$2+($C$3*T165))) -> 1.147334156 | AY165: =(AX165-CFO!U$17)*(1+($C$2+($C$3*U165))) -> 1.113766166 | AZ165: =(AY165-CFO!V$17)*(1+($C$2+($C$3*V165))) -> 1.096065194 | BA165: =(AZ165-CFO!W$17)*(1+($C$2+($C$3*W165))) -> 1.063839791 | BB165: =(BA165-CFO!X$17)*(1+($C$2+($C$3*X165))) -> 1.02693754
D166: 143 | E166: -0.4337637056 | F166: 0.4484656978 | G166: 0.6675497742 | H166: 1.351948959 | I166: -0.08975121854 | J166: 0.7153196629 | K166: 1.04570223 | L166: -1.581924233 | M166: -0.7850248895 | N166: 0.5182379321 | O166: -1.036954006 | P166: 0.5505069123 | Q166: -0.09195715358 | R166: -0.6708762034 | S166: 0.4954373284 | T166: -0.7968018573 | U166: 0.01611625312 | V166: 0.5201113711 | W166: 0.9074115916 | X166: -0.2869397255 | Y166: -1.44386589 | Z166: -1.609265579 | AA166: 1.543853211 | AB166: -0.2155206866 | AC166: -1.130697387 | AD166: -1.927630432 | AE166: 1.800637669 | AF166: 2.505132346 | AH166: 143 | AI166: =($C$1-CFO!$E$17)*(1+($C$2+($C$3*E166))) -> 1.052067691 | AJ166: =(AI166-CFO!F$17)*(1+($C$2+($C$3*F166))) -> 1.113482875 | AK166: =(AJ166-CFO!G$17)*(1+($C$2+($C$3*G166))) -> 1.179248108 | AL166: =(AK166-CFO!H$17)*(1+($C$2+($C$3*H166))) -> 1.254240992 | AM166: =(AL166-CFO!I$17)*(1+($C$2+($C$3*I166))) -> 1.317671808 | AN166: =(AM166-CFO!J$17)*(1+($C$2+($C$3*J166))) -> 1.391970316 | AO166: =(AN166-CFO!K$17)*(1+($C$2+($C$3*K166))) -> 1.47295089 | AP166: =(AO166-CFO!L$17)*(1+($C$2+($C$3*L166))) -> 1.439444719 | AQ166: =(AP166-CFO!M$17)*(1+($C$2+($C$3*M166))) -> 1.413407971 | AR166: =(AQ166-CFO!N$17)*(1+($C$2+($C$3*N166))) -> 1.400076724 | AS166: =(AR166-CFO!O$17)*(1+($C$2+($C$3*O166))) -> 1.368544466 | AT166: =(AS166-CFO!P$17)*(1+($C$2+($C$3*P166))) -> 1.352144152 | AU166: =(AT166-CFO!Q$17)*(1+($C$2+($C$3*Q166))) -> 1.327504684 | AV166: =(AU166-CFO!R$17)*(1+($C$2+($C$3*R166))) -> 1.2952809 | AW166: =(AV166-CFO!S$17)*(1+($C$2+($C$3*S166))) -> 1.272870966 | AX166: =(AW166-CFO!T$17)*(1+($C$2+($C$3*T166))) -> 1.236104353 | AY166: =(AX166-CFO!U$17)*(1+($C$2+($C$3*U166))) -> 1.205158579 | AZ166: =(AY166-CFO!V$17)*(1+($C$2+($C$3*V166))) -> 1.176865794 | BA166: =(AZ166-CFO!W$17)*(1+($C$2+($C$3*W166))) -> 1.149986753 | BB166: =(BA166-CFO!X$17)*(1+($C$2+($C$3*X166))) -> 1.110607931
D167: 144 | E167: -0.03078693214 | F167: -0.2432609441 | G167: 0.1334861695 | H167: -0.8505501386 | I167: -0.1508080043 | J167: 1.127102727 | K167: -0.3955754371 | L167: -1.372065506 | M167: -0.23392614 | N167: 0.1097567017 | O167: -0.5233306793 | P167: -0.2002901613 | Q167: 1.268279969 | R167: -0.06628779378 | S167: 1.095694913 | T167: -0.8056573834 | U167: 0.02157010798 | V167: -0.2245085233 | W167: -0.09322683227 | X167: 0.08889363481 | Y167: 0.2057025772 | Z167: -0.2664119383 | AA167: -0.9218869953 | AB167: 0.5586959545 | AC167: -0.2565653773 | AD167: 0.4705234804 | AE167: -0.1025987623 | AF167: -0.5741785887 | AH167: 144 | AI167: =($C$1-CFO!$E$17)*(1+($C$2+($C$3*E167))) -> 1.055391132 | AJ167: =(AI167-CFO!F$17)*(1+($C$2+($C$3*F167))) -> 1.110883231 | AK167: =(AJ167-CFO!G$17)*(1+($C$2+($C$3*G167))) -> 1.171688561 | AL167: =(AK167-CFO!H$17)*(1+($C$2+($C$3*H167))) -> 1.225195266 | AM167: =(AL167-CFO!I$17)*(1+($C$2+($C$3*I167))) -> 1.287335049 | AN167: =(AM167-CFO!J$17)*(1+($C$2+($C$3*J167))) -> 1.365085092 | AO167: =(AN167-CFO!K$17)*(1+($C$2+($C$3*K167))) -> 1.429054499 | AP167: =(AO167-CFO!L$17)*(1+($C$2+($C$3*L167))) -> 1.397366176 | AQ167: =(AP167-CFO!M$17)*(1+($C$2+($C$3*M167))) -> 1.376521212 | AR167: =(AQ167-CFO!N$17)*(1+($C$2+($C$3*N167))) -> 1.357822303 | AS167: =(AR167-CFO!O$17)*(1+($C$2+($C$3*O167))) -> 1.330989228 | AT167: =(AS167-CFO!P$17)*(1+($C$2+($C$3*P167))) -> 1.305850589 | AU167: =(AT167-CFO!Q$17)*(1+($C$2+($C$3*Q167))) -> 1.293747708 | AV167: =(AU167-CFO!R$17)*(1+($C$2+($C$3*R167))) -> 1.266881955 | AW167: =(AV167-CFO!S$17)*(1+($C$2+($C$3*S167))) -> 1.249487642 | AX167: =(AW167-CFO!T$17)*(1+($C$2+($C$3*T167))) -> 1.212224487 | AY167: =(AX167-CFO!U$17)*(1+($C$2+($C$3*U167))) -> 1.180752818 | AZ167: =(AY167-CFO!V$17)*(1+($C$2+($C$3*V167))) -> 1.145099604 | BA167: =(AZ167-CFO!W$17)*(1+($C$2+($C$3*W167))) -> 1.108555142 | BB167: =(BA167-CFO!X$17)*(1+($C$2+($C$3*X167))) -> 1.071420789
D168: 145 | E168: 0.4598854691 | F168: -0.2809392773 | G168: 3.342123946 | H168: 0.2368757517 | I168: 0.4611025094 | J168: 0.1508038809 | K168: 0.8789633589 | L168: 2.969915698 | M168: 0.8222358585 | N168: -1.322922488 | O168: -0.1201992332 | P168: -2.158883241 | Q168: 0.6757276004 | R168: -1.52515263 | S168: -1.743748355 | T168: -1.128525462 | U168: 0.3375151903 | V168: 0.2559986378 | W168: 1.422777817 | X168: -0.7168055055 | Y168: -1.488962031 | Z168: 0.008490875547 | AA168: -0.7533827222 | AB168: -0.2332095052 | AC168: 1.289182777 | AD168: -0.7050265091 | AE168: -1.144215769 | AF168: 0.3893807547 | AH168: 145 | AI168: =($C$1-CFO!$E$17)*(1+($C$2+($C$3*E168))) -> 1.059437818 | AJ168: =(AI168-CFO!F$17)*(1+($C$2+($C$3*F168))) -> 1.114690319 | AK168: =(AJ168-CFO!G$17)*(1+($C$2+($C$3*G168))) -> 1.205029494 | AL168: =(AK168-CFO!H$17)*(1+($C$2+($C$3*H168))) -> 1.269877854 | AM168: =(AL168-CFO!I$17)*(1+($C$2+($C$3*I168))) -> 1.339416275 | AN168: =(AM168-CFO!J$17)*(1+($C$2+($C$3*J168))) -> 1.408158021 | AO168: =(AN168-CFO!K$17)*(1+($C$2+($C$3*K168))) -> 1.48773774 | AP168: =(AO168-CFO!L$17)*(1+($C$2+($C$3*L168))) -> 1.506766775 | AQ168: =(AP168-CFO!M$17)*(1+($C$2+($C$3*M168))) -> 1.500645887 | AR168: =(AQ168-CFO!N$17)*(1+($C$2+($C$3*N168))) -> 1.46842749 | AS168: =(AR168-CFO!O$17)*(1+($C$2+($C$3*O168))) -> 1.448351695 | AT168: =(AS168-CFO!P$17)*(1+($C$2+($C$3*P168))) -> 1.403989981 | AU168: =(AT168-CFO!Q$17)*(1+($C$2+($C$3*Q168))) -> 1.388842564 | AV168: =(AU168-CFO!R$17)*(1+($C$2+($C$3*R168))) -> 1.348652196 | AW168: =(AV168-CFO!S$17)*(1+($C$2+($C$3*S168))) -> 1.304597355 | AX168: =(AW168-CFO!T$17)*(1+($C$2+($C$3*T168))) -> 1.2650822 | AY168: =(AX168-CFO!U$17)*(1+($C$2+($C$3*U168))) -> 1.237935824 | AZ168: =(AY168-CFO!V$17)*(1+($C$2+($C$3*V168))) -> 1.208078326 | BA168: =(AZ168-CFO!W$17)*(1+($C$2+($C$3*W168))) -> 1.186901251 | BB168: =(BA168-CFO!X$17)*(1+($C$2+($C$3*X168))) -> 1.144458529
D169: 146 | E169: =NORMSINV(RAND()) -> 0.2147087926 | F169: -0.7784217486 | G169: -0.4640669489 | H169: -0.08068851721 | I169: -2.031578094 | J169: -2.614045059 | K169: 0.08867478069 | L169: 1.667007077 | M169: 0.3755011173 | N169: 0.6234186185 | O169: -0.4265427956 | P169: 0.8524683899 | Q169: -1.725839957 | R169: -0.2928437687 | S169: 0.2983343108 | T169: 0.9151362898 | U169: 1.34239067 | V169: -0.8248432316 | W169: 0.04314762646 | X169: -1.853452571 | Y169: 1.445839134 | Z169: -0.5031566386 | AA169: -1.558525486 | AB169: -1.030648762 | AC169: -0.4871998418 | AD169: -0.5917897471 | AE169: =NORMSINV(RAND()) -> -0.6719932533 | AF169: -1.611341321 | AH169: 146 | AI169: =($C$1-CFO!$E$17)*(1+($C$2+($C$3*E169))) -> 1.057415791 | AJ169: =(AI169-CFO!F$17)*(1+($C$2+($C$3*F169))) -> 1.108290489 | AK169: =(AJ169-CFO!G$17)*(1+($C$2+($C$3*G169))) -> 1.163579026 | AL169: =(AK169-CFO!H$17)*(1+($C$2+($C$3*H169))) -> 1.224314622 | AM169: =(AL169-CFO!I$17)*(1+($C$2+($C$3*I169))) -> 1.267509791 | AN169: =(AM169-CFO!J$17)*(1+($C$2+($C$3*J169))) -> 1.305648558 | AO169: =(AN169-CFO!K$17)*(1+($C$2+($C$3*K169))) -> 1.37357249 | AP169: =(AO169-CFO!L$17)*(1+($C$2+($C$3*L169))) -> 1.373349499 | AQ169: =(AP169-CFO!M$17)*(1+($C$2+($C$3*M169))) -> 1.358421812 | AR169: =(AQ169-CFO!N$17)*(1+($C$2+($C$3*N169))) -> 1.3446425 | AS169: =(AR169-CFO!O$17)*(1+($C$2+($C$3*O169))) -> 1.31854865 | AT169: =(AS169-CFO!P$17)*(1+($C$2+($C$3*P169))) -> 1.303783626 | AU169: =(AT169-CFO!Q$17)*(1+($C$2+($C$3*Q169))) -> 1.261693811 | AV169: =(AU169-CFO!R$17)*(1+($C$2+($C$3*R169))) -> 1.231890356 | AW169: =(AV169-CFO!S$17)*(1+($C$2+($C$3*S169))) -> 1.205855261 | AX169: =(AW169-CFO!T$17)*(1+($C$2+($C$3*T169))) -> 1.1836255 | AY169: =(AX169-CFO!U$17)*(1+($C$2+($C$3*U169))) -> 1.163342357 | AZ169: =(AY169-CFO!V$17)*(1+($C$2+($C$3*V169))) -> 1.122006094 | BA169: =(AZ169-CFO!W$17)*(1+($C$2+($C$3*W169))) -> 1.08608136 | BB169: =(BA169-CFO!X$17)*(1+($C$2+($C$3*X169))) -> 1.032493792
D170: 147 | E170: 0.6476467193 | F170: -0.3073518873 | G170: -1.012692781 | H170: 0.6886510265 | I170: -0.4517021008 | J170: 0.9119796909 | K170: -0.856091852 | L170: 1.100006854 | M170: 0.1756164178 | N170: 0.3512808383 | O170: -0.1660462318 | P170: -0.3774326227 | Q170: -0.3326529471 | R170: -0.6936382048 | S170: -0.7294175001 | T170: -0.6029012258 | U170: -0.4750057017 | V170: -1.516825548 | W170: -0.2461736244 | X170: -0.4133417091 | Y170: 0.07412350162 | Z170: 0.2286874471 | AA170: 0.5384941508 | AB170: -1.183270546 | AC170: -1.638799871 | AD170: 1.674904282 | AE170: 0.3204166099 | AF170: 0.002029982799 | AH170: 147 | AI170: =($C$1-CFO!$E$17)*(1+($C$2+($C$3*E170))) -> 1.060986328 | AJ170: =(AI170-CFO!F$17)*(1+($C$2+($C$3*F170))) -> 1.116041664 | AK170: =(AJ170-CFO!G$17)*(1+($C$2+($C$3*G170))) -> 1.166448024 | AL170: =(AK170-CFO!H$17)*(1+($C$2+($C$3*H170))) -> 1.234631623 | AM170: =(AL170-CFO!I$17)*(1+($C$2+($C$3*I170))) -> 1.293934026 | AN170: =(AM170-CFO!J$17)*(1+($C$2+($C$3*J170))) -> 1.369616387 | AO170: =(AN170-CFO!K$17)*(1+($C$2+($C$3*K170))) -> 1.428506143 | AP170: =(AO170-CFO!L$17)*(1+($C$2+($C$3*L170))) -> 1.424079677 | AQ170: =(AP170-CFO!M$17)*(1+($C$2+($C$3*M170))) -> 1.408325681 | AR170: =(AQ170-CFO!N$17)*(1+($C$2+($C$3*N170))) -> 1.393039348 | AS170: =(AR170-CFO!O$17)*(1+($C$2+($C$3*O170))) -> 1.370735123 | AT170: =(AS170-CFO!P$17)*(1+($C$2+($C$3*P170))) -> 1.344620342 | AU170: =(AT170-CFO!Q$17)*(1+($C$2+($C$3*Q170))) -> 1.317322242 | AV170: =(AU170-CFO!R$17)*(1+($C$2+($C$3*R170))) -> 1.284679033 | AW170: =(AV170-CFO!S$17)*(1+($C$2+($C$3*S170))) -> 1.249943154 | AX170: =(AW170-CFO!T$17)*(1+($C$2+($C$3*T170))) -> 1.214621099 | AY170: =(AX170-CFO!U$17)*(1+($C$2+($C$3*U170))) -> 1.178617885 | AZ170: =(AY170-CFO!V$17)*(1+($C$2+($C$3*V170))) -> 1.13135784 | BA170: =(AZ170-CFO!W$17)*(1+($C$2+($C$3*W170))) -> 1.093185064 | BB170: =(BA170-CFO!X$17)*(1+($C$2+($C$3*X170))) -> 1.051531623
D171: 148 | E171: -0.9977694854 | F171: 1.546332724 | G171: -0.8147114903 | H171: -0.1938383036 | I171: 0.6203218202 | J171: 0.5320229472 | K171: -0.7531804247 | L171: 1.463895067 | M171: 0.5304979024 | N171: 1.65152594 | O171: -0.5035348955 | P171: -0.05055639538 | Q171: 0.03817950065 | R171: 2.149031994 | S171: -0.440971999 | T171: 1.211053624 | U171: -0.2562001992 | V171: -0.2659014217 | W171: -1.094005521 | X171: -0.8884881198 | Y171: -0.04088074358 | Z171: 0.2641866092 | AA171: 0.3269236099 | AB171: -0.4767522868 | AC171: 0.5784426235 | AD171: 0.6143602941 | AE171: 1.061315621 | AF171: 0.7325083355 | AH171: 148 | AI171: =($C$1-CFO!$E$17)*(1+($C$2+($C$3*E171))) -> 1.047416207 | AJ171: =(AI171-CFO!F$17)*(1+($C$2+($C$3*F171))) -> 1.118179308 | AK171: =(AJ171-CFO!G$17)*(1+($C$2+($C$3*G171))) -> 1.170441605 | AL171: =(AK171-CFO!H$17)*(1+($C$2+($C$3*H171))) -> 1.230248305 | AM171: =(AL171-CFO!I$17)*(1+($C$2+($C$3*I171))) -> 1.300299073 | AN171: =(AM171-CFO!J$17)*(1+($C$2+($C$3*J171))) -> 1.372124461 | AO171: =(AN171-CFO!K$17)*(1+($C$2+($C$3*K171))) -> 1.432215545 | AP171: =(AO171-CFO!L$17)*(1+($C$2+($C$3*L171))) -> 1.431935534 | AQ171: =(AP171-CFO!M$17)*(1+($C$2+($C$3*M171))) -> 1.420302668 | AR171: =(AQ171-CFO!N$17)*(1+($C$2+($C$3*N171))) -> 1.419574019 | AS171: =(AR171-CFO!O$17)*(1+($C$2+($C$3*O171))) -> 1.394180921 | AT171: =(AS171-CFO!P$17)*(1+($C$2+($C$3*P171))) -> 1.372063296 | AU171: =(AT171-CFO!Q$17)*(1+($C$2+($C$3*Q171))) -> 1.349258606 | AV171: =(AU171-CFO!R$17)*(1+($C$2+($C$3*R171))) -> 1.346616994 | AW171: =(AV171-CFO!S$17)*(1+($C$2+($C$3*S171))) -> 1.315981988 | AX171: =(AW171-CFO!T$17)*(1+($C$2+($C$3*T171))) -> 1.300179169 | AY171: =(AX171-CFO!U$17)*(1+($C$2+($C$3*U171))) -> 1.268076243 | AZ171: =(AY171-CFO!V$17)*(1+($C$2+($C$3*V171))) -> 1.23396208 | BA171: =(AZ171-CFO!W$17)*(1+($C$2+($C$3*W171))) -> 1.190098941 | BB171: =(BA171-CFO!X$17)*(1+($C$2+($C$3*X171))) -> 1.146166562
D172: 149 | E172: -0.1669687686 | F172: 0.7420862544 | G172: -0.4383316042 | H172: 0.575969652 | I172: 0.4279800051 | J172: -0.08355118188 | K172: -0.178426516 | L172: -0.0148180786 | M172: -1.370789934 | N172: -0.5948840867 | O172: -1.282080538 | P172: -0.3064900409 | Q172: 0.04662863792 | R172: -0.7574083652 | S172: 1.170274357 | T172: 0.6700109627 | U172: 0.1802007905 | V172: -0.06890966162 | W172: -1.798731608 | X172: 0.5610377339 | Y172: 0.5749157397 | Z172: -2.426955957 | AA172: -0.1146812808 | AB172: -0.7948419252 | AC172: 0.3698289234 | AD172: 0.4243507448 | AE172: 1.970710193 | AF172: 0.5439793007 | AH172: 149 | AI172: =($C$1-CFO!$E$17)*(1+($C$2+($C$3*E172))) -> 1.054268009 | AJ172: =(AI172-CFO!F$17)*(1+($C$2+($C$3*F172))) -> 1.118294376 | AK172: =(AJ172-CFO!G$17)*(1+($C$2+($C$3*G172))) -> 1.174022723 | AL172: =(AK172-CFO!H$17)*(1+($C$2+($C$3*H172))) -> 1.241341959 | AM172: =(AL172-CFO!I$17)*(1+($C$2+($C$3*I172))) -> 1.30975246 | AN172: =(AM172-CFO!J$17)*(1+($C$2+($C$3*J172))) -> 1.375226941 | AO172: =(AN172-CFO!K$17)*(1+($C$2+($C$3*K172))) -> 1.441857148 | AP172: =(AO172-CFO!L$17)*(1+($C$2+($C$3*L172))) -> 1.425452085 | AQ172: =(AP172-CFO!M$17)*(1+($C$2+($C$3*M172))) -> 1.392724884 | AR172: =(AQ172-CFO!N$17)*(1+($C$2+($C$3*N172))) -> 1.366869332 | AS172: =(AR172-CFO!O$17)*(1+($C$2+($C$3*O172))) -> 1.332238455 | AT172: =(AS172-CFO!P$17)*(1+($C$2+($C$3*P172))) -> 1.30604159 | AU172: =(AT172-CFO!Q$17)*(1+($C$2+($C$3*Q172))) -> 1.281716787 | AV172: =(AU172-CFO!R$17)*(1+($C$2+($C$3*R172))) -> 1.24779127 | AW172: =(AV172-CFO!S$17)*(1+($C$2+($C$3*S172))) -> 1.230481887 | AX172: =(AW172-CFO!T$17)*(1+($C$2+($C$3*T172))) -> 1.206724565 | AY172: =(AX172-CFO!U$17)*(1+($C$2+($C$3*U172))) -> 1.176576032 | AZ172: =(AY172-CFO!V$17)*(1+($C$2+($C$3*V172))) -> 1.142219325 | BA172: =(AZ172-CFO!W$17)*(1+($C$2+($C$3*W172))) -> 1.090865744 | BB172: =(BA172-CFO!X$17)*(1+($C$2+($C$3*X172))) -> 1.057176778
D173: 150 | E173: 0.2155494076 | F173: 0.365973716 | G173: 0.7240852999 | H173: -0.9762048376 | I173: 1.067800856 | J173: 0.5098257324 | K173: -0.2504635856 | L173: -0.1122652727 | M173: 0.05568227637 | N173: -0.3279194474 | O173: -0.1387086189 | P173: -0.0806138751 | Q173: 0.7784922975 | R173: 1.701383369 | S173: 1.445845473 | T173: 0.5149653034 | U173: -0.4891513531 | V173: 0.3097622833 | W173: 0.2840714735 | X173: -0.08868470998 | Y173: 1.382263197 | Z173: 1.316482931 | AA173: 0.4367573576 | AB173: 0.2105115433 | AC173: 0.1231429539 | AD173: -1.052188498 | AE173: -1.392223111 | AF173: -0.1344351456 | AH173: 150 | AI173: =($C$1-CFO!$E$17)*(1+($C$2+($C$3*E173))) -> 1.057422723 | AJ173: =(AI173-CFO!F$17)*(1+($C$2+($C$3*F173))) -> 1.118267007 | AK173: =(AJ173-CFO!G$17)*(1+($C$2+($C$3*G173))) -> 1.184692925 | AL173: =(AK173-CFO!H$17)*(1+($C$2+($C$3*H173))) -> 1.237199383 | AM173: =(AL173-CFO!I$17)*(1+($C$2+($C$3*I173))) -> 1.312000186 | AN173: =(AM173-CFO!J$17)*(1+($C$2+($C$3*J173))) -> 1.383917163 | AO173: =(AN173-CFO!K$17)*(1+($C$2+($C$3*K173))) -> 1.449925927 | AP173: =(AO173-CFO!L$17)*(1+($C$2+($C$3*L173))) -> 1.432621937 | AQ173: =(AP173-CFO!M$17)*(1+($C$2+($C$3*M173))) -> 1.415758987 | AR173: =(AQ173-CFO!N$17)*(1+($C$2+($C$3*N173))) -> 1.393259965 | AS173: =(AR173-CFO!O$17)*(1+($C$2+($C$3*O173))) -> 1.371253926 | AT173: =(AS173-CFO!P$17)*(1+($C$2+($C$3*P173))) -> 1.348278518 | AU173: =(AT173-CFO!Q$17)*(1+($C$2+($C$3*Q173))) -> 1.332556234 | AV173: =(AU173-CFO!R$17)*(1+($C$2+($C$3*R173))) -> 1.324654729 | AW173: =(AV173-CFO!S$17)*(1+($C$2+($C$3*S173))) -> 1.312704234 | AX173: =(AW173-CFO!T$17)*(1+($C$2+($C$3*T173))) -> 1.289804894 | AY173: =(AX173-CFO!U$17)*(1+($C$2+($C$3*U173))) -> 1.255181143 | AZ173: =(AY173-CFO!V$17)*(1+($C$2+($C$3*V173))) -> 1.226286682 | BA173: =(AZ173-CFO!W$17)*(1+($C$2+($C$3*W173))) -> 1.19514522 | BB173: =(BA173-CFO!X$17)*(1+($C$2+($C$3*X173))) -> 1.158542211
D174: 151 | E174: -0.7356858576 | F174: -0.9513404226 | G174: -0.2465089944 | H174: -0.9467626363 | I174: 0.1529129154 | J174: -0.9729756718 | K174: -0.1402931663 | L174: -1.137540131 | M174: -0.3034900382 | N174: 1.935854577 | O174: 0.1523024364 | P174: -1.161155416 | Q174: -1.170566296 | R174: -0.772460241 | S174: 0.4351713573 | T174: 0.4649800158 | U174: 1.247828914 | V174: -0.1977217874 | W174: -1.252524241 | X174: -0.9194834311 | Y174: 1.017604198 | Z174: 0.9764003265 | AA174: 0.4838314357 | AB174: -0.6379393609 | AC174: -0.1816377463 | AD174: 0.2746563354 | AE174: 0.1118019391 | AF174: 0.2220974272 | AH174: 151 | AI174: =($C$1-CFO!$E$17)*(1+($C$2+($C$3*E174))) -> 1.04957767 | AJ174: =(AI174-CFO!F$17)*(1+($C$2+($C$3*F174))) -> 1.098817527 | AK174: =(AJ174-CFO!G$17)*(1+($C$2+($C$3*G174))) -> 1.155882293 | AL174: =(AK174-CFO!H$17)*(1+($C$2+($C$3*H174))) -> 1.208202275 | AM174: =(AL174-CFO!I$17)*(1+($C$2+($C$3*I174))) -> 1.272971655 | AN174: =(AM174-CFO!J$17)*(1+($C$2+($C$3*J174))) -> 1.328287509 | AO174: =(AN174-CFO!K$17)*(1+($C$2+($C$3*K174))) -> 1.394274005 | AP174: =(AO174-CFO!L$17)*(1+($C$2+($C$3*L174))) -> 1.364655501 | AQ174: =(AP174-CFO!M$17)*(1+($C$2+($C$3*M174))) -> 1.342355434 | AR174: =(AQ174-CFO!N$17)*(1+($C$2+($C$3*N174))) -> 1.341662052 | AS174: =(AR174-CFO!O$17)*(1+($C$2+($C$3*O174))) -> 1.321475755 | AT174: =(AS174-CFO!P$17)*(1+($C$2+($C$3*P174))) -> 1.286379096 | AU174: =(AT174-CFO!Q$17)*(1+($C$2+($C$3*Q174))) -> 1.249582687 | AV174: =(AU174-CFO!R$17)*(1+($C$2+($C$3*R174))) -> 1.214936925 | AW174: =(AV174-CFO!S$17)*(1+($C$2+($C$3*S174))) -> 1.189722036 | AX174: =(AW174-CFO!T$17)*(1+($C$2+($C$3*T174))) -> 1.162911985 | AY174: =(AX174-CFO!U$17)*(1+($C$2+($C$3*U174))) -> 1.141074427 | AZ174: =(AY174-CFO!V$17)*(1+($C$2+($C$3*V174))) -> 1.104771752 | BA174: =(AZ174-CFO!W$17)*(1+($C$2+($C$3*W174))) -> 1.057616 | BB174: =(BA174-CFO!X$17)*(1+($C$2+($C$3*X174))) -> 1.011199072
D175: 152 | E175: 0.1015448044 | F175: -0.1935720857 | G175: -0.2004056041 | H175: -0.1952895176 | I175: 0.6560193065 | J175: 1.900874863 | K175: -0.244441581 | L175: 0.5723239785 | M175: -0.8807107588 | N175: 0.6698154042 | O175: -0.3626592908 | P175: -0.6331584794 | Q175: 1.045865453 | R175: 0.9875490216 | S175: -2.417541595 | T175: -0.6518619112 | U175: 1.360115595 | V175: 1.280850334 | W175: 0.8434549928 | X175: -1.034997308 | Y175: 0.4828331601 | Z175: 0.6058372164 | AA175: -1.533122458 | AB175: 0.5523132642 | AC175: 0.5297518274 | AD175: -2.444903191 | AE175: 0.6214432569 | AF175: 0.4947370597 | AH175: 152 | AI175: =($C$1-CFO!$E$17)*(1+($C$2+($C$3*E175))) -> 1.056482501 | AJ175: =(AI175-CFO!F$17)*(1+($C$2+($C$3*F175))) -> 1.112431163 | AK175: =(AJ175-CFO!G$17)*(1+($C$2+($C$3*G175))) -> 1.170217962 | AL175: =(AK175-CFO!H$17)*(1+($C$2+($C$3*H175))) -> 1.230005675 | AM175: =(AL175-CFO!I$17)*(1+($C$2+($C$3*I175))) -> 1.300410233 | AN175: =(AM175-CFO!J$17)*(1+($C$2+($C$3*J175))) -> 1.386852955 | AO175: =(AN175-CFO!K$17)*(1+($C$2+($C$3*K175))) -> 1.452994786 | AP175: =(AO175-CFO!L$17)*(1+($C$2+($C$3*L175))) -> 1.443447394 | AQ175: =(AP175-CFO!M$17)*(1+($C$2+($C$3*M175))) -> 1.416415401 | AR175: =(AQ175-CFO!N$17)*(1+($C$2+($C$3*N175))) -> 1.404823732 | AS175: =(AR175-CFO!O$17)*(1+($C$2+($C$3*O175))) -> 1.380659904 | AT175: =(AS175-CFO!P$17)*(1+($C$2+($C$3*P175))) -> 1.352038741 | AU175: =(AT175-CFO!Q$17)*(1+($C$2+($C$3*Q175))) -> 1.339204851 | AV175: =(AU175-CFO!R$17)*(1+($C$2+($C$3*R175))) -> 1.324224969 | AW175: =(AV175-CFO!S$17)*(1+($C$2+($C$3*S175))) -> 1.273094045 | AX175: =(AW175-CFO!T$17)*(1+($C$2+($C$3*T175))) -> 1.237740085 | AY175: =(AX175-CFO!U$17)*(1+($C$2+($C$3*U175))) -> 1.219503932 | AZ175: =(AY175-CFO!V$17)*(1+($C$2+($C$3*V175))) -> 1.198668558 | BA175: =(AZ175-CFO!W$17)*(1+($C$2+($C$3*W175))) -> 1.171889342 | BB175: =(BA175-CFO!X$17)*(1+($C$2+($C$3*X175))) -> 1.126349632
